Workbook

Sheet 01.BALANCE ENERGIA Jul-19 Def
B1: Mes | C1: 2019-07-01
B3: Total | C3: =+SUM(C9:C437) -> 2.633221447e-05 | D3: =+SUM(D9:D437) -> 2.633221447e-05
B4: Positivo | C4: =+SUMIF(C$9:C$437,">0") -> 3.000459167e+10 | D4: =+SUMIF(D$9:D$437,">0") -> 3.000459167e+10
B5: Negativo | C5: =+SUMIF(C$9:C$437,"<0") -> -3.000459167e+10 | D5: =+SUMIF(D$9:D$437,"<0") -> -3.000459167e+10 | J5: CUADRO DE PAGOS 01.BALANCE ENERGIA Jul-19 Def (Valores en $)
F6: ="Balance Energía "& TEXT(C1,"mmm-yy") -> Balance Energía jul-yy
C7: Datos | K7: Reciben
B8: Empresa | C8: Energía SEN | D8: TOTAL | F8: Empresa | G8: Paga | H8: Recibe | J8: Pagan | K8: GMETROPOLITANA | L8: IMELSA_ENERGIA | M8: COLBUN | N8: GUACOLDA | O8: ARAUCO BIO | P8: SGA | Q8: ELEKTRAGEN | R8: GESAN | S8: PUNTILLA | T8: EL MANZANO | U8: ESPINOS | V8: ENLASA | W8: PARQUE_EOLICO_LEBU | X8: ORAFTI | Y8: ALTO_MANGA_ENERGY | Z8: GENPAC | AA8: MONTE REDONDO | AB8: PANGUIPULLI | AC8: HIDROPALOMA | AD8: BARRICK | AE8: CARRAN | AF8: DONGO | AG8: INACAL | AH8: HIDROLIRCAY | AI8: LOS MORROS | AJ8: DIUTO | AK8: LICAN | AL8: ENERGIA PACIFICO | AM8: DONGUIL | AN8: PEHUI | AO8: COMASA | AP8: ENERBOSCH | AQ8: HIDROMUCHI | AR8: BE FORESTALES | AS8: ALLIPEN | AT8: EL CANELO | AU8: CARBOMET | AV8: HIDROENERSUR | AW8: RUCATAYO | AX8: KALTEMP | AY8: ESTANCILLA SPA | AZ8: MAPOCHO TREBAL | BA8: UCUQUER | BB8: TAMM | BC8: TALINAY | BD8: GENERHOM | BE8: ARRAYAN | BF8: SOLAIREDIRECT | BG8: SANTAMARTA | BH8: RIO HUASCO | BI8: SANTA IRENE | BJ8: CONTRA | BK8: COLMITO | BL8: COMMONPLACE | BM8: AMANECER SOLAR | BN8: SAN_ANDRES_SPA | BO8: ENERGIA_LEON | BP8: ENERGIAS_DEL_FUTURO | BQ8: ARRAYAN_EOLICO | BR8: BIOCRUZ | BS8: HBS | BT8: LOS_PADRES | BU8: LOS_CURUROS | BV8: LOMAS_COLORADAS | BW8: PAMA | BX8: RIO_PUMA | BY8: GM_HOLDINGS | BZ8: PH_PUNTA_SIERRA | CA8: UCUQUER_DOS | CB8: EBCO_ATACAMA | CC8: ATRIA_ENERGIA | CD8: EOLICA_TALTAL | CE8: PV_SALVADOR | CF8: COLLIL | CG8: MARIA_ELENA | CH8: LAS_FLORES | CI8: BESALCO | CJ8: LLEUQUEREO | CK8: CURILEUFU | CL8: BIOBIO_NEGRETE | CM8: LUZ_DEL_NORTE | CN8: RAKI | CO8: TRAILELFU | CP8: GR_PAN_DE_AZUCAR | CQ8: PUCLARO | CR8: HUAJACHE | CS8: EL_MIRADOR | CT8: RIO_MULCHEN | CU8: EGP_SUR | CV8: EL_MORADO | CW8: CAREN | CX8: RENOVALIA_6 | CY8: RENOVALIA_7 | CZ8: AGSA | DA8: TILTIL_SOLAR | DB8: BELLAVISTA | DC8: MALLARAUCO | DD8: M_VILLARRICA | DE8: CHANLEUFU | DF8: RASO_POWER | DG8: LOS_LOROS | DH8: ALTOS_DEL_PAICO | DI8: EL_AGRIO | DJ8: LA_MONTAÑA_1 | DK8: SAN_JUAN_LAP | DL8: DIVISADERO | DM8: CUMPEO | DN8: SAFIRA_ENERGIA_CHILE | DO8: TEATINOS | DP8: GR_HUINGAN | DQ8: GR_COIGUE | DR8: HORMIGA_SOLAR | DS8: GESTEL | DT8: CUZCUZ | DU8: GR_ARAUCARIA | DV8: MAINCO | DW8: EL_ARROYO | DX8: LOS_PINOS_BIO | DY8: EL_BOCO | DZ8: SANTIAGO_SOLAR | EA8: GENERADORA_PIUTEL | EB8: HIDRORIÑINAHUE | EC8: GR_CANELO | ED8: LA_LEONERA | EE8: CABO_LEONES | EF8: CHILE_GENERACION | EG8: RIO_COLORADO | EH8: LAS_TURCAS | EI8: GR_GUAYACAN | EJ8: SOCER | EK8: COYANCO | EL8: GR_ESPINO | EM8: LA_MONTAÑA_2 | EN8: HIDROMUNILQUE | EO8: SAN_FRANCISCO | EP8: QUINTA_SOLAR | EQ8: VALLE_DE_LA_LUNA_II | ER8: GR_LINGUE | ES8: QUELTEHUE | ET8: CHESTER_SOLAR_IV | EU8: CHESTER_SOLAR_V | EV8: PV_CHANCON | EW8: PITIO | EX8: CH _SANTA_ELENA | EY8: AMPARO | EZ8: PARRONAL | FA8: GR_TIACA | FB8: GR_BOLDO | FC8: PV_PORTEZUELO | FD8: CATAN_SOLAR | FE8: SOLAR_E | FF8: GORRIONES | FG8: PV_EL_PICURIO | FH8: CHINCOL | FI8: VILLA_PRAT_ENERGY | FJ8: PS_SANTALAURA | FK8: PFV_OCOA | FL8: PV_LAS_PALOMAS | FM8: PALACIOS | FN8: ENERGIA_SIETE | FO8: MINICENTRALES_ARAUCANIA | FP8: LA_ACACIA | FQ8: GR_LITRE | FR8: GR_LAUREL | FS8: PATOS | FT8: TACORA_ENERGY | FU8: CH_CONVENTO_VIEJO | FV8: MINICENTRAL_ARRAYAN | FW8: GR_TINEO | FX8: PV_RODEO | FY8: LIPIGAS | FZ8: PV_LA_FRONTERA | GA8: EL_CERNICALO | GB8: FOTOVOLT_SOLAR_I | GC8: ABASTIBLE | GD8: SINERGIA_SOLAR_SPA | GE8: VALLE_SOLAR_OESTE_2 | GF8: PILPEN | GG8: HIDROELECTRICA SAN ANDRES | GH8: LA_MANGA_ENERGY | GI8: EL_QUEULE | GJ8: LOA_SOLAR | GK8: PIQUERO | GL8: PARQUE_SOLAR | GM8: DIEGO_DE_ALMAGRO_SOLAR | GN8: PFALICAHUE_SOLAR | GO8: LUNA_ENERGY | GP8: CALLE_LARGA_SPA | GQ8: NUOVOSOL_SPA | GR8: APOLO_DEL_NORTE_SPA | GS8: SOLAR_UNO | GT8: COCHRANE | GU8: GENERACION_SOLAR_SPA | GV8: NORACID | GW8: ANGAMOS | GX8: HELIO_ATACAMA_TRES | GY8: PLANTA_SOLAR_SPIII | GZ8: CALAMA_SOLAR_1 | HA8: PUERTO_SECO | HB8: TECNET | HC8: ENERNUEVAS | HD8: CAVANCHA | HE8: SPS_LA_HUAYCA | HF8: LOS_PUQUIOS | HG8: PMGD_PICA_PILOT | HH8: FV_NORTE_GRANDE_5 | HI8: POZO_ALMONTE_SOLAR_1 | HJ8: POZO_ALMONTE_SOLAR_3 | HK8: SOLAR_TI_CUATRO | HL8: SOLAR_LOS_PERALES_I | HM8: VITUCO | HN8: POBLACION_SOLAR | HO8: PFV_LAS_CODORNICES | HP8: SANTA_CATALINA_SOLAR | HQ8: PARSOSY_ILLAPEL5_SPA | HR8: JOAQUIN_SOLAR_SPA | HS8: ANGELA_SOLAR_SPA | HT8: CANENCIA_ENERGIA_SPA | HU8: JAURURO_SOLAR | HV8: GR_BELLOTO_SPA | HW8: MARCHIHUE_VII_SPA | HX8: RANGUIL_SUR_SPA | HY8: PARQUE_SOLAR_H6 | HZ8: RLA_SOLAR | IA8: PMGD_CRUZ_SPA | IB8: ACOTANGO_DE_VERANO | IC8: HIDROPALMAR | ID8: AUSTRIAN_SOLAR | IE8: SOLAR_TI_DIEZ | IF8: EL_NOGAL | IG8: TRICAHUE_SOLAR | IH8: GR_MOLLE | II8: REDEN_CABILDO_SOLAR | IJ8: REDEN_TALHUEN_SOLAR | IK8: SANTA_CLARA | IL8: LAUREL_SPA | IM8: REDEN_LALAJUELA | IN8: CUMBRES | IO8: SANTA_ADRIANA | IP8: GR_CHAQUIHUE | IQ8: ISABEL_SOLAR_SPA | IR8: CRUCERO_SPA | IS8: ALTOS_TILTIL | IT8: FV_ARIZTIA | IU8: HIDROANGOL | IV8: DUQUECO | IW8: STS | IX8: ZALDIVAR_TRANSMISION | IY8: Total
A9: =+MATCH(B9,RUT[EMPRESA],0) -> 108 | B9: ENEL_GENERACION | C9: -2166642911 | D9: =+C9 -> -2166642911 | F9: =IFERROR(INDEX($B$9:$B$511,MATCH(0,INDEX(COUNTIF($F$8:F8,$B$9:$B$511),0,0),0)),"") -> ENEL_GENERACION | G9: =IF(SUMIF($B$9:$B$400,F9,$D$9:$D$400)<-0.00001,SUMIF($B$9:$B$400,F9,$D$9:$D$400),"") -> -2166642911 | H9: =IF(SUMIF($B$9:$B$400,F9,$D$9:$D$400)>0.00001,SUMIF($B$9:$B$400,F9,$D$9:$D$400),"") ->  | J9: ENEL_GENERACION | K9: =$IY9*K$67/$IY$67 -> 56719119.32 | L9: 5794583.912 | M9: 9931149.235 | N9: 216197207.6 | O9: 89739133.3 | P9: 21883514.69 | Q9: 368227.6587 | R9: 538934.569 | S9: 2625712.247 | T9: 4096109.217 | U9: =$IY9*U$67/$IY$67 -> 3126383.269 | V9: 1297650.303 | W9: 2110176.146 | X9: 1856717.073 | Y9: 1227941.197 | Z9: 5350821.028 | AA9: 13468795.26 | AB9: 113649842.2 | AC9: 1421605.884 | AD9: 138335.9487 | AE9: =$IY9*AE$67/$IY$67 -> 765254.1034 | AF9: 7258076.824 | AG9: 473618.1216 | AH9: 9695165.483 | AI9: 548835.6286 | AJ9: 5370582.171 | AK9: 23192012.91 | AL9: 15316563.45 | AM9: 139449.5049 | AN9: 1806829.252 | AO9: =$IY9*AO$67/$IY$67 -> 34969926.87 | AP9: 12016355.02 | AQ9: 1248211.626 | AR9: 64127646.28 | AS9: 1570194.461 | AT9: 3126699.116 | AU9: 2370780.878 | AV9: 34965613.96 | AW9: 30060290 | AX9: 128732.2753 | AY9: =$IY9*AY$67/$IY$67 -> 7550.172713 | AZ9: 1400253.394 | BA9: 6725161.347 | BB9: 13943.7518 | BC9: 18563216.47 | BD9: 5863322.605 | BE9: 112101.9183 | BF9: 488241.3534 | BG9: 10085661.2 | BH9: 3964940.15 | BI9: =$IY9*BI$67/$IY$67 -> 306221.5636 | BJ9: 561695.6471 | BK9: 55910442.11 | BL9: 1155127.567 | BM9: 31647319.56 | BN9: 14460802.95 | BO9: 4154365.697 | BP9: 21173.7437 | BQ9: 33574601.42 | BR9: 2706432.551 | BS9: =$IY9*BS$67/$IY$67 -> 391755.5988 | BT9: 3255301.469 | BU9: 18592443.38 | BV9: 927985.3763 | BW9: 868833.7477 | BX9: 997256.5164 | BY9: 15484069.08 | BZ9: 66023579.21 | CA9: 5385629.476 | CB9: 430044.2625 | CC9: =$IY9*CC$67/$IY$67 -> 2076598.667 | CD9: 1013479.16 | CE9: 22482831.72 | CF9: 10477847.43 | CG9: 331666.5316 | CH9: 3726616.756 | CI9: 5699101.908 | CJ9: 2639792.803 | CK9: 392117.1562 | CL9: 4659880.697 | CM9: =$IY9*CM$67/$IY$67 -> 20041812.14 | CN9: 55382.89838 | CO9: 4121176.762 | CP9: 1319760.843 | CQ9: 1934989.013 | CR9: 241696.4144 | CS9: 4442743.079 | CT9: 847033.873 | CU9: 22980535.46 | CV9: 4073132.481 | CW9: =$IY9*CW$67/$IY$67 -> 1352263.296 | CX9: 829121.4388 | CY9: 834723.9532 | CZ9: 1569685.067 | DA9: 34371.05682 | DB9: 535953.0806 | DC9: 4067772.556 | DD9: 395563.6853 | DE9: 4007903.014 | DF9: 4057.428935 | DG9: =$IY9*DG$67/$IY$67 -> 16156860.67 | DH9: 51329.44749 | DI9: 3523079.521 | DJ9: 724799.1882 | DK9: 48664459.39 | DL9: 1265015.27 | DM9: 7403561.355 | DN9: 8202510.4 | DO9: 55077.67158 | DP9: 2923131.09 | DQ9: =$IY9*DQ$67/$IY$67 -> 1069318.716 | DR9: 1022322.589 | DS9: 403625.6294 | DT9: 1095719.348 | DU9: 3037422.528 | DV9: 13997062.82 | DW9: 5270630.799 | DX9: 2840781.99 | DY9: 1263333.224 | DZ9: 14770777.73 | EA9: =$IY9*EA$67/$IY$67 -> 882119.8848 | EB9: 1688129.658 | EC9: 3369541.799 | ED9: 2212757.482 | EE9: 69127343.9 | EF9: 56000.08695 | EG9: 98002.0905 | EH9: 1059206.719 | EI9: 1226120.697 | EJ9: 7224497.569 | EK9: =$IY9*EK$67/$IY$67 -> 1917003.664 | EL9: 926748.8516 | EM9: 423588.3728 | EN9: 943769.142 | EO9: 1207953.861 | EP9: 1194782.203 | EQ9: 1040144.101 | ER9: 2668560.341 | ES9: 1025785.917 | ET9: 2889461.535 | EU9: =$IY9*EU$67/$IY$67 -> 843686.7335 | EV9: 768531.2285 | EW9: 811311.7585 | EX9: 4092184.657 | EY9: 1224940.695 | EZ9: 909750.2741 | FA9: 970357.9873 | FB9: 953496.0062 | FC9: 875804.3688 | FD9: 1121436.031 | FE9: =$IY9*FE$67/$IY$67 -> 7351265.538 | FF9: 795033.3667 | FG9: 823744.445 | FH9: 797444.8896 | FI9: 894620.984 | FJ9: 1003735.234 | FK9: 1263810.964 | FL9: 725056.2805 | FM9: 266910.0652 | FN9: 219110.9109 | FO9: =$IY9*FO$67/$IY$67 -> 5278623.121 | FP9: 716422.8495 | FQ9: 2874984.581 | FR9: 1019054.208 | FS9: 876028.2054 | FT9: 2044427.13 | FU9: 0.3586807232 | FV9: 643103.885 | FW9: 637785.1128 | FX9: 1005661.348 | FY9: =$IY9*FY$67/$IY$67 -> 703204.326 | FZ9: 1838306.047 | GA9: 726007.2305 | GB9: 260300.5206 | GC9: 703084.5932 | GD9: 4955515.286 | GE9: 4924870.25 | GF9: 1039227.406 | GG9: 4344335.643 | GH9: 727830.425 | GI9: =$IY9*GI$67/$IY$67 -> 261345.93 | GJ9: 2112108.053 | GK9: 1154438.104 | GL9: 846315.064 | GM9: 4497954.39 | GN9: 1175313.85 | GO9: 735338.3878 | GP9: 1322887.094 | GQ9: 5363502.55 | GR9: 5296251.328 | GS9: =$IY9*GS$67/$IY$67 -> 2432185.268 | GT9: 203768198.8 | GU9: 25007018.83 | GV9: 25562246.07 | GW9: 76321777.49 | GX9: 44754557.38 | GY9: 8545555.504 | GZ9: 6984015.567 | HA9: 7103382.173 | HB9: 48034.25274 | HC9: =$IY9*HC$67/$IY$67 -> 4103005.598 | HD9: 3273548.092 | HE9: 9755959.087 | HF9: 444002.407 | HG9: 161664.5945 | HH9: 19595219.85 | HI9: 6867754.648 | HJ9: 840624.4189 | HK9: 899689.9888 | HL9: 466111.2029 | HM9: =$IY9*HM$67/$IY$67 -> 589937.5592 | HN9: 733852.7706 | HO9: 662345.7678 | HP9: 30391.36942 | HQ9: 465661.678 | HR9: 456085.6386 | HS9: 814099.225 | HT9: 536789.3713 | HU9: 210032.8388 | HV9: 741530.2502 | HW9: =$IY9*HW$67/$IY$67 -> 627953.8681 | HX9: 414602.7746 | HY9: 889732.6153 | HZ9: 677618.2165 | IA9: 874116.7755 | IB9: 230526.794 | IC9: 14268590.76 | ID9: 32444028.86 | IE9: 929931.546 | IF9: 5069847.392 | IG9: =$IY9*IG$67/$IY$67 -> 2169704.075 | IH9: 2205207.204 | II9: 1281611.673 | IJ9: 1605497.994 | IK9: 1371238.524 | IL9: 1719601.769 | IM9: 2538292.453 | IN9: 16304477.96 | IO9: 716477.4372 | IP9: 3063457.842 | IQ9: =$IY9*IQ$67/$IY$67 -> 833229.2706 | IR9: 654462.5146 | IS9: 767781.0208 | IT9: 630886.115 | IU9: 23878307.58 | IV9: 39346159.89 | IW9: 93769.14761 | IX9: 7179842.373 | IY9: 2166642911
A10: =+MATCH(B10,RUT[EMPRESA],0) -> 331 | B10: GASATACAMA | C10: -3077893750 | D10: =+C10 -> -3077893750 | F10: =IFERROR(INDEX($B$9:$B$511,MATCH(0,INDEX(COUNTIF($F$8:F9,$B$9:$B$511),0,0),0)),"") -> GASATACAMA | G10: =IF(SUMIF($B$9:$B$400,F10,$D$9:$D$400)<-0.00001,SUMIF($B$9:$B$400,F10,$D$9:$D$400),"") -> -3077893750 | H10: =IF(SUMIF($B$9:$B$400,F10,$D$9:$D$400)>0.00001,SUMIF($B$9:$B$400,F10,$D$9:$D$400),"") ->  | J10: GASATACAMA | K10: 80574155.54 | L10: 8231681.151 | M10: 14108011.07 | N10: 307125844.6 | O10: 127481790.5 | P10: 31087325.36 | Q10: 523097.5551 | R10: 765600.7059 | S10: 3730039.35 | T10: 5818858.704 | U10: 4441283.554 | V10: 1843418.562 | W10: 2997678.086 | X10: 2637618.709 | Y10: 1744391.066 | Z10: 7601279.62 | AA10: 19133527.06 | AB10: 161448911.3 | AC10: 2019507.62 | AD10: 196517.5479 | AE10: 1087106.145 | AF10: 10310692.72 | AG10: 672813.3414 | AH10: 13772776.82 | AI10: 779665.9722 | AJ10: 7629351.942 | AK10: 32946154.28 | AL10: 21758433.14 | AM10: 198099.4457 | AN10: 2566748.971 | AO10: 49677645.92 | AP10: 17070216.71 | AQ10: 1773186.871 | AR10: 91098575.01 | AS10: 2230589.866 | AT10: 4441732.24 | AU10: 3367888.456 | AV10: 49671519.09 | AW10: 42703104.54 | AX10: 182874.743 | AY10: 10725.63886 | AZ10: 1989174.657 | BA10: 9553642.633 | BB10: 19808.24173 | BC10: 26370569.73 | BD10: 8329330.096 | BE10: 159249.9586 | BF10: 693586.8402 | BG10: 14327507.98 | BH10: 5632522.298 | BI10: 435012.8174 | BJ10: 797934.6819 | BK10: 79425363.31 | BL10: 1640953.339 | BM10: 44957610.04 | BN10: 20542755.25 | BO10: 5901616.806 | BP10: 30079.03752 | BQ10: 47695471.82 | BR10: 3844709.155 | BS10: 556520.9216 | BT10: 4624422.417 | BU10: 26412088.95 | BV10: 1318279.249 | BW10: 1234249.515 | BX10: 1416684.579 | BY10: 21996388.62 | BZ10: 93791903.05 | CA10: 7650727.872 | CB10: 610913.1049 | CC10: 2949978.526 | CD10: 1439730.173 | CE10: 31938704.3 | CF10: 14884640.65 | CG10: 471159.4789 | CH10: 5293964.393 | CI10: 8096041.142 | CJ10: 3750041.934 | CK10: 557034.5434 | CL10: 6619742.277 | CM10: 28471036.01 | CN10: 78675.94423 | CO10: 5854469.206 | CP10: 1874828.395 | CQ10: 2748810.411 | CR10: 343349.5569 | CS10: 6311280.503 | CT10: 1203281.007 | CU10: 32645733.23 | CV10: 5786218.369 | CW10: 1921000.792 | CX10: 1177834.927 | CY10: 1185793.758 | CZ10: 2229866.229 | DA10: 48826.90196 | DB10: 761365.2573 | DC10: 5778604.156 | DD10: 561930.6204 | DE10: 5693554.567 | DF10: 5763.910195 | DG10: 22952144.18 | DH10: 72917.68517 | DI10: 5004823.077 | DJ10: 1029636.624 | DK10: 69131851.25 | DL10: 1797057.824 | DM10: 10517365.42 | DN10: 11652337.99 | DO10: 78242.34456 | DP10: 4152547.182 | DQ10: 1519054.837 | DR10: 1452292.988 | DS10: 573383.2724 | DT10: 1556559.097 | DU10: 4314907.533 | DV10: 19883974.4 | DW10: 7487362.83 | DX10: 4035563.539 | DY10: 1794668.339 | DZ10: 20983099.82 | EA10: 1253123.561 | EB10: 2398126.474 | EC10: 4786710.166 | ED10: 3143403.277 | EE10: 98201055.06 | EF10: 79552.71116 | EG10: 139219.9981 | EH10: 1504689.916 | EI10: 1741804.897 | EJ10: 10262990.64 | EK10: 2723260.75 | EL10: 1316522.665 | EM10: 601741.9848 | EN10: 1340701.382 | EO10: 1715997.417 | EP10: 1697285.998 | EQ10: 1477609.906 | ER10: 3790908.578 | ES10: 1457212.93 | ET10: 4104716.821 | EU10: 1198526.122 | EV10: 1091761.57 | EW10: 1152534.817 | EX10: 5813283.545 | EY10: 1740128.607 | EZ10: 1292374.793 | FA10: 1378473.015 | FB10: 1354519.189 | FC10: 1244151.854 | FD10: 1593091.752 | FE10: 10443074.93 | FF10: 1129410.028 | FG10: 1170196.467 | FH10: 1132835.794 | FI10: 1270882.397 | FJ10: 1425888.128 | FK10: 1795347.008 | FL10: 1030001.845 | FM10: 379167.6134 | FN10: 311264.9989 | FO10: 7498716.578 | FP10: 1017737.348 | FQ10: 4084151.122 | FR10: 1447649.985 | FS10: 1244469.832 | FT10: 2904276.221 | FU10: 0.5095353511 | FV10: 913581.753 | FW10: 906026.0013 | FX10: 1428624.33 | FY10: 998959.3531 | FZ10: 2611464.338 | GA10: 1031352.747 | GB10: 369778.2139 | GC10: 998789.2627 | GD10: 7039715.43 | GE10: 6996181.645 | GF10: 1476307.666 | GG10: 6171484.677 | GH10: 1033942.744 | GI10: 371263.3036 | GJ10: 3000422.518 | GK10: 1639973.901 | GL10: 1202259.88 | GM10: 6389712.693 | GN10: 1669629.608 | GO10: 1044608.42 | GP10: 1879269.491 | GQ10: 7619294.761 | GR10: 7523758.891 | GS10: 3455118.423 | GT10: 289469419.5 | GU10: 35524518.88 | GV10: 36313264.66 | GW10: 108421337.4 | GX10: 63577515.14 | GY10: 12139661.66 | GZ10: 9921366.258 | HA10: 10090936.3 | HB10: 68236.59108 | HC10: 5828655.579 | HD10: 4650343.241 | HE10: 13859139.11 | HF10: 630741.7927 | HG10: 229657.8004 | HH10: 27836615.08 | HI10: 9756208.098 | HJ10: 1194175.853 | HK10: 1278083.333 | HL10: 662149.1484 | HM10: 838054.6318 | HN10: 1042497.979 | HO10: 940916.4239 | HP10: 43173.42999 | HQ10: 661510.5616 | HR10: 647907.0131 | HS10: 1156494.642 | HT10: 762553.2768 | HU10: 298368.8538 | HV10: 1053404.468 | HW10: 892059.913 | HX10: 588977.2064 | HY10: 1263938.069 | HZ10: 962612.1884 | IA10: 1241754.489 | IB10: 327482.1961 | IC10: 20269702.09 | ID10: 46089400.88 | IE10: 1321043.943 | IF10: 7202133.553 | IG10: 3082242.386 | IH10: 3132677.488 | II10: 1820634.374 | IJ10: 2280741.426 | IK10: 1947956.658 | IL10: 2442835.186 | IM10: 3605852.372 | IN10: 23161846.64 | IO10: 1017814.895 | IP10: 4351892.829 | IQ10: 1183670.439 | IR10: 929717.6168 | IS10: 1090695.838 | IT10: 896225.4098 | IU10: 33921092.08 | IV10: 55894443.44 | IW10: 133206.7559 | IX10: 10199554.28 | IY10: 3077893750
A11: =+MATCH(B11,RUT[EMPRESA],0) -> 4 | B11: AES_GENER | C11: -2427498685 | D11: -2427498685 | F11: =IFERROR(INDEX($B$9:$B$511,MATCH(0,INDEX(COUNTIF($F$8:F10,$B$9:$B$511),0,0),0)),"") -> AES_GENER | G11: -2427498685 | J11: AES_GENER | K11: 63547891.01 | L11: 6492230.332 | M11: 11126822.78 | N11: 242226549.8 | O11: 100543392.3 | P11: 24518208.73 | Q11: 412560.9036 | R11: 603820.2931 | S11: 2941838.266 | T11: 4589265.581 | U11: 3502788.224 | V11: 1453882.589 | W11: 2364233.531 | X11: 2080258.925 | Y11: 1375780.764 | Z11: 5995040.042 | AA11: 15090388.28 | AB11: 127332861.9 | AC11: 1592761.962 | AD11: 154991.084 | AE11: 857387.8603 | AF11: 8131922.365 | AG11: 530639.9875 | AH11: 10862427.46 | AI11: 614913.4036 | AJ11: 6017180.353 | AK11: 25984245.29 | AL11: 17160620.9 | AM11: 156238.7083 | AN11: 2024364.795 | AO11: 39180176.42 | AP11: 13463079.62 | AQ11: 1398491.679 | AR11: 71848377.15 | AS11: 1759240.053 | AT11: 3503142.098 | AU11: 2656214.106 | AV11: 39175344.25 | AW11: 33679437.47 | AX11: 144231.164 | AY11: 8459.185517 | AZ11: 1568838.711 | BA11: 7534845.841 | BB11: 15622.52782 | BC11: 20798158.91 | BD11: 6569244.909 | BE11: 125598.5737 | BF11: 547023.8022 | BG11: 11299937.42 | BH11: 4442304.244 | BI11: 343089.5046 | BJ11: 629321.7206 | BK11: 62641852.06 | BL11: 1294200.643 | BM11: 35457539.5 | BN11: 16201830.01 | BO11: 4654535.925 | BP11: 23722.98394 | BQ11: 37616858.96 | BR11: 3032276.996 | BS11: 438921.5206 | BT11: 3647227.697 | BU11: 20830904.63 | BV11: 1039711.375 | BW11: 973438.1098 | BX11: 1117322.504 | BY11: 17348293.6 | BZ11: 73972573.37 | CA11: 6034039.298 | CB11: 481819.9973 | CC11: 2326613.448 | CD11: 1135498.294 | CE11: 25189681.3 | CF11: 11739341.42 | CG11: 371597.9524 | CH11: 4175287.597 | CI11: 6385252.649 | CJ11: 2957614.07 | CK11: 439326.6081 | CL11: 5220913.057 | CM11: 22454772.02 | CN11: 62050.79402 | CO11: 4617351.166 | CP11: 1478655.155 | CQ11: 2167954.516 | CR11: 270795.7666 | CS11: 4977632.875 | CT11: 949013.611 | CU11: 25747306.73 | CV11: 4563522.531 | CW11: 1515070.783 | CX11: 928944.5862 | CY11: 935221.6225 | CZ11: 1758669.329 | DA11: 38509.20463 | DB11: 600479.8445 | DC11: 4557517.291 | DD11: 443188.0865 | DE11: 4490439.678 | DF11: 4545.928336 | DG11: 18102086.79 | DH11: 57509.32266 | DI11: 3947245.234 | DJ11: 812062.3233 | DK11: 54523479.88 | DL11: 1417318.419 | DM11: 8294922.694 | DN11: 9190062.242 | DO11: 61708.81904 | DP11: 3275065.236 | DQ11: 1198060.725 | DR11: 1145406.439 | DS11: 452220.6588 | DT11: 1227639.895 | DU11: 3403116.94 | DV11: 15682257.29 | DW11: 5905195.207 | DX11: 3182801.61 | DY11: 1415433.86 | DZ11: 16549124.61 | EA11: 988323.8485 | EB11: 1891374.21 | EC11: 3775222.14 | ED11: 2479165.279 | EE11: 77450019.82 | EF11: 62742.28981 | EG11: 109801.1789 | EH11: 1186731.281 | EI11: 1373741.083 | EJ11: 8094300.292 | EK11: 2147803.798 | EL11: 1038325.978 | EM11: 474586.8425 | EN11: 1057395.448 | EO11: 1353387.027 | EP11: 1338629.55 | EQ11: 1165373.595 | ER11: 2989845.112 | ES11: 1149286.739 | ET11: 3237341.991 | EU11: 945263.4884 | EV11: 861059.5392 | EW11: 908990.6863 | EX11: 4584868.518 | EY11: 1372419.014 | EZ11: 1019280.834 | FA11: 1087185.491 | FB11: 1068293.39 | FC11: 981247.9679 | FD11: 1256452.772 | FE11: 8236330.654 | FF11: 890752.4365 | FG11: 922920.2223 | FH11: 893454.2979 | FI11: 1002330.034 | FJ11: 1124581.235 | FK11: 1415969.118 | FL11: 812350.3686 | FM11: 299045.0475 | FN11: 245491.0522 | FO11: 5914149.774 | FP11: 802677.5045 | FQ11: 3221122.066 | FR11: 1141744.557 | FS11: 981498.7535 | FT11: 2290568.577 | FU11: 0.4018645525 | FV11: 720531.2085 | FW11: 714572.0758 | FX11: 1126739.246 | FY11: 787867.5198 | FZ11: 2059631.28 | GA11: 813415.8094 | GB11: 291639.7383 | GC11: 787733.3716 | GD11: 5552140.954 | GE11: 5517806.369 | GF11: 1164346.533 | GG11: 4867377.548 | GH11: 815458.5098 | GI11: 292811.0111 | GJ11: 2366398.033 | GK11: 1293428.172 | GL11: 948208.2601 | GM11: 5039491.423 | GN11: 1316817.28 | GO11: 823870.4035 | GP11: 1482157.796 | GQ11: 6009248.372 | GR11: 5933900.353 | GS11: 2725011.358 | GT11: 228301134.5 | GU11: 28017771.19 | GV11: 28639845.73 | GW11: 85510636.55 | GX11: 50142840.17 | GY11: 9574408.705 | GZ11: 7824865.149 | HA11: 7958603.051 | HB11: 53817.39869 | HC11: 4596992.261 | HD11: 3667671.146 | HE11: 10930540.39 | HF11: 497458.6507 | HG11: 181128.4123 | HH11: 21954411.67 | HI11: 7694606.846 | HJ11: 941832.4824 | HK11: 1008009.328 | HL11: 522229.2636 | HM11: 660963.8542 | HN11: 822205.9235 | HO11: 742089.7427 | HP11: 34050.37763 | HQ11: 521725.6177 | HR11: 510996.6586 | HS11: 912113.7535 | HT11: 601416.8215 | HU11: 235320.0139 | HV11: 830807.7431 | HW11: 703557.1858 | HX11: 464519.4116 | HY11: 996853.1236 | HZ11: 759200.9376 | IA11: 979357.1946 | IB11: 258281.3653 | IC11: 15986476.19 | ID11: 36350169.65 | IE11: 1041891.857 | IF11: 5680238.222 | IG11: 2430928.402 | IH11: 2470705.976 | II11: 1435912.967 | IJ11: 1798794 | IK11: 1536330.559 | IL11: 1926635.447 | IM11: 2843893.454 | IN11: 18267476.66 | IO11: 802738.6643 | IP11: 3432286.808 | IQ11: 933546.9857 | IR11: 733257.375 | IS11: 860219.0092 | IT11: 706842.4643 | IU11: 26753167.29 | IV11: 44083291.67 | IW11: 105058.6053 | IX11: 8044268.776 | IY11: 2427498685
A12: =+MATCH(B12,RUT[EMPRESA],0) -> 338 | B12: GMETROPOLITANA | C12: 785470465.2 | D12: 785470465.2 | F12: =IFERROR(INDEX($B$9:$B$511,MATCH(0,INDEX(COUNTIF($F$8:F11,$B$9:$B$511),0,0),0)),"") -> GMETROPOLITANA | H12: 785470465.2 | J12: PEHUENCHE | K12: 32877561.98 | L12: 3358863.713 | M12: 5756647.465 | N12: 125319948.1 | O12: 52017801.97 | P12: 12684904.48 | Q12: 213445.2688 | R12: 312396.5059 | S12: 1522009.124 | T12: 2374333.139 | U12: 1812225.947 | V12: 752190.4216 | W12: 1223175.674 | X12: 1076256.673 | Y12: 711783.1392 | Z12: 3101634.018 | AA12: 7807264.221 | AB12: 65877781.17 | AC12: 824041.9832 | AD12: 80187.22401 | AE12: 443583.9187 | AF12: 4207185.751 | AG12: 274535.4535 | AH12: 5619858.134 | AI12: 318135.7118 | AJ12: 3113088.678 | AK12: 13443382.96 | AL12: 8878333.621 | AM12: 80832.70326 | AN12: 1047338.912 | AO12: 20270518.16 | AP12: 6965348.929 | AQ12: 723533.0097 | AR12: 37171957.01 | AS12: 910172.2018 | AT12: 1812409.029 | AU12: 1374236.698 | AV12: 20268018.15 | AW12: 17424619.06 | AX12: 74620.39978 | AY12: 4376.500804 | AZ12: 811664.8898 | BA12: 3898278.246 | BB12: 8082.575497 | BC12: 10760274.62 | BD12: 3398708.489 | BE12: 64980.51824 | BF12: 283011.8935 | BG12: 5846211.212 | BH12: 2298300.239 | BI12: 177503.0811 | BJ12: 325590.095 | BK12: 32408807.61 | BL12: 669576.3021 | BM12: 18344549.82 | BN12: 8382287.152 | BO12: 2408101.841 | BP12: 12273.48166 | BQ12: 19461709.78 | BR12: 1568799.11 | BS12: 227083.3739 | BT12: 1886954.118 | BU12: 10777216.16 | BV12: 537912.0319 | BW12: 503624.452 | BX12: 578065.4446 | BY12: 8975429.221 | BZ12: 38270945.38 | CA12: 3121810.934 | CB12: 249277.6168 | CC12: 1203712.297 | CD12: 587468.9927 | CE12: 13032302.02 | CF12: 6073544.204 | CG12: 192252.4023 | CH12: 2160154.721 | CI12: 3303517.023 | CJ12: 1530170.999 | CK12: 227292.9527 | CL12: 2701126.503 | CM12: 11617351.06 | CN12: 32103.01387 | CO12: 2388863.686 | CP12: 765006.9222 | CQ12: 1121627.45 | CR12: 140100.7092 | CS12: 2575261.441 | CT12: 490988.03 | CU12: 13320798.84 | CV12: 2361014.543 | CW12: 783847.1551 | CX12: 480604.985 | CY12: 483852.5145 | CZ12: 909876.9284 | DA12: 19923.37971 | DB12: 310668.2691 | DC12: 2357907.632 | DD12: 229290.753 | DE12: 2323203.909 | DF12: 2351.911893 | DG12: 9365416.712 | DH12: 29753.40787 | DI12: 2042173.198 | DJ12: 420133.9957 | DK12: 28208632.27 | DL12: 733273.3379 | DM12: 4291516.692 | DN12: 4754632.076 | DO12: 31926.08741 | DP12: 1694409.658 | DQ12: 619836.7108 | DR12: 592595.1369 | DS12: 233963.905 | DT12: 635139.9881 | DU12: 1760659.344 | DV12: 8113477.531 | DW12: 3055151.293 | DX12: 1646675.531 | DY12: 732298.3301 | DZ12: 8561965.809 | EA12: 511325.8374 | EB12: 978534.0131 | EC12: 1953174.179 | ED12: 1282637.533 | EE12: 40070060.33 | EF12: 32460.77075 | EG12: 56807.47238 | EH12: 613975.2337 | EI12: 710727.8762 | EJ12: 4187721.344 | EK12: 1111202.14 | EL12: 537195.2733 | EM12: 245535.4234 | EN12: 547061.182 | EO12: 700197.3654 | EP12: 692562.3385 | EQ12: 602925.4784 | ER12: 1546846.267 | ES12: 594602.675 | ET12: 1674892.908 | EU12: 489047.8414 | EV12: 445483.523 | EW12: 470281.5019 | EX12: 2372058.246 | EY12: 710043.8813 | EZ12: 527341.9507 | FA12: 562473.5583 | FB12: 552699.4145 | FC12: 507665.0125 | FD12: 650046.8106 | FE12: 4261203.122 | FF12: 460845.639 | FG12: 477488.1798 | FH12: 462243.4921 | FI12: 518572.1711 | FJ12: 581820.8702 | FK12: 732575.2547 | FL12: 420283.0207 | FM12: 154715.9462 | FN12: 127008.8929 | FO12: 3059784.088 | FP12: 415278.603 | FQ12: 1666501.259 | FR12: 590700.6012 | FS12: 507794.7606 | FT12: 1185063.881 | FU12: 0.207911333 | FV12: 372778.8458 | FW12: 369695.7891 | FX12: 582937.3532 | FY12: 407616.4103 | FZ12: 1065584.616 | GA12: 420834.2443 | GB12: 150884.6858 | GC12: 407547.0064 | GD12: 2872492.784 | GE12: 2854729.213 | GF12: 602394.1107 | GG12: 2518219.007 | GH12: 421891.0694 | GI12: 151490.6634 | GJ12: 1224295.516 | GK12: 669176.6509 | GL12: 490571.3682 | GM12: 2607264.993 | GN12: 681277.3966 | GO12: 426243.103 | GP12: 766819.0717 | GQ12: 3108984.935 | GR12: 3070002.38 | GS12: 1409830.104 | GT12: 118115402.1 | GU12: 14495461.52 | GV12: 14817302.17 | GW12: 44240354.93 | GX12: 25942235.21 | GY12: 4953480.133 | GZ12: 4048324.576 | HA12: 4117516.111 | HB12: 27843.32938 | HC12: 2378330.666 | HD12: 1897530.878 | HE12: 5655097.494 | HF12: 257368.5351 | HG12: 93709.807 | HH12: 11358481.28 | HI12: 3980933.269 | HJ12: 487272.7532 | HK12: 521510.4487 | HL12: 270184.0251 | HM12: 341960.681 | HN12: 425381.9565 | HO12: 383932.5133 | HP12: 17616.53114 | HQ12: 269923.4555 | HR12: 264372.6495 | HS12: 471897.2729 | HT12: 311153.0298 | HU12: 121746.7365 | HV12: 429832.2515 | HW12: 363997.0519 | HX12: 240326.87 | HY12: 515738.6002 | HZ12: 392785.2755 | IA12: 506686.7893 | IB12: 133626.1749 | IC12: 8270870.26 | ID12: 18806366.93 | IE12: 539040.1403 | IF12: 2938766.043 | IG12: 1257681.379 | IH12: 1278260.971 | II12: 742893.5377 | IJ12: 930636.0964 | IK12: 794846.2547 | IL12: 996777.0024 | IM12: 1471335.741 | IN12: 9450983.92 | IO12: 415310.2451 | IP12: 1775750.863 | IQ12: 482986.1132 | IR12: 379362.9404 | IS12: 445048.6608 | IT12: 365696.7455 | IU12: 13841197.59 | IV12: 22807226.66 | IW12: 54353.82282 | IX12: 4161836.704 | IY12: 1255906958
A13: =+MATCH(B13,RUT[EMPRESA],0) -> 177 | B13: IMELSA_ENERGIA | C13: 80245860.22 | D13: 80245860.22 | F13: =IFERROR(INDEX($B$9:$B$511,MATCH(0,INDEX(COUNTIF($F$8:F12,$B$9:$B$511),0,0),0)),"") -> IMELSA_ENERGIA | H13: 80245860.22 | J13: TECNORED | K13: 3396561.228 | L13: 347002.1976 | M13: 594715.8003 | N13: 12946728.75 | O13: 5373927.954 | P13: 1310469.881 | Q13: 22050.90283 | R13: 32273.49584 | S13: 157237.8507 | T13: 245290.934 | U13: 187219.9767 | V13: 77708.34175 | W13: 126365.546 | X13: 111187.432 | Y13: 73533.88962 | Z13: 320427.952 | AA13: 806563.7887 | AB13: 6805794.099 | AC13: 85131.28353 | AD13: 8284.094066 | AE13: 45826.38885 | AF13: 434641.839 | AG13: 28362.0932 | AH13: 580584.1765 | AI13: 32866.40976 | AJ13: 321611.326 | AK13: 1388827.838 | AL13: 917215.3267 | AM13: 8350.77814 | AN13: 108199.9554 | AO13: 2094135.085 | AP13: 719586.0243 | AQ13: 74747.7617 | AR13: 3840212.606 | AS13: 94029.34481 | AT13: 187238.8908 | AU13: 141971.5698 | AV13: 2093876.811 | AW13: 1800126.954 | AX13: 7708.98879 | AY13: 452.1336758 | AZ13: 83852.61343 | BA13: 402728.7899 | BB13: 835.0060316 | BC13: 1111637.523 | BD13: 351118.5376 | BE13: 6713.098404 | BF13: 29237.78914 | BG13: 603968.5773 | BH13: 237436.0206 | BI13: 18337.73695 | BJ13: 33636.51763 | BK13: 3348134.495 | BL13: 69173.52657 | BM13: 1895164.45 | BN13: 865969.0632 | BO13: 248779.5583 | BP13: 1267.966036 | BQ13: 2010577.576 | BR13: 162071.6961 | BS13: 23459.84729 | BT13: 194940.0993 | BU13: 1113387.744 | BV13: 55571.36971 | BW13: 52029.14038 | BX13: 59719.59471 | BY13: 927246.2149 | BZ13: 3953748.436 | CA13: 322512.4171 | CB13: 25752.72123 | CC13: 124354.7961 | CD13: 60691.06964 | CE13: 1346359.313 | CF13: 627454.2126 | CG13: 19861.48049 | CH13: 223164.2899 | CI13: 341284.3642 | CJ13: 158081.0491 | CK13: 23481.49875 | CL13: 279051.7606 | CM13: 1200181.577 | CN13: 3316.543127 | CO13: 246792.076 | CP13: 79032.40675 | CQ13: 115874.6598 | CR13: 14473.72033 | CS13: 266048.7164 | CT13: 50723.67918 | CU13: 1376163.747 | CV13: 243914.9978 | CW13: 80978.77993 | CX13: 49651.01303 | CY13: 49986.51336 | CZ13: 93998.84029 | DA13: 2058.27242 | DB13: 32094.95273 | DC13: 243594.0246 | DD13: 23687.89031 | DE13: 240008.8038 | DF13: 242.9746084 | DG13: 967535.5889 | DH13: 3073.806739 | DI13: 210975.6895 | DJ13: 43403.79135 | DK13: 2914216.898 | DL13: 75754.02918 | DM13: 443354.018 | DN13: 491198.1909 | DO13: 3298.26496 | DP13: 175048.4465 | DQ13: 64034.9592 | DR13: 61220.64852 | DS13: 24170.67084 | DT13: 65615.9316 | DU13: 181892.6619 | DV13: 838198.5023 | DW13: 315625.8495 | DX13: 170117.0625 | DY13: 75653.3017 | DZ13: 884531.5575 | EA13: 52824.76588 | EB13: 101091.7626 | EC13: 201781.2542 | ED13: 132508.515 | EE13: 4139613.924 | EF13: 3353.502776 | EG13: 5868.745934 | EH13: 63429.41351 | EI13: 73424.87103 | EJ13: 432630.9828 | EK13: 114797.6273 | EL13: 55497.32181 | EM13: 25366.11747 | EN13: 56516.56293 | EO13: 72336.97027 | EP13: 71548.20022 | EQ13: 62287.86991 | ER13: 159803.761 | ES13: 61428.04608 | ET13: 173032.1828 | EU13: 50523.23947 | EV13: 46022.63584 | EW13: 48584.50018 | EX13: 245055.9161 | EY13: 73354.20793 | EZ13: 54479.38095 | FA13: 58108.80628 | FB13: 57099.04534 | FC13: 52446.56825 | FD13: 67155.9465 | FE13: 440222.3413 | FF13: 47609.68683 | FG13: 49329.01775 | FH13: 47754.0982 | FI13: 53573.38027 | FJ13: 60107.56548 | FK13: 75681.91062 | FL13: 43419.18704 | FM13: 15983.61169 | FN13: 13121.21263 | FO13: 316104.4608 | FP13: 42902.18365 | FQ13: 172165.2465 | FR13: 61024.92517 | FS13: 52459.97245 | FT13: 122428.2395 | FU13: 0.02147919524 | FV13: 38511.5592 | FW13: 38193.05045 | FX13: 60222.90867 | FY13: 42110.60711 | FZ13: 110084.9082 | GA13: 43476.13362 | GB13: 15587.80649 | GC13: 42103.43704 | GD13: 296755.5083 | GE13: 294920.3645 | GF13: 62232.97463 | GG13: 260155.6967 | GH13: 43585.31359 | GI13: 15650.40966 | GJ13: 126481.2361 | GK13: 69132.23885 | GL13: 50680.63411 | GM13: 269354.9842 | GN13: 70382.35964 | GO13: 44034.91958 | GP13: 79219.61883 | GQ13: 321187.3708 | GR13: 317160.1063 | GS13: 145648.7033 | GT13: 12202431.42 | GU13: 1497517.444 | GV13: 1530766.609 | GW13: 4570444.559 | GX13: 2680076.775 | GY13: 511741.0645 | GZ13: 418229.9862 | HA13: 425378.1223 | HB13: 2876.477675 | HC13: 245703.9161 | HD13: 196032.7781 | HE13: 584224.7337 | HF13: 26588.58915 | HG13: 9681.104012 | HH13: 1173437.895 | HI13: 411267.8307 | HJ13: 50339.85617 | HK13: 53876.93197 | HL13: 27912.54975 | HM13: 35327.75305 | HN13: 43945.95504 | HO13: 39663.8379 | HP13: 1819.953277 | HQ13: 27885.63045 | HR13: 27312.18001 | HS13: 48751.42451 | HT13: 32145.03307 | HU13: 12577.5824 | HV13: 44405.71235 | HW13: 37604.31733 | HX13: 24828.02494 | HY13: 53280.64577 | HZ13: 40578.41147 | IA13: 52345.50861 | IB13: 13804.84006 | IC13: 854458.6508 | ID13: 1942874.499 | IE13: 55687.91391 | IF13: 303602.1591 | IG13: 129930.3097 | IH13: 132056.375 | II13: 76747.88625 | IJ13: 96143.4575 | IK13: 82115.09031 | IL13: 102976.4349 | IM13: 152002.8138 | IN13: 976375.4859 | IO13: 42905.45257 | IP13: 183451.7576 | IQ13: 49897.00596 | IR13: 39191.75807 | IS13: 45977.71048 | IT13: 37779.91166 | IU13: 1429925.829 | IV13: 2356200.921 | IW13: 5615.260867 | IX13: 429956.8562 | IY13: 129746995.3
A14: =+MATCH(B14,RUT[EMPRESA],0) -> 56 | B14: COLBUN | C14: 137530774.5 | D14: 137530774.5 | F14: =IFERROR(INDEX($B$9:$B$511,MATCH(0,INDEX(COUNTIF($F$8:F13,$B$9:$B$511),0,0),0)),"") -> COLBUN | H14: 137530774.5 | J14: NUEVA ENERGIA | K14: 1887151.688 | L14: 192796.6961 | M14: 330427.998 | N14: 7193287.38 | O14: 2985789.606 | P14: 728105.658 | Q14: 12251.62619 | R14: 17931.36589 | S14: 87362.38077 | T14: 136285.2512 | U14: 104020.6466 | V14: 43175.26418 | W14: 70209.5259 | X14: 61776.46624 | Y14: 40855.91121 | Z14: 178031.871 | AA14: 448132.1293 | AB14: 3781343.824 | AC14: 47299.4993 | AD14: 4602.696978 | AE14: 25461.44211 | AF14: 241489.8555 | AG14: 15758.16494 | AH14: 322576.3751 | AI14: 18260.79276 | AJ14: 178689.3614 | AK14: 771641.8528 | AL14: 509610.8493 | AM14: 4639.747087 | AN14: 60116.60466 | AO14: 1163515.184 | AP14: 399806.7131 | AQ14: 41530.34649 | AR14: 2133647.303 | AS14: 52243.32049 | AT14: 104031.1554 | AU14: 78880.33505 | AV14: 1163371.685 | AW14: 1000162.338 | AX14: 4283.164716 | AY14: 251.2084347 | AZ14: 46589.06181 | BA14: 223758.7562 | BB14: 463.934826 | BC14: 617633.0965 | BD14: 195083.7616 | BE14: 3729.841488 | BF14: 16244.70735 | BG14: 335568.9015 | BH14: 131921.0098 | BI14: 10188.56688 | BJ14: 18688.66974 | BK14: 1860245.478 | BL14: 38433.2649 | BM14: 1052965.794 | BN14: 481138.0893 | BO14: 138223.5538 | BP14: 704.4902432 | BQ14: 1117090.084 | BR14: 90048.09699 | BS14: 13034.44497 | BT14: 108309.9973 | BU14: 618605.5308 | BV14: 30875.81737 | BW14: 28907.73153 | BX14: 33180.59838 | BY14: 515184.0766 | BZ14: 2196728.554 | CA14: 179190.0135 | CB14: 14308.38077 | CC14: 69092.34006 | CD14: 33720.35622 | CE14: 748046.0618 | CF14: 348617.6745 | CG14: 11035.16878 | CH14: 123991.5426 | CI14: 189619.8304 | CJ14: 87830.86734 | CK14: 13046.47467 | CL14: 155042.9878 | CM14: 666828.7532 | CN14: 1842.693107 | CO14: 137119.2955 | CP14: 43910.92337 | CQ14: 64380.72074 | CR14: 8041.693912 | CS14: 147818.4112 | CT14: 28182.40873 | CU14: 764605.6006 | CV14: 135520.772 | CW14: 44992.34107 | CX14: 27586.42838 | CY14: 27772.83456 | CZ14: 52226.37198 | DA14: 1143.589652 | DB14: 17832.16617 | DC14: 135342.4372 | DD14: 13161.14717 | DE14: 133350.4651 | DF14: 134.9982855 | DG14: 537569.1169 | DH14: 1707.827178 | DI14: 117219.4764 | DJ14: 24115.43106 | DK14: 1619158.016 | DL14: 42089.4353 | DM14: 246330.3993 | DN14: 272912.9354 | DO14: 1832.537637 | DP14: 97258.06461 | DQ14: 35578.24318 | DR14: 34014.59372 | DS14: 13429.3832 | DT14: 36456.64181 | DU14: 101060.7555 | DV14: 465708.5836 | DW14: 175363.7914 | DX14: 94518.1553 | DY14: 42033.47046 | DZ14: 491451.5329 | EA14: 29349.78628 | EB14: 56167.2461 | EC14: 112110.9878 | ED14: 73622.59971 | EE14: 2299996.638 | EF14: 1863.22813 | EG14: 3260.71372 | EH14: 35241.79803 | EI14: 40795.33976 | EJ14: 240372.6106 | EK14: 63782.3144 | EL14: 30834.67587 | EM14: 14093.58118 | EN14: 31400.97292 | EO14: 40190.89497 | EP14: 39752.64916 | EQ14: 34607.54892 | ER14: 88788.01739 | ES14: 34129.82516 | ET14: 96137.81524 | EU14: 28071.04311 | EV14: 25570.47822 | EW14: 26993.86685 | EX14: 136154.6737 | EY14: 40756.07888 | EZ14: 30269.10125 | FA14: 32285.63377 | FB14: 31724.60397 | FC14: 29139.65719 | FD14: 37312.28419 | FE14: 244590.4192 | FF14: 26452.25416 | FG14: 27407.52569 | FH14: 26532.49006 | FI14: 29765.72134 | FJ14: 33396.15748 | FK14: 42049.36575 | FL14: 24123.985 | FM14: 8880.599456 | FN14: 7290.231766 | FO14: 175629.711 | FP14: 23836.73453 | FQ14: 95656.13978 | FR14: 33905.84854 | FS14: 29147.10465 | FT14: 68021.93256 | FU14: 0.01193398171 | FV14: 21397.2748 | FW14: 21220.30925 | FX14: 33460.24292 | FY14: 23396.92941 | FZ14: 61163.8968 | GA14: 24155.62489 | GB14: 8660.687487 | GC14: 23392.94567 | GD14: 164879.3061 | GE14: 163859.6882 | GF14: 34577.04874 | GG14: 144544.2108 | GH14: 24216.286 | GI14: 8695.470222 | GJ14: 70273.80408 | GK14: 38410.32518 | GL14: 28158.4926 | GM14: 149655.3953 | GN14: 39104.90048 | GO14: 24466.09004 | GP14: 44014.93963 | GQ14: 178453.8091 | GR14: 176216.2346 | GS14: 80923.37452 | GT14: 6779750.903 | GU14: 832030.5106 | GV14: 850503.9643 | GW14: 2539368.964 | GX14: 1489068.228 | GY14: 284326.6907 | GZ14: 232371.3225 | HA14: 236342.8738 | HB14: 1598.189856 | HC14: 136514.7068 | HD14: 108917.0968 | HE14: 324599.0926 | HF14: 14772.79446 | HG14: 5378.884864 | HH14: 651969.7884 | HI14: 228503.1033 | HJ14: 27969.15415 | HK14: 29934.37665 | HL14: 15508.39565 | HM14: 19628.33123 | HN14: 24416.66076 | HO14: 22037.4884 | HP14: 1011.177973 | HQ14: 15493.43912 | HR14: 15174.82629 | HS14: 27086.6111 | HT14: 17859.99113 | HU14: 6988.187247 | HV14: 24672.10493 | HW14: 20893.20526 | HX14: 13794.61345 | HY14: 29603.07613 | HZ14: 22545.63147 | IA14: 29083.50779 | IB14: 7670.05965 | IC14: 474742.8287 | ID14: 1079473.81 | IE14: 30940.57009 | IF14: 168683.3502 | IG14: 72190.13197 | IH14: 73371.38778 | II14: 42641.6288 | IJ14: 53417.93536 | IK14: 45623.68257 | IL14: 57214.38239 | IM14: 84453.75997 | IN14: 542480.6217 | IO14: 23838.55076 | IP14: 101926.9993 | IQ14: 27723.10366 | IR14: 21775.19775 | IS14: 25545.5174 | IT14: 20990.76663 | IU14: 794476.1662 | IV14: 1309120.68 | IW14: 3119.875755 | IX14: 238886.8483 | IY14: 72088281.27
A15: =+MATCH(B15,RUT[EMPRESA],0) -> 244 | B15: PEHUENCHE | C15: -1255906958 | D15: -1255906958 | F15: =IFERROR(INDEX($B$9:$B$511,MATCH(0,INDEX(COUNTIF($F$8:F14,$B$9:$B$511),0,0),0)),"") -> PEHUENCHE | G15: -1255906958 | J15: PACIFIC HYDRO | K15: 566311.5823 | L15: 57855.9756 | M15: 99157.47819 | N15: 2158619.248 | O15: 895999.6414 | P15: 218495.7732 | Q15: 3676.566042 | R15: 5380.98779 | S15: 26216.40242 | T15: 40897.56892 | U15: 31215.34815 | V15: 12956.37882 | W15: 21069.03645 | X15: 18538.37641 | Y15: 12260.36882 | Z15: 53425.22872 | AA15: 134479.076 | AB15: 1134735.919 | AC15: 14194.01231 | AD15: 1381.214147 | AE15: 7640.673327 | AF15: 72468.2086 | AG15: 4728.836255 | AH15: 96801.30035 | AI15: 5479.844839 | AJ15: 53622.53369 | AK15: 231560.463 | AL15: 152928.1023 | AM15: 1392.33244 | AN15: 18040.27186 | AO15: 349156.9484 | AP15: 119977.1983 | AQ15: 12462.75876 | AR15: 640281.9591 | AS15: 15677.59374 | AT15: 31218.50172 | AU15: 23671.04225 | AV15: 349113.8862 | AW15: 300136.7192 | AX15: 1285.326348 | AY15: 75.38463761 | AZ15: 13980.81854 | BA15: 67147.31839 | BB15: 139.2212756 | BC15: 185344.2828 | BD15: 58542.29653 | BE15: 1119.280685 | BF15: 4874.841794 | BG15: 100700.2017 | BH15: 39587.91245 | BI15: 3057.466694 | BJ15: 5608.245588 | BK15: 558237.3513 | BL15: 11533.36173 | BM15: 315982.4029 | BN15: 144383.7686 | BO15: 41479.23027 | BP15: 211.4090705 | BQ15: 335225.3329 | BR15: 27022.35364 | BS15: 3911.480568 | BT15: 32502.53085 | BU15: 185636.0986 | BV15: 9265.462388 | BW15: 8674.863437 | BX15: 9957.09952 | BY15: 154600.5609 | BZ15: 659211.8858 | CA15: 53772.77339 | CB15: 4293.773416 | CC15: 20733.78238 | CD15: 10119.07437 | CE15: 224479.6491 | CF15: 104615.9819 | CG15: 3311.521768 | CH15: 37208.37447 | CI15: 56902.63632 | CJ15: 26356.98962 | CK15: 3915.090534 | CL15: 46526.54065 | CM15: 200107.3092 | CN15: 552.9700953 | CO15: 41147.85563 | CP15: 13177.14132 | CQ15: 19319.88195 | CR15: 2413.21587 | CS15: 44358.53189 | CT15: 8457.202767 | CU15: 229448.9681 | CV15: 40668.1579 | CW15: 13501.6618 | CX15: 8278.356215 | CY15: 8334.294474 | CZ15: 15672.50769 | DA15: 343.1775353 | DB15: 5351.219143 | DC15: 40614.64177 | DD15: 3949.502376 | DE15: 40016.87481 | DF15: 40.51136597 | DG15: 161318.043 | DH15: 512.498448 | DI15: 35176.15862 | DJ15: 7236.751557 | DK15: 485889.8962 | DL15: 12630.5346 | DM15: 73920.79771 | DN15: 81897.8979 | DO15: 549.9225608 | DP15: 29185.97843 | DQ15: 10676.60396 | DR15: 10207.37152 | DS15: 4029.996791 | DT15: 10940.20085 | DU15: 30327.12036 | DV15: 139753.559 | DW15: 52624.57004 | DX15: 28363.76451 | DY15: 12613.74023 | DZ15: 147478.7093 | EA15: 8807.518764 | EB15: 16855.11674 | EC15: 33643.1625 | ED15: 22093.25895 | EE15: 690201.3989 | EF15: 559.1324095 | EG15: 978.5010699 | EH15: 10575.64081 | EI15: 12242.19206 | EJ15: 72132.9368 | EK15: 19140.30738 | EL15: 9253.116318 | EM15: 4229.314639 | EN15: 9423.055268 | EO15: 12060.80543 | EP15: 11929.29312 | EQ15: 10385.31026 | ER15: 26644.21886 | ES15: 10241.95109 | ET15: 28849.80503 | EU15: 8423.783281 | EV15: 7673.393756 | EW15: 8100.535607 | EX15: 40858.38418 | EY15: 12230.41034 | EZ15: 9083.39416 | FA15: 9688.531376 | FB15: 9520.173064 | FC15: 8744.461547 | FD15: 11196.96887 | FE15: 73398.65055 | FF15: 7938.004137 | FG15: 8224.669664 | FH15: 7962.081968 | FI15: 8932.335887 | FJ15: 10021.78622 | FK15: 12618.51021 | FL15: 7239.318494 | FM15: 2664.96136 | FN15: 2187.711095 | FO15: 52704.36931 | FP15: 7153.118072 | FQ15: 28705.26 | FR15: 10174.73839 | FS15: 8746.696441 | FT15: 20412.56593 | FU15: 0.003581244743 | FV15: 6421.065472 | FW15: 6367.960234 | FX15: 10041.01749 | FY15: 7021.137833 | FZ15: 18354.55167 | GA15: 7248.813246 | GB15: 2598.968416 | GC15: 7019.942362 | GD15: 49478.30178 | GE15: 49172.32667 | GF15: 10376.15752 | GG15: 43375.98364 | GH15: 7267.016917 | GI15: 2609.406298 | GJ15: 21088.32556 | GK15: 11526.47779 | GL15: 8450.025825 | GM15: 44909.78877 | GN15: 11734.91151 | GO15: 7341.98011 | GP15: 13208.35535 | GQ15: 53551.84728 | GR15: 52880.378 | GS15: 24284.13389 | GT15: 2034521.912 | GU15: 249682.3747 | GV15: 255226.0366 | GW15: 762034.1622 | GX15: 446851.5116 | GY15: 85323.02893 | GZ15: 69731.84622 | HA15: 70923.66112 | HB15: 479.597603 | HC15: 40966.42579 | HD15: 32684.71412 | HE15: 97408.2936 | HF15: 4433.138396 | HG15: 1614.13882 | HH15: 195648.3121 | HI15: 68571.04003 | HJ15: 8393.207625 | HK15: 8982.947324 | HL15: 4653.883487 | HM15: 5890.226728 | HN15: 7327.146977 | HO15: 6613.185894 | HP15: 303.4423791 | HQ15: 4649.39521 | HR15: 4553.783323 | HS15: 8128.367044 | HT15: 5359.569081 | HU15: 2097.071159 | HV15: 7403.802709 | HW15: 6269.800253 | HX15: 4139.598007 | HY15: 8883.52801 | HZ15: 6765.673533 | IA15: 8727.611785 | IB15: 2301.692886 | IC15: 142464.6276 | ID15: 323937.1404 | IE15: 9284.893904 | IF15: 50619.84976 | IG15: 21663.39257 | IH15: 22017.87327 | II15: 12796.24125 | IJ15: 16030.08157 | IK15: 13691.11981 | IL15: 17169.34978 | IM15: 25343.56021 | IN15: 162791.9267 | IO15: 7153.663103 | IP15: 30587.06973 | IQ15: 8319.370827 | IR15: 6534.475616 | IS15: 7665.903313 | IT15: 6299.077247 | IU15: 238412.7665 | IV15: 392851.4112 | IW15: 936.2372862 | IX15: 71687.07736 | IY15: 21632828.4
A16: =+MATCH(B16,RUT[EMPRESA],0) -> 156 | B16: GUACOLDA | C16: 2993990796 | D16: 2993990796 | F16: =IFERROR(INDEX($B$9:$B$511,MATCH(0,INDEX(COUNTIF($F$8:F15,$B$9:$B$511),0,0),0)),"") -> GUACOLDA | H16: 2993990796 | J16: ELECTRICA CENIZAS | K16: 8171243.428 | L16: 834797.0891 | M16: 1430731.628 | N16: 31146464.06 | O16: 12928273.78 | P16: 3152649.895 | Q16: 53048.74039 | R16: 77641.64196 | S16: 378273.3969 | T16: 590106.2273 | U16: 450402.5988 | V16: 186946.0711 | W16: 304002.6568 | X16: 267488.0598 | Y16: 176903.4244 | Z16: 770866.3618 | AA16: 1940382.821 | AB16: 16372971.53 | AC16: 204803.7395 | AD16: 19929.37699 | AE16: 110246.3797 | AF16: 1045635.286 | AG16: 68231.82393 | AH16: 1396734.614 | AI16: 79068.03873 | AJ16: 773713.2521 | AK16: 3341158.773 | AL16: 2206581.659 | AM16: 20089.80154 | AN16: 260300.9677 | AO16: 5037944.674 | AP16: 1731136.928 | AQ16: 179823.685 | AR16: 9238553.322 | AS16: 226210.162 | AT16: 450448.1013 | AU16: 341546.6935 | AV16: 5037323.335 | AW16: 4330637.534 | AX16: 18545.82319 | AY16: 1087.716098 | AZ16: 201727.5916 | BA16: 968860.7848 | BB16: 2008.807464 | BC16: 2674310.927 | BD16: 844699.9332 | BE16: 16149.96979 | BF16: 70338.52073 | BG16: 1452991.404 | BH16: 571209.3475 | BI16: 44115.82847 | BJ16: 80920.71808 | BK16: 8054741.295 | BL16: 166413.5243 | BM16: 4559273.046 | BN16: 2083296.47 | BO16: 598498.9507 | BP16: 3050.396693 | BQ16: 4836927.027 | BR16: 389902.3726 | BS16: 56438.29454 | BT16: 468975.2071 | BU16: 2678521.504 | BV16: 133690.2705 | BW16: 125168.5875 | BX16: 143669.8216 | BY16: 2230713.369 | BZ16: 9511691.016 | CA16: 775881.043 | CB16: 61954.35323 | CC16: 299165.3152 | CD16: 146006.9378 | CE16: 3238990.54 | CF16: 1509491.738 | CG16: 47781.55935 | CH16: 536875.273 | CI16: 821041.4683 | CJ16: 380301.9132 | CK16: 56490.38232 | CL16: 671326.0004 | CM16: 2887324.904 | CN16: 7978.740676 | CO16: 593717.5848 | CP16: 190131.4273 | CQ16: 278764.3116 | CR16: 34820.00887 | CS16: 640044.0561 | CT16: 122027.9872 | CU16: 3310692.26 | CV16: 586796.0824 | CW16: 194813.8952 | CX16: 119447.4313 | CY16: 120254.5579 | CZ16: 226136.7761 | DA16: 4951.668423 | DB16: 77212.11365 | DC16: 586023.9045 | DD16: 56986.90676 | DE16: 577398.7952 | DF16: 584.5337501 | DG16: 2327639.13 | DH16: 7394.780022 | DI16: 507552.6688 | DJ16: 104418.2398 | DK16: 7010848.347 | DL16: 182244.503 | DM16: 1066594.524 | DN16: 1181695.167 | DO16: 7934.768158 | DP16: 421121.061 | DQ16: 154051.4669 | DR16: 147280.9669 | DS16: 58148.35122 | DT16: 157854.8755 | DU16: 437586.4641 | DV16: 2016487.719 | DW16: 759313.7515 | DX16: 409257.4328 | DY16: 182002.1789 | DZ16: 2127953.006 | EA16: 127082.6557 | EB16: 243200.5034 | EC16: 485433.2474 | ED16: 318781.0433 | EE16: 9958835.067 | EF16: 8067.655985 | EG16: 14118.67722 | EH16: 152594.6813 | EI16: 176641.154 | EJ16: 1040797.688 | EK16: 276173.2512 | EL16: 133512.1305 | EM16: 61024.28508 | EN16: 135964.1597 | EO16: 174023.9475 | EP16: 172126.3718 | EQ16: 149848.4242 | ER16: 384446.3103 | ES16: 147779.9115 | ET16: 416270.4545 | EU16: 121545.7814 | EV16: 110718.4989 | EW16: 116881.6786 | EX16: 589540.8353 | EY16: 176471.1569 | EZ16: 131063.2294 | FA16: 139794.6834 | FB16: 137365.461 | FC16: 126172.8105 | FD16: 161559.7511 | FE16: 1059060.524 | FF16: 114536.5311 | FG16: 118672.7943 | FH16: 114883.9473 | FI16: 128883.6273 | FJ16: 144603.1784 | FK16: 182071.0045 | FL16: 104455.2778 | FM16: 38452.41503 | FN16: 31566.22691 | FO16: 760465.1659 | FP16: 103211.502 | FQ16: 414184.8312 | FR16: 146810.1074 | FS16: 126205.0575 | FT16: 294530.5207 | FU16: 0.05167336054 | FV16: 92648.80091 | FW16: 91882.55165 | FX16: 144880.6642 | FY16: 101307.1747 | FZ16: 264835.6742 | GA16: 104592.2765 | GB16: 37500.21058 | GC16: 101289.9253 | GD16: 713916.6157 | GE16: 709501.7367 | GF16: 149716.3604 | GG16: 625866.9826 | GH16: 104854.9351 | GI16: 37650.81755 | GJ16: 304280.9771 | GK16: 166314.1967 | GL16: 121924.432 | GM16: 647998.077 | GN16: 169321.6624 | GO16: 105936.5703 | GP16: 190581.8109 | GQ16: 772693.3261 | GR16: 763004.7746 | GS16: 350392.9209 | GT16: 29355878.15 | GU16: 3602637.712 | GV16: 3682626.559 | GW16: 10995301.59 | GX16: 6447568.073 | GY16: 1231115.981 | GZ16: 1006152.634 | HA16: 1023349.191 | HB16: 6920.057587 | HC16: 591099.7549 | HD16: 471603.9081 | HE16: 1405492.848 | HF16: 63965.23418 | HG16: 23290.21979 | HH16: 2822986.558 | HI16: 989403.4975 | HJ16: 121104.6088 | HK16: 129613.8938 | HL16: 67150.33922 | HM16: 84989.3909 | HN16: 105722.5447 | HO16: 95420.88395 | HP16: 4378.334513 | HQ16: 67085.5784 | HR16: 65706.00569 | HS16: 117283.2551 | HT16: 77332.59392 | HU16: 30258.39389 | HV16: 106828.6013 | HW16: 90466.21279 | HX16: 59729.77433 | HY16: 128179.3842 | HZ16: 97621.11021 | IA16: 125929.6872 | IB16: 33210.85681 | IC16: 2055605.41 | ID16: 4674051.022 | IE16: 133970.6456 | IF16: 730387.8777 | IG16: 312578.5516 | IH16: 317693.312 | II16: 184635.4648 | IJ16: 231296.1676 | IK16: 197547.5627 | IL16: 247734.535 | IM16: 365679.259 | IN16: 2348905.624 | IO16: 103219.3662 | IP16: 441337.2431 | IQ16: 120039.2263 | IR16: 94285.18258 | IS16: 110610.4202 | IT16: 90888.64711 | IU16: 3440029.856 | IV16: 5668406.954 | IW16: 13508.85804 | IX16: 1034364.435 | IY16: 312137544.7
A17: =+MATCH(B17,RUT[EMPRESA],0) -> 19 | B17: ARAUCO BIO | C17: 1242745650 | D17: 1242745650 | F17: =IFERROR(INDEX($B$9:$B$511,MATCH(0,INDEX(COUNTIF($F$8:F16,$B$9:$B$511),0,0),0)),"") -> ARAUCO BIO | H17: 1242745650 | J17: GAS SUR | K17: 104079.9567 | L17: 10633.09956 | M17: 18223.72412 | N17: 396723.2968 | O17: 164671.8994 | P17: 40156.39328 | Q17: 675.7001739 | R17: 988.9484762 | S17: 4818.19923 | T17: 7516.387334 | U17: 5736.933847 | V17: 2381.196835 | W17: 3872.187097 | X17: 3407.088033 | Y17: 2253.280167 | Z17: 9818.791754 | AA17: 24715.32782 | AB17: 208548.2074 | AC17: 2608.656141 | AD17: 253.847375 | AE17: 1404.246309 | AF17: 13318.61867 | AG17: 869.0923659 | AH17: 17790.69238 | AI17: 1007.116986 | AJ17: 9855.053581 | AK17: 42557.49612 | AL17: 28105.99459 | AM17: 255.8907581 | AN17: 3315.543552 | AO17: 64170.04564 | AP17: 22050.09044 | AQ17: 2290.476538 | AR17: 117674.6524 | AS17: 2881.317156 | AT17: 5737.513428 | AU17: 4350.398492 | AV17: 64162.13143 | AW17: 55160.82971 | AX17: 236.2245712 | AY17: 13.85461655 | AZ17: 2569.47418 | BA17: 12340.71527 | BB17: 25.5868762 | BC17: 34063.62422 | BD17: 10759.23552 | BE17: 205.7077569 | BF17: 895.9260924 | BG17: 18507.25459 | BH17: 7275.691234 | BI17: 561.9185818 | BJ17: 1030.715204 | BK17: 102596.0287 | BL17: 2119.666677 | BM17: 58073.03939 | BN17: 26535.66845 | BO17: 7623.288358 | BP17: 38.85395885 | BQ17: 61609.61428 | BR17: 4966.321519 | BS17: 718.8740987 | BT17: 5973.49959 | BU17: 34117.2558 | BV17: 1702.859265 | BW17: 1594.315637 | BX17: 1829.972262 | BY17: 28413.36853 | BZ17: 121153.7018 | CA17: 9882.665485 | CB17: 789.1340481 | CC17: 3810.572202 | CD17: 1859.74092 | CE17: 41256.14397 | CF17: 19226.91891 | CG17: 608.6102653 | CH17: 6838.366239 | CI17: 10457.88946 | CJ17: 4844.037143 | CK17: 719.5375588 | CL17: 8550.911706 | CM17: 36776.857 | CN17: 101.6279825 | CO17: 7562.386445 | CP17: 2421.76982 | CQ17: 3550.717556 | CR17: 443.514509 | CS17: 8152.46275 | CT17: 1554.312724 | CU17: 42169.43361 | CV17: 7474.224873 | CW17: 2481.412036 | CX17: 1521.44329 | CY17: 1531.72394 | CZ17: 2880.382414 | DA17: 63.07111516 | DB17: 983.4774253 | DC17: 7464.389375 | DD17: 725.8619624 | DE17: 7354.528372 | DF17: 7.445408763 | DG17: 29647.94551 | DH17: 94.18987349 | DI17: 6464.874076 | DJ17: 1330.011274 | DK17: 89299.60282 | DL17: 2321.311335 | DM17: 13585.58375 | DN17: 15051.66049 | DO17: 101.0678893 | DP17: 5363.964762 | DQ17: 1962.206872 | DR17: 1875.96867 | DS17: 740.6556827 | DT17: 2010.652205 | DU17: 5573.690303 | DV17: 25684.70226 | DW17: 9671.642157 | DX17: 5212.853622 | DY17: 2318.224769 | DZ17: 27104.47422 | EA17: 1618.695786 | EB17: 3097.729017 | EC17: 6183.131348 | ED17: 4060.424523 | EE17: 126849.1304 | EF17: 102.7605276 | EG17: 179.8344802 | EH17: 1943.65129 | EI17: 2249.939538 | EJ17: 13257.00052 | EK17: 3517.714323 | EL17: 1700.590234 | EM17: 777.2874481 | EN17: 1731.822578 | EO17: 2216.603273 | EP17: 2192.433194 | EQ17: 1908.671262 | ER17: 4896.825764 | ES17: 1882.3239 | ET17: 5302.180907 | EU17: 1548.170701 | EV17: 1410.259855 | EW17: 1488.762409 | EX17: 7509.18574 | EY17: 2247.774227 | EZ17: 1669.397732 | FA17: 1780.613284 | FB17: 1749.671438 | FC17: 1607.106773 | FD17: 2057.842487 | FE17: 13489.62058 | FF17: 1458.891453 | FG17: 1511.576471 | FH17: 1463.316614 | FI17: 1641.635385 | FJ17: 1841.860751 | FK17: 2319.101424 | FL17: 1330.48304 | FM17: 489.7817239 | FN17: 402.0699616 | FO17: 9686.30812 | FP17: 1314.640637 | FQ17: 5275.615602 | FR17: 1869.971169 | FS17: 1607.517515 | FT17: 3751.53722 | FU17: 0.0006581814844 | FV17: 1180.099856 | FW17: 1170.339874 | FX17: 1845.395183 | FY17: 1290.38456 | FZ17: 3373.303679 | GA17: 1332.22804 | GB17: 477.6531662 | GC17: 1290.164849 | GD17: 9093.40312 | GE17: 9037.169277 | GF17: 1906.98912 | GG17: 7971.884457 | GH17: 1335.573614 | GI17: 479.5714993 | GJ17: 3875.73216 | GK17: 2118.401508 | GL17: 1552.993705 | GM17: 8253.775868 | GN17: 2156.70864 | GO17: 1349.350775 | GP17: 2427.506512 | GQ17: 9842.06243 | GR17: 9718.655996 | GS17: 4463.075953 | GT17: 373915.9841 | GU17: 45888.04391 | GV17: 46906.88955 | GW17: 140050.9633 | GX17: 82124.90694 | GY17: 15681.15051 | GZ17: 12815.71447 | HA17: 13034.75297 | HB17: 88.14316948 | HC17: 7529.04224 | HD17: 6006.982265 | HE17: 17902.24904 | HF17: 814.747335 | HG17: 296.6555934 | HH17: 35957.35721 | HI17: 12602.37492 | HJ17: 1542.551334 | HK17: 1650.937043 | HL17: 855.3171207 | HM17: 1082.539298 | HN17: 1346.624657 | HO17: 1215.408837 | HP17: 55.76836263 | HQ17: 854.4922397 | HR17: 836.9201444 | HS17: 1493.877428 | HT17: 985.0120243 | HU17: 385.4116396 | HV17: 1360.712883 | HW17: 1152.299475 | HX17: 760.7988163 | HY17: 1632.665197 | HZ17: 1243.433881 | IA17: 1604.010028 | IB17: 423.0181821 | IC17: 26182.95783 | ID17: 59535.0062 | IE17: 1706.430499 | IF17: 9303.203286 | IG17: 3981.421239 | IH17: 4046.569713 | II17: 2351.765843 | IJ17: 2946.099371 | IK17: 2516.231704 | IL17: 3155.480548 | IM17: 4657.783335 | IN17: 29918.82422 | IO17: 1314.740806 | IP17: 5621.465274 | IQ17: 1528.981188 | IR17: 1200.943016 | IS17: 1408.883219 | IT17: 1157.680167 | IU17: 43816.85135 | IV17: 72200.462 | IW17: 172.0670021 | IX17: 13175.05794 | IY17: 3975803.981
A18: =+MATCH(B18,RUT[EMPRESA],0) -> 289 | B18: SGA | C18: 303052210.1 | D18: 303052210.1 | F18: =IFERROR(INDEX($B$9:$B$511,MATCH(0,INDEX(COUNTIF($F$8:F17,$B$9:$B$511),0,0),0)),"") -> SGA | H18: 303052210.1 | J18: NORVIND | K18: 1804041.727 | L18: 184305.9499 | M18: 315875.9838 | N18: 6876495.762 | O18: 2854295.746 | P18: 696039.9615 | Q18: 11712.06586 | R18: 17141.67043 | S18: 83514.95073 | T18: 130283.2631 | U18: 99439.58826 | V18: 41273.83009 | W18: 67117.50578 | X18: 59055.83717 | Y18: 39056.62118 | Z18: 170191.3662 | AA18: 428396.4376 | AB18: 3614813.841 | AC18: 45216.43434 | AD18: 4399.994689 | AE18: 24340.12288 | AF18: 230854.6678 | AG18: 15064.17702 | AH18: 308370.1455 | AI18: 17456.58937 | AJ18: 170819.9008 | AK18: 737658.827 | AL18: 487167.6412 | AM18: 4435.413114 | AN18: 57469.07572 | AO18: 1112274.097 | AP18: 382199.2676 | AQ18: 39701.35441 | AR18: 2039681.7 | AS18: 49942.53016 | AT18: 99449.63428 | AU18: 75406.45341 | AV18: 1112136.919 | AW18: 956115.2945 | AX18: 4094.534594 | AY18: 240.1452417 | AZ18: 44537.28444 | BA18: 213904.4441 | BB18: 443.5031851 | BC18: 590432.6 | BD18: 186492.2933 | BE18: 3565.579662 | BF18: 15529.29215 | BG18: 320790.4825 | BH18: 126111.2225 | BI18: 9739.863471 | BJ18: 17865.62269 | BK18: 1778320.463 | BL18: 36740.66797 | BM18: 1006593.292 | BN18: 459948.8186 | BO18: 132136.203 | BP18: 673.4645672 | BQ18: 1067893.554 | BR18: 86082.38829 | BS18: 12460.40939 | BT18: 103540.0365 | BU18: 591362.2084 | BV18: 29516.04963 | BW18: 27634.63808 | BX18: 31719.32832 | BY18: 492495.4241 | BZ18: 2099984.86 | CA18: 171298.5042 | CB18: 13678.24118 | CC18: 66049.52069 | CD18: 32235.31528 | CE18: 715102.192 | CF18: 333264.5888 | CG18: 10549.18111 | CH18: 118530.9682 | CI18: 181268.9931 | CJ18: 83962.8052 | CK18: 12471.9093 | CL18: 148214.911 | CM18: 637461.6852 | CN18: 1761.541096 | CO18: 131080.5762 | CP18: 41977.09094 | CQ18: 61545.40059 | CR18: 7687.538559 | CS18: 141308.5039 | CT18: 26941.25842 | CU18: 730932.4505 | CV18: 129552.4515 | CW18: 43010.88311 | CX18: 26371.52498 | CY18: 26549.72186 | CZ18: 49926.32806 | DA18: 1093.226084 | DB18: 17046.83945 | DC18: 129381.9706 | DD18: 12581.53163 | DE18: 127477.7246 | DF18: 129.0529753 | DG18: 513894.6297 | DH18: 1632.614649 | DI18: 112057.143 | DJ18: 23053.39001 | DK18: 1547850.467 | DL18: 40235.821 | DM18: 235482.0345 | DN18: 260893.8785 | DO18: 1751.832873 | DP18: 92974.8297 | DQ18: 34011.3811 | DR18: 32516.59459 | DS18: 12837.95458 | DT18: 34851.09515 | DU18: 96610.05052 | DV18: 445198.8267 | DW18: 167640.7885 | DX18: 90355.5857 | DY18: 40182.32085 | DZ18: 469808.0592 | EA18: 28057.22478 | EB18: 53693.6465 | EC18: 107173.6317 | ED18: 70380.26818 | EE18: 2198705.028 | EF18: 1781.17176 | EG18: 3117.112231 | EH18: 33689.75295 | EI18: 38998.7173 | EJ18: 229786.6262 | EK18: 60973.348 | EL18: 29476.72 | EM18: 13472.90135 | EN18: 30018.07738 | EO18: 38420.89219 | EP18: 38001.94668 | EQ18: 33083.43611 | ER18: 84877.80246 | ES18: 32626.75126 | ET18: 91903.91599 | EU18: 26834.79733 | EV18: 24444.35706 | EW18: 25805.0598 | EX18: 130158.4362 | EY18: 38961.18546 | EZ18: 28936.05322 | FA18: 30863.77786 | FB18: 30327.45575 | FC18: 27856.34976 | FD18: 35669.05513 | FE18: 233818.6829 | FF18: 25287.29968 | FG18: 26200.50115 | FH18: 25364.002 | FI18: 28454.84211 | FJ18: 31925.39423 | FK18: 40197.51612 | FL18: 23061.56724 | FM18: 8489.498792 | FN18: 6969.170727 | FO18: 167894.997 | FP18: 22786.96725 | FQ18: 91443.45347 | FR18: 32412.63854 | FS18: 27863.46924 | FT18: 65026.25382 | FU18: 0.01140841041 | FV18: 20454.94107 | FW18: 20285.76907 | FX18: 31986.65734 | FY18: 22366.53111 | FZ18: 58470.24523 | GA18: 23091.81372 | GB18: 8279.271723 | GC18: 22362.72281 | GD18: 157618.0389 | GE18: 156643.3248 | GF18: 33054.27916 | GG18: 138178.499 | GH18: 23149.80332 | GI18: 8312.52263 | GJ18: 67178.95316 | GK18: 36718.7385 | GL18: 26918.39556 | GM18: 143064.5874 | GN18: 37382.72479 | GO18: 23388.60601 | GP18: 42076.52633 | GQ18: 170594.7222 | GR18: 168455.6902 | GS18: 77359.51764 | GT18: 6481171.388 | GU18: 795387.9746 | GV18: 813047.8594 | GW18: 2427535.422 | GX18: 1423489.82 | GY18: 271804.9732 | GZ18: 222137.714 | HA18: 225934.3585 | HB18: 1527.805743 | HC18: 130502.6135 | HD18: 104120.3993 | HE18: 310303.7827 | HF18: 14122.20215 | HG18: 5141.999342 | HH18: 623257.1076 | HI18: 218439.8507 | HJ18: 26737.39554 | HK18: 28616.06986 | HL18: 14825.40754 | HM18: 18763.90159 | HN18: 23341.35359 | HO18: 21066.95973 | HP18: 966.6458018 | HQ18: 14811.10969 | HR18: 14506.52854 | HS18: 25893.7196 | HT18: 17073.43901 | HU18: 6680.428217 | HV18: 23585.54803 | HW18: 19973.07071 | HX18: 13187.10012 | HY18: 28299.35977 | HZ18: 21552.72423 | IA18: 27802.67317 | IB18: 7332.271031 | IC18: 453835.2046 | ID18: 1031933.897 | IE18: 29577.95065 | IF18: 161254.5532 | IG18: 69010.88616 | IH18: 70140.11959 | II18: 40763.69597 | IJ18: 51065.41512 | IK18: 43614.4204 | IL18: 54694.66702 | IM18: 80734.42528 | IN18: 518589.8323 | IO18: 22788.7035 | IP18: 97438.14504 | IQ18: 26502.1811 | IR18: 20816.22033 | IS18: 24420.49551 | IT18: 20066.33548 | IU18: 759487.5195 | IV18: 1251467.143 | IW18: 2982.476756 | IX18: 228366.2967 | IY18: 68913520.96
A19: =+MATCH(B19,RUT[EMPRESA],0) -> 306 | B19: TECNORED | C19: -129746995.3 | D19: -129746995.3 | F19: =IFERROR(INDEX($B$9:$B$511,MATCH(0,INDEX(COUNTIF($F$8:F18,$B$9:$B$511),0,0),0)),"") -> TECNORED | G19: -129746995.3 | J19: EMELDA | K19: =$IY19*K$67/$IY$67 -> 167424.6062 | L19: 17104.56617 | M19: 29314.96063 | N19: 638175.1476 | O19: 264893.7296 | P19: 64596.18685 | Q19: 1086.941608 | R19: 1590.837606 | S19: 7750.628786 | T19: 12090.97533 | U19: =$IY19*U$67/$IY$67 -> 9228.519308 | V19: 3830.429556 | W19: 6228.859238 | X19: 5480.693787 | Y19: 3624.660852 | Z19: 15794.65821 | AA19: 39757.45339 | AB19: 335473.828 | AC19: 4196.324066 | AD19: 408.3427601 | AE19: =$IY19*AE$67/$IY$67 -> 2258.892036 | AF19: 21424.53319 | AG19: 1398.035238 | AH19: 28618.37918 | AI19: 1620.063748 | AJ19: 15852.98954 | AK19: 68458.63751 | AL19: 45211.73168 | AM19: 411.6297772 | AN19: 5333.433939 | AO19: =$IY19*AO$67/$IY$67 -> 103224.9144 | AP19: 35470.11188 | AQ19: 3684.495502 | AR19: 189293.2411 | AS19: 4634.930735 | AT19: 9229.451631 | AU19: 6998.117383 | AV19: 103212.1835 | AW19: 88732.55219 | AX19: 379.994449 | AY19: =$IY19*AY$67/$IY$67 -> 22.28674755 | AZ19: 4133.295366 | BA19: 19851.46286 | BB19: 41.1594394 | BC19: 54795.26559 | BD19: 17307.47039 | BE19: 330.904636 | BF19: 1441.20038 | BG19: 29771.05208 | BH19: 11703.78791 | BI19: =$IY19*BI$67/$IY$67 -> 903.9108032 | BJ19: 1658.024202 | BK19: 165037.537 | BL19: 3409.728154 | BM19: 93417.17711 | BN19: 42685.68109 | BO19: 12262.93795 | BP19: 62.50107095 | BQ19: 99106.16543 | BR19: 7988.90056 | BS19: =$IY19*BS$67/$IY$67 -> 1156.391842 | BT19: 9609.062571 | BU19: 54881.53817 | BV19: 2739.245391 | BW19: 2564.640457 | BX19: 2943.721298 | BY19: 45706.17809 | BZ19: 194889.693 | CA19: 15897.40647 | CB19: 1269.413069 | CC19: =$IY19*CC$67/$IY$67 -> 6129.744578 | CD19: 2991.607615 | CE19: 66365.26258 | CF19: 30928.71508 | CG19: 979.0197576 | CH19: 11000.30026 | CI19: 16822.72052 | CJ19: 7792.192048 | CK19: 1157.459094 | CL19: 13755.12702 | CM19: =$IY19*CM$67/$IY$67 -> 59159.81324 | CN19: 163.4803231 | CO19: 12164.97021 | CP19: 3895.695879 | CQ19: 5711.738429 | CR19: 713.4442053 | CS19: 13114.17595 | CT19: 2500.29116 | CU19: 67834.39423 | CV19: 12023.15216 | CW19: =$IY19*CW$67/$IY$67 -> 3991.637256 | CX19: 2447.416886 | CY19: 2463.954498 | CZ19: 4633.427094 | DA19: 101.4571581 | DB19: 1582.03679 | DC19: 12007.33062 | DD19: 1167.632626 | DE19: 11830.60654 | DF19: 11.97679812 | DG19: =$IY19*DG$67/$IY$67 -> 47692.13746 | DH19: 151.5152674 | DI19: 10399.49507 | DJ19: 2139.476426 | DK19: 143648.7034 | DL19: 3734.096827 | DM19: 21853.97727 | DN19: 24212.3307 | DO19: 162.5793487 | DP19: 8628.555548 | DQ19: =$IY19*DQ$67/$IY$67 -> 3156.435909 | DR19: 3017.711822 | DS19: 1191.430031 | DT19: 3234.365811 | DU19: 8965.923252 | DV19: 41316.8039 | DW19: 15557.95112 | DX19: 8385.475863 | DY19: 3729.13173 | DZ19: 43600.67073 | EA19: =$IY19*EA$67/$IY$67 -> 2603.858736 | EB19: 4983.054155 | EC19: 9946.279414 | ED19: 6531.660832 | EE19: 204051.4463 | EF19: 165.3021524 | EG19: 289.2844883 | EH19: 3126.587117 | EI19: 3619.287065 | EJ19: 21325.41328 | EK19: =$IY19*EK$67/$IY$67 -> 5658.648925 | EL19: 2735.595394 | EM19: 1250.356447 | EN19: 2785.83622 | EO19: 3565.661841 | EP19: 3526.781484 | EQ19: 3070.31771 | ER19: 7877.108629 | ES19: 3027.934942 | ET19: 8529.169096 | EU19: =$IY19*EU$67/$IY$67 -> 2490.411008 | EV19: 2268.565518 | EW19: 2394.845923 | EX19: 12079.39074 | EY19: 3615.803913 | EZ19: 2685.41866 | FA19: 2864.321694 | FB19: 2814.548168 | FC19: 2585.216473 | FD19: 3310.276819 | FE19: =$IY19*FE$67/$IY$67 -> 21699.60945 | FF19: 2346.795048 | FG19: 2431.544971 | FH19: 2353.913429 | FI19: 2640.759725 | FJ19: 2962.845303 | FK19: 3730.541931 | FL19: 2140.235316 | FM19: 787.8703531 | FN19: 646.7758741 | FO19: =$IY19*FO$67/$IY$67 -> 15581.54301 | FP19: 2114.750985 | FQ19: 8486.435741 | FR19: 3008.064151 | FS19: 2585.877198 | FT19: 6034.780004 | FU19: 0.001058760777 | FV19: 1898.326631 | FW19: 1882.626575 | FX19: 2968.530844 | FY19: =$IY19*FY$67/$IY$67 -> 2075.732289 | FZ19: 5426.347761 | GA19: 2143.042349 | GB19: 768.3601701 | GC19: 2075.378859 | GD19: 14627.78699 | GE19: 14537.32837 | GF19: 3067.611791 | GG19: 12823.69495 | GH19: 2148.42409 | GI19: =$IY19*GI$67/$IY$67 -> 771.4460299 | GJ19: 6234.561879 | GK19: 3407.692984 | GL19: 2498.169366 | GM19: 13277.14978 | GN19: 3469.31442 | GO19: 2170.586241 | GP19: 3904.924009 | GQ19: 15832.09177 | GR19: 15633.5783 | GS19: =$IY19*GS$67/$IY$67 -> 7179.372065 | GT19: 601486.9564 | GU19: 73816.2075 | GV19: 75455.13814 | GW19: 225288.1162 | GX19: 132107.3782 | GY19: 25224.93795 | GZ19: 20615.55381 | HA19: 20967.90249 | HB19: 141.7884471 | HC19: =$IY19*HC$67/$IY$67 -> 12111.33221 | HD19: 9662.923312 | HE19: 28797.83093 | HF19: 1310.614993 | HG19: 477.2047133 | HH19: 57841.55337 | HI19: 20272.37255 | HJ19: 2481.371608 | HK19: 2655.722513 | HL19: 1375.876169 | HM19: =$IY19*HM$67/$IY$67 -> 1741.389231 | HN19: 2166.200967 | HO19: 1955.125198 | HP19: 89.70983892 | HQ19: 1374.549253 | HR19: 1346.282512 | HS19: 2403.074022 | HT19: 1584.505369 | HU19: 619.9790432 | HV19: 2188.863502 | HW19: =$IY19*HW$67/$IY$67 -> 1853.606515 | HX19: 1223.832583 | HY19: 2626.330143 | HZ19: 2000.20671 | IA19: 2580.235002 | IB19: 680.4735012 | IC19: 42118.30541 | ID19: 95768.91922 | IE19: 2744.990133 | IF19: 14965.27473 | IG19: =$IY19*IG$67/$IY$67 -> 6404.574944 | IH19: 6509.373774 | II19: 3783.086413 | IJ19: 4739.140393 | IK19: 4047.648706 | IL19: 5075.954149 | IM19: 7492.58133 | IN19: 48127.87707 | IO19: 2114.912118 | IP19: 9042.774799 | IQ19: =$IY19*IQ$67/$IY$67 -> 2459.542465 | IR19: 1931.855256 | IS19: 2266.35104 | IT19: 1862.261979 | IU19: 70484.45554 | IV19: 116142.7646 | IW19: 276.7896047 | IX19: 21193.5992 | IY19: 6395538.938
A20: =+MATCH(B20,RUT[EMPRESA],0) -> 231 | B20: NUEVA ENERGIA | C20: -72088281.27 | D20: -72088281.27 | F20: =IFERROR(INDEX($B$9:$B$511,MATCH(0,INDEX(COUNTIF($F$8:F19,$B$9:$B$511),0,0),0)),"") -> NUEVA ENERGIA | G20: -72088281.27 | J20: SWO | K20: 830.2300989 | L20: 84.81862962 | M20: 145.3678955 | N20: 3164.601834 | O20: 1313.562876 | P20: 320.3214856 | Q20: 5.389958257 | R20: 7.888692664 | S20: 38.43404771 | T20: 59.9570868 | U20: 45.76265503 | V20: 18.9944476 | W20: 30.88785178 | X20: 27.17782677 | Y20: 17.97407565 | Z20: 78.32301919 | AA20: 197.1504381 | AB20: 1663.55756 | AC20: 20.80885613 | AD20: 2.02490218 | AE20: 11.20146077 | AF20: 106.2406101 | AG20: 6.93261857 | AH20: 141.9136667 | AI20: 8.033620121 | AJ20: 78.61227431 | AK20: 339.4747204 | AL20: 224.1972749 | AM20: 2.041201938 | AN20: 26.44759027 | AO20: 511.8747644 | AP20: 175.8902419 | AQ20: 18.27078549 | AR20: 938.6729335 | AS20: 22.98383188 | AT20: 45.76727826 | AU20: 34.70247187 | AV20: 511.811634 | AW20: 440.0096094 | AX20: 1.884327735 | AY20: 0.1105161842 | AZ20: 20.49630755 | BA20: 98.44002229 | BB20: 0.2041026478 | BC20: 271.7203869 | BD20: 85.82479708 | BE20: 1.640899715 | BF20: 7.146667155 | BG20: 147.6295753 | BH20: 58.03709035 | BI20: 4.482339678 | BJ20: 8.221859546 | BK20: 818.3930293 | BL20: 16.90826102 | BM20: 463.2398662 | BN20: 211.6710204 | BO20: 60.80982012 | BP20: 0.3099321628 | BQ20: 491.4505901 | BR20: 39.61559685 | BS20: 5.734350136 | BT20: 47.64970424 | BU20: 272.1481979 | BV20: 13.58345122 | BW20: 12.7176151 | BX20: 14.59741241 | BY20: 226.6491504 | BZ20: 966.424785 | CA20: 78.8325303 | CB20: 6.294803143 | CC20: 30.39635906 | CD20: 14.8348725 | CE20: 329.0940308 | CF20: 153.3702289 | CG20: 4.854792187 | CH20: 54.54861491 | CI20: 83.42100507 | CJ20: 38.64015284 | CK20: 5.739642457 | CL20: 68.2093315 | CM20: 293.3634351 | CN20: 0.8106710709 | CO20: 60.32401476 | CP20: 19.31809217 | CQ20: 28.32353779 | CR20: 3.537848268 | CS20: 65.03096434 | CT20: 12.3985179 | CU20: 336.3792043 | CV20: 59.62076321 | CW20: 19.79384912 | CX20: 12.13632338 | CY20: 12.21833058 | CZ20: 22.97637558 | DA20: 0.503108762 | DB20: 7.845050918 | DC20: 59.54230693 | DD20: 5.79009127 | DE20: 58.6659623 | DF20: 0.05939090145 | DG20: 236.4971846 | DH20: 0.7513383983 | DI20: 51.56932432 | DJ20: 10.6092991 | DK20: 712.3294475 | DL20: 18.51675 | DM20: 108.3701501 | DN20: 120.064823 | DO20: 0.8062032921 | DP20: 42.78753695 | DQ20: 15.65222793 | DR20: 14.96431881 | DS20: 5.908098543 | DT20: 16.03866903 | DU20: 44.46048592 | DV20: 204.8829916 | DW20: 77.14922907 | DX20: 41.58214621 | DY20: 18.49212893 | DZ20: 216.2082981 | EA20: 12.91209186 | EB20: 24.71011661 | EC20: 49.32190511 | ED20: 32.3893933 | EE20: 1011.856359 | EF20: 0.819705212 | EG20: 1.434512494 | EH20: 15.50421285 | EI20: 17.94742796 | EJ20: 105.7490914 | EK20: 28.06027598 | EL20: 13.56535151 | EM20: 6.200304604 | EN20: 13.8144872 | EO20: 17.68150961 | EP20: 17.48870854 | EQ20: 15.22518245 | ER20: 39.0612397 | ES20: 15.01501352 | ET20: 42.29469647 | EU20: 12.34952391 | EV20: 11.24942992 | EW20: 11.87563294 | EX20: 59.89964077 | EY20: 17.93015559 | EZ20: 13.31653363 | FA20: 14.2036833 | FB20: 13.95686486 | FC20: 12.81964806 | FD20: 16.41509879 | FE20: 107.6046664 | FF20: 11.63735683 | FG20: 12.05761726 | FH20: 11.67265567 | FI20: 13.09507758 | FJ20: 14.69224509 | FK20: 18.49912188 | FL20: 10.61306231 | FM20: 3.906914855 | FN20: 3.207251371 | FO20: 77.26621725 | FP20: 10.48668985 | FQ20: 42.08278904 | FR20: 14.91647765 | FS20: 12.82292448 | FT20: 29.92544592 | FU20: 5.250214317e-06 | FV20: 9.413478355 | FW20: 9.335624452 | FX20: 14.72043872 | FY20: 10.29320279 | FZ20: 26.90833408 | GA20: 10.62698191 | GB20: 3.810167181 | GC20: 10.29145019 | GD20: 72.53670359 | GE20: 72.08813472 | GF20: 15.21176426 | GG20: 63.59051856 | GH20: 10.65366904 | GI20: 3.825469435 | GJ20: 30.91613021 | GK20: 16.89816895 | GL20: 12.38799628 | GM20: 65.83912379 | GN20: 17.20373916 | GO20: 10.76356738 | GP20: 19.3638529 | GQ20: 78.50864586 | GR20: 77.52425137 | GS20: 35.60128295 | GT20: 2982.671344 | GU20: 366.0419972 | GV20: 374.1691751 | GW20: 1117.165387 | GX20: 655.0979819 | GY20: 125.0861698 | GZ20: 102.2290191 | HA20: 103.9762562 | HB20: 0.7031047534 | HC20: 60.05803307 | HD20: 47.91679048 | HE20: 142.8035374 | HF20: 6.499116465 | HG20: 2.366376874 | HH20: 286.826409 | HI20: 100.5272418 | HJ20: 12.30469906 | HK20: 13.1692755 | HL20: 6.82273552 | HM20: 8.635252522 | HN20: 10.74182155 | HO20: 9.695132769 | HP20: 0.4448558078 | HQ20: 6.816155569 | HR20: 6.675985618 | HS20: 11.91643467 | HT20: 7.857292182 | HU20: 3.074370452 | HV20: 10.8542012 | HW20: 9.191718918 | HX20: 6.068777278 | HY20: 13.02352374 | HZ20: 9.91868431 | IA20: 12.79494579 | IB20: 3.374352163 | IC20: 208.857501 | ID20: 474.9017547 | IE20: 13.61193842 | IF20: 74.21024784 | IG20: 31.75919603 | IH20: 32.27887557 | II20: 18.75968102 | IJ20: 23.50058982 | IK20: 20.07160035 | IL20: 25.17079186 | IM20: 37.15443434 | IN20: 238.6579431 | IO20: 10.48748889 | IP20: 44.84157965 | IQ20: 12.19645206 | IR20: 9.579741094 | IS20: 11.2384487 | IT20: 9.234639887 | IU20: 349.5204069 | IV20: 575.9321832 | IW20: 1.372552494 | IX20: 105.0954478 | IY20: 31714.38802
A21: =+MATCH(B21,RUT[EMPRESA],0) -> 102 | B21: ELEKTRAGEN | C21: 5099373.083 | D21: 5099373.083 | F21: =IFERROR(INDEX($B$9:$B$511,MATCH(0,INDEX(COUNTIF($F$8:F20,$B$9:$B$511),0,0),0)),"") -> ELEKTRAGEN | H21: 5099373.083 | J21: NUEVA DEGAN | K21: 174259.5375 | L21: 17802.84187 | M21: 30511.71268 | N21: 664227.9684 | O21: 275707.734 | P21: 67233.2574 | Q21: 1131.314842 | R21: 1655.781857 | S21: 8067.039953 | T21: 12584.57653 | U21: 9605.263782 | V21: 3986.802764 | W21: 6483.145784 | X21: 5704.437275 | Y21: 3772.633771 | Z21: 16439.45831 | AA21: 41380.50909 | AB21: 349169.1898 | AC21: 4367.634527 | AD21: 425.0129185 | AE21: 2351.108898 | AF21: 22299.16694 | AG21: 1455.108538 | AH21: 29786.69403 | AI21: 1686.201125 | AJ21: 16500.17095 | AK21: 71253.38849 | AL21: 47057.45248 | AM21: 428.4341246 | AN21: 5551.1657 | AO21: 107438.9616 | AP21: 36918.14143 | AQ21: 3834.911108 | AR21: 197020.9361 | AS21: 4824.146846 | AT21: 9606.234166 | AU21: 7283.808074 | AV21: 107425.7109 | AW21: 92354.96415 | AX21: 395.5073178 | AY21: 23.19658029 | AZ21: 4302.032748 | BA21: 20661.87769 | BB21: 42.83972969 | BC21: 57032.22396 | BD21: 18014.02944 | BE21: 344.4134654 | BF21: 1500.035851 | BG21: 30986.42358 | BH21: 12181.58259 | BI21: 940.8119993 | BJ21: 1725.711274 | BK21: 171775.0187 | BL21: 3548.926675 | BM21: 97230.83389 | BN21: 44428.27857 | BO21: 12763.55934 | BP21: 65.05261062 | BQ21: 103152.0691 | BR21: 8315.038919 | BS21: 1203.600308 | BT21: 10001.34232 | BU21: 57122.01852 | BV21: 2851.072168 | BW21: 2669.339173 | BX21: 3063.895586 | BY21: 47572.08414 | BZ21: 202845.8572 | CA21: 16546.40116 | CB21: 1321.235505 | CC21: 6379.984873 | CD21: 3113.73681 | CE21: 69074.55376 | CF21: 32191.34694 | CG21: 1018.987197 | CH21: 11449.3758 | CI21: 17509.49018 | CJ21: 8110.299991 | CK21: 1204.711129 | CL21: 14316.66543 | CM21: 61574.94962 | CN21: 170.1542332 | CO21: 12661.59216 | CP21: 4054.733515 | CQ21: 5944.914068 | CR21: 742.5698053 | CS21: 13649.54822 | CT21: 2602.362884 | CU21: 70603.66114 | CV21: 12513.98454 | CW21: 4154.591597 | CX21: 2547.330075 | CY21: 2564.542817 | CZ21: 4822.581821 | DA21: 105.5990385 | DB21: 1646.621757 | DC21: 12497.51711 | DD21: 1215.299985 | DE21: 12313.57845 | DF21: 12.46573815 | DG21: 49639.11819 | DH21: 157.7007169 | DI21: 10824.04338 | DJ21: 2226.818273 | DK21: 149513.0088 | DL21: 3886.537354 | DM21: 22746.14262 | DN21: 25200.77331 | DO21: 169.2164775 | DP21: 8980.80714 | DQ21: 3285.294044 | DR21: 3140.906693 | DS21: 1240.068893 | DT21: 3366.405351 | DU21: 9331.947521 | DV21: 43003.51842 | DW21: 16193.08791 | DX21: 8727.803986 | DY21: 3881.369562 | DZ21: 45380.62168 | EA21: 2710.158496 | EB21: 5186.482035 | EC21: 10352.32568 | ED21: 6798.30893 | EE21: 212381.6293 | EF21: 172.0504368 | EG21: 301.0942195 | EH21: 3254.226707 | EI21: 3767.040606 | EJ21: 22196.00057 | EK21: 5889.657242 | EL21: 2847.273163 | EM21: 1301.400918 | EN21: 2899.565017 | EO21: 3711.226189 | EP21: 3670.758582 | EQ21: 3195.660161 | ER21: 8198.683201 | ES21: 3151.547162 | ET21: 8877.363342 | EU21: 2592.079386 | EV21: 2361.17729 | EW21: 2492.612958 | EX21: 12572.519 | EY21: 3763.415257 | EZ21: 2795.048017 | FA21: 2981.254577 | FB21: 2929.4491 | FC21: 2690.755182 | FD21: 3445.415346 | FE21: 22585.4729 | FF21: 2442.600457 | FG21: 2530.810205 | FH21: 2450.009438 | FI21: 2748.565929 | FJ21: 3083.800308 | FK21: 3882.837333 | FL21: 2227.608144 | FM21: 820.0343213 | FN21: 673.1798104 | FO21: 16217.64292 | FP21: 2201.083442 | FQ21: 8832.885443 | FR21: 3130.865167 | FS21: 2691.442881 | FT21: 6281.143472 | FU21: 0.001101983558 | FV21: 1975.823795 | FW21: 1959.482801 | FX21: 3089.717955 | FY21: 2160.471849 | FZ21: 5647.87263 | GA21: 2230.52977 | GB21: 799.7276559 | GC21: 2160.103991 | GD21: 15224.95081 | GE21: 15130.79932 | GF21: 3192.843776 | GG21: 13347.20865 | GH21: 2236.131216 | GI21: 802.9394927 | GJ21: 6489.081229 | GK21: 3546.808421 | GL21: 2600.15447 | GM21: 13819.17528 | GN21: 3610.945487 | GO21: 2259.198113 | GP21: 4064.338373 | GQ21: 16478.42006 | GR21: 16271.80249 | GS21: 7472.462285 | GT21: 626042.0209 | GU21: 76829.67557 | GV21: 78535.5138 | GW21: 234485.2636 | GX21: 137500.5212 | GY21: 26254.71918 | GZ21: 21457.16184 | HA21: 21823.89478 | HB21: 147.5768095 | HC21: 12605.76445 | HD21: 10057.40187 | HE21: 29973.47171 | HF21: 1364.119454 | HG21: 496.6860876 | HH21: 60202.87319 | HI21: 21099.97057 | HJ21: 2582.670962 | HK21: 2764.139557 | HL21: 1432.044848 | HM21: 1812.479592 | HN21: 2254.633815 | HO21: 2034.941102 | HP21: 93.37214757 | HQ21: 1430.663762 | HR21: 1401.243062 | HS21: 2501.17696 | HT21: 1649.191114 | HU21: 645.2890275 | HV21: 2278.221524 | HW21: 1929.278027 | HX21: 1273.794245 | HY21: 2733.547275 | HZ21: 2081.863019 | IA21: 2685.570348 | IB21: 708.2531073 | IC21: 43837.74038 | ID21: 99678.58337 | IE21: 2857.051433 | IF21: 15576.21614 | IG21: 6666.034896 | IH21: 6775.112027 | II21: 3937.526888 | IJ21: 4932.610753 | IK21: 4212.889655 | IL21: 5283.174572 | IM21: 7798.457984 | IN21: 50092.6464 | IO21: 2201.251153 | IP21: 9411.936451 | IQ21: 2559.950667 | IR21: 2010.72119 | IS21: 2358.872408 | IT21: 1938.286841 | IU21: 73361.90839 | IV21: 120884.1693 | IW21: 288.0892455 | IX21: 22058.80532 | IY21: 6656630.005
A22: =+MATCH(B22,RUT[EMPRESA],0) -> 138 | B22: GESAN | C22: 7463394.913 | D22: 7463394.913 | F22: =IFERROR(INDEX($B$9:$B$511,MATCH(0,INDEX(COUNTIF($F$8:F21,$B$9:$B$511),0,0),0)),"") -> GESAN | H22: 7463394.913 | J22: CHACAYES | K22: 32130311 | L22: 3282522.462 | M22: 5625808.675 | N22: 122471639.2 | O22: 50835525.95 | P22: 12396598.21 | Q22: 208594.0215 | R22: 305296.2655 | S22: 1487416.45 | T22: 2320368.592 | U22: 1771037.138 | V22: 735094.4147 | W22: 1195374.975 | X22: 1051795.192 | Y22: 695605.521 | Z22: 3031139.161 | AA22: 7629818.406 | AB22: 64380491.43 | AC22: 805312.9127 | AD22: 78364.70501 | AE22: 433502.0119 | AF22: 4111563.586 | AG22: 268295.7303 | AH22: 5492128.332 | AI22: 310905.029 | AJ22: 3042333.475 | AK22: 13137837.76 | AL22: 8676544.223 | AM22: 78995.51362 | AN22: 1023534.682 | AO22: 19809803.81 | AP22: 6807038.414 | AQ22: 707088.3369 | AR22: 36327101.75 | AS22: 889485.5382 | AT22: 1771216.059 | AU22: 1343002.639 | AV22: 19807360.63 | AW22: 17028587.15 | AX22: 72924.40521 | AY22: 4277.030397 | AZ22: 793217.1296 | BA22: 3809677.023 | BB22: 7898.872325 | BC22: 10515711.91 | BD22: 3321461.635 | BE22: 63503.62176 | BF22: 276579.5153 | BG22: 5713336.79 | BH22: 2246063.79 | BI22: 173468.7384 | BJ22: 318189.9868 | BK22: 31672210.62 | BL22: 654357.9734 | BM22: 17927609.45 | BN22: 8191772.045 | BO22: 2353369.789 | BP22: 11994.52633 | BQ22: 19019378.27 | BR22: 1533142.979 | BS22: 221922.1557 | BT22: 1844066.866 | BU22: 10532268.4 | BV22: 525686.2078 | BW22: 492177.9262 | BX22: 564927.0018 | BY22: 8771433.005 | BZ22: 37401111.99 | CA22: 3050857.49 | CB22: 243611.9612 | CC22: 1176353.967 | CD22: 574116.8233 | CE22: 12736100 | CF22: 5935502.891 | CG22: 187882.8327 | CH22: 2111058.084 | CI22: 3228433.709 | CJ22: 1495392.819 | CK22: 222126.9711 | CL22: 2639734.499 | CM22: 11353308.46 | CN22: 31373.36705 | CO22: 2334568.884 | CP22: 747619.6181 | CQ22: 1096134.769 | CR22: 136916.4588 | CS22: 2516730.135 | CT22: 479828.7085 | CU22: 13018039.78 | CV22: 2307352.705 | CW22: 766031.6446 | CX22: 469681.6525 | CY22: 472855.3712 | CZ22: 889196.9759 | DA22: 19470.55523 | DB22: 303607.3086 | DC22: 2304316.408 | DD22: 224079.3648 | DE22: 2270401.442 | DF22: 2298.456942 | DG22: 9152556.745 | DH22: 29077.16359 | DI22: 1995758.08 | DJ22: 410585.0657 | DK22: 27567498.11 | DL22: 716607.2841 | DM22: 4193977.828 | DN22: 4646567.389 | DO22: 31200.46183 | DP22: 1655898.613 | DQ22: 605748.8783 | DR22: 579126.459 | DS22: 228646.304 | DT22: 620704.3381 | DU22: 1720642.557 | DV22: 7929072.009 | DW22: 2985712.909 | DX22: 1609249.402 | DY22: 715654.4366 | DZ22: 8367366.912 | EA22: 499704.2722 | EB22: 956293.602 | EC22: 1908781.858 | ED22: 1253485.367 | EE22: 39159336.12 | EF22: 31722.99273 | EG22: 55516.33531 | EH22: 600020.6226 | EI22: 694574.2423 | EJ22: 4092541.572 | EK22: 1085946.409 | EL22: 524985.7399 | EM22: 239954.8216 | EN22: 534627.4133 | EO22: 684283.0721 | EP22: 676821.5764 | EQ22: 589222.0094 | ER22: 1511689.087 | ES22: 581088.3691 | ET22: 1636825.445 | EU22: 477932.6171 | EV22: 435358.4415 | EW22: 459592.8045 | EX22: 2318145.403 | EY22: 693905.7935 | EZ22: 515356.3665 | FA22: 549689.4925 | FB22: 540137.4984 | FC22: 496126.6516 | FD22: 635272.354 | FE22: 4164353.234 | FF22: 450371.4027 | FG22: 466635.6869 | FH22: 451737.485 | FI22: 506785.9091 | FJ22: 568597.073 | FK22: 715925.0672 | FL22: 410730.7036 | FM22: 151199.5163 | FN22: 124122.1972 | FO22: 2990240.409 | FP22: 405840.0278 | FQ22: 1628624.524 | FR22: 577274.9828 | FS22: 496253.4508 | FT22: 1158129.398 | FU22: 0.2031858626 | FV22: 364306.2177 | FW22: 361293.2336 | FX22: 569688.1802 | FY22: 398351.9837 | FZ22: 1041365.693 | GA22: 411269.3988 | GB22: 147455.334 | GC22: 398284.1573 | GD22: 2807205.916 | GE22: 2789846.081 | GF22: 588702.7188 | GG22: 2460984.179 | GH22: 412302.2042 | GI22: 148047.5387 | GJ22: 1196469.364 | GK22: 653967.4056 | GL22: 479421.5168 | GM22: 2548006.301 | GN22: 665793.122 | GO22: 416555.3234 | GP22: 749390.5805 | GQ22: 3038323.004 | GR22: 3000226.456 | GS22: 1377787.068 | GT22: 115430840.2 | GU22: 14166004.37 | GV22: 14480530.13 | GW22: 43234847.02 | GX22: 25352612.39 | GY22: 4840895.968 | GZ22: 3956313.055 | HA22: 4023931.985 | HB22: 27210.49794 | HC22: 2324275.262 | HD22: 1854403.234 | HE22: 5526566.762 | HF22: 251518.9868 | HG22: 91579.94273 | HH22: 11100322.35 | HI22: 3890453.438 | HJ22: 476197.8736 | HK22: 509657.4046 | HL22: 264043.2025 | HM22: 334188.4972 | HN22: 415713.7493 | HO22: 375206.3813 | HP22: 17216.1374 | HQ22: 263788.5552 | HR22: 258363.9095 | HS22: 461171.8518 | HT22: 304081.0515 | HU22: 118979.6406 | HV22: 420062.8966 | HW22: 355724.019 | HX22: 234864.6497 | HY22: 504016.7404 | HZ22: 383857.9354 | IA22: 495170.6618 | IB22: 130589.0796 | IC22: 8082887.469 | ID22: 18378930.24 | IE22: 526788.6762 | IF22: 2871972.897 | IG22: 1229096.424 | IH22: 1249208.276 | II22: 726008.8331 | IJ22: 909484.3233 | IK22: 776780.7534 | IL22: 974121.9592 | IM22: 1437894.786 | IN22: 9236179.156 | IO22: 405870.9507 | IP22: 1735391.071 | IQ22: 472008.6617 | IR22: 370740.6671 | IS22: 434933.4629 | IT22: 357385.0815 | IU22: 13526610.74 | IV22: 22288857.25 | IW22: 53118.45302 | IX22: 4067245.245 | IY22: 1227362332
A23: =+MATCH(B23,RUT[EMPRESA],0) -> 237 | B23: PACIFIC HYDRO | C23: -21632828.4 | D23: -21632828.4 | F23: =IFERROR(INDEX($B$9:$B$511,MATCH(0,INDEX(COUNTIF($F$8:F22,$B$9:$B$511),0,0),0)),"") -> PACIFIC HYDRO | G23: -21632828.4 | J23: LA ARENA SPA | K23: 2890551.805 | L23: 295306.8593 | M23: 506116.8384 | N23: 11017964.24 | O23: 4573336.414 | P23: 1115240.04 | Q23: 18765.82599 | R23: 27465.488 | S23: 133813.031 | T23: 208748.2322 | U23: 159328.5106 | V23: 66131.58793 | W23: 107539.989 | X23: 94623.06454 | Y23: 62579.03306 | Z23: 272691.5644 | AA23: 686404.3539 | AB23: 5791887.47 | AC23: 72448.68229 | AD23: 7049.954777 | AE23: 38999.31199 | AF23: 369890.2119 | AG23: 24136.79431 | AH23: 494090.5011 | AI23: 27970.0714 | AJ23: 273698.643 | AK23: 1181924.466 | AL23: 780571.3603 | AM23: 7106.704459 | AN23: 92080.65318 | AO23: 1782157.171 | AP23: 612384.2739 | AQ23: 63612.06615 | AR23: 3268109.342 | AS23: 80021.1373 | AT23: 159344.607 | AU23: 120821.0746 | AV23: 1781937.374 | AW23: 1531949.483 | AX23: 6560.526947 | AY23: 384.7761677 | AZ23: 71360.50459 | BA23: 342731.4723 | BB23: 710.6093575 | BC23: 946029.1259 | BD23: 298809.9594 | BE23: 5713.001299 | BF23: 24882.03171 | BG23: 513991.1646 | BH23: 202063.5201 | BI23: 15605.83634 | BJ23: 28625.45093 | BK23: 2849339.54 | BL23: 58868.26371 | BM23: 1612828.58 | BN23: 736959.6102 | BO23: 211717.1319 | BP23: 1079.06829 | BQ23: 1711047.807 | BR23: 137926.7448 | BS23: 19964.87017 | BT23: 165898.5127 | BU23: 947518.6043 | BV23: 47292.51506 | BW23: 44277.99634 | BX23: 50822.75004 | BY23: 789107.8771 | BZ23: 3364730.947 | CA23: 274465.4922 | CB23: 21916.15868 | CC23: 105828.7945 | CD23: 51649.49757 | CE23: 1145782.773 | CF23: 533977.981 | CG23: 16902.57717 | CH23: 189917.9486 | CI23: 290440.8514 | CJ23: 134530.6123 | CK23: 19983.29606 | CL23: 237479.4729 | CM23: 1021382.154 | CN23: 2822.454559 | CO23: 210025.7386 | CP23: 67258.39773 | CQ23: 98612.00333 | CR23: 12317.46923 | CS23: 226413.583 | CT23: 43167.01881 | CU23: 1171147.032 | CV23: 207577.2788 | CW23: 68914.80612 | CX23: 42254.15522 | CY23: 42539.67372 | CZ23: 79995.17725 | DA23: 1751.637217 | DB23: 27313.54371 | DC23: 207304.1233 | DD23: 20158.94003 | DE23: 204253.0179 | DF23: 206.7769858 | DG23: 823395.062 | DH23: 2615.880304 | DI23: 179545.1691 | DJ23: 36937.62574 | DK23: 2480065.675 | DL23: 64468.42294 | DM23: 377304.4768 | DN23: 418020.9694 | DO23: 2806.899418 | DP23: 148970.2582 | DQ23: 54495.22457 | DR23: 52100.18139 | DS23: 20569.79737 | DT23: 55840.66849 | DU23: 154794.843 | DV23: 713326.2235 | DW23: 268604.8647 | DX23: 144773.5368 | DY23: 64382.70154 | DZ23: 752756.7203 | EA23: 44955.09197 | EB23: 86031.41741 | EC23: 171720.493 | ED23: 112767.797 | EE23: 3522906.757 | EF23: 2853.908071 | EG23: 4994.437907 | EH23: 53979.89125 | EI23: 62486.25573 | EJ23: 368178.9269 | EK23: 97695.42384 | EL23: 47229.49859 | EM23: 21587.14998 | EN23: 48096.89625 | EO23: 61560.42713 | EP23: 60889.16566 | EQ23: 53008.41137 | ER23: 135996.6798 | ES23: 52276.68149 | ET23: 147254.3713 | EU23: 42996.44 | EV23: 39166.32269 | EW23: 41346.52823 | EX23: 208548.2266 | EY23: 62426.11981 | EZ23: 46363.20748 | FA23: 49451.932 | FB23: 48592.6022 | FC23: 44633.23707 | FD23: 57151.25662 | FE23: 374639.3478 | FF23: 40516.93963 | FG23: 41980.12983 | FH23: 40639.83702 | FI23: 45592.18005 | FJ23: 51152.9221 | FK23: 64407.04838 | FL23: 36950.72782 | FM23: 13602.42155 | FN23: 11166.45404 | FO23: 269012.1739 | FP23: 36510.74603 | FQ23: 146516.5886 | FR23: 51933.61632 | FS23: 44644.64436 | FT23: 104189.2505 | FU23: 0.01827928967 | FV23: 32774.22354 | FW23: 32503.16527 | FX23: 51251.08181 | FY23: 35837.09617 | FZ23: 93684.79143 | GA23: 36999.19067 | GB23: 13265.5822 | GC23: 35830.99428 | GD23: 252545.7699 | GE23: 250984.0202 | GF23: 52961.69422 | GG23: 221398.4876 | GH23: 37092.10535 | GI23: 13318.85895 | GJ23: 107638.444 | GK23: 58833.12691 | GL23: 43130.38646 | GM23: 229227.293 | GN23: 59897.00848 | GO23: 37474.73039 | GP23: 67417.71952 | GQ23: 273337.8473 | GR23: 269910.5526 | GS23: 123950.3998 | GT23: 10384550.08 | GU23: 1274421.823 | GV23: 1302717.627 | GW23: 3889553.547 | GX23: 2280807.04 | GY23: 435503.4278 | GZ23: 355923.3473 | HA23: 362006.5757 | HB23: 2447.948728 | HC23: 209099.6895 | HD23: 166828.4074 | HE23: 497188.6991 | HF23: 22627.50153 | HG23: 8238.842405 | HH23: 998622.6653 | HI23: 349998.3927 | HJ23: 42840.37659 | HK23: 45850.50953 | HL23: 23754.22247 | HM23: 30064.73121 | HN23: 37399.01952 | HO23: 33754.83925 | HP23: 1548.82214 | HQ23: 23731.31354 | HR23: 23243.294 | HS23: 41488.58467 | HT23: 27356.16323 | HU23: 10703.8122 | HV23: 37790.28357 | HW23: 32002.13982 | HX23: 21129.22085 | HY23: 45343.05624 | HZ23: 34533.16241 | IA23: 44547.23299 | IB23: 11748.23672 | IC23: 727163.9843 | ID23: 1653430.93 | IE23: 47391.69686 | IF23: 258372.4273 | IG23: 110573.685 | IH23: 112383.0155 | II23: 65314.21819 | IJ23: 81820.29587 | IK23: 69881.83242 | IL23: 87635.31693 | IM23: 129357.8941 | IN23: 830918.0179 | IO23: 36513.52796 | IP23: 156121.6694 | IQ23: 42463.50086 | IR23: 33353.08844 | IS23: 39128.09018 | IT23: 32151.57464 | IU23: 1216899.802 | IV23: 2005181.231 | IW23: 4778.71628 | IX23: 365903.1836 | IY23: 110417680.2
A24: =+MATCH(B24,RUT[EMPRESA],0) -> 100 | B24: ELECTRICA CENIZAS | C24: -312137544.7 | D24: -312137544.7 | F24: =IFERROR(INDEX($B$9:$B$511,MATCH(0,INDEX(COUNTIF($F$8:F23,$B$9:$B$511),0,0),0)),"") -> ELECTRICA CENIZAS | G24: -312137544.7 | J24: CARDONES SA | K24: 71307.21228 | L24: 7284.944301 | M24: 12485.42952 | N24: 271802.8833 | O24: 112819.9363 | P24: 27511.92977 | Q24: 462.9353935 | R24: 677.5479269 | S24: 3301.042449 | T24: 5149.623847 | U24: 3930.485489 | V24: 1631.404485 | W24: 2652.91105 | X24: 2334.262592 | Y24: 1543.766275 | Z24: 6727.046108 | AA24: 16932.95408 | AB24: 142880.4523 | AC24: 1787.2413 | AD24: 173.9157973 | AE24: 962.076588 | AF24: 9124.845924 | AG24: 595.4321635 | AH24: 12188.75101 | AI24: 689.9955278 | AJ24: 6751.889794 | AK24: 29156.97225 | AL24: 19255.96614 | AM24: 175.3157589 | AN24: 2271.543679 | AO24: 43964.15227 | AP24: 15106.94786 | AQ24: 1569.250236 | AR24: 80621.20394 | AS24: 1974.04669 | AT24: 3930.882571 | AU24: 2980.543022 | AV24: 43958.73009 | AW24: 37791.76238 | AX24: 161.84207 | AY24: 9.492068544 | AZ24: 1760.396973 | BA24: 8454.865194 | BB24: 17.5300689 | BC24: 23337.65462 | BD24: 7371.362508 | BE24: 140.9344042 | BF24: 613.816474 | BG24: 12679.68179 | BH24: 4984.718245 | BI24: 384.9814013 | BJ24: 706.1631284 | BK24: 70290.5442 | BL24: 1452.225063 | BM24: 39786.97414 | BN24: 18180.10501 | BO24: 5222.863827 | BP24: 26.61960648 | BQ24: 42209.95071 | BR24: 3402.523924 | BS24: 492.5146931 | BT24: 4092.561302 | BU24: 23374.39866 | BV24: 1166.662159 | BW24: 1092.296799 | BX24: 1253.749758 | BY24: 19466.55403 | BZ24: 83004.76866 | CA24: 6770.807249 | CB24: 540.6511575 | CC24: 2610.697481 | CD24: 1274.144847 | CE24: 28265.39045 | CF24: 13172.73787 | CG24: 416.9707861 | CH24: 4685.098345 | CI24: 7164.904434 | CJ24: 3318.744508 | CK24: 492.9692426 | CL24: 5858.39671 | CM24: 25196.54342 | CN24: 69.62731683 | CO24: 5181.138736 | CP24: 1659.20183 | CQ24: 2432.665985 | CR24: 303.8604572 | CS24: 5585.411544 | CT24: 1064.890021 | CU24: 28891.10303 | CV24: 5120.737521 | CW24: 1700.063877 | CX24: 1042.370529 | CY24: 1049.414004 | CZ24: 1973.40628 | DA24: 43.21125353 | DB24: 673.7996031 | DC24: 5113.999029 | DD24: 497.3022151 | DE24: 5038.731109 | DF24: 5.100995041 | DG24: 20312.38685 | DH24: 64.53132297 | DI24: 4429.211565 | DJ24: 911.2167147 | DK24: 61180.90297 | DL24: 1590.375758 | DM24: 9307.748911 | DN24: 10312.18674 | DO24: 69.24358604 | DP24: 3674.95708 | DQ24: 1344.346273 | DR24: 1285.262796 | DS24: 507.437682 | DT24: 1377.537117 | DU24: 3818.644147 | DV24: 17597.09145 | DW24: 6626.231043 | DX24: 3571.427885 | DY24: 1588.261092 | DZ24: 18569.80496 | EA24: 1109.000115 | EB24: 2122.314685 | EC24: 4236.184116 | ED24: 2781.876189 | EE24: 86906.81809 | EF24: 70.4032456 | EG24: 123.2081167 | EH24: 1331.633481 | EI24: 1541.477545 | EJ24: 9082.630123 | EK24: 2410.054825 | EL24: 1165.107602 | EM24: 532.5348203 | EN24: 1186.505492 | EO24: 1518.638219 | EP24: 1502.078826 | EQ24: 1307.66798 | ER24: 3354.911024 | ES24: 1289.616888 | ET24: 3632.627754 | EU24: 1060.682001 | EV24: 966.1965861 | EW24: 1019.98022 | EX24: 5144.689894 | EY24: 1539.994048 | EZ24: 1143.73701 | FA24: 1219.932958 | FB24: 1198.734094 | FC24: 1101.060256 | FD24: 1409.868102 | FE24: 9242.002669 | FF24: 999.515044 | FG24: 1035.610579 | FH24: 1002.546808 | FI24: 1124.716483 | FJ24: 1261.894794 | FK24: 1588.861705 | FL24: 911.5399309 | FM24: 335.5590303 | FN24: 275.4659879 | FO24: 6636.278981 | FP24: 900.6859912 | FQ24: 3614.427344 | FR24: 1281.153791 | FS24: 1101.341663 | FT24: 2570.251461 | FU24: 0.0004509329971 | FV24: 808.5094725 | FW24: 801.8227181 | FX24: 1264.316302 | FY24: 884.0676786 | FZ24: 2311.116271 | GA24: 912.7354641 | GB24: 327.2495184 | GC24: 883.9171505 | GD24: 6230.068179 | GE24: 6191.541274 | GF24: 1306.515512 | GG24: 5461.693827 | GH24: 915.0275822 | GI24: 328.5638059 | GJ24: 2655.339842 | GK24: 1451.358271 | GL24: 1063.986336 | GM24: 5654.823141 | GN24: 1477.603235 | GO24: 924.4665845 | GP24: 1663.132149 | GQ24: 6742.989303 | GR24: 6658.441144 | GS24: 3057.740552 | GT24: 256177.1477 | GU24: 31438.79562 | GV24: 32136.82668 | GW24: 95951.65183 | GX24: 56265.37862 | GY24: 10743.46266 | GZ24: 8780.296424 | HA24: 8930.363985 | HB24: 60.38860789 | HC24: 5158.29397 | HD24: 4115.500937 | HE24: 12265.18066 | HF24: 558.1993209 | HG24: 203.2445442 | HH24: 24635.0881 | HI24: 8634.133329 | HJ24: 1056.832063 | HK24: 1131.08923 | HL24: 585.9944739 | HM24: 741.6688282 | HN24: 922.5988682 | HO24: 832.7003457 | HP24: 38.20799506 | HQ24: 585.4293318 | HR24: 573.3903459 | HS24: 1023.484619 | HT24: 674.8509868 | HU24: 264.0530459 | HV24: 932.2509868 | HW24: 789.4628885 | HX24: 521.2381365 | HY24: 1118.570832 | HZ24: 851.9008508 | IA24: 1098.938616 | IB24: 289.8180231 | IC24: 17938.45607 | ID24: 40788.59617 | IE24: 1169.108882 | IF24: 6373.806373 | IG24: 2727.749495 | IH24: 2772.383988 | II24: 1611.240737 | IJ24: 2018.430251 | IK24: 1723.919512 | IL24: 2161.881387 | IM24: 3191.138384 | IN24: 20497.97114 | IO24: 900.7546188 | IP24: 3851.375713 | IQ24: 1047.534891 | IR24: 822.7895287 | IS24: 965.2534257 | IT24: 793.1493059 | IU24: 30019.78112 | IV24: 49465.94745 | IW24: 117.8864657 | IX24: 9026.489661 | IY24: 2723901.002
A25: =+MATCH(B25,RUT[EMPRESA],0) -> 261 | B25: PUNTILLA | C25: 36361978.9 | D25: 36361978.9 | F25: =IFERROR(INDEX($B$9:$B$511,MATCH(0,INDEX(COUNTIF($F$8:F24,$B$9:$B$511),0,0),0)),"") -> PUNTILLA | H25: 36361978.9 | J25: CAPULLO | K25: 153082.5101 | L25: 15639.33751 | M25: 26803.75279 | N25: 583507.1419 | O25: 242202.1347 | P25: 59062.68289 | Q25: 993.8309155 | R25: 1454.561664 | S25: 7086.686576 | T25: 11055.22596 | U25: 8437.976544 | V25: 3502.303421 | W25: 5695.276392 | X25: 5011.201047 | Y25: 3314.161484 | Z25: 14441.64021 | AA25: 36351.71017 | AB25: 306736.1293 | AC25: 3836.854305 | AD25: 373.3628892 | AE25: 2065.388539 | AF25: 19589.24313 | AG25: 1278.275328 | AH25: 26166.8426 | AI25: 1481.284207 | AJ25: 14494.9747 | AK25: 62594.26439 | AL25: 41338.75855 | AM25: 376.3683305 | AN25: 4876.555921 | AO25: 94382.35725 | AP25: 32431.63524 | AQ25: 3368.870518 | AR25: 173077.8118 | AS25: 4237.888605 | AT25: 8438.829001 | AU25: 6398.637567 | AV25: 94370.7169 | AW25: 81131.45447 | AX25: 347.4429798 | AY25: 20.37759762 | AZ25: 3779.224834 | BA25: 18150.92675 | BB25: 37.63359783 | BC25: 50101.33808 | BD25: 15824.86034 | BE25: 302.558348 | BF25: 1317.742814 | BG25: 27220.77408 | BH25: 10701.20618 | BI25: 826.4790808 | BJ25: 1515.992854 | BK25: 150899.9244 | BL25: 3117.640569 | BM25: 85414.7803 | BN25: 39029.09706 | BO25: 11212.45775 | BP25: 57.14704093 | BQ25: 90616.43275 | BR25: 7304.547272 | BS25: 1057.331833 | BT25: 8785.921324 | BU25: 50180.22028 | BV25: 2504.593379 | BW25: 2344.945629 | BX25: 2691.553264 | BY25: 41790.84919 | BZ25: 178194.8548 | CA25: 14535.58674 | CB25: 1160.671321 | CC25: 5604.652191 | CD25: 2735.337495 | CE25: 60680.21427 | CF25: 28279.26817 | CG25: 895.1539759 | CH25: 10057.9814 | CI25: 15381.63561 | CJ25: 7124.689403 | CK25: 1058.307661 | CL25: 12576.8214 | CM25: 54092.00542 | CN25: 149.4761062 | CO25: 11122.88221 | CP25: 3561.978834 | CQ25: 5222.453709 | CR25: 652.3284255 | CS25: 11990.77613 | CT25: 2286.108687 | CU25: 62023.49567 | CV25: 10993.21272 | CW25: 3649.701584 | CX25: 2237.763783 | CY25: 2252.884733 | CZ25: 4236.513771 | DA25: 92.76603226 | DB25: 1446.514753 | DC25: 10978.74651 | DD25: 1067.609698 | DE25: 10817.16114 | DF25: 10.95082951 | DG25: 43606.68529 | DH25: 138.5360132 | DI25: 9508.64299 | DJ25: 1956.20243 | DK25: 131343.3228 | DL25: 3414.222844 | DM25: 19981.89974 | DN25: 22138.22951 | DO25: 148.6523119 | DP25: 7889.407487 | DQ25: 2886.046101 | DR25: 2759.205536 | DS25: 1089.368545 | DT25: 2957.300292 | DU25: 8197.875257 | DV25: 37777.48201 | DW25: 14225.21016 | DX25: 7667.15074 | DY25: 3409.683072 | DZ25: 39865.70593 | EA25: 2380.804353 | EB25: 4556.190725 | EC25: 9094.251157 | ED25: 5972.139089 | EE25: 186571.7847 | EF25: 151.1418721 | EG25: 264.5035076 | EH25: 2858.754246 | EI25: 3309.248032 | EJ25: 19498.61414 | EK25: 5173.912012 | EL25: 2501.256051 | EM25: 1143.247147 | EN25: 2547.193097 | EO25: 3260.216507 | EP25: 3224.666758 | EQ25: 2807.305046 | ER25: 7202.331775 | ES25: 2768.552913 | ET25: 7798.534778 | EU25: 2277.074899 | EV25: 2074.233362 | EW25: 2189.696207 | EX25: 11044.63374 | EY25: 3306.063257 | EZ25: 2455.377608 | FA25: 2618.955269 | FB25: 2573.445493 | FC25: 2363.759042 | FD25: 3026.708535 | FE25: 19840.75554 | FF25: 2145.761515 | FG25: 2223.251504 | FH25: 2152.270113 | FI25: 2414.544292 | FJ25: 2709.039049 | FK25: 3410.972471 | FL25: 1956.896311 | FM25: 720.3790052 | FN25: 591.3711043 | FO25: 14246.7811 | FP25: 1933.595045 | FQ25: 7759.46209 | FR25: 2750.384314 | FS25: 2364.363167 | FT25: 5517.82257 | FU25: 0.0009680641393 | FV25: 1735.710253 | FW25: 1721.355112 | FX25: 2714.23755 | FY25: 1897.918808 | FZ25: 4961.510465 | GA25: 1959.462885 | GB25: 702.5401233 | GC25: 1897.595654 | GD25: 13374.72669 | GE25: 13292.01703 | GF25: 2804.830924 | GG25: 11725.17861 | GH25: 1964.38361 | GI25: 705.3616391 | GJ25: 5700.490527 | GK25: 3115.779737 | GL25: 2284.168652 | GM25: 12139.78913 | GN25: 3172.122496 | GO25: 1984.647285 | GP25: 3570.416455 | GQ25: 14475.8671 | GR25: 14294.35889 | GS25: 6564.365427 | GT25: 549961.7718 | GU25: 67492.8888 | GV25: 68991.4237 | GW25: 205989.2575 | GX25: 120790.6622 | GY25: 23064.09377 | GZ25: 18849.56336 | HA25: 19171.7288 | HB25: 129.6424216 | HC25: 11073.83901 | HD25: 8835.168192 | HE25: 26330.92198 | HF25: 1198.343764 | HG25: 436.32592 | HH25: 52886.67166 | HI25: 18535.78005 | HJ25: 2268.809841 | HK25: 2428.225322 | HL25: 1258.014472 | HM25: 1592.216583 | HN25: 1980.637667 | HO25: 1787.643283 | HP25: 82.02502387 | HQ25: 1256.801223 | HR25: 1230.955897 | HS25: 2197.219462 | HT25: 1448.771866 | HU25: 566.8697707 | HV25: 2001.35886 | HW25: 1694.820997 | HX25: 1118.995397 | HY25: 2401.350791 | HZ25: 1828.862978 | IA25: 2359.204299 | IB25: 622.1820912 | IC25: 38510.32449 | ID25: 87565.0651 | IE25: 2509.846009 | IF25: 13683.30422 | IG25: 5855.939761 | IH25: 5951.761207 | II25: 3459.015835 | IJ25: 4333.17135 | IK25: 3700.914925 | IL25: 4641.132625 | IM25: 6850.744242 | IN25: 44005.09814 | IO25: 1933.742375 | IP25: 8268.143469 | IQ25: 2248.850648 | IR25: 1766.366715 | IS25: 2072.208583 | IT25: 1702.735008 | IU25: 64446.54475 | IV25: 106193.6256 | IW25: 253.0789733 | IX25: 19378.09165 | IY25: 5847677.807
A26: =+MATCH(B26,RUT[EMPRESA],0) -> 91 | B26: EL MANZANO | C26: 56724660.93 | D26: 56724660.93 | F26: =IFERROR(INDEX($B$9:$B$511,MATCH(0,INDEX(COUNTIF($F$8:F25,$B$9:$B$511),0,0),0)),"") -> EL MANZANO | H26: 56724660.93 | J26: ORAZUL_CHILE | K26: 198506.3106 | L26: 20279.96005 | M26: 34757.16511 | N26: 756649.7956 | O26: 314070.1845 | P26: 76588.209 | Q26: 1288.727944 | R26: 1886.170206 | S26: 9189.501831 | T26: 14335.61625 | U26: 10941.75678 | V26: 4541.533389 | W26: 7385.22189 | X26: 6498.162534 | Y26: 4297.564553 | Z26: 18726.87295 | AA26: 47138.26462 | AB26: 397753.1941 | AC26: 4975.354742 | AD26: 484.1499503 | AE26: 2678.246252 | AF26: 25401.91156 | AG26: 1657.574855 | AH26: 33931.26611 | AI26: 1920.822063 | AJ26: 18796.03325 | AK26: 81167.70808 | AL26: 53605.10773 | AM26: 488.0471889 | AN26: 6323.564488 | AO26: 122388.2043 | AP26: 42054.99541 | AQ26: 4368.507266 | AR26: 224434.7695 | AS26: 5495.386974 | AT26: 10942.86219 | AU26: 8297.289714 | AV26: 122373.11 | AW26: 105205.3934 | AX26: 450.5388894 | AY26: 26.42419255 | AZ26: 4900.625018 | BA26: 23536.80705 | BB26: 48.8005237 | BC26: 64967.78615 | BD26: 20520.53262 | BE26: 392.3357501 | BF26: 1708.753431 | BG26: 35297.9281 | BH26: 13876.54904 | BI26: 1071.718206 | BJ26: 1965.829723 | BK26: 195676.0916 | BL26: 4042.730465 | BM26: 110759.7001 | BN26: 50610.10602 | BO26: 14539.50304 | BP26: 74.10414326 | BQ26: 117504.8262 | BR26: 9472.007801 | BS26: 1371.071334 | BT26: 11392.94637 | BU26: 65070.07488 | BV26: 3247.775275 | BW26: 3040.755637 | BX26: 3490.211312 | BY26: 54191.34613 | BZ26: 231070.1802 | CA26: 18848.696 | CB26: 1505.074497 | CC26: 7267.706992 | CD26: 3546.98753 | CE26: 78685.70652 | CF26: 36670.50657 | CG26: 1160.770836 | CH26: 13042.46173 | CI26: 19945.79089 | CJ26: 9238.781145 | CK26: 1372.336717 | CL26: 16308.711 | CM26: 70142.5945 | CN26: 193.8297872 | CO26: 14423.34797 | CP26: 4618.916142 | CQ26: 6772.099684 | CR26: 845.8922511 | CS26: 15548.76994 | CT26: 2964.460153 | CU26: 80427.57655 | CV26: 14255.20197 | CW26: 4732.66865 | CX26: 2901.769983 | CY26: 2921.377735 | CZ26: 5493.604189 | DA26: 120.2922712 | DB26: 1875.735554 | DC26: 14236.44324 | DD26: 1384.398925 | DE26: 14026.91104 | DF26: 14.2002425 | DG26: 56545.99086 | DH26: 179.6434671 | DI26: 12330.11948 | DJ26: 2536.661615 | DK26: 170316.5072 | DL26: 4427.316877 | DM26: 25911.08021 | DN26: 28707.25246 | DO26: 192.7615505 | DP26: 10230.41216 | DQ26: 3742.415534 | DR26: 3577.937878 | DS26: 1412.614221 | DT26: 3834.812808 | DU26: 10630.41082 | DV26: 48987.10228 | DW26: 18446.22214 | DX26: 9942.205713 | DY26: 4421.430029 | DZ26: 51694.95979 | EA26: 3087.254632 | EB26: 5908.138107 | EC26: 11792.76616 | ED26: 7744.237382 | EE26: 241932.7762 | EF26: 195.9898318 | EG26: 342.9889895 | EH26: 3707.025434 | EI26: 4291.193145 | EJ26: 25284.39044 | EK26: 6709.154327 | EL26: 3243.44767 | EM26: 1482.48009 | EN26: 3303.015504 | EO26: 4227.612614 | EP26: 4181.514274 | EQ26: 3640.309838 | ER26: 9339.462148 | ES26: 3590.058879 | ET26: 10112.57502 | EU26: 2952.74579 | EV26: 2689.715578 | EW26: 2839.439432 | EX26: 14321.88102 | EY26: 4287.063359 | EZ26: 3183.955828 | FA26: 3396.07149 | FB26: 3337.057709 | FC26: 3065.151508 | FD26: 3924.81639 | FE26: 25728.05463 | FF26: 2782.468105 | FG26: 2882.95151 | FH26: 2790.907984 | FI26: 3131.006142 | FJ26: 3512.885611 | FK26: 4423.102029 | FL26: 2537.56139 | FM26: 934.1353136 | FN26: 766.8472124 | FO26: 18474.19377 | FP26: 2507.345996 | FQ26: 10061.90839 | FR26: 3566.499156 | FS26: 3065.934894 | FT26: 7155.112628 | FU26: 0.001255315455 | FV26: 2250.743331 | FW26: 2232.128623 | FX26: 3519.62665 | FY26: 2461.083636 | FZ26: 6433.727386 | GA26: 2540.889537 | GB26: 911.0031437 | GC26: 2460.664593 | GD26: 17343.37678 | GE26: 17236.12488 | GF26: 3637.101575 | GG26: 15204.36232 | GH26: 2547.270377 | GI26: 914.661881 | GJ26: 7391.983204 | GK26: 4040.317473 | GL26: 2961.944456 | GM26: 15741.99921 | GN26: 4113.378681 | GO26: 2573.546843 | GP26: 4629.857437 | GQ26: 18771.2559 | GR26: 18535.8892 | GS26: 8512.193599 | GT26: 713150.5894 | GU26: 87519.88938 | GV26: 89463.08089 | GW26: 267111.9484 | GX26: 156632.5813 | GY26: 29907.84617 | GZ26: 24442.74841 | HA26: 24860.50921 | HB26: 168.1109018 | HC26: 14359.7523 | HD26: 11456.80614 | HE26: 34144.03235 | HF26: 1553.925392 | HG26: 565.795848 | HH26: 68579.60499 | HI26: 24035.85694 | HJ26: 2942.028262 | HK26: 3148.746711 | HL26: 1631.302043 | HM26: 2064.671134 | HN26: 2568.34746 | HO26: 2318.086323 | HP26: 106.3641095 | HQ26: 1629.72879 | HR26: 1596.214443 | HS26: 2849.195044 | HT26: 1878.662415 | HU26: 735.0756577 | HV26: 2595.217203 | HW26: 2197.721105 | HX26: 1451.032177 | HY26: 3113.897766 | HZ26: 2371.537037 | IA26: 3059.245247 | IB26: 806.8006684 | IC26: 49937.39932 | ID26: 113548.0337 | IE26: 3254.586505 | IF26: 17743.51777 | IG26: 7593.55851 | IH26: 7717.81282 | II26: 4485.401182 | IJ26: 5618.942736 | IK26: 4799.0784 | IL26: 6018.28461 | IM26: 8883.548903 | IN26: 57062.62378 | IO26: 2507.537042 | IP26: 10721.52955 | IQ26: 2916.146626 | IR26: 2290.496411 | IS26: 2687.089991 | IT26: 2207.983421 | IU26: 83569.61108 | IV26: 137704.2015 | IW26: 328.174481 | IX26: 25128.10561 | IY26: 7582845.006
A27: =+MATCH(B27,RUT[EMPRESA],0) -> 125 | B27: ESPINOS | C27: 43295483.96 | D27: 43295483.96 | F27: =IFERROR(INDEX($B$9:$B$511,MATCH(0,INDEX(COUNTIF($F$8:F26,$B$9:$B$511),0,0),0)),"") -> ESPINOS | H27: 43295483.96 | J27: AELA_GENERACION | K27: 23126536.4 | L27: 2362671.659 | M27: 4049306.248 | N27: 88151802.23 | O27: 36590048.6 | P27: 8922739.016 | Q27: 150140.3839 | R27: 219744.0664 | S27: 1070602.48 | T27: 1670139.1 | U27: 1274745.048 | V27: 529101.2506 | W27: 860398.8572 | X27: 757053.9791 | Y27: 500678.2038 | Z27: 2181732.698 | AA27: 5491738.721 | AB27: 46339351.59 | AC27: 579642.6429 | AD27: 56404.81359 | AE27: 312023.1253 | AF27: 2959393.232 | AG27: 193112.0733 | AH27: 3953086.721 | AI27: 223781.104 | AJ27: 2189790.066 | AK27: 9456263.375 | AL27: 6245143.9 | AM27: 56858.85271 | AN27: 736712.8219 | AO27: 14258565.65 | AP27: 4899523.743 | AQ27: 508943.2268 | AR27: 26147273.86 | AS27: 640227.8419 | AT27: 1274873.83 | AU27: 966657.2914 | AV27: 14256807.11 | AW27: 12256720.47 | AX27: 52489.03165 | AY27: 3078.491806 | AZ27: 570936.4225 | BA27: 2742103.378 | BB27: 5685.396518 | BC27: 7568927.487 | BD27: 2390699.031 | BE27: 45708.20431 | BF27: 199074.5196 | BG27: 4112306.638 | BH27: 1616656.496 | BI27: 124858.147 | BJ27: 229024.6213 | BK27: 22796808.02 | BL27: 470989.3249 | BM27: 12903812.62 | BN27: 5896217.884 | BO27: 1693892.476 | BP27: 8633.33846 | BQ27: 13689638.54 | BR27: 1103515.21 | BS27: 159733.6176 | BT27: 1327309.888 | BU27: 7580844.408 | BV27: 378374.8379 | BW27: 354256.4752 | BX27: 406619.3093 | BY27: 6313442.301 | BZ27: 26920317.62 | CA27: 2195925.423 | CB27: 175345.3581 | CC27: 846708.0453 | CD27: 413233.8964 | CE27: 9167103.302 | CF27: 4272215.841 | CG27: 135233.0256 | CH27: 1519483.008 | CI27: 2323740.024 | CJ27: 1076343.657 | CK27: 159881.0382 | CL27: 1900010.117 | CM27: 8171807.029 | CN27: 22581.70843 | CO27: 1680360.089 | CP27: 538116.5562 | CQ27: 788968.4177 | CR27: 98548.79609 | CS27: 1811474.874 | CT27: 345367.8394 | CU27: 9370035.996 | CV27: 1660770.613 | CW27: 551369.0393 | CX27: 338064.2605 | CY27: 340348.6182 | CZ27: 640020.1425 | DA27: 14014.38362 | DB27: 218528.4005 | DC27: 1658585.168 | DD27: 161286.3189 | DE27: 1634174.085 | DF27: 1654.367682 | DG27: 6587764.95 | DH27: 20928.96275 | DI27: 1436493.157 | DJ27: 295528.1218 | DK27: 19842346.01 | DL27: 515794.7097 | DM27: 3018712.793 | DN27: 3344474.625 | DO27: 22457.25589 | DP27: 1191871.425 | DQ27: 436001.8015 | DR27: 416839.6979 | DS27: 164573.4793 | DT27: 446766.3405 | DU27: 1238472.379 | DV27: 5707133.441 | DW27: 2149036.1 | DX27: 1158294.573 | DY27: 515108.8756 | DZ27: 6022606.361 | EA27: 359673.7373 | EB27: 688314.4949 | EC27: 1373890.004 | ED27: 902225.1589 | EE27: 28185840.22 | EF27: 22833.35962 | EG27: 39959.16968 | EH27: 431878.7566 | EI27: 499935.917 | EJ27: 2945701.696 | EK27: 781635.1089 | EL27: 377870.6599 | EM27: 172713.047 | EN27: 384810.4779 | EO27: 492528.6086 | EP27: 487158.024 | EQ27: 424106.2044 | ER27: 1088073.274 | ES27: 418251.8282 | ET27: 1178143.07 | EU27: 344003.0837 | EV27: 313359.3335 | EW27: 330802.5783 | EX27: 1668538.908 | EY27: 499454.7854 | EZ27: 370939.6951 | FA27: 395651.7587 | FB27: 388776.4894 | FC27: 357098.6618 | FD27: 457252.0077 | FE27: 2997389.805 | FF27: 324165.2605 | FG27: 335871.8562 | FH27: 325148.5299 | FI27: 364770.9096 | FJ27: 409260.9281 | FK27: 515303.6683 | FL27: 295632.9481 | FM27: 108829.3579 | FN27: 89339.8296 | FO27: 2152294.873 | FP27: 292112.7708 | FQ27: 1172240.267 | FR27: 415507.055 | FS27: 357189.9285 | FT27: 833590.4892 | FU27: 0.1462477362 | FV27: 262217.8479 | FW27: 260049.1827 | FX27: 410046.2779 | FY27: 286723.0774 | FZ27: 749547.1054 | GA27: 296020.6865 | GB27: 106134.3959 | GC27: 286674.2578 | GD27: 2020551.553 | GE27: 2008056.409 | GF27: 423732.4329 | GG27: 1771350.429 | GH27: 296764.0721 | GI27: 106560.6489 | GJ27: 861186.5691 | GK27: 470708.2047 | GL27: 345074.7537 | GM27: 1833986.62 | GN27: 479220.0383 | GO27: 299825.3533 | GP27: 539391.2475 | GQ27: 2186903.436 | GR27: 2159482.562 | GS27: 991694.1906 | GT27: 83084023.92 | GU27: 10196310.13 | GV27: 10422697.34 | GW27: 31119283.69 | GX27: 18248130.66 | GY27: 3484347.126 | GZ27: 2847648.062 | HA27: 2896318.355 | HB27: 19585.38686 | HC27: 1672951.016 | HD27: 1334749.728 | HE27: 3977874.579 | HF27: 181036.6231 | HG27: 65916.78737 | HH27: 7989714.411 | HI27: 2800244.075 | HJ27: 342754.4618 | HK27: 366837.7351 | HL27: 190051.2178 | HM27: 240539.9202 | HN27: 299219.6108 | HO27: 270063.4934 | HP27: 12391.71411 | HQ27: 189867.9294 | HR27: 185963.4149 | HS27: 331939.1341 | HT27: 218869.388 | HU27: 85638.35526 | HV27: 302350.0104 | HW27: 256040.6113 | HX27: 169049.2778 | HY27: 362777.7363 | HZ27: 276290.65 | IA27: 356410.566 | IB27: 93994.51816 | IC27: 5817845.685 | ID27: 13228661.22 | IE27: 379168.3651 | IF27: 2067169.089 | IG27: 884670.6519 | IH27: 899146.6241 | II27: 522561.6926 | IJ27: 654622.4312 | IK27: 559105.9596 | IL27: 701146.8685 | IM27: 1034958.115 | IN27: 6647954.12 | IO27: 292135.0283 | IP27: 1249087.964 | IQ27: 339739.1794 | IR27: 266849.192 | IS27: 313053.4454 | IT27: 257236.1996 | IU27: 9736091.744 | IV27: 16042921.85 | IW27: 38233.23829 | IX27: 2927494.078 | IY27: 883422499
A28: =+MATCH(B28,RUT[EMPRESA],0) -> 119 | B28: ENLASA | C28: 17970412.79 | D28: 17970412.79 | F28: =IFERROR(INDEX($B$9:$B$511,MATCH(0,INDEX(COUNTIF($F$8:F27,$B$9:$B$511),0,0),0)),"") -> ENLASA | H28: 17970412.79 | J28: AGUAS DEL MELADO | K28: 5604308.442 | L28: 572551.8295 | M28: 981277.9916 | N28: 21362035.41 | O28: 8866953.302 | P28: 2162268.519 | Q28: 36383.87551 | R28: 53251.10105 | S28: 259441.6395 | T28: 404728.7711 | U28: 308911.9923 | V28: 128218.3616 | W28: 208502.4967 | X28: 183458.6872 | Y28: 121330.5372 | Z28: 528704.4618 | AA28: 1330826.076 | AB28: 11229525.03 | AC28: 140466.1771 | AD28: 13668.71232 | AE28: 75613.30435 | AF28: 717156.7842 | AG28: 46797.30695 | AH28: 957960.8853 | AI28: 54229.40595 | AJ28: 530657.0228 | AK28: 2291558.743 | AL28: 1513400.54 | AM28: 13778.7407 | AN28: 178529.3663 | AO28: 3455312.048 | AP28: 1187313.215 | AQ28: 123333.4198 | AR28: 6336330.918 | AS28: 155147.9321 | AT28: 308943.2005 | AU28: 234252.3552 | AV28: 3454885.898 | AW28: 2970200.155 | AX28: 12719.79159 | AY28: 746.0182242 | AZ28: 138356.378 | BA28: 664500.4183 | BB28: 1377.755629 | BC28: 1834196.158 | BD28: 579343.7692 | BE28: 11076.57761 | BF28: 48242.20071 | BG28: 996545.0257 | BH28: 391768.2048 | BI28: 30257.17103 | BJ28: 55500.07994 | BK28: 5524404.583 | BL28: 114135.9607 | BM28: 3127011.531 | BN28: 1428844.471 | BO28: 410484.9833 | BP28: 2092.137395 | BQ28: 3317442.592 | BR28: 267417.4595 | BS28: 38708.62658 | BT28: 321650.1547 | BU28: 1837084.014 | BV28: 91692.47232 | BW28: 85847.81226 | BX28: 98537.0221 | BY28: 1529951.454 | BZ28: 6523664.449 | CA28: 532143.8185 | CB28: 42491.8567 | CC28: 205184.7698 | CD28: 100139.9507 | CE28: 2221485.896 | CF28: 1035296.202 | CG28: 32771.33998 | CH28: 368219.9229 | CI28: 563117.434 | CJ28: 260832.9125 | CK28: 38744.35138 | CL28: 460433.9602 | CM28: 1980293.388 | CN28: 5472.278989 | CO28: 407205.6477 | CP28: 130403.062 | CQ28: 191192.5888 | CR28: 23881.5636 | CS28: 438979.0047 | CT28: 83693.80804 | CU28: 2270663.057 | CV28: 402458.4835 | CW28: 133614.5676 | CX28: 81923.91445 | CY28: 82477.48825 | CZ28: 155097.5998 | DA28: 3396.138836 | DB28: 52956.50584 | DC28: 401928.8795 | DD28: 39084.89637 | DE28: 396013.2838 | DF28: 400.906846 | DG28: 1596428.713 | DH28: 5071.765205 | DI28: 348108.7954 | DJ28: 71616.03102 | DK28: 4808442.794 | DL28: 124993.7559 | DM28: 731531.8344 | DN28: 810474.4719 | DO28: 5442.120109 | DP28: 288829.0305 | DQ28: 105657.3512 | DR28: 101013.7531 | DS28: 39881.48175 | DT28: 108265.9474 | DU28: 300121.9504 | DV28: 1383023.189 | DW28: 520781.0176 | DX28: 280692.2723 | DY28: 124827.5561 | DZ28: 1459472.49 | EA28: 87160.59022 | EB28: 166800.8849 | EC28: 332938.0247 | ED28: 218638.3637 | EE28: 6830341.543 | EF28: 5533.262219 | EG28: 9683.400407 | EH28: 104658.2039 | EI28: 121150.6571 | EJ28: 713838.8818 | EK28: 189415.4907 | EL28: 91570.29366 | EM28: 41853.96251 | EN28: 93252.03623 | EO28: 119355.6264 | EP28: 118054.1599 | EQ28: 102774.6629 | ER28: 263675.3783 | ES28: 101355.958 | ET28: 285502.2057 | EU28: 83363.08355 | EV28: 75937.11086 | EW28: 80164.17376 | EX28: 404340.9928 | EY28: 121034.0633 | EZ28: 89890.69651 | FA28: 95879.22952 | FB28: 94213.1292 | FC28: 86536.56609 | FD28: 110806.964 | FE28: 726364.584 | FF28: 78555.73679 | FG28: 81392.62391 | FH28: 78794.01479 | FI28: 88395.80009 | FJ28: 99177.17185 | FK28: 124874.7607 | FL28: 71641.43383 | FM28: 26372.87655 | FN28: 21649.9329 | FO28: 521570.7238 | FP28: 70788.38091 | FQ28: 284071.7654 | FR28: 100690.8106 | FS28: 86558.68295 | FT28: 202005.9613 | FU28: 0.03544056094 | FV28: 63543.8733 | FW28: 63018.33552 | FX28: 99367.48752 | FY28: 69482.28372 | FZ28: 181639.5287 | GA28: 71735.39539 | GB28: 25719.8 | GC28: 69470.45314 | GD28: 489645.0524 | GE28: 486617.0746 | GF28: 102684.0859 | GG28: 429255.5528 | GH28: 71915.54178 | GI28: 25823.09492 | GJ28: 208693.3848 | GK28: 114067.8362 | GL28: 83622.7839 | GM28: 444434.3294 | GN28: 116130.529 | GO28: 72657.38932 | GP28: 130711.9609 | GQ28: 529957.499 | GR28: 523312.5335 | GS28: 240319.6064 | GT28: 20133948.67 | GU28: 2470896.03 | GV28: 2525756.979 | GW28: 7541209.861 | GX28: 4422112.803 | GY28: 844370.107 | GZ28: 690077.312 | HA28: 701871.6996 | HB28: 4746.173272 | HC28: 405410.1895 | HD28: 323453.0689 | HE28: 963967.7859 | HF28: 43871.03445 | HG28: 15973.7715 | HH28: 1936166.452 | HI28: 678589.7914 | HJ28: 83060.50206 | HK28: 88896.65883 | HL28: 46055.56257 | HM28: 58290.60964 | HN28: 72510.5983 | HO28: 65445.12719 | HP28: 3002.913484 | HQ28: 46011.14588 | HR28: 45064.95561 | HS28: 80439.59804 | HT28: 53039.13814 | HU28: 20752.94584 | HV28: 73269.19548 | HW28: 62046.92891 | HX28: 40966.11262 | HY28: 87912.78967 | HZ28: 66954.16883 | IA28: 86369.8182 | IB28: 22777.91463 | IC28: 1409852.35 | ID28: 3205732.864 | IE28: 91884.76965 | IF28: 500941.9906 | IG28: 214384.3383 | IH28: 217892.335 | II28: 126633.615 | IJ28: 158636.2071 | IK28: 135489.4739 | IL28: 169910.5844 | IM28: 250803.8558 | IN28: 1611014.497 | IO28: 70793.77461 | IP28: 302694.4503 | IQ28: 82329.8015 | IR28: 64666.19791 | IS28: 75862.98426 | IT28: 62336.65865 | IU28: 2359370.215 | IV28: 3887719.321 | IW28: 9265.15136 | IX28: 709426.5867 | IY28: 214081870.5
A29: =+MATCH(B29,RUT[EMPRESA],0) -> 241 | B29: PARQUE_EOLICO_LEBU | C29: 29222615.92 | D29: 29222615.92 | F29: =IFERROR(INDEX($B$9:$B$511,MATCH(0,INDEX(COUNTIF($F$8:F28,$B$9:$B$511),0,0),0)),"") -> PARQUE_EOLICO_LEBU | H29: 29222615.92 | J29: ENORCHILE | K29: =$IY29*K$67/$IY$67 -> 12377503.89 | L29: 1264520.425 | M29: 2167220.502 | N29: 47179536.79 | O29: 19583281.35 | P29: 4775519.99 | Q29: 80356.3125 | R29: 117608.75 | S29: 572994.8548 | T29: 893871.5615 | U29: =$IY29*U$67/$IY$67 -> 682253.5599 | V29: 283179.1443 | W29: 460492.225 | X29: 405181.2346 | Y29: 267966.9064 | Z29: 1167680.473 | AA29: 2939221.689 | AB29: 24801184.86 | AC29: 310229.2943 | AD29: 30188.29917 | AE29: =$IY29*AE$67/$IY$67 -> 166997.2269 | AF29: 1583890.497 | AG29: 103355.0981 | AH29: 2115723.056 | AI29: 119769.4042 | AJ29: 1171992.839 | AK29: 5061066.417 | AL29: 3342450.057 | AM29: 30431.30447 | AN29: 394294.4875 | AO29: =$IY29*AO$67/$IY$67 -> 7631296.306 | AP29: 2622263.582 | AQ29: 272390.4116 | AR29: 13994226.3 | AS29: 342654.9686 | AT29: 682322.4854 | AU29: 517362.5733 | AV29: 7630355.124 | AW29: 6559893.044 | AX29: 28092.54193 | AY29: =$IY29*AY$67/$IY$67 -> 1647.632989 | AZ29: 305569.6568 | BA29: 1467595.261 | BB29: 3042.868863 | BC29: 4050949.429 | BD29: 1279520.895 | BE29: 24463.38988 | BF29: 106546.2462 | BG29: 2200938.806 | BH29: 865247.2518 | BI29: =$IY29*BI$67/$IY$67 -> 66825.06074 | BJ29: 122575.7758 | BK29: 12201030.67 | BL29: 252077.1853 | BM29: 6906221.844 | BN29: 3155702.113 | BO29: 906584.5552 | BP29: 4620.63054 | BQ29: 7326802.049 | BR29: 590610.0063 | BS29: =$IY29*BS$67/$IY$67 -> 85490.68649 | BT29: 710386.675 | BU29: 4057327.458 | BV29: 202509.1846 | BW29: 189600.8474 | BX29: 217625.8475 | BY29: 3379003.898 | BZ29: 14407965.39 | CA29: 1175276.531 | CB29: 93846.2126 | CC29: =$IY29*CC$67/$IY$67 -> 453164.7949 | CD29: 221166.0264 | CE29: 4906305.675 | CF29: 2286523.467 | CG29: 72377.77725 | CH29: 813239.2381 | CI29: 1243683.909 | CJ29: 576067.5777 | CK29: 85569.58718 | CL29: 1016900.335 | CM29: =$IY29*CM$67/$IY$67 -> 4373615.294 | CN29: 12085.90768 | CO29: 899341.9152 | CP29: 288004.2066 | CQ29: 422262.0928 | CR29: 52744.08956 | CS29: 969515.5777 | CT29: 184843.5798 | CU29: 5014916.846 | CV29: 888857.4739 | CW29: =$IY29*CW$67/$IY$67 -> 295097.0396 | CX29: 180934.647 | CY29: 182157.2531 | CZ29: 342543.8062 | DA29: 7500.608163 | DB29: 116958.116 | DC29: 887687.8067 | DD29: 86321.70442 | DE29: 874622.8032 | DF29: 885.4305747 | DG29: =$IY29*DG$67/$IY$67 -> 3525823.534 | DH29: 11201.34521 | DI29: 768822.4181 | DJ29: 158168.9715 | DK29: 10619779.41 | DL29: 276057.3791 | DM29: 1615638.793 | DN29: 1789989.083 | DO29: 12019.2997 | DP29: 637898.946 | DQ29: =$IY29*DQ$67/$IY$67 -> 233351.588 | DR29: 223095.8797 | DS29: 88081.01848 | DT29: 239112.8538 | DU29: 662840.1428 | DV29: 3054502.635 | DW29: 1150180.997 | DX29: 619928.3512 | DY29: 275690.3153 | DZ29: 3223346.219 | EA29: =$IY29*EA$67/$IY$67 -> 192500.2086 | EB29: 368391.3229 | EC29: 735316.7189 | ED29: 482877.9901 | EE29: 15085283.02 | EF29: 12220.59338 | EG29: 21386.4614 | EH29: 231144.902 | EI29: 267569.6287 | EJ29: 1576562.68 | EK29: =$IY29*EK$67/$IY$67 -> 418337.2483 | EL29: 202239.3445 | EM29: 92437.37903 | EN29: 205953.5896 | EO29: 263605.1791 | EP29: 260730.8 | EQ29: 226984.971 | ER29: 582345.3606 | ES29: 223851.6629 | ET29: 630551.4227 | EU29: =$IY29*EU$67/$IY$67 -> 184113.1518 | EV29: 167712.3761 | EW29: 177048.1376 | EX29: 893015.1261 | EY29: 267312.1233 | EZ29: 198529.8377 | FA29: 211755.9282 | FB29: 208076.2301 | FC29: 191122.0081 | FD29: 244724.8653 | FE29: =$IY29*FE$67/$IY$67 -> 1604226.562 | FF29: 173495.793 | FG29: 179761.255 | FH29: 174022.0465 | FI29: 195228.2553 | FJ29: 219039.6626 | FK29: 275794.5698 | FL29: 158225.0754 | FM29: 58246.32697 | FN29: 47815.37837 | FO29: =$IY29*FO$67/$IY$67 -> 1151925.118 | FP29: 156341.0488 | FQ29: 627392.1961 | FR29: 222382.6387 | FS29: 191170.8547 | FT29: 446144.1759 | FU29: 0.07827293686 | FV29: 140341.0513 | FW29: 139180.3647 | FX29: 219459.9879 | FY29: =$IY29*FY$67/$IY$67 -> 153456.4426 | FZ29: 401163.4969 | GA29: 158432.596 | GB29: 56803.96213 | GC29: 153430.314 | GD29: 1081415.058 | GE29: 1074727.559 | GF29: 226784.9256 | GG29: 948040.6598 | GH29: 158830.4618 | GI29: =$IY29*GI$67/$IY$67 -> 57032.09612 | GJ29: 460913.8145 | GK29: 251926.7275 | GL29: 184686.718 | GM29: 981564.0408 | GN29: 256482.3277 | GO29: 160468.8836 | GP29: 288686.4314 | GQ29: 1170447.892 | GR29: 1155772.025 | GS29: =$IY29*GS$67/$IY$67 -> 530762.5184 | GT29: 44467222.05 | GU29: 5457145.254 | GV29: 5578309.465 | GW29: 16655285.01 | GX29: 9766542.827 | GY29: 1864849.944 | GZ29: 1524083.605 | HA29: 1550132.328 | HB29: 10482.25285 | HC29: =$IY29*HC$67/$IY$67 -> 895376.5212 | HD29: 714368.5361 | HE29: 2128989.712 | HF29: 96892.22231 | HG29: 35279.18224 | HH29: 4276157.895 | HI29: 1498712.619 | HJ29: 183444.8796 | HK29: 196334.4366 | HL29: 101716.9042 | HM29: =$IY29*HM$67/$IY$67 -> 128738.8542 | HN29: 160144.6854 | HO29: 144540.1024 | HP29: 6632.1427 | HQ29: 101618.8068 | HR29: 99529.08001 | HS29: 177656.4313 | HT29: 117140.6152 | HU29: 45834.32024 | HV29: 161820.0999 | HW29: =$IY29*HW$67/$IY$67 -> 137034.9458 | HX29: 90476.50097 | HY29: 194161.4933 | HZ29: 147872.9256 | IA29: 190753.7338 | IB29: 50306.60424 | IC29: 3113756.697 | ID29: 7080083.368 | IE29: 202933.8866 | IF29: 1106365.13 | IG29: =$IY29*IG$67/$IY$67 -> 473482.6801 | IH29: 481230.3341 | II29: 279679.1215 | IJ29: 350359.0658 | IK29: 299237.9001 | IL29: 375259.31 | IM29: 553917.7104 | IN29: 3558037.25 | IO29: 156352.9612 | IP29: 668521.6872 | IQ29: =$IY29*IQ$67/$IY$67 -> 181831.0767 | IR29: 142819.7831 | IS29: 167548.6623 | IT29: 137674.8341 | IU29: 5210832.757 | IV29: 8586297.757 | IW29: 20462.72937 | IX29: 1566817.82 | IY29: 472814658.8
A30: =+MATCH(B30,RUT[EMPRESA],0) -> 234 | B30: ORAFTI | C30: 25712606.98 | D30: 25712606.98 | F30: =IFERROR(INDEX($B$9:$B$511,MATCH(0,INDEX(COUNTIF($F$8:F29,$B$9:$B$511),0,0),0)),"") -> ORAFTI | H30: 25712606.98 | J30: ALBA | K30: 102452.3854 | L30: 10466.82232 | M30: 17938.74696 | N30: 390519.4563 | O30: 162096.8094 | P30: 39528.43959 | Q30: 665.1337762 | R30: 973.4835951 | S30: 4742.853668 | T30: 7398.848312 | U30: 5647.221388 | V30: 2343.96039 | W30: 3811.634991 | X30: 3353.809007 | Y30: 2218.044044 | Z30: 9665.248419 | AA30: 24328.8369 | AB30: 205286.9927 | AC30: 2567.862755 | AD30: 249.8777855 | AE30: 1382.287125 | AF30: 13110.34609 | AG30: 855.5017588 | AH30: 17512.48684 | AI30: 991.3679908 | AJ30: 9700.943194 | AK30: 41891.9947 | AL30: 27666.48144 | AM30: 251.8892148 | AN30: 3263.696071 | AO30: 63166.57361 | AP30: 21705.27771 | AQ30: 2254.65875 | AR30: 115834.4913 | AS30: 2836.259979 | AT30: 5647.791906 | AU30: 4282.368259 | AV30: 63158.78316 | AW30: 54298.24112 | AX30: 232.5305619 | AY30: 13.63796219 | AZ30: 2529.29351 | BA30: 12147.73485 | BB30: 25.18675626 | BC30: 33530.94743 | BD30: 10590.9858 | BE30: 202.4909604 | BF30: 881.9158675 | BG30: 18217.84367 | BH30: 7161.916145 | BI30: 553.1314667 | BJ30: 1014.597187 | BK30: 100991.6627 | BL30: 2086.519962 | BM30: 57164.91053 | BN30: 26120.71159 | BO30: 7504.077649 | BP30: 38.24637223 | BQ30: 60646.18152 | BR30: 4888.659665 | BS30: 707.63256 | BT30: 5880.087786 | BU30: 33583.74034 | BV30: 1676.23046 | BW30: 1569.384205 | BX30: 1801.355702 | BY30: 27969.04876 | BZ30: 119259.1363 | CA30: 9728.123311 | CB30: 776.7938053 | CC30: 3750.983611 | CD30: 1830.658846 | CE30: 40610.9927 | CF30: 18926.25409 | CG30: 599.0929996 | CH30: 6731.429909 | CI30: 10294.3521 | CJ30: 4768.287536 | CK30: 708.2856452 | CL30: 8417.1951 | CM30: 36201.75149 | CN30: 100.0387545 | CO30: 7444.128102 | CP30: 2383.898907 | CQ30: 3495.192494 | CR30: 436.5789614 | CS30: 8024.97697 | CT30: 1530.006845 | CU30: 41510.00059 | CV30: 7357.345175 | CW30: 2442.608455 | CX30: 1497.651413 | CY30: 1507.771298 | CZ30: 2835.339854 | DA30: 62.08482789 | DB30: 968.0980988 | DC30: 7347.663482 | DD30: 714.5111497 | DE30: 7239.520452 | DF30: 7.328979682 | DG30: 29184.31979 | DH30: 92.71696036 | DI30: 6363.778305 | DJ30: 1309.212955 | DK30: 87903.16228 | DL30: 2285.011361 | DM30: 13373.13644 | DN30: 14816.28712 | DO30: 99.48741985 | DP30: 5280.084682 | DQ30: 1931.522466 | DR30: 1846.632832 | DS30: 729.0735302 | DT30: 1979.210226 | DU30: 5486.530597 | DV30: 25283.05255 | DW30: 9520.399903 | DX30: 5131.336573 | DY30: 2281.973062 | DZ30: 26680.62254 | EA30: 1593.383105 | EB30: 3049.287655 | EC30: 6086.441385 | ED30: 3996.928816 | EE30: 124865.5015 | EF30: 101.1535891 | EG30: 177.0222822 | EH30: 1913.257051 | EI30: 2214.755655 | EJ30: 13049.6915 | EK30: 3462.705356 | EL30: 1673.996911 | EM30: 765.1324589 | EN30: 1704.740854 | EO30: 2181.940693 | EP30: 2158.148578 | EQ30: 1878.82403 | ER30: 4820.250664 | ES30: 1852.888681 | ET30: 5219.266984 | EU30: 1523.96087 | EV30: 1388.206633 | EW30: 1465.481587 | EX30: 7391.759335 | EY30: 2212.624204 | EZ30: 1643.292189 | FA30: 1752.768585 | FB30: 1722.310598 | FC30: 1581.975317 | FD30: 2025.662561 | FE30: 13278.67392 | FF30: 1436.077744 | FG30: 1487.938889 | FH30: 1440.433705 | FI30: 1615.963981 | FJ30: 1813.058282 | FK30: 2282.836008 | FL30: 1309.677343 | FM30: 482.1226635 | FN30: 395.7825115 | FO30: 9534.836524 | FP30: 1294.082679 | FQ30: 5193.1171 | FR30: 1840.729118 | FS30: 1582.379635 | FT30: 3692.8718 | FU30: 0.0006478890388 | FV30: 1161.645806 | FW30: 1152.038448 | FX30: 1816.537444 | FY30: 1270.205911 | FZ30: 3320.552963 | GA30: 1311.395055 | GB30: 470.1837685 | GC30: 1269.989637 | GD30: 8951.203195 | GE30: 8895.84872 | GF30: 1877.168193 | GG30: 7847.222507 | GH30: 1314.688312 | GI30: 472.0721033 | GJ30: 3815.124617 | GK30: 2085.274578 | GL30: 1528.708453 | GM30: 8124.705784 | GN30: 2122.982674 | GO30: 1328.25003 | GP30: 2389.54589 | GQ30: 9688.155195 | GR30: 9566.678554 | GS30: 4393.283703 | GT30: 368068.7975 | GU30: 45170.46038 | GV30: 46173.37361 | GW30: 137860.8881 | GX30: 80840.66215 | GY30: 15435.93336 | GZ30: 12615.30615 | HA30: 12830.9194 | HB30: 86.7648129 | HC30: 7411.305324 | HD30: 5913.046869 | HE30: 17622.29902 | HF30: 802.0065593 | HG30: 292.0165818 | HH30: 35395.06679 | HI30: 12405.30274 | HJ30: 1518.429376 | HK30: 1625.120182 | HL30: 841.9419268 | HM30: 1065.610872 | HN30: 1325.566543 | HO30: 1196.402637 | HP30: 54.89627362 | HQ30: 841.1299451 | HR30: 823.8326369 | HS30: 1470.516619 | HT30: 969.6087002 | HU30: 379.3846874 | HV30: 1339.434461 | HW30: 1134.28016 | HX30: 748.9016715 | HY30: 1607.134066 | HZ30: 1223.989433 | IA30: 1578.926998 | IB30: 416.40315 | IC30: 25773.51655 | ID30: 58604.01554 | IE30: 1679.745848 | IF30: 9157.722569 | IG30: 3919.160961 | IH30: 3983.290663 | II30: 2314.989631 | IJ30: 2900.029148 | IK30: 2476.883624 | IL30: 3106.136085 | IM30: 4584.946309 | IN30: 29450.96257 | IO30: 1294.181282 | IP30: 5533.558477 | IQ30: 1505.071436 | IR30: 1182.163027 | IS30: 1386.851524 | IT30: 1139.57671 | IU30: 43131.65651 | IV30: 71071.41272 | IW30: 169.3762697 | IX30: 12969.03032 | IY30: 3913631.545
A31: =+MATCH(B31,RUT[EMPRESA],0) -> 130 | B31: GAS SUR | C31: -3975803.981 | D31: -3975803.981 | F31: =IFERROR(INDEX($B$9:$B$511,MATCH(0,INDEX(COUNTIF($F$8:F30,$B$9:$B$511),0,0),0)),"") -> GAS SUR | G31: -3975803.981 | J31: ALMEYDA | K31: 2057069.254 | L31: 210155.95 | M31: 360179.4597 | N31: 7840964.984 | O31: 3254627.615 | P31: 793663.6849 | Q31: 13354.75241 | R31: 19545.89114 | S31: 95228.41676 | T31: 148556.2617 | U31: 113386.5789 | V31: 47062.729 | W31: 76531.13313 | X31: 67338.7678 | Y31: 44534.54342 | Z31: 194061.7124 | AA31: 488481.5729 | AB31: 4121812.872 | AC31: 51558.30682 | AD31: 5017.11998 | AE31: 27753.96915 | AF31: 263233.401 | AG31: 17177.01699 | AH31: 351620.8832 | AI31: 19904.97932 | AJ31: 194778.4026 | AK31: 841119.8425 | AL31: 555495.7857 | AM31: 5057.50605 | AN31: 65529.45366 | AO31: 1268277.121 | AP31: 435804.9765 | AQ31: 45269.70429 | AR31: 2325759.128 | AS31: 56947.26555 | AT31: 113398.034 | AU31: 85982.65471 | AV31: 1268120.702 | AW31: 1090216.122 | AX31: 4668.8173 | AY31: 273.8270329 | AZ31: 50783.90213 | BA31: 243905.8082 | BB31: 505.7071312 | BC31: 673244.266 | BD31: 212648.941 | BE31: 4065.673309 | BF31: 17707.36726 | BG31: 365783.2459 | BH31: 143799.0677 | BI31: 11105.93696 | BJ31: 20371.38199 | BK31: 2027740.431 | BL31: 41893.76406 | BM31: 1147773.957 | BN31: 524459.3621 | BO31: 150669.0874 | BP31: 767.9219579 | BQ31: 1217671.944 | BR31: 98155.95263 | BS31: 14208.05554 | BT31: 118062.1393 | BU31: 674304.2575 | BV31: 33655.85025 | BW31: 31510.55959 | BX31: 36168.15182 | BY31: 561570.8217 | BZ31: 2394520.163 | CA31: 195324.1331 | CB31: 15596.69545 | CC31: 75313.35681 | CD31: 36756.509 | CE31: 815399.506 | CF31: 380006.9195 | CG31: 12028.76619 | CH31: 135155.6379 | CI31: 206693.042 | CJ31: 95739.08547 | CK31: 14221.16838 | CL31: 169002.9293 | CM31: 726869.4587 | CN31: 2008.607659 | CO31: 149465.4027 | CP31: 47864.62634 | CQ31: 70177.50721 | CR31: 8765.761332 | CS31: 161127.8578 | CT31: 30719.92933 | CU31: 833450.0519 | CV31: 147722.9494 | CW31: 49043.41398 | CX31: 30070.28741 | CY31: 30273.47745 | CZ31: 56928.79101 | DA31: 1246.557511 | DB31: 19437.75956 | DC31: 147528.5575 | DD31: 14346.1659 | DE31: 145357.2299 | DF31: 147.1534187 | DG31: 585971.3924 | DH31: 1861.598514 | DI31: 127773.8204 | DJ31: 26286.76438 | DK31: 1764945.655 | DL31: 45879.13299 | DM31: 268509.7833 | DN31: 297485.7888 | DO31: 1997.5378 | DP31: 106015.0997 | DQ31: 38781.67856 | DR31: 37077.2394 | DS31: 14638.55367 | DT31: 39739.16747 | DU31: 110160.1818 | DV31: 507640.5965 | DW31: 191153.4011 | DX31: 103028.4913 | DY31: 45818.12912 | DZ31: 535701.4195 | EA31: 31992.41658 | EB31: 61224.49815 | EC31: 122205.3678 | ED31: 80251.51726 | EE31: 2507086.419 | EF31: 2030.991639 | EG31: 3554.305667 | EH31: 38414.94016 | EI31: 44468.51817 | EJ31: 262015.5603 | EK31: 69525.22086 | EL31: 33611.0044 | EM31: 15362.55549 | EN31: 34228.29036 | EO31: 43809.64967 | EP31: 43331.94457 | EQ31: 37723.5838 | ER31: 96782.41651 | ES31: 37202.84619 | ET31: 104793.984 | EU31: 30598.53645 | EV31: 27872.82278 | EW31: 29424.37213 | EX31: 148413.9271 | EY31: 44425.72227 | EZ31: 32994.50592 | FA31: 35192.60534 | FB31: 34581.06088 | FC31: 31763.36765 | FD31: 40671.85118 | FE31: 266613.1368 | FF31: 28833.99309 | FG31: 29875.27648 | FH31: 28921.45337 | FI31: 32445.80209 | FJ31: 36403.11968 | FK31: 45835.45562 | FL31: 26296.08852 | FM31: 9680.201233 | FN31: 7946.638161 | FO31: 191443.2639 | FP31: 25982.97425 | FQ31: 104268.9389 | FR31: 36958.7029 | FS31: 31771.48568 | FT31: 74146.5707 | FU31: 0.01300850748 | FV31: 23323.86759 | FW31: 23130.96822 | FX31: 36472.97531 | FY31: 25503.56945 | FZ31: 66671.04312 | GA31: 26330.57724 | GB31: 9440.488574 | GC31: 25499.22702 | GD31: 179724.9015 | GE31: 178613.478 | GF31: 37690.33741 | GG31: 157558.8512 | GH31: 26396.70022 | GI31: 9478.403117 | GJ31: 76601.19886 | GK31: 41868.75886 | GL31: 30693.85982 | GM31: 163130.2424 | GN31: 42625.87315 | GO31: 26668.9964 | GP31: 47978.00813 | GQ31: 194521.6414 | GR31: 192082.5975 | GS31: 88209.64775 | GT31: 7390194.027 | GU31: 906945.8447 | GV31: 927082.6328 | GW31: 2768011.63 | GX31: 1623142.691 | GY31: 309927.2291 | GZ31: 253293.8428 | HA31: 257622.9893 | HB31: 1742.08954 | HC31: 148806.3772 | HD31: 118723.9015 | HE31: 353825.7244 | HF31: 16102.92457 | HG31: 5863.195177 | HH31: 710672.605 | HI31: 249077.3323 | HJ31: 30487.47349 | HK31: 32629.64299 | HL31: 16904.75868 | HM31: 21395.64982 | HN31: 26615.11655 | HO31: 24021.7255 | HP31: 1102.223596 | HQ31: 16888.45547 | HR31: 16541.15501 | HS31: 29525.467 | HT31: 19468.08986 | HU31: 7617.397806 | HV31: 26893.56071 | HW31: 22774.41206 | HX31: 15036.66895 | HY31: 32268.51244 | HZ31: 24575.62134 | IA31: 31702.16261 | IB31: 8360.665431 | IC31: 517488.2776 | ID31: 1176668.733 | IE31: 33726.43325 | IF31: 183871.4585 | IG31: 78690.07132 | IH31: 79977.68641 | II31: 46481.04554 | IJ31: 58227.64176 | IK31: 49731.60095 | IL31: 62365.91772 | IM31: 92057.90616 | IN31: 591325.125 | IO31: 25984.95402 | IP31: 111104.4215 | IQ31: 30219.26882 | IR31: 23735.81841 | IS31: 27845.61451 | IT31: 22880.75777 | IU31: 866010.1384 | IV31: 1426992.816 | IW31: 3400.786769 | IX31: 260396.0212 | IY31: 78579050.06
A32: =+MATCH(B32,RUT[EMPRESA],0) -> 246 | B32: PETROPOWER | C32: 0 | D32: 0 | F32: =IFERROR(INDEX($B$9:$B$511,MATCH(0,INDEX(COUNTIF($F$8:F31,$B$9:$B$511),0,0),0)),"") -> PETROPOWER | J32: PUNTA_PALMERAS | K32: 33592.31806 | L32: 3431.885194 | M32: 5881.796611 | N32: 128044.3957 | O32: 53148.66565 | P32: 12960.67348 | Q32: 218.0855553 | R32: 319.1879859 | S32: 1555.097505 | T32: 2425.950989 | U32: 1851.623622 | V32: 768.542993 | W32: 1249.767435 | X32: 1099.654424 | Y32: 727.2572589 | Z32: 3169.063343 | AA32: 7976.993644 | AB32: 67309.95989 | AC32: 841.956603 | AD32: 81.93048911 | AE32: 453.2274046 | AF32: 4298.649699 | AG32: 280.5038366 | AH32: 5742.033488 | AI32: 325.0519617 | AJ32: 3180.767026 | AK32: 13735.64124 | AL32: 9071.348024 | AM32: 82.59000103 | AN32: 1070.107992 | AO32: 20711.19792 | AP32: 7116.775167 | AQ32: 739.2625708 | AR32: 37980.07297 | AS32: 929.959287 | AT32: 1851.810685 | AU32: 1404.112515 | AV32: 20708.64357 | AW32: 17803.42916 | AX32: 76.24264248 | AY32: 4.471645651 | AZ32: 829.3104324 | BA32: 3983.026565 | BB32: 8.258290169 | BC32: 10994.2023 | BD32: 3472.596194 | BE32: 66.39319053 | BF32: 289.1645539 | BG32: 5973.307468 | BH32: 2348.265139 | BI32: 181.3619867 | BJ32: 332.6684028 | BK32: 33113.373 | BL32: 684.1328478 | BM32: 18743.35916 | BN32: 8564.517536 | BO32: 2460.453821 | BP32: 12.54030636 | BQ32: 19884.8061 | BR32: 1602.904702 | BS32: 232.0201519 | BT32: 1927.97638 | BU32: 11011.51215 | BV32: 549.6062049 | BW32: 514.5732153 | BX32: 590.6325502 | BY32: 9170.554476 | BZ32: 39102.95327 | CA32: 3189.678903 | CB32: 254.6968962 | CC32: 1229.880925 | CD32: 600.2405309 | CE32: 13315.62343 | CF32: 6205.582665 | CG32: 196.4319572 | CH32: 2207.116345 | CI32: 3375.335271 | CJ32: 1563.436818 | CK32: 232.2342869 | CL32: 2759.84882 | CM32: 11869.91152 | CN32: 32.80093133 | CO32: 2440.797429 | CP32: 781.6381235 | CQ32: 1146.011559 | CR32: 143.1464897 | CS32: 2631.247459 | CT32: 501.6620782 | CU32: 13610.39215 | CV32: 2412.342848 | CW32: 800.8879419 | CX32: 491.0533065 | CY32: 494.3714371 | CZ32: 929.6575944 | DA32: 20.3565127 | DB32: 317.4221773 | DC32: 2409.168392 | DD32: 234.2755193 | DE32: 2373.710213 | DF32: 2.403042306 | DG32: 9569.020269 | DH32: 30.40024504 | DI32: 2086.569912 | DJ32: 429.2676817 | DK32: 28821.88612 | DL32: 749.2146532 | DM32: 4384.813989 | DN32: 4857.997472 | DO32: 32.62015849 | DP32: 1731.246015 | DQ32: 633.3119211 | DR32: 605.4781171 | DS32: 239.0502653 | DT32: 648.9478906 | DU32: 1798.935965 | DV32: 8289.864012 | DW32: 3121.570086 | DX32: 1682.474151 | DY32: 748.2184488 | DZ32: 8748.102395 | EA32: 522.4420282 | EB32: 999.8072797 | EC32: 1995.636061 | ED32: 1310.52199 | EE32: 40941.18087 | EF32: 33.16646582 | EG32: 58.04246318 | EH32: 627.3230158 | EI32: 726.1790546 | EJ32: 4278.762137 | EK32: 1135.359603 | EL32: 548.8738641 | EM32: 250.8733478 | EN32: 558.954257 | EO32: 715.4196111 | EP32: 707.6185993 | EQ32: 616.0330396 | ER32: 1580.474606 | ES32: 607.529299 | ET32: 1711.304972 | EU32: 499.6797101 | EV32: 455.1683062 | EW32: 480.5053916 | EX32: 2423.626639 | EY32: 725.4801897 | EZ32: 538.8063308 | FA32: 574.7016973 | FB32: 564.7150643 | FC32: 518.7016172 | FD32: 664.1787865 | FE32: 4353.841404 | FF32: 470.8643936 | FG32: 487.8687422 | FH32: 472.2926359 | FI32: 529.8458968 | FJ32: 594.4696185 | FK32: 748.5013937 | FL32: 429.4199466 | FM32: 158.0794609 | FN32: 129.7700581 | FO32: 3126.303598 | FP32: 424.3067331 | FQ32: 1702.730889 | FR32: 603.5423943 | FS32: 518.8341861 | FT32: 1210.827094 | FU32: 0.0002124313121 | FV32: 380.883034 | FW32: 377.7329518 | FX32: 595.6103738 | FY32: 416.4779649 | FZ32: 1088.750358 | GA32: 429.9831537 | GB32: 154.1649092 | GC32: 416.4070522 | GD32: 2934.940592 | GE32: 2916.790843 | GF32: 615.49012 | GG32: 2572.964927 | GH32: 431.0629542 | GI32: 154.7840607 | GJ32: 1250.911621 | GK32: 683.7245083 | GL32: 501.2363583 | GM32: 2663.946766 | GN32: 696.0883235 | GO32: 435.5096007 | GP32: 783.489669 | GQ32: 3176.574068 | GR32: 3136.744034 | GS32: 1440.47972 | GT32: 120683.2234 | GU32: 14810.59192 | GV32: 15139.42936 | GW32: 45202.1374 | GX32: 26506.21773 | GY32: 5061.168473 | GZ32: 4136.334892 | HA32: 4207.030647 | HB32: 28.44864157 | HC32: 2430.035422 | HD32: 1938.783078 | HE32: 5778.03895 | HF32: 262.9637105 | HG32: 95.74705219 | HH32: 11605.41393 | HI32: 4067.478502 | HJ32: 497.8660316 | HK32: 532.8480523 | HL32: 276.0578085 | HM32: 349.3948842 | HN32: 434.6297329 | HO32: 392.2791815 | HP32: 17.9995134 | HQ32: 275.7915741 | HR32: 270.1200939 | HS32: 482.1562892 | HT32: 317.9174766 | HU32: 124.3935027 | HV32: 439.176777 | HW32: 371.9103244 | HX32: 245.5515608 | HY32: 526.9507243 | HZ32: 401.3244022 | IA32: 517.7021276 | IB32: 136.5311993 | IC32: 8450.678448 | ID32: 19215.21614 | IE32: 550.7588384 | IF32: 3002.654628 | IG32: 1285.023292 | IH32: 1306.050282 | II32: 759.0439955 | IJ32: 950.8680654 | IK32: 812.1261612 | IL32: 1018.44687 | IM32: 1503.322485 | IN32: 9656.447703 | IO32: 424.3390631 | IP32: 1814.355572 | IQ32: 493.4862003 | IR32: 387.6102664 | IS32: 454.7239901 | IT32: 373.6469693 | IU32: 14142.10433 | IV32: 23303.0543 | IW32: 55.53547143 | IX32: 4252.314766 | IY32: 1283210.294
A33: =+MATCH(B33,RUT[EMPRESA],0) -> 336 | B33: ALTO_MANGA_ENERGY | C33: 17005051.46 | D33: 17005051.46 | F33: =IFERROR(INDEX($B$9:$B$511,MATCH(0,INDEX(COUNTIF($F$8:F32,$B$9:$B$511),0,0),0)),"") -> ALTO_MANGA_ENERGY | H33: 17005051.46 | J33: ACCIONA_ENERGIA | K33: 37164328.46 | L33: 3796811.769 | M33: 6507232.42 | N33: 141659887 | O33: 58800183.52 | P33: 14338835.61 | Q33: 241275.4961 | R33: 353128.5672 | S33: 1720457.467 | T33: 2683912.412 | U33: 2048514.436 | V33: 850265.3545 | W33: 1382660.386 | X33: 1216585.236 | Y33: 804589.5372 | Z33: 3506042.981 | AA33: 8825220.436 | AB33: 74467306.88 | AC33: 931485.3378 | AD33: 90642.49756 | AE33: 501420.9528 | AF33: 4755742.936 | AG33: 310330.972 | AH33: 6352607.705 | AI33: 359616.0839 | AJ33: 3518991.165 | AK33: 15196208.89 | AL33: 10035942.05 | AM33: 91372.13811 | AN33: 1183897.01 | AO33: 22913505.42 | AP33: 7873531.364 | AQ33: 817871.4236 | AR33: 42018651.53 | AS33: 1028845.712 | AT33: 2048721.389 | AU33: 1553417.618 | AV33: 22910679.46 | AW33: 19696541.56 | AX33: 84349.83862 | AY33: 4947.134264 | AZ33: 917494.4475 | BA33: 4406558.286 | BB33: 9136.428387 | BC33: 12163261.39 | BD33: 3841851.738 | BE33: 73453.05363 | BF33: 319912.6193 | BG33: 6608474.005 | BH33: 2597965.903 | BI33: 200646.9583 | BJ33: 368042.4127 | BK33: 36634455.18 | BL33: 756879.5288 | BM33: 20736418.21 | BN33: 9475218.179 | BO33: 2722084.072 | BP33: 13873.76911 | BQ33: 21999239.94 | BR33: 1773348.202 | BS33: 256691.8162 | BT33: 2132986.098 | BU33: 12182411.87 | BV33: 608048.1104 | BW33: 569289.9178 | BX33: 653436.957 | BY33: 10145697.54 | BZ33: 43260932.34 | CA33: 3528850.68 | CB33: 281779.8727 | CC33: 1360659.26 | CD33: 664066.5941 | CE33: 14731528.85 | CF33: 6865447.987 | CG33: 217319.3813 | CH33: 2441808.173 | CI33: 3734248.658 | CJ33: 1729683.534 | CK33: 256928.7211 | CL33: 3053314.982 | CM33: 13132088.41 | CN33: 36288.79029 | CO33: 2700337.534 | CP33: 864752.9445 | CQ33: 1267871.717 | CR33: 158367.8491 | CS33: 2911038.906 | CT33: 555005.886 | CU33: 15057641.55 | CV33: 2668857.26 | CW33: 886049.6758 | CX33: 543269.0396 | CY33: 546940.0008 | CZ33: 1028511.939 | DA33: 22521.10506 | DB33: 351174.9929 | DC33: 2665345.252 | DD33: 259187.0061 | DE33: 2626116.657 | DF33: 2658.567753 | DG33: 10586533.85 | DH33: 33632.82908 | DI33: 2308443.538 | DJ33: 474913.4933 | DK33: 31886636.72 | DL33: 828881.7522 | DM33: 4851069.432 | DN33: 5374568.476 | DO33: 36088.79513 | DP33: 1915336.579 | DQ33: 700654.6022 | DR33: 669861.1145 | DS33: 264469.4707 | DT33: 717953.2092 | DU33: 1990224.282 | DV33: 9171359.607 | DW33: 3453499.57 | DX33: 1861378.601 | DY33: 827779.6172 | DZ33: 9678324.377 | EA33: 577995.4542 | EB33: 1106120.931 | EC33: 2207840.313 | ED33: 1449875.224 | EE33: 45294626.3 | EF33: 36693.19358 | EG33: 64214.35883 | EH33: 694028.8718 | EI33: 803396.6829 | EJ33: 4733740.647 | EK33: 1256087.095 | EL33: 607237.8967 | EM33: 277549.7505 | EN33: 618390.1796 | EO33: 791493.1432 | EP33: 782862.6174 | EQ33: 681538.3856 | ER33: 1748533.02 | ES33: 672130.4071 | ET33: 1893275.122 | EU33: 552812.7244 | EV33: 503568.2385 | EW33: 531599.5212 | EX33: 2681340.904 | EY33: 802623.5048 | EZ33: 596099.8409 | FA33: 635812.1105 | FB33: 624763.5574 | FC33: 573857.3098 | FD33: 734803.6693 | FE33: 4816803.404 | FF33: 520933.3559 | FG33: 539745.8474 | FH33: 522513.4691 | FI33: 586186.6068 | FJ33: 657682.0366 | FK33: 828092.6488 | FL33: 475081.9491 | FM33: 174888.7051 | FN33: 143569.0462 | FO33: 3458736.416 | FP33: 469425.0265 | FQ33: 1883789.321 | FR33: 667719.5583 | FS33: 574003.9752 | FT33: 1339579.356 | FU33: 0.2350200138 | FV33: 421383.9055 | FW33: 417898.8619 | FX33: 658944.0932 | FY33: 460763.7928 | FZ33: 1204521.695 | GA33: 475705.0444 | GB33: 170557.9029 | GC33: 460685.3397 | GD33: 3247024.989 | GE33: 3226945.301 | GF33: 680937.7351 | GG33: 2846558.95 | GH33: 476899.6645 | GI33: 171242.8913 | GJ33: 1383926.238 | GK33: 756427.7688 | GL33: 554534.8975 | GM33: 2947215.266 | GN33: 770106.2796 | GO33: 481819.1414 | GP33: 866801.3725 | GQ33: 3514352.353 | GR33: 3470287.027 | GS33: 1593651.898 | GT33: 133515970.6 | GU33: 16385463.54 | GV33: 16749267.63 | GW33: 50008668 | GX33: 29324733.71 | GY33: 5599343.491 | GZ33: 4576168.523 | HA33: 4654381.651 | HB33: 31473.70353 | HC33: 2688431.159 | HD33: 2144941.917 | HE33: 6392441.777 | HF33: 290925.7317 | HG33: 105928.233 | HH33: 12839465.69 | HI33: 4499990.348 | HJ33: 550806.19 | HK33: 589507.994 | HL33: 305412.1793 | HM33: 386547.4902 | HN33: 480845.7136 | HO33: 433991.8525 | HP33: 19913.47625 | HQ33: 305117.6351 | HR33: 298843.0829 | HS33: 533425.9656 | HT33: 351722.9595 | HU33: 137620.7794 | HV33: 485876.2637 | HW33: 411457.0905 | HX33: 271662.0758 | HY33: 582983.5786 | HZ33: 443998.8891 | IA33: 572751.5403 | IB33: 151049.1276 | IC33: 9349274.109 | ID33: 21258449.7 | IE33: 609323.3081 | IF33: 3321939.338 | IG33: 1421665.144 | IH33: 1444928.021 | II33: 839756.2891 | IJ33: 1051977.807 | IK33: 898482.9016 | IL33: 1126742.547 | IM33: 1663176.995 | IN33: 10683257.81 | IO33: 469460.7943 | IP33: 2007283.519 | IQ33: 545960.6331 | IR33: 428826.4724 | IS33: 503076.6765 | IT33: 413378.4 | IU33: 15645892.89 | IV33: 25780964.64 | IW33: 61440.78826 | IX33: 4704481.018 | IY33: 1419659363
A34: =+MATCH(B34,RUT[EMPRESA],0) -> 136 | B34: GENPAC | C34: 74100443.24 | D34: 74100443.24 | F34: =IFERROR(INDEX($B$9:$B$511,MATCH(0,INDEX(COUNTIF($F$8:F33,$B$9:$B$511),0,0),0)),"") -> GENPAC | H34: 74100443.24 | J34: JAVIERA | K34: 7031927.177 | L34: 718401.3534 | M34: 1231244.755 | N34: 26803713.41 | O34: 11125684.92 | P34: 2713076.005 | Q34: 45652.15595 | R34: 66816.06992 | S34: 325530.7474 | T34: 507827.7319 | U34: 387602.9766 | V34: 160880.1854 | W34: 261615.5746 | X34: 230192.2069 | Y34: 152237.7847 | Z34: 663384.4858 | AA34: 1669835.296 | AB34: 14090088.55 | AC34: 176247.9596 | AD34: 17150.62449 | AE34: 94874.72991 | AF34: 899842.3861 | AG34: 58718.26256 | AH34: 1201987.944 | AI34: 68043.58422 | AJ34: 665834.4342 | AK34: 2875301.095 | AL34: 1898918.038 | AM34: 17288.68105 | AN34: 224007.2108 | AO34: 4335504.184 | AP34: 1489764.553 | AQ34: 154750.8735 | AR34: 7950422.081 | AS34: 194669.6852 | AT34: 387642.1347 | AU34: 293924.8473 | AV34: 4334969.478 | AW34: 3726816.86 | AX34: 15959.97956 | AY34: 936.0558719 | AZ34: 173600.719 | BA34: 833772.5517 | BB34: 1728.719494 | BC34: 2301431.826 | BD34: 726923.4443 | BE34: 13898.17993 | BF34: 60531.22268 | BG34: 1250400.852 | BH34: 491565.6436 | BI34: 37964.7597 | BJ34: 69637.94454 | BK34: 6931668.933 | BL34: 143210.491 | BM34: 3923573.728 | BN34: 1792822.499 | BO34: 515050.2581 | BP34: 2625.079965 | BQ34: 4162514.422 | BR34: 335538.2953 | BS34: 48569.10465 | BT34: 403586.0066 | BU34: 2305055.323 | BV34: 115049.8397 | BW34: 107716.3347 | BX34: 123637.9423 | BY34: 1919685.064 | BZ34: 8185476.194 | CA34: 667699.9701 | CB34: 53316.05943 | CC34: 257452.7034 | CD34: 125649.1944 | CE34: 2787378.176 | CF34: 1299023.345 | CG34: 41119.37782 | CH34: 462018.7682 | CI34: 706563.6785 | CJ34: 327276.4277 | CK34: 48613.92984 | CL34: 577723.0343 | CM34: 2484745.27 | CN34: 6866.265078 | CO34: 510935.5579 | CP34: 163621.4075 | CQ34: 239896.2111 | CR34: 29965.05597 | CS34: 550802.7306 | CT34: 105013.6282 | CU34: 2849082.528 | CV34: 504979.1205 | CW34: 167650.9991 | CX34: 102792.8792 | CY34: 103487.4681 | CZ34: 194606.5315 | DA34: 4261.257428 | DB34: 66446.43072 | DC34: 504314.6073 | DD34: 49041.22388 | DE34: 496892.0967 | DF34: 503.0322251 | DG34: 2003096.469 | DH34: 6363.726043 | DI34: 436784.6138 | DJ34: 89859.20744 | DK34: 6033325.951 | DL34: 156834.1569 | DM34: 917879.2781 | DN34: 1016931.442 | DO34: 6828.423647 | DP34: 362404.1628 | DQ34: 132572.075 | DR34: 126745.5857 | DS34: 50040.72818 | DT34: 135845.1745 | DU34: 376573.7952 | DV34: 1735328.891 | DW34: 653442.6556 | DX34: 352194.68 | DY34: 156625.62 | DZ34: 1831252.576 | EA34: 109363.5244 | EB34: 209291.0638 | EC34: 417749.3028 | ED34: 274333.411 | EE34: 8570274.962 | EF34: 6942.782928 | EG34: 12150.11044 | EH34: 131318.409 | EI34: 152012.0826 | EJ34: 895679.2947 | EK34: 237666.4223 | EL34: 114896.5378 | EM34: 52515.67066 | EN34: 117006.6806 | EO34: 149759.7932 | EP34: 148126.7964 | EQ34: 128955.0624 | ER34: 330842.9716 | ES34: 127174.9624 | ET34: 358229.8762 | EU34: 104598.6563 | EV34: 95281.02158 | EW34: 100584.8693 | EX34: 507341.1725 | EY34: 151865.7883 | EZ34: 112789.0869 | FA34: 120303.1144 | FB34: 118212.5985 | FC34: 108580.5389 | FD34: 139033.4793 | FE34: 911395.7434 | FF34: 98566.70562 | FG34: 102126.2498 | FH34: 98865.68159 | FI34: 110913.3866 | FJ34: 124441.1612 | FK34: 156684.8493 | FL34: 89891.08125 | FM34: 33090.99584 | FN34: 27164.94874 | FO34: 654433.5283 | FP34: 88820.7251 | FQ34: 356435.0514 | FR34: 126340.3781 | FS34: 108608.2897 | FT34: 253464.1381 | FU34: 0.04446854527 | FV34: 79730.78109 | FW34: 79071.36995 | FX34: 124679.9571 | FY34: 87181.91802 | FZ34: 227909.6433 | GA34: 90008.9782 | GB34: 32271.55723 | GC34: 87167.07377 | GD34: 614375.2412 | GE34: 610575.9286 | GF34: 128841.4123 | GG34: 538602.3661 | GH34: 90235.01435 | GI34: 32401.16507 | GJ34: 261855.0887 | GK34: 143125.0128 | GL34: 104924.5117 | GM34: 557647.7226 | GN34: 145713.1476 | GO34: 91165.83712 | GP34: 164008.9941 | GQ34: 664956.7164 | GR34: 656619.0395 | GS34: 301537.6454 | GT34: 25262788.85 | GU34: 3100322.033 | GV34: 3169158.037 | GW34: 9462226.984 | GX34: 5548583.83 | GY34: 1059461.513 | GZ34: 865864.7993 | HA34: 880663.6412 | HB34: 5955.194144 | HC34: 508682.732 | HD34: 405848.1879 | HE34: 1209525.018 | HF34: 55046.5633 | HG34: 20042.86507 | HH34: 2429377.618 | HI34: 851450.9945 | HJ34: 104218.9965 | HK34: 111541.8321 | HL34: 57787.56923 | HM34: 73139.32242 | HN34: 90981.65315 | HO34: 82116.35267 | HP34: 3767.863449 | HQ34: 57731.83801 | HR34: 56544.61909 | HS34: 100930.454 | HT34: 66550.11243 | HU34: 26039.46685 | HV34: 91933.49228 | HW34: 77852.51118 | HX34: 51401.6535 | HY34: 110307.3361 | HZ34: 84009.80144 | IA34: 108371.3143 | IB34: 28580.26794 | IC34: 1768992.403 | ID34: 4022348.214 | IE34: 115291.1221 | IF34: 628549.9156 | IG34: 268995.7326 | IH34: 273397.3421 | II34: 158891.7469 | IJ34: 199046.5492 | IK34: 170003.5113 | IL34: 213192.9155 | IM34: 314692.6098 | IN34: 2021397.776 | IO34: 88827.49278 | IP34: 379801.6032 | IQ34: 103302.1602 | IR34: 81139.00211 | IS34: 95188.01227 | IT34: 78216.04549 | IU34: 2960386.586 | IV34: 4878061.126 | IW34: 11625.31833 | IX34: 890143.0295 | IY34: 268616215.3
A35: =+MATCH(B35,RUT[EMPRESA],0) -> 229 | B35: NORVIND | C35: -68913520.96 | D35: -68913520.96 | F35: =IFERROR(INDEX($B$9:$B$511,MATCH(0,INDEX(COUNTIF($F$8:F34,$B$9:$B$511),0,0),0)),"") -> NORVIND | G35: -68913520.96 | J35: LOS_GUINDOS | K35: 111723.9023 | L35: 11414.02643 | M35: 19562.12932 | N35: 425859.8509 | O35: 176765.8998 | P35: 43105.59978 | Q35: 725.3256303 | R35: 1061.579832 | S35: 5172.062297 | T35: 8068.413464 | U35: 6158.271552 | V35: 2556.079105 | W35: 4156.572183 | X35: 3657.314842 | Y35: 2418.767851 | Z35: 10539.9134 | AA35: 26530.49596 | AB35: 223864.616 | AC35: 2800.243707 | AD35: 272.490691 | AE35: 1507.378389 | AF35: 14296.77815 | AG35: 932.9211275 | AH35: 19097.29443 | AI35: 1081.082691 | AJ35: 10578.83841 | AK35: 45683.04685 | AL35: 30170.18351 | AM35: 274.6841462 | AN35: 3559.047059 | AO35: 68882.88711 | AP35: 23669.51551 | AQ35: 2458.696036 | AR35: 126317.0334 | AS35: 3092.929769 | AT35: 6158.8937 | AU35: 4669.904864 | AV35: 68874.39166 | AW35: 59212.00722 | AX35: 253.5736154 | AY35: 14.87214133 | AZ35: 2758.184105 | BA35: 13247.05458 | BB35: 27.46605347 | BC35: 36565.35941 | BD35: 11549.42619 | BE35: 220.8155543 | BF35: 961.7256037 | BG35: 19866.48313 | BH35: 7810.039917 | BI35: 603.1875753 | BJ35: 1106.414034 | BK35: 110130.9902 | BL35: 2275.341384 | BM35: 62338.09835 | BN35: 28484.52789 | BO35: 8183.165621 | BP35: 41.70751064 | BQ35: 66134.40996 | BR35: 5331.063133 | BS35: 771.6703782 | BT35: 6412.211396 | BU35: 36622.92985 | BV35: 1827.922379 | BW35: 1711.406981 | BX35: 1964.370938 | BY35: 30500.13192 | BZ35: 130051.5946 | CA35: 10608.47821 | CB35: 847.0904299 | CC35: 4090.432105 | CD35: 1996.325895 | CE35: 44286.11947 | CF35: 20639.00176 | CG35: 653.3084367 | CH35: 7340.596458 | CI35: 11225.94837 | CJ35: 5199.797824 | CK35: 772.3825648 | CL35: 9178.916423 | CM35: 39477.86018 | CN35: 109.0918477 | CO35: 8117.790888 | CP35: 2599.631892 | CQ35: 3811.49295 | CR35: 476.0875507 | CS35: 8751.204175 | CT35: 1668.466133 | CU35: 45266.48385 | CV35: 8023.154465 | CW35: 2663.654411 | CX35: 1633.182668 | CY35: 1644.218361 | CZ35: 3091.926376 | DA35: 67.70324787 | DB35: 1055.70697 | DC35: 8012.596619 | DD35: 779.1714517 | DE35: 7894.667092 | DF35: 7.992222013 | DG35: 31825.37995 | DH35: 101.1074616 | DI35: 6939.673905 | DJ35: 1427.691309 | DK35: 95858.03468 | DL35: 2491.795433 | DM35: 14583.34994 | DN35: 16157.09979 | DO35: 108.4906196 | DP35: 5757.910494 | DQ35: 2106.317256 | DR35: 2013.745461 | DS35: 795.0516674 | DT35: 2158.32056 | DU35: 5983.03891 | DV35: 27571.06417 | DW35: 10381.95669 | DX35: 5595.701297 | DY35: 2488.48218 | DZ35: 29095.10846 | EA35: 1737.577681 | EB35: 3325.235568 | EC35: 6637.239141 | ED35: 4358.634332 | EE35: 136165.3127 | EF35: 110.3075703 | EG35: 193.0420662 | EH35: 2086.398897 | EI35: 2415.181876 | EJ35: 14230.63458 | EK35: 3776.06586 | EL35: 1825.486704 | EM35: 834.37378 | EN35: 1859.012846 | EO35: 2379.397295 | EP35: 2353.452093 | EQ35: 2048.849829 | ER35: 5256.463401 | ES35: 2020.567438 | ET35: 5691.589047 | EU35: 1661.873021 | EV35: 1513.833588 | EW35: 1598.101605 | EX35: 8060.682964 | EY35: 2412.857538 | EZ35: 1792.003331 | FA35: 1911.386888 | FB35: 1878.17258 | FC35: 1725.137536 | FD35: 2208.976639 | FE35: 14480.33895 | FF35: 1566.036837 | FG35: 1622.5912 | FH35: 1570.786994 | FI35: 1762.202034 | FJ35: 1977.132553 | FK35: 2489.42322 | FL35: 1428.197723 | FM35: 525.7527692 | FN35: 431.5991908 | FO35: 10397.69977 | FP35: 1411.191806 | FQ35: 5663.072705 | FR35: 2007.307486 | FS35: 1725.578444 | FT35: 4027.061415 | FU35: 0.0007065203155 | FV35: 1266.769944 | FW35: 1256.29316 | FX35: 1980.926565 | FY35: 1385.15429 | FZ35: 3621.049264 | GA35: 1430.07088 | GB35: 512.7334537 | GC35: 1384.918443 | GD35: 9761.25004 | GE35: 9700.886214 | GF35: 2047.044146 | GG35: 8557.363668 | GH35: 1433.662163 | GI35: 514.7926749 | GJ35: 4160.377606 | GK35: 2273.983297 | GL35: 1667.050241 | GM35: 8859.958034 | GN35: 2315.10382 | GO35: 1448.451161 | GP35: 2605.789904 | GQ35: 10564.89315 | GR35: 10432.42337 | GS35: 4790.857696 | GT35: 401377.5005 | GU35: 49258.2001 | GV35: 50351.87284 | GW35: 150336.728 | GX35: 88156.40752 | GY35: 16832.82145 | GZ35: 13756.93915 | HA35: 13992.0645 | HB35: 94.61666939 | HC35: 8081.997784 | HD35: 6448.153139 | HE35: 19217.04415 | HF35: 874.5848338 | HG35: 318.4428739 | HH35: 38598.17385 | HI35: 13527.9313 | HJ35: 1655.840951 | HK35: 1772.186833 | HL35: 918.1341868 | HM35: 1162.044246 | HN35: 1445.524829 | HO35: 1304.672124 | HP35: 59.8641592 | HQ35: 917.2487241 | HR35: 898.3860812 | HS35: 1603.592287 | HT35: 1057.354275 | HU35: 413.7174315 | HV35: 1460.647736 | HW35: 1236.92782 | HX35: 816.6741734 | HY35: 1752.573048 | HZ35: 1334.755411 | IA35: 1721.813357 | IB35: 454.0859118 | IC35: 28105.91313 | ID35: 63907.43641 | IE35: 1831.755896 | IF35: 9986.458563 | IG35: 4273.828809 | IH35: 4343.761983 | II35: 2524.486612 | IJ35: 3162.469784 | IK35: 2701.031341 | IL35: 3387.228546 | IM35: 4999.864975 | IN35: 32116.1528 | IO35: 1411.299332 | IP35: 6034.322619 | IQ35: 1641.274173 | IR35: 1289.143889 | IS35: 1512.355847 | IT35: 1242.703687 | IU35: 47034.89292 | IV35: 77503.08144 | IW35: 184.7041212 | IX35: 14142.67389 | IY35: 4267799.003
A36: =+MATCH(B36,RUT[EMPRESA],0) -> 226 | B36: MONTE REDONDO | C36: 186521599.9 | D36: 186521599.9 | F36: =IFERROR(INDEX($B$9:$B$511,MATCH(0,INDEX(COUNTIF($F$8:F35,$B$9:$B$511),0,0),0)),"") -> MONTE REDONDO | H36: 186521599.9 | J36: ERNC1 | K36: 2585507.168 | L36: 264142.6457 | M36: 452705.5046 | N36: 9855220.541 | O36: 4090704.778 | P36: 997546.943 | Q36: 16785.43783 | R36: 24567.01035 | S36: 119691.524 | T36: 186718.6915 | U36: 142514.3135 | V36: 59152.6138 | W36: 96191.11892 | X36: 84637.33851 | Y36: 55974.96583 | Z36: 243913.9797 | AA36: 613966.9851 | AB36: 5180660.157 | AC36: 64803.05491 | AD36: 6305.961573 | AE36: 34883.65111 | AF36: 330855.0957 | AG36: 21589.59911 | AH36: 441948.3262 | AI36: 25018.34423 | AJ36: 244814.7796 | AK36: 1057194.053 | AL36: 698196.394 | AM36: 6356.722369 | AN36: 82363.23196 | AO36: 1594083.224 | AP36: 547758.3646 | AQ36: 56898.98125 | AR36: 2923220.443 | AS36: 71576.37642 | AT36: 142528.7112 | AU36: 108070.6299 | AV36: 1593886.622 | AW36: 1370280.36 | AX36: 5868.183858 | AY36: 344.1701123 | AZ36: 63829.71438 | BA36: 306562.4621 | BB36: 635.6175952 | BC36: 846193.1322 | BD36: 267276.058 | BE36: 5110.098972 | BF36: 22256.1904 | BG36: 459748.8403 | BH36: 180739.4279 | BI36: 13958.92703 | BJ36: 25604.56049 | BK36: 2548644.1 | BL36: 52655.80001 | BM36: 1442624.155 | BN36: 659187.0629 | BO36: 189374.2783 | BP36: 965.1924564 | BQ36: 1530478.147 | BR36: 123371.1109 | BS36: 17857.94492 | BT36: 148390.9726 | BU36: 847525.4236 | BV36: 42301.65896 | BW36: 39605.26731 | BX36: 45459.3425 | BY36: 705832.0383 | BZ36: 3009645.413 | CA36: 245500.7021 | CB36: 19603.31078 | CC36: 94660.50958 | CD36: 46198.84201 | CE36: 1024866.452 | CF36: 477626.4154 | CG36: 15118.82069 | CH36: 169875.5984 | CI36: 259790.1556 | CJ36: 120333.3778 | CK36: 17874.4263 | CL36: 212417.8776 | CM36: 913594.0327 | CN36: 2524.596335 | CO36: 187861.3805 | CP36: 60160.50953 | CQ36: 88205.31809 | CR36: 11017.58665 | CS36: 202519.789 | CT36: 38611.53305 | CU36: 1047553.979 | CV36: 185671.3107 | CW36: 61642.11444 | CX36: 37795.00544 | CY36: 38050.39271 | CZ36: 71553.15598 | DA36: 1566.78409 | DB36: 24431.10098 | DC36: 185426.9817 | DD36: 18031.53427 | DE36: 182697.8644 | DF36: 184.9554739 | DG36: 736500.8407 | DH36: 2339.822197 | DI36: 160597.4751 | DJ36: 33039.53797 | DK36: 2218340.307 | DL36: 57664.96532 | DM36: 337486.9212 | DN36: 373906.5361 | DO36: 2510.682753 | DP36: 133249.1843 | DQ36: 48744.25481 | DR36: 46601.96444 | DS36: 18399.03317 | DT36: 49947.71184 | DU36: 138459.0913 | DV36: 638047.746 | DW36: 240258.5561 | DX36: 129495.3498 | DY36: 57588.29024 | DZ36: 673317.0782 | EA36: 40210.90793 | EB36: 76952.38189 | EC36: 153598.5498 | ED36: 100867.2278 | EE36: 3151128.672 | EF36: 2552.730507 | EG36: 4467.366745 | EH36: 48283.30545 | EI36: 55891.97944 | EJ36: 329324.4054 | EK36: 87385.46673 | EL36: 42245.29272 | EM36: 19309.0229 | EN36: 43021.15249 | EO36: 55063.85505 | EP36: 54463.43289 | EQ36: 47414.34742 | ER36: 121644.7288 | ES36: 46759.83819 | ET36: 131714.3778 | EU36: 38458.95569 | EV36: 35033.0369 | EW36: 36983.1618 | EX36: 186539.7927 | EY36: 55838.18976 | EZ36: 41470.42272 | FA36: 44233.18912 | FB36: 43464.54578 | FC36: 39923.01891 | FD36: 51119.99148 | FE36: 335103.0476 | FF36: 36241.12103 | FG36: 37549.89839 | FH36: 36351.04886 | FI36: 40780.76307 | FJ36: 45754.67096 | FK36: 57610.06772 | FL36: 33051.25737 | FM36: 12166.93586 | FN36: 9988.039967 | FO36: 240622.8813 | FP36: 32657.70757 | FQ36: 131054.4545 | FR36: 46452.97725 | FS36: 39933.22237 | FT36: 93193.98928 | FU36: 0.01635024648 | FV36: 29315.50638 | FW36: 29073.05332 | FX36: 45842.47172 | FY36: 32055.14908 | FZ36: 83798.08289 | GA36: 33094.60585 | GB36: 11865.64372 | GC36: 32049.69113 | GD36: 225894.2037 | GE36: 224497.268 | GF36: 47372.56041 | GG36: 198033.9448 | GH36: 33177.71509 | GI36: 11913.29808 | GJ36: 96279.18375 | GK36: 52624.37126 | GL36: 38578.76657 | GM36: 205036.5636 | GN36: 53575.97968 | GO36: 33519.96109 | GP36: 60303.01783 | GQ36: 244492.0594 | GR36: 241426.4526 | GS36: 110869.7124 | GT36: 9288651.604 | GU36: 1139930.013 | GV36: 1165239.715 | GW36: 3479082.629 | GX36: 2040109.76 | GY36: 389544.0422 | GZ36: 318362.1771 | HA36: 323803.4325 | HB36: 2189.612713 | HC36: 187033.0589 | HD36: 149222.734 | HE36: 444719.5664 | HF36: 20239.58446 | HG36: 7369.383954 | HH36: 893236.3898 | HI36: 313062.4925 | HJ36: 38319.36191 | HK36: 41011.83063 | HL36: 21247.40071 | HM36: 26891.95118 | HN36: 33452.24011 | HO36: 30192.63611 | HP36: 1385.372418 | HQ36: 21226.90939 | HR36: 20790.39135 | HS36: 37110.22679 | HT36: 24469.22279 | HU36: 9574.221474 | HV36: 33802.21343 | HW36: 28624.90191 | HX36: 18899.41978 | HY36: 40557.92971 | HZ36: 30888.82156 | IA36: 39846.09098 | IB36: 10508.42618 | IC36: 650425.1853 | ID36: 1478941.672 | IE36: 42390.37394 | IF36: 231105.9644 | IG36: 98904.664 | IH36: 100523.0529 | II36: 58421.50242 | IJ36: 73185.66686 | IK36: 62507.08888 | IL36: 78387.01927 | IM36: 115706.545 | IN36: 743229.8869 | IO36: 32660.19592 | IP36: 139645.8955 | IQ36: 37982.25849 | IR36: 29833.28272 | IS36: 34998.83913 | IT36: 28758.56663 | IU36: 1088478.385 | IV36: 1793571.192 | IW36: 4274.410572 | IX36: 327288.825 | IY36: 98765122.64
A37: =+MATCH(B37,RUT[EMPRESA],0) -> 240 | B37: PANGUIPULLI | C37: 1573871306 | D37: 1573871306 | F37: =IFERROR(INDEX($B$9:$B$511,MATCH(0,INDEX(COUNTIF($F$8:F36,$B$9:$B$511),0,0),0)),"") -> PANGUIPULLI | H37: 1573871306 | J37: ANDES_GENERACION | K37: 61183.92896 | L37: 6250.721355 | M37: 10712.90839 | N37: 233215.7965 | O37: 96803.2089 | P37: 23606.13888 | Q37: 397.2137646 | R37: 581.3583634 | S37: 2832.402785 | T37: 4418.546309 | U37: 3372.485577 | V37: 1399.798603 | W37: 2276.284769 | X37: 2002.873932 | Y37: 1324.602142 | Z37: 5772.026391 | AA37: 14529.03046 | AB37: 122596.1184 | AC37: 1533.511706 | AD37: 149.2254633 | AE37: 825.4932949 | AF37: 7829.417347 | AG37: 510.9003427 | AH37: 10458.34849 | AI37: 592.0388136 | AJ37: 5793.34309 | AK37: 25017.63933 | AL37: 16522.25107 | AM37: 150.4266763 | AN37: 1949.059046 | AO37: 37722.68587 | AP37: 12962.25719 | AQ37: 1346.468217 | AR37: 69175.63956 | AS37: 1693.796863 | AT37: 3372.826287 | AU37: 2557.403756 | AV37: 37718.03346 | AW37: 32426.57272 | AX37: 138.8658089 | AY37: 8.14450641 | AZ37: 1510.478392 | BA37: 7254.551887 | BB37: 15.04137458 | BC37: 20024.47378 | BD37: 6324.871014 | BE37: 120.9263453 | BF37: 526.6746846 | BG37: 10879.58321 | BH37: 4277.051889 | BI37: 330.3266803 | BJ37: 605.9111456 | BK37: 60311.59438 | BL37: 1246.056776 | BM37: 34138.52991 | BN37: 15599.1269 | BO37: 4481.388616 | BP37: 22.84049621 | BQ37: 36217.52335 | BR37: 2919.477222 | BS37: 422.5937746 | BT37: 3511.551945 | BU37: 20056.00137 | BV37: 1001.034431 | BW37: 937.2265107 | BX37: 1075.758449 | BY37: 16702.9424 | BZ37: 71220.81633 | CA37: 5809.574887 | CB37: 463.8964412 | CC37: 2240.064141 | CD37: 1093.258105 | CE37: 24252.63289 | CF37: 11302.64152 | CG37: 357.7746225 | CH37: 4019.968179 | CI37: 6147.723209 | CJ37: 2847.591733 | CK37: 422.983793 | CL37: 5026.696693 | CM37: 21619.46139 | CN37: 59.74252352 | CO37: 4445.587119 | CP37: 1423.649637 | CQ37: 2087.307273 | CR37: 260.7222472 | CS37: 4792.466459 | CT37: 913.7105958 | CU37: 24789.51482 | CV37: 4393.760893 | CW37: 1458.710615 | CX37: 894.3881325 | CY37: 900.431665 | CZ37: 1693.24737 | DA37: 37.07667403 | DB37: 578.1421785 | DC37: 4387.979046 | DD37: 426.7016257 | DE37: 4323.396699 | DF37: 4.376821197 | DG37: 17428.69472 | DH37: 55.3699935 | DI37: 3800.408922 | DJ37: 781.853854 | DK37: 52495.22315 | DL37: 1364.594608 | DM37: 7986.354114 | DN37: 8848.194746 | DO37: 59.41326991 | DP37: 3153.233814 | DQ37: 1153.493234 | DR37: 1102.79767 | DS37: 435.398189 | DT37: 1181.972068 | DU37: 3276.522034 | DV37: 15098.88213 | DW37: 5685.523756 | DX37: 3064.402366 | DY37: 1362.780155 | DZ37: 15933.50225 | EA37: 951.5585045 | EB37: 1821.01567 | EC37: 3634.785034 | ED37: 2386.941091 | EE37: 74568.90284 | EF37: 60.40829587 | EG37: 105.7166087 | EH37: 1142.585241 | EI37: 1322.638337 | EJ37: 7793.194804 | EK37: 2067.906156 | EL37: 999.7005697 | EM37: 456.9323575 | EN37: 1018.060662 | EO37: 1303.041445 | EP37: 1288.832942 | EQ37: 1122.022054 | ER37: 2878.623791 | ES37: 1106.533625 | ET37: 3116.913862 | EU37: 910.0999766 | EV37: 829.0283885 | EW37: 875.1765116 | EX37: 4414.312815 | EY37: 1321.365447 | EZ37: 981.3639 | FA37: 1046.742525 | FB37: 1028.553204 | FC37: 944.7458445 | FD37: 1209.713114 | FE37: 7929.94168 | FF37: 857.6167191 | FG37: 888.5878731 | FH37: 860.2180721 | FI37: 965.043664 | FJ37: 1082.747158 | FK37: 1363.295501 | FL37: 782.1311841 | FM37: 287.9206635 | FN37: 236.3588604 | FO37: 5694.145217 | FP37: 772.8181475 | FQ37: 3101.297313 | FR37: 1099.272009 | FS37: 944.987301 | FT37: 2205.360128 | FU37: 0.0003869153144 | FV37: 693.7276686 | FW37: 687.9902138 | FX37: 1084.824891 | FY37: 758.5590898 | FZ37: 1983.013628 | GA37: 783.1569908 | GB37: 280.7908295 | GC37: 758.4299318 | GD37: 5345.603014 | GE37: 5312.545665 | GF37: 1121.033199 | GG37: 4686.312596 | GH37: 785.1237034 | GI37: 281.9185313 | GJ37: 2278.368752 | GK37: 1245.31304 | GL37: 912.9352037 | GM37: 4852.023888 | GN37: 1267.832081 | GO37: 793.2226773 | GP37: 1427.02198 | GQ37: 5785.706176 | GR37: 5713.16108 | GS37: 2623.641771 | GT37: 219808.4024 | GU37: 26975.5187 | GV37: 27574.45226 | GW37: 82329.6671 | GX37: 48277.54189 | GY37: 9218.243638 | GZ37: 7533.782566 | HA37: 7662.545459 | HB37: 51.81540796 | HC37: 4425.985559 | HD37: 3531.234905 | HE37: 10523.92764 | HF37: 478.9533415 | HG37: 174.3904909 | HH37: 21137.71429 | HI37: 7408.369832 | HJ37: 906.7966029 | HK37: 970.5116901 | HL37: 502.8024952 | HM37: 636.3762016 | HN37: 791.6201153 | HO37: 714.4842319 | HP37: 32.78371402 | HQ37: 502.3175847 | HR37: 491.9877396 | HS37: 878.1834017 | HT37: 579.0443002 | HU37: 226.5661816 | HV37: 799.90195 | HW37: 677.3850743 | HX37: 447.239432 | HY37: 959.7704932 | HZ37: 730.9588956 | IA37: 942.9254074 | IB37: 248.6733778 | IC37: 15391.78418 | ID37: 34997.95449 | IE37: 1003.133799 | IF37: 5468.935103 | IG37: 2340.498611 | IH37: 2378.796471 | II37: 1382.497445 | IJ37: 1731.879415 | IK37: 1479.179533 | IL37: 1854.965199 | IM37: 2738.10149 | IN37: 17587.93213 | IO37: 772.8770323 | IP37: 3304.606792 | IQ37: 898.8193242 | IR37: 705.9804256 | IS37: 828.219126 | IT37: 680.5481414 | IU37: 25757.95767 | IV37: 42443.40674 | IW37: 101.1504574 | IX37: 7745.024445 | IY37: 2337196.478
A38: =+MATCH(B38,RUT[EMPRESA],0) -> 171 | B38: HIDROPALOMA | C38: 19687002.35 | D38: 19687002.35 | F38: =IFERROR(INDEX($B$9:$B$511,MATCH(0,INDEX(COUNTIF($F$8:F37,$B$9:$B$511),0,0),0)),"") -> HIDROPALOMA | H38: 19687002.35 | J38: CHUNGUNGO | K38: 2298592.877 | L38: 234830.6791 | M38: 402468.6766 | N38: 8761584.582 | O38: 3636758.382 | P38: 886848.9426 | Q38: 14922.75415 | R38: 21840.80388 | S38: 106409.3297 | T38: 165998.4778 | U38: 126699.4693 | V38: 52588.43543 | W38: 85516.76961 | X38: 75245.11472 | Y38: 49763.41175 | Z38: 216846.7926 | AA38: 545834.9357 | AB38: 4605761.177 | AC38: 57611.84587 | AD38: 5606.187651 | AE38: 31012.60479 | AF38: 294140.0341 | AG38: 19193.79662 | AH38: 392905.2247 | AI38: 22242.05315 | AJ38: 217647.6305 | AK38: 939876.9997 | AL38: 620717.3889 | AM38: 5651.315511 | AN38: 73223.36626 | AO38: 1417187.463 | AP38: 486973.5002 | AQ38: 50584.88898 | AR38: 2598830.037 | AS38: 63633.53042 | AT38: 126712.2692 | AU38: 96078.00869 | AV38: 1417012.679 | AW38: 1218220.052 | AX38: 5216.990224 | AY38: 305.9774804 | AZ38: 56746.51715 | BA38: 272543.1593 | BB38: 565.082973 | BC38: 752290.897 | BD38: 237616.3759 | BE38: 4543.030182 | BF38: 19786.41613 | BG38: 408730.4119 | BH38: 160682.7344 | BI38: 12409.90187 | BJ38: 22763.21687 | BK38: 2265820.512 | BL38: 46812.57448 | BM38: 1282535.84 | BN38: 586036.9317 | BO38: 168359.3736 | BP38: 858.0848403 | BQ38: 1360640.655 | BR38: 109680.592 | BS38: 15876.2449 | BT38: 131923.9942 | BU38: 753475.3437 | BV38: 37607.4347 | BW38: 35210.26222 | BX38: 40414.70941 | BY38: 627505.7041 | BZ38: 2675664.409 | CA38: 218257.436 | CB38: 17427.92713 | CC38: 84156.01233 | CD38: 41072.14651 | CE38: 911136.7995 | CF38: 424624.1086 | CG38: 13441.08188 | CH38: 151024.4664 | CI38: 230961.1857 | CJ38: 106979.9568 | CK38: 15890.89734 | CL38: 188845.8197 | CM38: 812212.3049 | CN38: 2244.441332 | CO38: 167014.3624 | CP38: 53484.48475 | CQ38: 78417.15483 | CR38: 9794.962674 | CS38: 180046.1241 | CT38: 34326.80286 | CU38: 931306.6874 | CV38: 165067.3251 | CW38: 54801.67565 | CX38: 33600.88549 | CY38: 33827.93238 | CZ38: 63612.88675 | DA38: 1392.91772 | DB38: 21719.97641 | DC38: 164850.1094 | DD38: 16030.57101 | DE38: 162423.8428 | DF38: 164.4309249 | DG38: 654771.1829 | DH38: 2080.171621 | DI38: 142775.9385 | DJ38: 29373.13328 | DK38: 1972170.603 | DL38: 51265.87162 | DM38: 300035.9244 | DN38: 332414.0467 | DO38: 2232.071744 | DP38: 118462.4935 | DQ38: 43335.0943 | DR38: 41430.53435 | DS38: 16357.28848 | DT38: 44405.00344 | DU38: 123094.2559 | DV38: 567243.4494 | DW38: 213597.012 | DX38: 115125.2228 | DY38: 51197.70519 | DZ38: 598598.9361 | EA38: 35748.69477 | EB38: 68412.9594 | EC38: 136553.6855 | ED38: 89673.9697 | EE38: 2801447.24 | EF38: 2269.453449 | EG38: 3971.622089 | EH38: 42925.29659 | EI38: 49689.63438 | EJ38: 292779.2048 | EK38: 77688.28255 | EL38: 37557.32344 | EM38: 17166.29645 | EN38: 38247.08588 | EO38: 48953.40712 | EP38: 48419.61394 | EQ38: 42152.76702 | ER38: 108145.7869 | ES38: 41570.88882 | ET38: 117098.0047 | EU38: 34191.15705 | EV38: 31145.4132 | EW38: 32879.13232 | EX38: 165839.4315 | EY38: 49641.81375 | EZ38: 36868.44093 | FA38: 39324.62254 | FB38: 38641.27572 | FC38: 35492.75285 | FD38: 45447.19495 | FE38: 297916.5898 | FF38: 32219.43598 | FG38: 33382.97803 | FH38: 32317.1651 | FI38: 36255.31296 | FJ38: 40677.26521 | FK38: 51217.06602 | FL38: 29383.55218 | FM38: 10816.76835 | FN38: 8879.665008 | FO38: 213920.908 | FP38: 29033.67469 | FQ38: 116511.3133 | FR38: 41298.0803 | FS38: 35501.82403 | FT38: 82852.2321 | FU38: 0.01453585608 | FV38: 26062.35829 | FW38: 25846.8103 | FX38: 40755.3227 | FY38: 28497.98224 | FZ38: 74498.99147 | GA38: 29422.09027 | GB38: 10548.91066 | GC38: 28493.12996 | GD38: 200826.675 | GE38: 199584.7575 | GF38: 42115.61712 | GG38: 176058.075 | GH38: 29495.97686 | GI38: 10591.27681 | GJ38: 85595.06187 | GK38: 46784.63338 | GL38: 34297.67249 | GM38: 182283.6117 | GN38: 47630.6416 | GO38: 29800.24374 | GP38: 53611.17888 | GQ38: 217360.7226 | GR38: 214635.3068 | GS38: 98566.47636 | GT38: 8257887.923 | GU38: 1013431.733 | GV38: 1035932.812 | GW38: 3093008.076 | GX38: 1813718.338 | GY38: 346316.2554 | GZ38: 283033.4573 | HA38: 287870.8954 | HB38: 1946.630916 | HC38: 166277.9598 | HD38: 132663.4549 | HE38: 395368.9397 | HF38: 17993.59338 | HG38: 6551.60182 | HH38: 794113.7541 | HI38: 278321.8799 | HJ38: 34067.05402 | HK38: 36460.7389 | HL38: 18889.57205 | HM38: 23907.74553 | HN38: 29740.03778 | HO38: 26842.15274 | HP38: 1231.637341 | HQ38: 18871.35465 | HR38: 18483.27712 | HS38: 32992.09689 | HT38: 21753.86783 | HU38: 8511.768042 | HV38: 30051.17448 | HW38: 25448.39035 | HX38: 16802.14707 | HY38: 36057.20746 | HZ38: 27461.08234 | IA38: 35424.36163 | IB38: 9342.303848 | IC38: 578247.3616 | ID38: 1314823.194 | IE38: 37686.30496 | IF38: 205460.0855 | IG38: 87929.19201 | IH38: 89367.98795 | II38: 51938.45564 | IJ38: 65064.23755 | IK38: 55570.66369 | IL38: 69688.39476 | IM38: 102866.5646 | IN38: 660753.5053 | IO38: 29035.8869 | IP38: 124149.3602 | IQ38: 33767.35904 | IR38: 26522.67688 | IS38: 31115.01037 | IT38: 25567.22226 | IU38: 967689.703 | IV38: 1594538.208 | IW38: 3800.078305 | IX38: 290969.5132 | IY38: 87805135.58
A39: =+MATCH(B39,RUT[EMPRESA],0) -> 106 | B39: EMELDA | C39: -6395538.938 | D39: -6395538.938 | F39: =IFERROR(INDEX($B$9:$B$511,MATCH(0,INDEX(COUNTIF($F$8:F38,$B$9:$B$511),0,0),0)),"") -> EMELDA | G39: -6395538.938 | J39: SPVP4 | K39: =$IY39*K$67/$IY$67 -> 209579.2949 | L39: 21411.20711 | M39: 36695.97271 | N39: 798856.8735 | O39: 331589.4977 | P39: 80860.41593 | Q39: 1360.615151 | R39: 1991.383652 | S39: 9702.106237 | T39: 15135.27876 | U39: =$IY39*U$67/$IY$67 -> 11552.10464 | V39: 4794.867038 | W39: 7797.180814 | X39: 6860.639936 | Y39: 4537.289248 | Z39: 19771.48644 | AA39: 49767.70881 | AB39: 419940.473 | AC39: 5252.887606 | AD39: 511.1565719 | AE39: =$IY39*AE$67/$IY$67 -> 2827.642907 | AF39: 26818.86887 | AG39: 1750.036904 | AH39: 35824.0038 | AI39: 2027.968443 | AJ39: 19844.50461 | AK39: 85695.36644 | AL39: 56595.28227 | AM39: 515.2712044 | AN39: 6676.302544 | AO39: =$IY39*AO$67/$IY$67 -> 129215.2048 | AP39: 44400.8871 | AQ39: 4612.189253 | AR39: 236954.0828 | AS39: 5801.928028 | AT39: 11553.2717 | AU39: 8760.12517 | AV39: 129199.2684 | AW39: 111073.9105 | AX39: 475.6706347 | AY39: =$IY39*AY$67/$IY$67 -> 27.89817425 | AZ39: 5173.989344 | BA39: 24849.72599 | BB39: 51.52269122 | BC39: 68591.7882 | BD39: 21665.19918 | BE39: 414.2208357 | BF39: 1804.0703 | BG39: 37266.90028 | BH39: 14650.60408 | BI39: =$IY39*BI$67/$IY$67 -> 1131.50028 | BJ39: 2075.486698 | BK39: 206591.202 | BL39: 4268.240127 | BM39: 116938.0449 | BN39: 53433.2148 | BO39: 15350.53866 | BP39: 78.23778522 | BQ39: 124059.4244 | BR39: 10000.37082 | BS39: =$IY39*BS$67/$IY$67 -> 1447.551781 | BT39: 12028.46227 | BU39: 68699.78275 | BV39: 3428.941126 | BW39: 3210.373617 | BX39: 3684.900614 | BY39: 57214.22194 | BZ39: 243959.6268 | CA39: 19900.10497 | CB39: 1589.029844 | CC39: =$IY39*CC$67/$IY$67 -> 7673.110755 | CD39: 3744.843896 | CE39: 83074.91506 | CF39: 38716.04327 | CG39: 1225.520401 | CH39: 13769.99011 | CI39: 21058.39748 | CJ39: 9754.134426 | CK39: 1448.887749 | CL39: 17218.43574 | CM39: =$IY39*CM$67/$IY$67 -> 74055.25524 | CN39: 204.6419079 | CO39: 15227.90429 | CP39: 4876.566319 | CQ39: 7149.857717 | CR39: 893.077409 | CS39: 16416.10401 | CT39: 3129.822254 | CU39: 84913.94924 | CV39: 15050.37885 | CW39: =$IY39*CW$67/$IY$67 -> 4996.664115 | CX39: 3063.635131 | CY39: 3084.336634 | CZ39: 5800.045796 | DA39: 127.0023572 | DB39: 1980.36694 | DC39: 15030.57372 | DD39: 1461.622805 | DE39: 14809.35349 | DF39: 14.99235365 | DG39: =$IY39*DG$67/$IY$67 -> 59700.21234 | DH39: 189.6642533 | DI39: 13017.91232 | DJ39: 2678.160462 | DK39: 179817.0213 | DL39: 4674.279354 | DM39: 27356.43972 | DN39: 30308.58672 | DO39: 203.5140833 | DP39: 10801.08013 | DQ39: =$IY39*DQ$67/$IY$67 -> 3951.173171 | DR39: 3777.520701 | DS39: 1491.411994 | DT39: 4048.724506 | DU39: 11223.39133 | DV39: 51719.67744 | DW39: 19475.1805 | DX39: 10496.79709 | DY39: 4668.064129 | DZ39: 54578.58337 | EA39: =$IY39*EA$67/$IY$67 -> 3259.466397 | EB39: 6237.703047 | EC39: 12450.58462 | ED39: 8176.222736 | EE39: 255428.1549 | EF39: 206.9224431 | EG39: 362.1214376 | EH39: 3913.808958 | EI39: 4530.562433 | EJ39: 26694.79225 | EK39: =$IY39*EK$67/$IY$67 -> 7083.401173 | EL39: 3424.372121 | EM39: 1565.175087 | EN39: 3487.262739 | EO39: 4463.435283 | EP39: 4414.765508 | EQ39: 3843.371864 | ER39: 9860.431569 | ES39: 3790.317831 | ET39: 10676.66985 | EU39: =$IY39*EU$67/$IY$67 -> 3117.454447 | EV39: 2839.752009 | EW39: 2997.827688 | EX39: 15120.77736 | EY39: 4526.202281 | EZ39: 3361.561733 | FA39: 3585.509529 | FB39: 3523.20387 | FC39: 3236.130326 | FD39: 4143.748625 | FE39: =$IY39*FE$67/$IY$67 -> 27163.2047 | FF39: 2937.678413 | FG39: 3043.766936 | FH39: 2946.589082 | FI39: 3305.658432 | FJ39: 3708.83972 | FK39: 4669.829395 | FL39: 2679.110428 | FM39: 986.242804 | FN39: 809.6231177 | FO39: =$IY39*FO$67/$IY$67 -> 19504.71243 | FP39: 2647.209574 | FQ39: 10623.17696 | FR39: 3765.44391 | FS39: 3236.957411 | FT39: 7554.235706 | FU39: 0.001325338862 | FV39: 2376.293222 | FW39: 2356.640157 | FX39: 3715.956784 | FY39: =$IY39*FY$67/$IY$67 -> 2598.366629 | FZ39: 6792.610497 | GA39: 2682.624224 | GB39: 961.8202864 | GC39: 2597.924211 | GD39: 18310.81674 | GE39: 18197.58217 | GF39: 3839.98464 | GG39: 16052.4848 | GH39: 2689.360997 | GI39: =$IY39*GI$67/$IY$67 -> 965.6831136 | GJ39: 7804.319284 | GK39: 4265.692535 | GL39: 3127.166228 | GM39: 16620.1119 | GN39: 4342.829208 | GO39: 2717.103205 | GP39: 4888.117936 | GQ39: 19818.34514 | GR39: 19569.84933 | GS39: =$IY39*GS$67/$IY$67 -> 8987.01672 | GT39: 752931.2153 | GU39: 92401.88209 | GV39: 94453.46778 | GW39: 282011.8596 | GX39: 165369.7852 | GY39: 31576.15137 | GZ39: 25806.20214 | HA39: 26247.26627 | HB39: 177.4883839 | HC39: =$IY39*HC$67/$IY$67 -> 15160.76115 | HD39: 12095.88423 | HE39: 36048.63847 | HF39: 1640.605717 | HG39: 597.356802 | HH39: 72405.07979 | HI39: 25376.61364 | HJ39: 3106.139078 | HK39: 3324.388597 | HL39: 1722.298555 | HM39: =$IY39*HM$67/$IY$67 -> 2179.841634 | HN39: 2711.613792 | HO39: 2447.392708 | HP39: 112.2972615 | HQ39: 1720.637544 | HR39: 1685.253715 | HS39: 3008.127482 | HT39: 1983.457065 | HU39: 776.0792973 | HV39: 2739.98237 | HW39: =$IY39*HW$67/$IY$67 -> 2320.313336 | HX39: 1531.972961 | HY39: 3287.595725 | HZ39: 2503.824985 | IA39: 3229.894605 | IB39: 851.8052383 | IC39: 52722.9835 | ID39: 119881.9159 | IE39: 3436.132297 | IF39: 18733.27821 | IG39: =$IY39*IG$67/$IY$67 -> 8017.138767 | IH39: 8148.324173 | II39: 4735.603691 | IJ39: 5932.375918 | IK39: 5066.778302 | IL39: 6353.993691 | IM39: 9379.086789 | IN39: 60245.66383 | IO39: 2647.411277 | IP39: 11319.5928 | IQ39: =$IY39*IQ$67/$IY$67 -> 3078.813725 | IR39: 2418.263788 | IS39: 2836.979963 | IT39: 2331.148099 | IU39: 88231.25125 | IV39: 145385.5516 | IW39: 346.4805533 | IX39: 26529.78961 | IY39: 8005827.648
A40: =+MATCH(B40,RUT[EMPRESA],0) -> 300 | B40: SWO | C40: -31714.38802 | D40: -31714.38802 | F40: =IFERROR(INDEX($B$9:$B$511,MATCH(0,INDEX(COUNTIF($F$8:F39,$B$9:$B$511),0,0),0)),"") -> SWO | G40: -31714.38802 | J40: EOLICA_ESPERANZA | K40: 401401.056 | L40: 41008.25487 | M40: 70282.71662 | N40: 1530027.061 | O40: 635083.6068 | P40: 154869.575 | Q40: 2605.946158 | R40: 3814.038506 | S40: 18582.15856 | T40: 28988.15399 | U40: 22125.40605 | V40: 9183.467732 | W40: 14933.71095 | X40: 13139.98177 | Y40: 8690.136572 | Z40: 37867.74613 | AA40: 95318.6281 | AB40: 804299.6298 | AC40: 10060.70105 | AD40: 979.0031395 | AE40: 5415.701246 | AF40: 51365.3903 | AG40: 3351.794182 | AH40: 68612.66024 | AI40: 3884.108279 | AJ40: 38007.59568 | AK40: 164129.8135 | AL40: 108395.2786 | AM40: 986.8837741 | AN40: 12786.92579 | AO40: 247482.0791 | AP40: 85039.71241 | AQ40: 8833.590347 | AR40: 453831.1815 | AS40: 11112.26201 | AT40: 22127.6413 | AU40: 16778.00994 | AV40: 247451.5567 | AW40: 212736.592 | AX40: 911.0379684 | AY40: 53.43255213 | AZ40: 9909.589529 | BA40: 47593.9489 | BB40: 98.67989427 | BC40: 131371.8334 | BD40: 41494.71842 | BE40: 793.3449767 | BF40: 3455.282754 | BG40: 71376.19741 | BH40: 28059.87085 | BI40: 2167.129188 | BJ40: 3975.118595 | BK40: 395678.0495 | BL40: 8174.834707 | BM40: 223967.996 | BN40: 102339.0639 | BO40: 29400.43494 | BP40: 149.8465276 | BQ40: 237607.3646 | BR40: 19153.41594 | BS40: 2772.453327 | BT40: 23037.7598 | BU40: 131578.6722 | BV40: 6567.35003 | BW40: 6148.734113 | BX40: 7057.581704 | BY40: 109580.7156 | BZ40: 467248.6938 | CA40: 38114.08542 | CB40: 3043.422097 | CC40: 14696.08322 | CD40: 7172.38931 | CE40: 159110.94 | CF40: 74151.69832 | CG40: 2347.203159 | CH40: 26373.25683 | CI40: 40332.52899 | CJ40: 18681.80662 | CK40: 2775.012068 | CL40: 32977.96325 | CM40: 141835.851 | CN40: 391.944624 | CO40: 29165.55694 | CP40: 9339.94396 | CQ40: 13693.91208 | CR40: 1710.48488 | CS40: 31441.28091 | CT40: 5994.456458 | CU40: 162633.1881 | CV40: 28825.54769 | CW40: 9569.963735 | CX40: 5867.690209 | CY40: 5907.339188 | CZ40: 11108.65703 | DA40: 243.2438773 | DB40: 3792.93852 | DC40: 28787.61552 | DD40: 2799.403145 | DE40: 28363.91893 | DF40: 28.71441374 | DG40: 114342.0598 | DH40: 363.2583628 | DI40: 24932.82436 | DJ40: 5129.401919 | DK40: 344398.2492 | DL40: 8952.50969 | DM40: 52394.98394 | DN40: 58049.1442 | DO40: 389.7845347 | DP40: 20686.99092 | DQ40: 7567.565698 | DR40: 7234.974232 | DS40: 2856.457502 | DT40: 7754.402899 | DU40: 21495.83112 | DV40: 99057.17617 | DW40: 37300.24009 | DX40: 20104.20656 | DY40: 8940.605852 | DZ40: 104532.7546 | EA40: 6242.760069 | EB40: 11946.88908 | EC40: 23846.23832 | ED40: 15659.67879 | EE40: 489214.0282 | EF40: 396.3124658 | EG40: 693.5605328 | EH40: 7496.00312 | EI40: 8677.2529 | EJ40: 51127.75001 | EK40: 13566.62981 | EL40: 6558.599149 | EM40: 2997.733783 | EN40: 6679.051698 | EO40: 8548.686246 | EP40: 8455.470458 | EQ40: 7361.097027 | ER40: 18885.39441 | ES40: 7259.484198 | ET40: 20448.71157 | EU40: 5970.768761 | EV40: 5438.893452 | EW40: 5741.651148 | EX40: 28960.37989 | EY40: 8668.90203 | EZ40: 6438.300261 | FA40: 6867.220885 | FB40: 6747.88869 | FC40: 6198.06518 | FD40: 7936.399797 | FE40: 52024.88658 | FF40: 5626.449013 | FG40: 5829.637238 | FH40: 5643.515355 | FI40: 6331.230315 | FJ40: 7103.43157 | FK40: 8943.986815 | FL40: 5131.221361 | FM40: 1888.921819 | FN40: 1550.647331 | FO40: 37356.80173 | FP40: 5070.122593 | FQ40: 20346.25821 | FR40: 7211.843909 | FS40: 6199.649271 | FT40: 14468.40534 | FU40: 0.00253838252 | FV40: 4551.244477 | FW40: 4513.60354 | FX40: 7117.062674 | FY40: 4976.575138 | FZ40: 13009.68699 | GA40: 5137.951232 | GB40: 1842.14609 | GC40: 4975.727789 | GD40: 35070.16845 | GE40: 34853.29361 | GF40: 7354.609576 | GG40: 30744.85174 | GH40: 5150.853975 | GI40: 1849.544449 | GJ40: 14947.38305 | GK40: 8169.955379 | GL40: 5989.369449 | GM40: 31832.01121 | GN40: 8317.692979 | GO40: 5203.987807 | GP40: 9362.068433 | GQ40: 37957.49323 | GR40: 37481.55651 | GS40: 17212.56865 | GT40: 1442066.999 | GU40: 176974.6055 | GV40: 180903.9472 | GW40: 540129.0156 | GX40: 316727.8831 | GY40: 60476.87349 | GZ40: 49425.85952 | HA40: 50270.61667 | HB40: 339.9382784 | HC40: 29036.95966 | HD40: 23166.89111 | HE40: 69042.89641 | HF40: 3142.203849 | HG40: 1144.099904 | HH40: 138675.3186 | HI40: 48603.08131 | HJ40: 5949.096768 | HK40: 6367.103649 | HL40: 3298.667738 | HM40: 4174.986532 | HN40: 5193.474098 | HO40: 4687.419231 | HP40: 215.0796403 | HQ40: 3295.486452 | HR40: 3227.716847 | HS40: 5761.378042 | HT40: 3798.856947 | HU40: 1486.401839 | HV40: 5247.807601 | HW40: 4444.027848 | HX40: 2934.142729 | HY40: 6296.635343 | HZ40: 4795.502309 | IA40: 6186.122087 | IB40: 1631.437506 | IC40: 100978.7787 | ID40: 229606.3056 | IE40: 6581.123068 | IF40: 35879.29646 | IG40: 15354.98995 | IH40: 15606.24549 | II40: 9069.962387 | IJ40: 11362.10502 | IK40: 9704.251374 | IL40: 12169.61713 | IM40: 17963.48892 | IN40: 115386.747 | IO40: 5070.50891 | IP40: 21680.08297 | IQ40: 5896.761323 | IR40: 4631.629468 | IS40: 5433.584234 | IT40: 4464.779351 | IU40: 168986.719 | IV40: 278452.6685 | IW40: 663.6040073 | IX40: 50811.7253 | IY40: 15333326.09
A41: =+MATCH(B41,RUT[EMPRESA],0) -> 131 | B41: GEN. INDUSTRIAL | C41: 0 | D41: 0 | F41: =IFERROR(INDEX($B$9:$B$511,MATCH(0,INDEX(COUNTIF($F$8:F40,$B$9:$B$511),0,0),0)),"") -> GEN. INDUSTRIAL | J41: KDM_ENERGIA | K41: 9885554.308 | L41: 1009935.885 | M41: 1730896.323 | N41: 37680931.26 | O41: 15640600.32 | P41: 3814069.673 | Q41: 64178.26231 | R41: 93930.7065 | S41: 457634.4153 | T41: 713909.3589 | U41: 544896.1825 | V41: 226166.9909 | W41: 367781.8193 | X41: 323606.5313 | Y41: 214017.4166 | Z41: 932592.6159 | AA41: 2347471.339 | AB41: 19807988.92 | AC41: 247771.1633 | AD41: 24110.52128 | AE41: 133375.8544 | AF41: 1265007.522 | AG41: 82546.72706 | AH41: 1689766.803 | AI41: 95656.35852 | AJ41: 936036.7782 | AK41: 4042127.344 | AL41: 2669518.173 | AM41: 24304.60259 | AN41: 314911.6013 | AO41: 6094895.607 | AP41: 2094326.068 | AQ41: 217550.3422 | AR41: 11176783.73 | AS41: 273668.6113 | AT41: 544951.2314 | AU41: 413202.5214 | AV41: 6094143.912 | AW41: 5239196.814 | AX41: 22436.7006 | AY41: 1315.916807 | AZ41: 244049.6456 | BA41: 1172125.881 | BB41: 2430.251339 | BC41: 3235376.126 | BD41: 1021916.326 | BE41: 19538.20184 | BF41: 85095.40472 | BG41: 1757826.157 | BH41: 691047.9507 | BI41: 53371.24295 | BJ41: 97897.72638 | BK41: 9744610.255 | BL41: 201326.756 | BM41: 5515799.609 | BN41: 2520367.992 | BO41: 724062.8592 | BP41: 3690.36395 | BQ41: 5851704.852 | BR41: 471703.1273 | BS41: 68278.93828 | BT41: 567365.2878 | BU41: 3240470.073 | BV41: 161738.2277 | BW41: 151428.7122 | BX41: 173811.469 | BY41: 2698712.668 | BZ41: 11507225.18 | CA41: 938659.3674 | CB41: 74952.25529 | CC41: 361929.6128 | CD41: 176638.9076 | CE41: 3918524.416 | CF41: 1826180.15 | CG41: 57806.037 | CH41: 649510.6546 | CI41: 993294.3615 | CJ41: 460088.5103 | CK41: 68341.95398 | CL41: 812168.8815 | CM41: 3493080.018 | CN41: 9652.664855 | CO41: 718278.3721 | CP41: 230020.6287 | CQ41: 337248.5186 | CR41: 42125.17859 | CS41: 774324.0465 | CT41: 147629.2201 | CU41: 4005269.017 | CV41: 709904.7522 | CW41: 235685.4692 | CX41: 144507.2686 | CY41: 145483.7288 | CZ41: 273579.8292 | DA41: 5990.518768 | DB41: 93411.06399 | DC41: 708970.5728 | DD41: 68942.64827 | DE41: 698535.9325 | DF41: 707.1677869 | DG41: 2815973.264 | DH41: 8946.190399 | DI41: 614036.2254 | DJ41: 126324.9822 | DK41: 8481710.61 | DL41: 220479.0431 | DM41: 1290363.968 | DN41: 1429612.501 | DO41: 9599.466989 | DP41: 509471.4355 | DQ41: 186371.1631 | DR41: 178180.2255 | DS41: 70347.76151 | DT41: 190972.5195 | DU41: 529391.2479 | DV41: 2439542.896 | DW41: 918616.2906 | DX41: 495118.8413 | DY41: 220185.8799 | DZ41: 2574393.382 | EA41: 153744.3481 | EB41: 294223.4931 | EC41: 587276.1927 | ED41: 385660.6823 | EE41: 12048179.17 | EF41: 9760.234422 | EG41: 17080.74807 | EH41: 184608.7468 | EI41: 213700.1224 | EJ41: 1259155.007 | EK41: 334113.8589 | EL41: 161522.7142 | EM41: 73827.06067 | EN41: 164489.1744 | EO41: 210533.8311 | EP41: 208238.1477 | EQ41: 181286.3303 | ER41: 465102.3938 | ES41: 178783.8478 | ET41: 503603.1812 | EU41: 147045.8484 | EV41: 133947.0233 | EW41: 141403.226 | EX41: 713225.3487 | EY41: 213494.4603 | EZ41: 158560.0385 | FA41: 169123.3343 | FB41: 166184.4659 | FC41: 152643.6192 | FD41: 195454.6707 | FE41: 1281249.349 | FF41: 138566.0711 | FG41: 143570.1144 | FH41: 138986.3746 | FI41: 155923.1601 | FJ41: 174940.6423 | FK41: 220269.1449 | FL41: 126369.7907 | FM41: 46519.65645 | FN41: 38188.75954 | FO41: 920009.2694 | FP41: 124865.0732 | FQ41: 501079.9983 | FR41: 177610.5806 | FS41: 152682.6316 | FT41: 356322.4475 | FU41: 0.06251433045 | FV41: 112086.338 | FW41: 111159.3312 | FX41: 175276.344 | FY41: 122561.2216 | FZ41: 320397.6804 | GA41: 126535.5314 | GB41: 45367.68137 | GC41: 122540.3534 | GD41: 863694.9245 | GE41: 858353.8125 | GF41: 181126.5598 | GG41: 757172.6507 | GH41: 126853.2953 | GI41: 45549.88539 | GJ41: 368118.5307 | GK41: 201206.5897 | GL41: 147503.9392 | GM41: 783946.8054 | GN41: 204845.0158 | GO41: 128161.8554 | GP41: 230565.5019 | GQ41: 934802.8737 | GR41: 923081.6832 | GS41: 423904.67 | GT41: 35514683.93 | GU41: 4358464.054 | GV41: 4455234.405 | GW41: 13302094.34 | GX41: 7800255.237 | GY41: 1489401.705 | GZ41: 1217241.488 | HA41: 1238045.849 | HB41: 8371.872126 | HC41: 715111.3267 | HD41: 570545.4851 | HE41: 1700362.497 | HF41: 77385.01513 | HG41: 28176.46232 | HH41: 3415243.613 | HI41: 1196978.415 | HJ41: 146512.1187 | HK41: 156806.6351 | HL41: 81238.34898 | HM41: 102819.9988 | HN41: 127902.9277 | HO41: 115439.9987 | HP41: 5296.900525 | HQ41: 81160.00146 | HR41: 79490.9971 | HS41: 141889.0525 | HT41: 93556.82078 | HU41: 36606.54571 | HV41: 129241.0328 | HW41: 109445.8472 | HX41: 72260.96409 | HY41: 155071.1681 | HZ41: 118101.8281 | IA41: 152349.4892 | IB41: 40178.42958 | IC41: 2486867.402 | ID41: 5654657.779 | IE41: 162077.4249 | IF41: 883621.825 | IG41: 378156.92 | IH41: 384344.7472 | II41: 223371.624 | IJ41: 279821.6509 | IK41: 238992.6547 | IL41: 299708.7557 | IM41: 442398.0519 | IN41: 2841701.427 | IO41: 124874.5873 | IP41: 533928.933 | IQ41: 145223.2211 | IR41: 114066.0294 | IS41: 133816.2699 | IT41: 109956.9074 | IU41: 4161741.388 | IV41: 6857627.64 | IW41: 16342.99002 | IX41: 1251372.069 | IY41: 377623390.8
A42: =+MATCH(B42,RUT[EMPRESA],0) -> 230 | B42: NUEVA DEGAN | C42: -6656630.005 | D42: -6656630.005 | F42: =IFERROR(INDEX($B$9:$B$511,MATCH(0,INDEX(COUNTIF($F$8:F41,$B$9:$B$511),0,0),0)),"") -> NUEVA DEGAN | G42: -6656630.005 | J42: CONEJO_SOLAR | K42: 4718770.934 | L42: 482082.8402 | M42: 826226.1281 | N42: 17986617.41 | O42: 7465884.853 | P42: 1820608.188 | Q42: 30634.85459 | R42: 44836.88762 | S42: 218447.2322 | T42: 340777.5252 | U42: 260100.768 | V42: 107958.5615 | W42: 175556.99 | X42: 154470.3561 | Y42: 102159.0832 | Z42: 445163.8008 | AA42: 1120542.074 | AB42: 9455146.313 | AC42: 118271.0981 | AD42: 11508.9173 | AE42: 63665.63626 | AF42: 603838.7471 | AG42: 39402.85837 | AH42: 806593.3608 | AI42: 45660.61044 | AJ42: 446807.8374 | AK42: 1929469.247 | AL42: 1274267.923 | AM42: 11601.56008 | AN42: 150319.9178 | AO42: 2909337.74 | AP42: 999705.6986 | AQ42: 103845.4901 | AR42: 5335126.443 | AS42: 130632.9871 | AT42: 260127.0451 | AU42: 197238.11 | AV42: 2908978.926 | AW42: 2500878.441 | AX42: 10709.93566 | AY42: 628.1397872 | AZ42: 116494.6687 | BA42: 559502.6204 | BB42: 1160.056282 | BC42: 1544374.584 | BD42: 487801.5846 | BE42: 9326.366137 | BF42: 40619.44428 | BG42: 839080.8161 | BH42: 329864.8596 | BI42: 25476.23149 | BJ42: 46730.50507 | BK42: 4651492.693 | BL42: 96101.32266 | BM42: 2632912.031 | BN42: 1203072.57 | BO42: 345624.1975 | BP42: 1761.558492 | BQ42: 2793253.055 | BR42: 225162.7918 | BS42: 32592.27144 | BT42: 270826.1717 | BU42: 1546806.129 | BV42: 77204.1328 | BW42: 72282.98824 | BX42: 82967.17437 | BY42: 1288203.625 | BZ42: 5492859.378 | CA42: 448059.7043 | CB42: 35777.71288 | CC42: 172763.4975 | CD42: 84316.82401 | CE42: 1870468.619 | CF42: 871708.9142 | CG42: 27593.13627 | CH42: 310037.4448 | CI42: 474139.1748 | CJ42: 219618.67 | CK42: 32622.35136 | CL42: 387680.7301 | CM42: 1667386.972 | CN42: 4607.603472 | CO42: 342863.0301 | CP42: 109798.0571 | CQ42: 160982.2229 | CR42: 20108.03462 | CS42: 369615.8748 | CT42: 70469.33851 | CU42: 1911875.291 | CV42: 338865.966 | CW42: 112502.1124 | CX42: 68979.10603 | CY42: 69445.20957 | CZ42: 130590.6078 | DA42: 2859.514495 | DB42: 44588.84144 | DC42: 338420.0448 | DD42: 32909.0868 | DE42: 333439.1731 | DF42: 337.5595029 | DG42: 1344176.803 | DH42: 4270.374923 | DI42: 293104.0792 | DJ42: 60299.97261 | DK42: 4048660.12 | DL42: 105243.4763 | DM42: 615942.3937 | DN42: 682411.2948 | DO42: 4582.21 | DP42: 243191.1177 | DQ42: 88962.41931 | DR42: 85052.55679 | DS42: 33579.80361 | DT42: 91158.83095 | DU42: 252699.6419 | DV42: 1164491.515 | DW42: 438492.3411 | DX42: 236340.0497 | DY42: 105103.5377 | DZ42: 1228861.052 | EA42: 73388.33398 | EB42: 140444.6553 | EC42: 280330.444 | ED42: 184091.2873 | EE42: 5751078.384 | EF42: 4658.950734 | EG42: 8153.325045 | EH42: 88121.14744 | EI42: 102007.6259 | EJ42: 601045.1069 | EK42: 159485.9243 | EL42: 77101.25961 | EM42: 35240.61243 | EN42: 78517.26981 | EO42: 100496.2283 | EP42: 99400.40672 | EQ42: 86535.22498 | ER42: 222011.9974 | ES42: 85340.68985 | ET42: 240389.9649 | EU42: 70190.87184 | EV42: 63938.27806 | EW42: 67497.4222 | EX42: 340451.0197 | EY42: 101909.4552 | EZ42: 75687.05582 | FA42: 80729.33995 | FB42: 79326.50036 | FC42: 72862.91198 | FD42: 93298.3412 | FE42: 611591.6213 | FF42: 66143.13457 | FG42: 68531.76478 | FH42: 66343.76223 | FI42: 74428.36818 | FJ42: 83506.17398 | FK42: 105143.2835 | FL42: 60321.36152 | FM42: 22205.69488 | FN42: 18229.02418 | FO42: 439157.2656 | FP42: 59603.0996 | FQ42: 239185.5487 | FR42: 84780.64247 | FS42: 72881.53416 | FT42: 170086.973 | FU42: 0.02984059328 | FV42: 53503.29758 | FW42: 53060.80009 | FX42: 83666.41785 | FY42: 58503.379 | FZ42: 152938.643 | GA42: 60400.4762 | GB42: 21655.81105 | GC42: 58493.41777 | GD42: 412276.1737 | GE42: 409726.6471 | GF42: 86458.96012 | GG42: 361428.8268 | GH42: 60552.15764 | GI42: 21742.78432 | GJ42: 175717.7158 | GK42: 96043.9625 | GL42: 70409.5369 | GM42: 374209.203 | GN42: 97780.72897 | GO42: 61176.78575 | GP42: 110058.1469 | GQ42: 446218.8454 | GR42: 440623.8517 | GS42: 202346.674 | GT42: 16952580.81 | GU42: 2080469.426 | GV42: 2126661.789 | GW42: 6349622.306 | GX42: 3723374.182 | GY42: 710951.0762 | GZ42: 581038.1059 | HA42: 590968.8607 | HB42: 3996.229814 | HC42: 341351.2725 | HD42: 272344.2073 | HE42: 811651.1102 | HF42: 36938.96657 | HG42: 13449.75378 | HH42: 1630232.538 | HI42: 571365.7299 | HJ42: 69936.10129 | HK42: 74850.08616 | HL42: 38778.31712 | HM42: 49080.1028 | HN42: 61053.1892 | HO42: 55104.1341 | HP42: 2528.422732 | HQ42: 38740.91871 | HR42: 37944.23609 | HS42: 67729.32665 | HT42: 44658.417 | HU42: 17473.77016 | HV42: 61691.92034 | HW42: 52242.88557 | HX42: 34493.05182 | HY42: 74021.6783 | HZ42: 56374.73188 | IA42: 72722.51195 | IB42: 19178.77336 | IC42: 1187081.396 | ID42: 2699194.596 | IE42: 77366.0452 | IF42: 421788.0813 | IG42: 180509.441 | IH42: 183463.1387 | II42: 106624.2209 | IJ42: 133570.0793 | IK42: 114080.7644 | IL42: 143062.9908 | IM42: 211174.3058 | IN42: 1356457.886 | IO42: 59607.64105 | IP42: 254865.6607 | IQ42: 69320.85882 | IR42: 54448.28354 | IS42: 63875.86421 | IT42: 52486.83508 | IU42: 1986565.82 | IV42: 3273420.283 | IW42: 7801.163584 | IX42: 597329.9991 | IY42: 180254766.2
A43: =+MATCH(B43,RUT[EMPRESA],0) -> 23 | B43: BARRICK | C43: 1915734.999 | D43: 1915734.999 | F43: =IFERROR(INDEX($B$9:$B$511,MATCH(0,INDEX(COUNTIF($F$8:F42,$B$9:$B$511),0,0),0)),"") -> BARRICK | H43: 1915734.999 | J43: RAGSA | K43: 9265.953572 | L43: 946.63574 | M43: 1622.408261 | N43: 35319.18886 | O43: 14660.28832 | P43: 3575.013744 | Q43: 60.15573637 | R43: 88.04337504 | S43: 428.9510849 | T43: 669.1633841 | U43: 510.7435124 | V43: 211.9914344 | W43: 344.730215 | X43: 303.3237188 | Y43: 200.6033636 | Z43: 874.1401455 | AA43: 2200.337964 | AB43: 18566.47589 | AC43: 232.2415136 | AD43: 22.59933675 | AE43: 125.016204 | AF43: 1185.720153 | AG43: 77.37291371 | AH43: 1583.856631 | AI43: 89.6608677 | AJ43: 877.3684366 | AK43: 3788.777355 | AL43: 2502.199743 | AM43: 22.78125355 | AN43: 295.1737643 | AO43: 5712.883462 | AP43: 1963.059178 | AQ43: 203.9148547 | AR43: 10476.2521 | AS43: 256.5157772 | AT43: 510.7951109 | AU43: 387.3040661 | AV43: 5712.178882 | AW43: 4910.817636 | AX43: 21.03042678 | AY43: 1.233438577 | AZ43: 228.7532509 | BA43: 1098.660091 | BB43: 2.27792953 | BC43: 3032.591197 | BD43: 957.8652787 | BE43: 18.31359836 | BF43: 79.76184691 | BG43: 1647.650203 | BH43: 647.7348693 | BI43: 50.02607278 | BJ43: 91.76175247 | BK43: 9133.843525 | BL43: 188.7081205 | BM43: 5170.083689 | BN43: 2362.397906 | BO43: 678.6804895 | BP43: 3.459061572 | BQ43: 5484.935269 | BR43: 442.1380068 | BS43: 63.99939269 | BT43: 531.8043127 | BU43: 3037.365869 | BV43: 151.6008978 | BW43: 141.9375559 | BX43: 162.9174199 | BY43: 2529.564403 | BZ43: 10785.98234 | CA43: 879.8266488 | CB43: 70.25444361 | CC43: 339.2448096 | CD43: 165.567642 | CE43: 3672.921536 | CF43: 1711.719946 | CG43: 54.18290551 | CH43: 608.8010225 | CI43: 931.0372641 | CJ43: 431.2513636 | CK43: 64.05845873 | CL43: 761.2642563 | CM43: 3274.142882 | CN43: 9.047661022 | CO43: 673.258559 | CP43: 215.6035362 | CQ43: 316.1106619 | CR43: 39.48488237 | CS43: 725.7914367 | CT43: 138.376206 | CU43: 3754.229212 | CV43: 665.4097756 | CW43: 220.9133193 | CX43: 135.4499303 | CY43: 136.3651885 | CZ43: 256.4325597 | DA43: 5.615048691 | DB43: 87.55630236 | DC43: 664.5341482 | DD43: 64.62150306 | DE43: 654.7535239 | DF43: 0.6628443562 | DG43: 2639.475411 | DH43: 8.38546654 | DI43: 575.5500378 | DJ43: 118.4072621 | DK43: 7950.099132 | DL43: 206.6599923 | DM43: 1209.487323 | DN43: 1340.008122 | DO43: 8.997797459 | DP43: 477.539096 | DQ43: 174.6899052 | DR43: 167.0123542 | DS43: 65.93854748 | DT43: 179.0028605 | DU43: 496.2103866 | DV43: 2286.638716 | DW43: 861.0398197 | DX43: 464.0860849 | DY43: 206.3852037 | DZ43: 2413.037126 | EA43: 144.1080538 | EB43: 275.7823326 | EC43: 550.4672541 | ED43: 361.4884776 | EE43: 11293.03076 | EF43: 9.148488409 | EG43: 16.01017137 | EH43: 173.0379525 | EI43: 200.3059566 | EJ43: 1180.234458 | EK43: 313.1724745 | EL43: 151.3988922 | EM43: 69.19977325 | EN43: 154.1794223 | EO43: 197.3381202 | EP43: 195.1863243 | EQ43: 169.9237764 | ER43: 435.95099 | ES43: 167.5781429 | ET43: 472.0386485 | EU43: 137.8293985 | EV43: 125.5515736 | EW43: 132.540441 | EX43: 668.5222459 | EY43: 200.1131849 | EZ43: 148.6219092 | FA43: 158.5231253 | FB43: 155.7684574 | FC43: 143.0763156 | FD43: 183.2040822 | FE43: 1200.943985 | FF43: 129.8811115 | FG43: 134.5715144 | FH43: 130.2750715 | FI43: 146.1503035 | FJ43: 163.9758195 | FK43: 206.46325 | FL43: 118.4492621 | FM43: 43.60392583 | FN43: 35.79518779 | FO43: 862.3454903 | FP43: 117.0388564 | FQ43: 469.6736121 | FR43: 166.4784131 | FS43: 143.1128828 | FT43: 333.9890868 | FU43: 5.859609542e-05 | FV43: 105.061059 | FW43: 104.1921545 | FX43: 164.2904803 | FY43: 114.8794042 | FZ43: 300.3159903 | GA43: 118.6046146 | GB43: 42.52415355 | GC43: 114.859844 | GD43: 809.5607815 | GE43: 804.5544364 | GF43: 169.7740199 | GG43: 709.7150457 | GH43: 118.9024619 | GI43: 42.69493749 | GJ43: 345.0458222 | GK43: 188.595486 | GL43: 138.2587774 | GM43: 734.8110663 | GN43: 192.005865 | GO43: 120.1290049 | GP43: 216.1142581 | GQ43: 876.2118701 | GR43: 865.2253331 | GS43: 397.3354319 | GT43: 33288.71626 | GU43: 4085.286906 | GV43: 4175.991943 | GW43: 12468.3538 | GX43: 7311.355602 | GY43: 1396.049894 | GZ43: 1140.947969 | HA43: 1160.448367 | HB43: 7.847145038 | HC43: 670.2900157 | HD43: 534.7851836 | HE43: 1593.788215 | HF43: 72.53472441 | HG43: 26.41043522 | HH43: 3201.185059 | HI43: 1121.954933 | HJ43: 137.3291216 | HK43: 146.9784045 | HL43: 76.14654135 | HM43: 96.37550969 | HN43: 119.8863061 | HO43: 108.2045209 | HP43: 4.964904628 | HQ43: 76.07310446 | HR43: 74.50870892 | HS43: 132.9958171 | HT43: 87.6929235 | HU43: 34.312143 | HV43: 121.1405422 | HW43: 102.5860672 | HX43: 67.73183551 | HY43: 145.3517121 | HZ43: 110.6995138 | IA43: 142.8006209 | IB43: 37.6601505 | IC43: 2330.997045 | ID43: 5300.238592 | IE43: 151.918835 | IF43: 828.2387159 | IG43: 354.4550315 | IH43: 360.2550218 | II43: 209.3712737 | IJ43: 262.2831604 | IK43: 224.013219 | IL43: 280.9237933 | IM43: 414.669697 | IN43: 2663.591001 | IO43: 117.0477741 | IP43: 500.4636614 | IQ43: 136.1210087 | IR43: 106.9166684 | IS43: 125.4290154 | IT43: 103.0650955 | IU43: 3900.894303 | IV43: 6427.809443 | IW43: 15.31865407 | IX43: 1172.939335 | IY43: 353954.9425
A44: =+MATCH(B44,RUT[EMPRESA],0) -> 36 | B44: CARRAN | C44: 10597563.99 | D44: 10597563.99 | F44: =IFERROR(INDEX($B$9:$B$511,MATCH(0,INDEX(COUNTIF($F$8:F43,$B$9:$B$511),0,0),0)),"") -> CARRAN | H44: 10597563.99 | J44: DOS_VALLES | K44: 18902.20282 | L44: 1931.101922 | M44: 3309.652888 | N44: 72049.83989 | O44: 29906.44634 | P44: 7292.895905 | Q44: 122.7154789 | R44: 179.605231 | S44: 875.0443593 | T44: 1365.068571 | U44: 1041.897888 | V44: 432.454691 | W44: 703.2368975 | X44: 618.7691755 | Y44: 409.2234476 | Z44: 1783.213589 | AA44: 4488.608123 | AB44: 37874.9246 | AC44: 473.7641042 | AD44: 46.10181171 | AE44: 255.0284356 | AF44: 2418.825289 | AG44: 157.8378843 | AH44: 3231.008988 | AI44: 182.9048563 | AJ44: 1789.799183 | AK44: 7728.965772 | AL44: 5104.394995 | AM44: 46.47291525 | AN44: 602.1435696 | AO44: 11654.07112 | AP44: 4004.568168 | AQ44: 415.978767 | AR44: 21371.16709 | AS44: 523.2827048 | AT44: 1042.003147 | AU44: 790.0859802 | AV44: 11652.6338 | AW44: 10017.88647 | AX44: 42.90129335 | AY44: 2.516169109 | AZ44: 466.6481772 | BA44: 2241.22598 | BB44: 4.646892049 | BC44: 6186.373957 | BD44: 1954.009766 | BE44: 37.35906378 | BF44: 162.7112197 | BG44: 3361.145517 | BH44: 1321.355193 | BI44: 102.0513395 | BJ44: 187.1905835 | BK44: 18632.70321 | BL44: 384.9575912 | BM44: 10546.77964 | BN44: 4819.204415 | BO44: 1384.483115 | BP44: 7.056357761 | BQ44: 11189.06523 | BR44: 901.9451925 | BS44: 130.5563957 | BT44: 1084.861143 | BU44: 6196.114113 | BV44: 309.2602284 | BW44: 289.547368 | BX44: 332.3455153 | BY44: 5160.217891 | BZ44: 22003.00533 | CA44: 1794.813845 | CB44: 143.3164684 | CC44: 692.0468732 | CD44: 337.7518703 | CE44: 7492.624183 | CF44: 3491.845425 | CG44: 110.5311247 | CH44: 1241.931585 | CI44: 1899.281608 | CJ44: 879.7368428 | CK44: 130.6768882 | CL44: 1552.950947 | CM44: 6679.130468 | CN44: 18.45689408 | CO44: 1373.422577 | CP44: 439.8232451 | CQ44: 644.8540669 | CR44: 80.54770068 | CS44: 1480.587706 | CT44: 282.2823459 | CU44: 7658.488837 | CV44: 1357.411349 | CW44: 450.6550064 | CX44: 276.3128516 | CY44: 278.1799444 | CZ44: 523.1129441 | DA44: 11.4544918 | DB44: 178.6116208 | DC44: 1355.625101 | DD44: 131.8254779 | DE44: 1335.672989 | DF44: 1.352177988 | DG44: 5384.432285 | DH44: 17.10604182 | DI44: 1174.100805 | DJ44: 241.5464383 | DK44: 16217.9084 | DL44: 421.5787461 | DM44: 2467.309436 | DN44: 2733.567042 | DO44: 18.35517426 | DP44: 974.162106 | DQ44: 356.3609501 | DR44: 340.6990298 | DS44: 134.5121998 | DT44: 365.1592195 | DU44: 1012.250849 | DV44: 4664.658467 | DW44: 1756.489408 | DX44: 946.7184607 | DY44: 421.0181877 | DZ44: 4922.506552 | EA44: 293.9751035 | EB44: 562.5857657 | EC44: 1122.932853 | ED44: 737.4231337 | EE44: 23037.36536 | EF44: 18.66257823 | EG44: 32.66015787 | EH44: 352.9910277 | EI44: 408.6167482 | EJ44: 2407.634673 | EK44: 638.8602731 | EL44: 308.8481444 | EM44: 141.1649798 | EN44: 314.5203231 | EO44: 402.5624717 | EP44: 398.1728875 | EQ44: 346.6382235 | ER44: 889.323907 | ES44: 341.8532179 | ET44: 962.9413965 | EU44: 281.1668789 | EV44: 256.1205697 | EW44: 270.3776009 | EX44: 1363.760673 | EY44: 408.223501 | EZ44: 303.1832017 | FA44: 323.3813166 | FB44: 317.761896 | FC44: 291.8703959 | FD44: 373.7295564 | FE44: 2449.881342 | FF44: 264.9526672 | FG44: 274.5209156 | FH44: 265.7563308 | FI44: 298.1412174 | FJ44: 334.5046114 | FK44: 421.1773991 | FL44: 241.6321169 | FM44: 88.9503971 | FN44: 73.02086011 | FO44: 1759.152928 | FP44: 238.7549413 | FQ44: 958.1168097 | FR44: 339.6098098 | FS44: 291.9449916 | FT44: 681.3253928 | FU44: 0.000119533869 | FV44: 214.3206773 | FW44: 212.5481443 | FX44: 335.1465078 | FY44: 234.3497387 | FZ44: 612.6335205 | GA44: 241.9490303 | GB44: 86.74770155 | GC44: 234.3098366 | GD44: 1651.474073 | GE44: 1641.261314 | GF44: 346.3327258 | GG44: 1447.792462 | GH44: 242.5566277 | GI44: 87.09609448 | GJ44: 703.8807245 | GK44: 384.7278209 | GL44: 282.0427958 | GM44: 1498.987417 | GN44: 391.6848681 | GO44: 245.05873 | GP44: 440.865099 | GQ44: 1787.43983 | GR44: 1765.027701 | GS44: 810.5495957 | GT44: 67907.75083 | GU44: 8333.834296 | GV44: 8518.86922 | GW44: 25434.98092 | GX44: 14914.8952 | GY44: 2847.890187 | GZ44: 2327.491687 | HA44: 2367.271779 | HB44: 16.00788585 | HC44: 1367.366858 | HD44: 1090.942009 | HE44: 3251.269053 | HF44: 147.9681569 | HG44: 53.87631173 | HH44: 6530.299206 | HI44: 2288.746596 | HJ44: 280.1463325 | HK44: 299.830513 | HL44: 155.33613 | HM44: 196.6024778 | HN44: 244.5636335 | HO44: 220.7332235 | HP44: 10.12822194 | HQ44: 155.1863214 | HR44: 151.9950124 | HS44: 271.3065515 | HT44: 178.8903228 | HU44: 69.99550354 | HV44: 247.1222288 | HW44: 209.2717856 | HX44: 138.1704411 | HY44: 296.5121206 | HZ44: 225.8229168 | IA44: 291.3079888 | IB44: 76.82531512 | IC44: 4755.147819 | ID44: 10812.29083 | IE44: 309.9088085 | IF44: 1689.576369 | IG44: 723.0751637 | IH44: 734.9069295 | II44: 427.1096601 | IJ44: 535.0479533 | IK44: 456.9786873 | IL44: 573.0741555 | IM44: 845.9108558 | IN44: 5433.627196 | IO44: 238.7731332 | IP44: 1020.927372 | IQ44: 277.6818268 | IR44: 218.106052 | IS44: 255.8705556 | IT44: 210.2489856 | IU44: 7957.680202 | IV44: 13112.49369 | IW44: 31.24948813 | IX44: 2392.752891 | IY44: 722055.0006
A45: =+MATCH(B45,RUT[EMPRESA],0) -> 77 | B45: DONGO | C45: 100512931.9 | D45: 100512931.9 | F45: =IFERROR(INDEX($B$9:$B$511,MATCH(0,INDEX(COUNTIF($F$8:F44,$B$9:$B$511),0,0),0)),"") -> DONGO | H45: 100512931.9 | J45: ENERKEY | K45: 6686.288896 | L45: 683.0899797 | M45: 1170.725738 | N45: 25486.23825 | O45: 10578.82735 | P45: 2579.720966 | Q45: 43.40822874 | R45: 63.53187897 | S45: 309.5300288 | T45: 482.8666224 | U45: 368.5512396 | V45: 152.9724882 | W45: 248.75646 | X45: 218.8776359 | Y45: 144.7548849 | Z45: 630.7773401 | AA45: 1587.758365 | AB45: 13397.52251 | AC45: 167.5848947 | AD45: 16.30762481 | AE45: 90.21137978 | AF45: 855.6126937 | AG45: 55.83210079 | AH45: 1142.906979 | AI45: 64.69905762 | AJ45: 633.106867 | AK45: 2733.972252 | AL45: 1805.581069 | AM45: 16.43889552 | AN45: 212.9966492 | AO45: 4122.402401 | AP45: 1416.538587 | AQ45: 147.1444486 | AR45: 7559.637286 | AS45: 185.1011425 | AT45: 368.588473 | AU45: 279.4776443 | AV45: 4121.893978 | AW45: 3543.633709 | AX45: 15.1755033 | AY45: 0.8900461886 | AZ45: 165.0677731 | BA45: 792.7903708 | BB45: 1.643748245 | BC45: 2188.310214 | BD45: 691.1931866 | BE45: 13.21504672 | BF45: 57.55594901 | BG45: 1188.940261 | BH45: 467.4038598 | BI45: 36.09868885 | BJ45: 66.21505081 | BK45: 6590.958616 | BL45: 136.1713072 | BM45: 3730.719444 | BN45: 1704.700414 | BO45: 489.7341418 | BP45: 2.496050169 | BQ45: 3957.915556 | BR45: 319.0456786 | BS45: 46.18180151 | BT45: 383.7486604 | BU45: 2191.755606 | BV45: 109.3948282 | BW45: 102.4217849 | BX45: 117.5608023 | BY45: 1825.327339 | BZ45: 7783.137851 | CA45: 634.8807067 | CB45: 50.69543059 | CC45: 244.7982051 | CD45: 119.4731959 | CE45: 2650.370983 | CF45: 1235.172827 | CG45: 39.09824894 | CH45: 439.3092934 | CI45: 671.8341585 | CJ45: 311.1899041 | CK45: 46.22442342 | CL45: 549.3263812 | CM45: 2362.613305 | CN45: 6.528769538 | CO45: 485.8216903 | CP45: 155.5789718 | CQ45: 228.1046621 | CR45: 28.49219225 | CS45: 523.7292834 | CT45: 99.85192378 | CU45: 2709.042399 | CV45: 480.1580279 | CW45: 159.410498 | CX45: 97.74033052 | CY45: 98.40077854 | CZ45: 185.041093 | DA45: 4.051805075 | DB45: 63.18040854 | DC45: 479.5261774 | DD45: 46.6307148 | DE45: 472.4685033 | DF45: 0.4783068277 | DG45: 1904.638848 | DH45: 6.050931658 | DI45: 415.3154661 | DJ45: 85.44238382 | DK45: 5736.771627 | DL45: 149.125333 | DM45: 872.7630236 | DN45: 966.9465052 | DO45: 6.492788116 | DP45: 344.5910159 | DQ45: 126.0557982 | DR45: 120.5156966 | DS45: 47.58109075 | DT45: 129.1680159 | DU45: 358.0641725 | DV45: 1650.032772 | DW45: 621.3241779 | DX45: 334.8833568 | DY45: 148.9270462 | DZ45: 1741.241548 | EA45: 103.9880108 | EB45: 199.0038407 | EC45: 397.2157922 | ED45: 260.8491803 | EE45: 8149.022718 | EF45: 6.601526328 | EG45: 11.55289957 | EH45: 124.8637533 | EI45: 144.5402767 | EJ45: 851.6542296 | EK45: 225.9844734 | EL45: 109.2490615 | EM45: 49.9343831 | EN45: 111.2554851 | EO45: 142.3986934 | EP45: 140.8459629 | EQ45: 122.6165716 | ER45: 314.5811428 | ES45: 120.9239683 | ET45: 340.6219068 | EU45: 99.45734887 | EV45: 90.5977011 | EW45: 95.64085032 | EX45: 482.4039787 | EY45: 144.4011731 | EZ45: 107.2451975 | FA45: 114.3898903 | FB45: 112.4021289 | FC45: 103.2435111 | FD45: 132.199607 | FE45: 866.5981722 | FF45: 93.72188487 | FG45: 97.10646783 | FH45: 94.00616536 | FI45: 105.461693 | FJ45: 118.3245408 | FK45: 148.9833642 | FL45: 85.47269095 | FM45: 31.46448369 | FN45: 25.82971788 | FO45: 622.2663465 | FP45: 84.45494571 | FQ45: 338.9153025 | FR45: 120.130406 | FS45: 103.2698979 | FT45: 241.0056887 | FU45: 4.228279573e-05 | FV45: 75.81179709 | FW45: 75.18479779 | FX45: 118.5515992 | FY45: 82.89669044 | FZ45: 216.7072666 | GA45: 85.58479294 | GB45: 30.68532272 | GC45: 82.88257582 | GD45: 584.1770328 | GE45: 580.5644667 | GF45: 122.5085076 | GG45: 512.1285999 | GH45: 85.79971881 | GI45: 30.80855998 | GJ45: 248.9842013 | GK45: 136.0900304 | GL45: 99.76718755 | GM45: 530.2378255 | GN45: 138.5509514 | GO45: 86.68478911 | GP45: 155.9475075 | GQ45: 632.2722914 | GR45: 624.3444339 | GS45: 286.7162528 | GT45: 24021.0543 | GU45: 2947.932802 | GV45: 3013.38533 | GW45: 8997.13288 | GX45: 5275.855895 | GY45: 1007.386108 | GZ45: 823.3051975 | HA45: 837.3766361 | HB45: 5.66248021 | HC45: 483.6795969 | HD45: 385.8996494 | HE45: 1150.073585 | HF45: 52.34087551 | HG45: 19.05770393 | HH45: 2309.967123 | HI45: 809.5998702 | HJ45: 99.0963503 | HK45: 106.0592487 | HL45: 54.94715357 | HM45: 69.54432647 | HN45: 86.50965829 | HO45: 78.08011135 | HP45: 3.582662748 | HQ45: 54.89416169 | HR45: 53.76529779 | HS45: 95.96944863 | HT45: 63.27899402 | HU45: 24.75955647 | HV45: 87.41471195 | HW45: 74.02584923 | HX45: 48.8751229 | HY45: 104.8854315 | HZ45: 79.88049199 | IA45: 103.0445705 | IB45: 27.1754703 | IC45: 1682.041631 | ID45: 3824.638896 | IE45: 109.6242509 | IF45: 597.6549835 | IG45: 255.7738632 | IH45: 259.9591217 | II45: 151.0817869 | IJ45: 189.2628718 | IK45: 161.6473779 | IL45: 202.7139058 | IM45: 299.224615 | IN45: 1922.040597 | IO45: 84.46138074 | IP45: 361.1333249 | IQ45: 98.22457905 | IR45: 77.15080022 | IS45: 90.50926345 | IT45: 74.37151485 | IU45: 2814.875561 | IV45: 4638.291199 | IW45: 11.05390242 | IX45: 846.3900868 | IY45: 255413.0002
A46: =+MATCH(B46,RUT[EMPRESA],0) -> 178 | B46: INACAL | C46: 6558864.995 | D46: 6558864.995 | F46: =IFERROR(INDEX($B$9:$B$511,MATCH(0,INDEX(COUNTIF($F$8:F45,$B$9:$B$511),0,0),0)),"") -> INACAL | H46: 6558864.995 | J46: EL_PELICANO | K46: 2440603.052 | L46: 249338.8359 | M46: 427333.7355 | N46: 9302887.121 | O46: 3861442.231 | P46: 941639.6691 | Q46: 15844.70208 | R46: 23190.15827 | S46: 112983.4419 | T46: 176254.0882 | U46: 134527.1337 | V46: 55837.42006 | W46: 90800.11124 | X46: 79893.85962 | Y46: 52837.86259 | Z46: 230243.8805 | AA46: 579557.3559 | AB46: 4890311.329 | AC46: 61171.18358 | AD46: 5952.545503 | AE46: 32928.60543 | AF46: 312312.403 | AG46: 20379.61532 | AH46: 417179.4406 | AI46: 23616.19726 | AJ46: 231094.1953 | AK46: 997943.8712 | AL46: 659066.1482 | AM46: 6000.461422 | AN46: 77747.20481 | AO46: 1504743.22 | AP46: 517059.3813 | AQ46: 53710.0918 | AR46: 2759389.27 | AS46: 67564.89595 | AT46: 134540.7245 | AU46: 102013.8379 | AV46: 1504557.637 | AW46: 1293483.333 | AX46: 5539.302932 | AY46: 324.8811828 | AZ46: 60252.39368 | BA46: 289381.2441 | BB46: 599.9945629 | BC46: 798768.4456 | BD46: 252296.6368 | BE46: 4823.704728 | BF46: 21008.84766 | BG46: 433982.3293 | BH46: 170609.931 | BI46: 13176.60238 | BJ46: 24169.55917 | BK46: 2405805.966 | BL46: 49704.71861 | BM46: 1361772.637 | BN46: 622243.0855 | BO46: 178760.8433 | BP46: 911.0984817 | BQ46: 1444702.874 | BR46: 116456.8072 | BS46: 16857.10078 | BT46: 140074.4369 | BU46: 800026.069 | BV46: 39930.87285 | BW46: 37385.59981 | BX46: 42911.58479 | BY46: 666273.8547 | BZ46: 2840970.573 | CA46: 231741.6754 | CB46: 18504.64803 | CC46: 89355.28453 | CD46: 43609.63924 | CE46: 967428.0626 | CF46: 450857.96 | CG46: 14271.49009 | CH46: 160354.9621 | CI46: 245230.28 | CJ46: 113589.3231 | CK46: 16872.65846 | CL46: 200512.9697 | CM46: 862391.8791 | CN46: 2383.105952 | CO46: 177332.7355 | CP46: 56788.82852 | CQ46: 83261.87266 | CR46: 10400.10871 | CS46: 191169.6171 | CT46: 36447.55914 | CU46: 988844.0734 | CV46: 175265.4076 | CW46: 58187.39725 | CX46: 35676.79362 | CY46: 35917.86777 | CZ46: 67542.97689 | DA46: 1478.97406 | DB46: 23061.86591 | DC46: 175034.772 | DD46: 17020.96135 | DE46: 172458.6074 | DF46: 174.5896897 | DG46: 695223.8317 | DH46: 2208.687436 | DI46: 151596.829 | DJ46: 31187.84516 | DK46: 2094013.968 | DL46: 54433.14647 | DM46: 318572.5494 | DN46: 352951.0359 | DO46: 2369.972154 | DP46: 125781.2665 | DQ46: 46012.395 | DR46: 43990.16876 | DS46: 17367.86387 | DT46: 47148.40457 | DU46: 130699.1854 | DV46: 602288.5165 | DW46: 226793.3242 | DX46: 122237.8147 | DY46: 54360.76863 | DZ46: 635581.1876 | EA46: 37957.29745 | EB46: 72639.60451 | EC46: 144990.1567 | ED46: 95214.14876 | EE46: 2974524.438 | EF46: 2409.663351 | EG46: 4216.994271 | EH46: 45577.27943 | EI46: 52759.52716 | EJ46: 310867.4999 | EK46: 82487.96966 | EL46: 39877.66565 | EM46: 18226.85345 | EN46: 40610.04255 | EO46: 51977.81479 | EP46: 51411.04315 | EQ46: 44757.02195 | ER46: 114827.1798 | ES46: 44139.19452 | ET46: 124332.4778 | EU46: 36303.53295 | EV46: 33069.61893 | EW46: 34910.44956 | EX46: 176085.2158 | EY46: 52708.7521 | EZ46: 39146.22305 | FA46: 41754.15087 | FB46: 41028.58597 | FC46: 37685.5431 | FD46: 48254.98409 | FE46: 316322.2794 | FF46: 34209.99629 | FG46: 35445.42354 | FH46: 34313.76324 | FI46: 38495.2152 | FJ46: 43190.36164 | FK46: 54381.3256 | FL46: 31198.90775 | FM46: 11485.04292 | FN46: 9428.262715 | FO46: 227137.2309 | FP46: 30827.41435 | FQ46: 123709.5397 | FR46: 43849.53152 | FS46: 37695.17471 | FT46: 87970.95499 | FU46: 0.01543390092 | FV46: 27672.52601 | FW46: 27443.66118 | FX46: 43273.24163 | FY46: 30258.62611 | FZ46: 79101.63987 | GA46: 31239.82678 | GB46: 11200.63663 | GC46: 30253.47404 | GD46: 213234.0184 | GE46: 211915.3737 | GF46: 44717.57688 | GG46: 186935.1809 | GH46: 31318.27818 | GI46: 11245.62021 | GJ46: 90883.2405 | GK46: 49675.05127 | GL46: 36416.62905 | GM46: 193545.3397 | GN46: 50573.32703 | GO46: 31641.34308 | GP46: 56923.34998 | GQ46: 230789.5618 | GR46: 227895.7662 | GS46: 104656.0465 | GT46: 8768071.402 | GU46: 1076042.915 | GV46: 1099934.141 | GW46: 3284098.296 | GX46: 1925772.308 | GY46: 367712.1418 | GZ46: 300519.6469 | HA46: 305655.9485 | HB46: 2066.896406 | HC46: 176550.8369 | HD46: 140859.5825 | HE46: 419795.3673 | HF46: 19105.26191 | HG46: 6956.368637 | HH46: 843175.1753 | HI46: 295516.9819 | HJ46: 36171.76266 | HK46: 38713.33263 | HL46: 20056.59534 | HM46: 25384.79837 | HN46: 31577.41751 | HO46: 28500.49722 | HP46: 1307.72956 | HQ46: 20037.25245 | HR46: 19625.19896 | HS46: 35030.39323 | HT46: 23097.8512 | HU46: 9037.636578 | HV46: 31907.77667 | HW46: 27020.6263 | HX46: 17840.20643 | HY46: 38284.87048 | HZ46: 29157.66513 | IA46: 37612.92658 | IB46: 9919.484008 | IC46: 613972.2652 | ID46: 1396054.749 | IE46: 40014.61583 | IF46: 218153.6873 | IG46: 93361.57635 | IH46: 94889.26305 | II46: 55147.28364 | IJ46: 69083.9941 | IK46: 59003.89441 | IL46: 73993.83799 | IM46: 109221.8 | IN46: 701575.75 | IO46: 30829.76324 | IP46: 131819.4755 | IQ46: 35853.55213 | IR46: 28161.28371 | IS46: 33037.33777 | IT46: 27146.79981 | IU46: 1027474.881 | IV46: 1693050.934 | IW46: 4034.852279 | IX46: 308946.003 | IY46: 93229855.55
A47: =+MATCH(B47,RUT[EMPRESA],0) -> 166 | B47: HIDROLIRCAY | C47: 134262771.2 | D47: 134262771.2 | F47: =IFERROR(INDEX($B$9:$B$511,MATCH(0,INDEX(COUNTIF($F$8:F46,$B$9:$B$511),0,0),0)),"") -> HIDROLIRCAY | H47: 134262771.2 | J47: EMBALSE_ANCOA | K47: 1565032.496 | L47: 159888.0982 | M47: 274027.0204 | N47: 5965460.312 | O47: 2476143.167 | P47: 603824.8128 | Q47: 10160.38786 | R47: 14870.64897 | S47: 72450.43715 | T47: 113022.6299 | U47: 86265.29235 | V47: 35805.64926 | W47: 58225.41463 | X47: 51231.7996 | Y47: 33882.1882 | Z47: 147643.4911 | AA47: 371640.1543 | AB47: 3135903.7 | AC47: 39225.91591 | AD47: 3817.059531 | AE47: 21115.41141 | AF47: 200269.7894 | AG47: 13068.39315 | AH47: 267515.5964 | AI47: 15143.84574 | AJ47: 148188.7539 | AK47: 639929.7852 | AL47: 422625.0302 | AM47: 3847.785532 | AN47: 49855.26092 | AO47: 964913.9932 | AP47: 331563.436 | AQ47: 34441.50368 | AR47: 1769453.607 | AS47: 43325.87293 | AT47: 86274.00741 | AU47: 65416.19753 | AV47: 964794.9885 | AW47: 829443.9552 | AX47: 3552.068446 | AY47: 208.3294978 | AZ47: 38636.74347 | BA47: 185565.2234 | BB47: 384.745478 | BC47: 512208.8873 | BD47: 161784.783 | BE47: 3093.192332 | BF47: 13471.88731 | BG47: 278290.4197 | BH47: 109403.3238 | BI47: 8449.473539 | BJ47: 15498.68811 | BK47: 1542718.924 | BL47: 31873.06503 | BM47: 873234.3537 | BN47: 399012.3048 | BO47: 114630.0823 | BP47: 584.2403291 | BQ47: 926413.225 | BR47: 74677.72666 | BS47: 10809.58678 | BT47: 89822.49093 | BU47: 513015.3361 | BV47: 25605.60331 | BW47: 23973.45136 | BX47: 27516.97969 | BY47: 427246.9595 | BZ47: 1821767.477 | CA47: 148603.9494 | CB47: 11866.07362 | CC47: 57298.922 | CD47: 27964.6059 | CE47: 620361.5756 | CF47: 289111.8888 | CG47: 9151.568392 | CH47: 102827.3427 | CI47: 157253.4938 | CJ47: 72838.95743 | CK47: 10819.56312 | CL47: 128578.5958 | CM47: 553007.3042 | CN47: 1528.162579 | CO47: 113714.3106 | CP47: 36415.73829 | CQ47: 53391.53216 | CR47: 6669.051761 | CS47: 122587.187 | CT47: 23371.9344 | CU47: 634094.5556 | CV47: 112388.6402 | CW47: 37312.56807 | CX47: 22877.68234 | CY47: 23032.27073 | CZ47: 43311.81737 | DA47: 948.3895637 | DB47: 14788.38172 | DC47: 112240.7455 | DD47: 10914.66209 | DE47: 110588.7844 | DF47: 111.9553372 | DG47: 445811.0823 | DH47: 1416.317007 | DI47: 97211.20498 | DJ47: 19999.15189 | DK47: 1342782.843 | DL47: 34905.16124 | DM47: 204284.0975 | DN47: 226329.2427 | DO47: 1519.740554 | DP47: 80657.02005 | DQ47: 29505.36889 | DR47: 28208.6198 | DS47: 11137.11273 | DT47: 30233.83307 | DU47: 83810.62711 | DV47: 386216.4718 | DW47: 145430.8277 | DX47: 78384.78771 | DY47: 34858.74907 | DZ47: 407565.3397 | EA47: 24340.05149 | EB47: 46580.02103 | EC47: 92974.68779 | ED47: 61055.90858 | EE47: 1907408.663 | EF47: 1545.192466 | EG47: 2704.140299 | EH47: 29226.35178 | EI47: 33831.95574 | EJ47: 199343.2478 | EK47: 52895.26819 | EL47: 25571.48428 | EM47: 11687.93832 | EN47: 26041.1197 | EO47: 33330.68403 | EP47: 32967.2427 | EQ47: 28700.36308 | ER47: 73632.73089 | ES47: 28304.18232 | ET47: 79727.9868 | EU47: 23279.57785 | EV47: 21205.83607 | EW47: 22386.26553 | EX47: 112914.3407 | EY47: 33799.39633 | EZ47: 25102.44797 | FA47: 26774.77719 | FB47: 26309.50995 | FC47: 24165.78948 | FD47: 30943.42527 | FE47: 202841.1158 | FF47: 21937.10108 | FG47: 22729.31667 | FH47: 22003.64146 | FI47: 24684.99031 | FJ47: 27695.74487 | FK47: 34871.93119 | FL47: 20006.24575 | FM47: 7364.763953 | FN47: 6045.857195 | FO47: 145651.3573 | FP47: 19768.02626 | FQ47: 79328.52885 | FR47: 28118.43642 | FS47: 24171.96573 | FT47: 56411.22307 | FU47: 0.00989696233 | FV47: 17744.95955 | FW47: 17598.20037 | FX47: 27748.89151 | FY47: 19403.29177 | FZ47: 50723.79006 | GA47: 20032.48501 | GB47: 7182.388907 | GC47: 19399.98802 | GD47: 136735.9463 | GE47: 135890.3676 | GF47: 28675.069 | GG47: 119871.8621 | GH47: 20082.79183 | GI47: 7211.234553 | GJ47: 58278.72113 | GK47: 31854.0409 | GL47: 23352.10054 | GM47: 124110.615 | GN47: 32430.05868 | GO47: 20289.95665 | GP47: 36501.99994 | GQ47: 147993.4082 | GR47: 146137.7668 | GS47: 67110.50922 | GT47: 5622510.655 | GU47: 690010.6623 | GV47: 705330.8698 | GW47: 2105922.365 | GX47: 1234898.169 | GY47: 235794.7764 | GZ47: 192707.705 | HA47: 196001.3495 | HB47: 1325.393753 | HC47: 113212.9195 | HD47: 90325.96418 | HE47: 269193.0548 | HF47: 12251.21623 | HG47: 4460.759384 | HH47: 540684.6261 | HI47: 189499.7547 | HJ47: 23195.08039 | HK47: 24824.85774 | HL47: 12861.25715 | HM47: 16277.95815 | HN47: 20248.96449 | HO47: 18275.89466 | HP47: 838.5793238 | HQ47: 12848.85356 | HR47: 12584.62497 | HS47: 22463.17921 | HT47: 14811.45722 | HU47: 5795.368859 | HV47: 20460.80672 | HW47: 17326.92999 | HX47: 11440.00159 | HY47: 24550.10712 | HZ47: 18697.30245 | IA47: 24119.22426 | IB47: 6360.852002 | IC47: 393708.6555 | ID47: 895217.6984 | IE47: 25659.30334 | IF47: 139890.6755 | IG47: 59867.94972 | IH47: 60847.57618 | II47: 35363.10046 | IJ47: 44299.99199 | IK47: 37836.14547 | IL47: 47448.42092 | IM47: 70038.29079 | IN47: 449884.239 | IO47: 19769.53248 | IP47: 84529.01117 | IQ47: 22991.02843 | IR47: 18058.37458 | IS47: 21185.13583 | IT47: 17407.83853 | IU47: 658866.4942 | IV47: 1085665.99 | IW47: 2587.342061 | IX47: 198111.0913 | IY47: 59783483.98
A48: =+MATCH(B48,RUT[EMPRESA],0) -> 200 | B48: LOS MORROS | C48: 7600508.994 | D48: 7600508.994 | F48: =IFERROR(INDEX($B$9:$B$511,MATCH(0,INDEX(COUNTIF($F$8:F47,$B$9:$B$511),0,0),0)),"") -> LOS MORROS | H48: 7600508.994 | J48: CH_EL_MANZANO | K48: 55.89076042 | L48: 5.709956449 | M48: 9.786108974 | N48: 213.0397382 | O48: 88.42853098 | P48: 21.56391516 | Q48: 0.3628498485 | R48: 0.5310636561 | S48: 2.587364823 | T48: 4.036287263 | U48: 3.080723756 | V48: 1.278698666 | W48: 2.079357911 | X48: 1.829600501 | Y48: 1.210007632 | Z48: 5.272674536 | AA48: 13.27208917 | AB48: 111.990034 | AC48: 1.400843928 | AD48: 0.1363156103 | AE48: 0.7540778888 | AF48: 7.152075662 | AG48: 0.466701128 | AH48: 9.553571666 | AI48: 0.540820115 | AJ48: 5.292147075 | AK48: 22.85330331 | AL48: 15.09287148 | AM48: 0.1374129035 | AN48: 1.78044127 | AO48: 34.45920578 | AP48: 11.84086121 | AQ48: 1.22998202 | AR48: 63.19108896 | AS48: 1.547262431 | AT48: 3.08103499 | AU48: 2.336156619 | AV48: 34.45495587 | AW48: 29.62127209 | AX48: 0.1268521945 | AY48: 0.007439905614 | AZ48: 1.379803281 | BA48: 6.626943192 | BB48: 0.01374010917 | BC48: 18.29210849 | BD48: 5.777691243 | BE48: 0.1104647169 | BF48: 0.4811107936 | BG48: 9.93836436 | BH48: 3.907033865 | BI48: 0.3017493264 | BJ48: 0.5534923182 | BK48: 55.0938936 | BL48: 1.138257414 | BM48: 31.18512376 | BN48: 14.249609 | BO48: 4.093692932 | BP48: 0.02086451007 | BQ48: 33.08425848 | BR48: 2.666906241 | BS48: 0.386034173 | BT48: 3.207759159 | BU48: 18.32090856 | BV48: 0.9144325399 | BW48: 0.856144796 | BX48: 0.9826920042 | BY48: 15.25793076 | BZ48: 65.05933258 | CA48: 5.306974621 | CB48: 0.4237636468 | CC48: 2.046270816 | CD48: 0.9986777228 | CE48: 22.15447941 | CF48: 10.32482288 | CG48: 0.3268226813 | CH48: 3.672191084 | CI48: 5.61586892 | CJ48: 2.601239738 | CK48: 0.3863904499 | CL48: 4.591825098 | CM48: 19.7491099 | CN48: 0.05457405443 | CO48: 4.060988708 | CP48: 1.30048629 | CQ48: 1.906729311 | CR48: 0.2381665399 | CS48: 4.377858684 | CT48: 0.8346632993 | CU48: 22.6449144 | CV48: 4.013646093 | CW48: 1.332514059 | CX48: 0.8170124687 | CY48: 0.8225331607 | CZ48: 1.546760476 | DA48: 0.03386908198 | DB48: 0.5281257111 | DC48: 4.008364448 | DD48: 0.389786644 | DE48: 3.949369275 | DF48: 0.003998171891 | DG48: 15.92089651 | DH48: 0.05057980248 | DI48: 3.471626425 | DJ48: 0.7142138007 | DK48: 47.95373541 | DL48: 1.246540254 | DM48: 7.295435453 | DN48: 8.082716183 | DO48: 0.05427328534 | DP48: 2.880439989 | DQ48: 1.053701766 | DR48: 1.007391997 | DS48: 0.3977308467 | DT48: 1.079716827 | DU48: 2.993062249 | DV48: 13.7926416 | DW48: 5.193655451 | DX48: 2.799293563 | DY48: 1.244882773 | DZ48: 14.55505673 | EA48: 0.8692368946 | EB48: 1.663475234 | EC48: 3.320331057 | ED48: 2.180441089 | EE48: 68.11776809 | EF48: 0.05518222922 | EG48: 0.09657081116 | EH48: 1.04373745 | EI48: 1.20821372 | EJ48: 7.118986818 | EK48: 1.889006631 | EL48: 0.9132140742 | EM48: 0.4174020426 | EN48: 0.9299857904 | EO48: 1.190312202 | EP48: 1.177332911 | EQ48: 1.024953234 | ER48: 2.629587139 | ES48: 1.010804745 | ET48: 2.847262164 | EU48: 0.8313650434 | EV48: 0.757307153 | EW48: 0.7994628912 | EX48: 4.03242002 | EY48: 1.207050951 | EZ48: 0.8964637538 | FA48: 0.9561863167 | FB48: 0.9395705978 | FC48: 0.8630136141 | FD48: 1.105057929 | FE48: 7.243903394 | FF48: 0.7834222385 | FG48: 0.8117140036 | FH48: 0.7857985422 | FI48: 0.8815554205 | FJ48: 0.9890761026 | FK48: 1.245353536 | FL48: 0.7144671383 | FM48: 0.2630119559 | FN48: 0.2159108881 | FO48: 5.201531049 | FP48: 0.7059597949 | FQ48: 2.83299664 | FR48: 1.00417135 | FS48: 0.8632341816 | FT48: 2.014569131 | FU48: 3.53442342e-07 | FV48: 0.6337116231 | FW48: 0.6284705292 | FX48: 0.9909740865 | FY48: 0.6929343224 | FZ48: 1.81145836 | GA48: 0.7154042 | GB48: 0.2564989409 | GC48: 0.6928163382 | GD48: 4.883142068 | GE48: 4.85294459 | GF48: 1.024049926 | GG48: 4.280888446 | GH48: 0.7172007676 | GI48: 0.2575290826 | GJ48: 2.081261603 | GK48: 1.137578021 | GL48: 0.8339549882 | GM48: 4.432263657 | GN48: 1.158148885 | GO48: 0.7245990797 | GP48: 1.303566884 | GQ48: 5.28517085 | GR48: 5.218901803 | GS48: 2.396664225 | GT48: 200.7922499 | GU48: 24.64180183 | GV48: 25.18892021 | GW48: 75.20713001 | GX48: 44.10093588 | GY48: 8.420751257 | GZ48: 6.882016955 | HA48: 6.999640262 | HB48: 0.04733273267 | HC48: 4.043082926 | HD48: 3.225739298 | HE48: 9.613477405 | HF48: 0.4375179384 | HG48: 0.159303551 | HH48: 19.3090399 | HI48: 6.767453978 | HJ48: 0.8283474526 | HK48: 0.8865503946 | HL48: 0.4593038446 | HM48: 0.5813217691 | HN48: 0.7231351593 | HO48: 0.6526724863 | HP48: 0.02994751624 | HQ48: 0.4588608849 | HR48: 0.4494246995 | HS48: 0.802209648 | HT48: 0.5289497881 | HU48: 0.2069653975 | HV48: 0.7307005125 | HW48: 0.6187828658 | HX48: 0.4085476753 | HY48: 0.8767384444 | HZ48: 0.6677218873 | IA48: 0.8613506674 | IB48: 0.2271600471 | IC48: 14.06020399 | ID48: 31.97019746 | IE48: 0.9163502866 | IF48: 4.995804402 | IG48: 2.138016459 | IH48: 2.17300108 | II48: 1.262894273 | IJ48: 1.58205037 | IK48: 1.351212162 | IL48: 1.694487708 | IM48: 2.501221759 | IN48: 16.06635791 | IO48: 0.7060135853 | IP48: 3.018717327 | IQ48: 0.8210603073 | IR48: 0.6449043646 | IS48: 0.7565679017 | IT48: 0.6216722884 | IU48: 23.52957494 | IV48: 38.77152576 | IW48: 0.09239968862 | IX48: 7.074983792 | IY48: 2135.000002
A49: =+MATCH(B49,RUT[EMPRESA],0) -> 75 | B49: DIUTO | C49: 74374103.94 | D49: 74374103.94 | F49: =IFERROR(INDEX($B$9:$B$511,MATCH(0,INDEX(COUNTIF($F$8:F48,$B$9:$B$511),0,0),0)),"") -> DIUTO | H49: 74374103.94 | J49: AASA_ENERGIA | K49: =$IY49*K$67/$IY$67 -> 14419.31905 | L49: 1473.117975 | M49: 2524.72907 | N49: 54962.35751 | O49: 22813.77444 | P49: 5563.298303 | Q49: 93.61203344 | R49: 137.0096996 | S49: 667.5171102 | T49: 1041.326212 | U49: =$IY49*U$67/$IY$67 -> 794.7993266 | V49: 329.8928821 | W49: 536.4558454 | X49: 472.0206553 | Y49: 312.1712062 | Z49: 1360.303131 | AA49: 3424.080952 | AB49: 28892.43265 | AC49: 361.4052732 | AD49: 35.16821496 | AE49: =$IY49*AE$67/$IY$67 -> 194.5453879 | AF49: 1845.171905 | AG49: 120.4047398 | AH49: 2464.736513 | AI49: 139.5267792 | AJ49: 1365.326873 | AK49: 5895.948979 | AL49: 3893.826593 | AM49: 35.45130685 | AN49: 459.338011 | AO49: =$IY49*AO$67/$IY$67 -> 8890.168584 | AP49: 3054.83687 | AQ49: 317.3244208 | AR49: 16302.73888 | AS49: 399.1799446 | AT49: 794.8796222 | AU49: 602.7076281 | AV49: 8889.072143 | AW49: 7642.024725 | AX49: 32.72673786 | AY49: =$IY49*AY$67/$IY$67 -> 1.919429472 | AZ49: 355.9769735 | BA49: 1709.692398 | BB49: 3.544825949 | BC49: 4719.201287 | BD49: 1490.592949 | BE49: 28.4989144 | BF49: 124.1223054 | BG49: 2564.009605 | BH49: 1007.979985 | BI49: =$IY49*BI$67/$IY$67 -> 77.8486422 | BJ49: 142.7960949 | BK49: 14213.7345 | BL49: 293.6602883 | BM49: 8045.484544 | BN49: 3676.272374 | BO49: 1056.136364 | BP49: 5.382858012 | BQ49: 8535.44441 | BR49: 688.0380886 | BS49: =$IY49*BS$67/$IY$67 -> 99.59338293 | BT49: 827.5733306 | BU49: 4726.631448 | BV49: 235.9154616 | BW49: 220.8777421 | BX49: 253.5257962 | BY49: 3936.41042 | BZ49: 16784.72912 | CA49: 1369.152248 | CB49: 109.3272516 | CC49: =$IY49*CC$67/$IY$67 -> 527.9196694 | CD49: 257.6499695 | CE49: 5715.658628 | CF49: 2663.712465 | CG49: 84.31734475 | CH49: 947.3926363 | CI49: 1448.844229 | CJ49: 671.096715 | CK49: 99.68529922 | CL49: 1184.650032 | CM49: =$IY49*CM$67/$IY$67 -> 5095.09469 | CN49: 14.07962062 | CO49: 1047.698965 | CP49: 335.5138953 | CQ49: 491.9192023 | CR49: 61.44484884 | CS49: 1129.4486 | CT49: 215.3357071 | CU49: 5842.186493 | CV49: 1035.484991 | CW49: =$IY49*CW$67/$IY$67 -> 343.7767747 | CX49: 210.7819498 | CY49: 212.2062392 | CZ49: 399.0504447 | DA49: 8.737921892 | DB49: 136.2517359 | DC49: 1034.122374 | DD49: 100.5614871 | DE49: 1018.902144 | DF49: 1.031492785 | DG49: =$IY49*DG$67/$IY$67 -> 4107.449686 | DH49: 13.04913914 | DI49: 895.6487383 | DJ49: 184.2608078 | DK49: 12371.6372 | DL49: 321.5962978 | DM49: 1882.157455 | DN49: 2085.268881 | DO49: 14.00202487 | DP49: 743.1278962 | DQ49: =$IY49*DQ$67/$IY$67 -> 271.8456831 | DR49: 259.8981747 | DS49: 102.6110207 | DT49: 278.5573376 | DU49: 772.1834375 | DV49: 3558.378849 | DW49: 1339.91691 | DX49: 722.1928401 | DY49: 321.1686825 | DZ49: 3755.075172 | EA49: =$IY49*EA$67/$IY$67 -> 224.2553871 | EB49: 429.161814 | EC49: 856.6158792 | ED49: 562.5344064 | EE49: 17573.77827 | EF49: 14.2365243 | EG49: 24.9144103 | EH49: 269.2749782 | EI49: 311.7083929 | EJ49: 1836.635277 | EK49: =$IY49*EK$67/$IY$67 -> 487.3469085 | EL49: 235.6011083 | EM49: 107.6860143 | EN49: 239.9280619 | EO49: 307.0899605 | EP49: 303.7414188 | EQ49: 264.4288175 | ER49: 678.4100921 | ES49: 260.7786333 | ET49: 734.5683124 | EU49: =$IY49*EU$67/$IY$67 -> 214.4847864 | EV49: 195.3785094 | EW49: 206.2543149 | EX49: 1040.328497 | EY49: 311.4084089 | EZ49: 231.2796746 | FA49: 246.6875646 | FB49: 242.4008569 | FC49: 222.6498361 | FD49: 285.0951164 | FE49: =$IY49*FE$67/$IY$67 -> 1868.862643 | FF49: 202.1159691 | FG49: 209.4149929 | FH49: 202.7290344 | FI49: 227.4334572 | FJ49: 255.1728368 | FK49: 321.290135 | FL49: 184.3261666 | FM49: 67.85474518 | FN49: 55.70308865 | FO49: =$IY49*FO$67/$IY$67 -> 1341.948744 | FP49: 182.1313477 | FQ49: 730.8879341 | FR49: 259.0672763 | FS49: 222.7067406 | FT49: 519.7409165 | FU49: 9.118498043e-05 | FV49: 163.491962 | FW49: 162.1398064 | FX49: 255.6624998 | FY49: =$IY49*FY$67/$IY$67 -> 178.7708917 | FZ49: 467.3401444 | GA49: 184.5679202 | GB49: 66.17444526 | GC49: 178.7404528 | GD49: 1259.807219 | GE49: 1252.016538 | GF49: 264.1957723 | GG49: 1104.431142 | GH49: 185.0314187 | GI49: =$IY49*GI$67/$IY$67 -> 66.44021263 | GJ49: 536.9469812 | GK49: 293.4850108 | GL49: 215.1529691 | GM49: 1143.484599 | GN49: 298.7921109 | GO49: 186.9401174 | GP49: 336.3086611 | GQ49: 1363.527069 | GR49: 1346.430244 | GS49: =$IY49*GS$67/$IY$67 -> 618.3180521 | GT49: 51802.61448 | GU49: 6357.365689 | GV49: 6498.517365 | GW49: 19402.77059 | GX49: 11377.64919 | GY49: 2172.478924 | GZ49: 1775.49916 | HA49: 1805.844927 | HB49: 12.21142401 | HC49: =$IY49*HC$67/$IY$67 -> 1043.079433 | HD49: 832.2120467 | HE49: 2480.191661 | HF49: 112.8757365 | HG49: 41.09889919 | HH49: 4981.560544 | HI49: 1745.942931 | HJ49: 213.7062748 | HK49: 228.7221161 | HL49: 118.4963065 | HM49: =$IY49*HM$67/$IY$67 -> 149.9758457 | HN49: 186.562439 | HO49: 168.3836961 | HP49: 7.726192814 | HQ49: 118.3820268 | HR49: 115.9475749 | HS49: 206.9629537 | HT49: 136.4643404 | HU49: 53.39523163 | HV49: 188.5142328 | HW49: =$IY49*HW$67/$IY$67 -> 159.6404754 | HX49: 105.4016663 | HY49: 226.1907203 | HZ49: 172.2663077 | IA49: 222.2208106 | IB49: 58.6052716 | IC49: 3627.407568 | ID49: 8248.026575 | IE49: 236.4102232 | IF49: 1288.873099 | IG49: =$IY49*IG$67/$IY$67 -> 551.5892293 | IH49: 560.6149501 | II49: 325.8154893 | IJ49: 408.1549235 | IK49: 348.600719 | IL49: 437.1627565 | IM49: 645.2929659 | IN49: 4144.977434 | IO49: 182.1452252 | IP49: 778.8022196 | IQ49: =$IY49*IQ$67/$IY$67 -> 211.8262561 | IR49: 166.3795898 | IS49: 195.1877891 | IT49: 160.3859208 | IU49: 6070.421043 | IV49: 10002.70878 | IW49: 23.83829779 | IX49: 1825.282888 | IY49: 550811.01
A50: =+MATCH(B50,RUT[EMPRESA],0) -> 195 | B50: LICAN | C50: 321172849.5 | D50: 321172849.5 | F50: =IFERROR(INDEX($B$9:$B$511,MATCH(0,INDEX(COUNTIF($F$8:F49,$B$9:$B$511),0,0),0)),"") -> LICAN | H50: 321172849.5 | J50: ERSA | K50: 16981165.03 | L50: 1734843.327 | M50: 2973291.653 | N50: 64727388.29 | O50: 26867043.25 | P50: 6551716.224 | Q50: 110243.8598 | R50: 161351.8856 | S50: 786113.2807 | T50: 1226336.153 | U50: 936009.4244 | V50: 388504.1624 | W50: 631766.6741 | X50: 555883.4377 | Y50: 367633.9188 | Z50: 1601984.939 | AA50: 4032429.236 | AB50: 34025682.14 | AC50: 425615.2848 | AD50: 41416.46771 | AE50: 229109.8023 | AF50: 2172999.189 | AG50: 141796.7623 | AH50: 2902640.362 | AI50: 164316.1688 | AJ50: 1607901.237 | AK50: 6943468.151 | AL50: 4585633.463 | AM50: 41749.85586 | AN50: 540947.4982 | AO50: 10469663.6 | AP50: 3597582.439 | AQ50: 373702.6926 | AR50: 19199207.56 | AS50: 470101.2919 | AT50: 936103.986 | AU50: 709789.2528 | AV50: 10468372.36 | AW50: 8999765.004 | AX50: 38541.2192 | AY50: 2260.449921 | AZ50: 419222.5521 | BA50: 2013449.363 | BB50: 4174.626709 | BC50: 5557650.507 | BD50: 1755423.038 | BE50: 33562.24845 | BF50: 146174.8189 | BG50: 3019551.067 | BH50: 1187065.381 | BI50: 91679.82451 | BJ50: 168166.336 | BK50: 16739054.76 | BL50: 345834.2103 | BM50: 9474906.565 | BN50: 4329426.906 | BO50: 1243777.589 | BP50: 6339.217538 | BQ50: 10051916.43 | BR50: 810280.1723 | BS50: 117287.9014 | BT50: 974606.3075 | BU50: 5566400.767 | BV50: 277829.9981 | BW50: 260120.563 | BX50: 298569.1189 | BY50: 4635783.057 | BZ50: 19766831.85 | CA50: 1612406.257 | CB50: 128751.1632 | CC50: 621713.8961 | CD50: 303426.0241 | CE50: 6731146.044 | CF50: 3136967.896 | CG50: 99297.80599 | CH50: 1115713.623 | CI50: 1706256.923 | CJ50: 790328.8654 | CK50: 117396.1482 | CL50: 1395123.973 | CM50: 6000327.993 | CN50: 16581.11318 | CO50: 1233841.137 | CP50: 395123.8477 | CQ50: 579317.312 | CR50: 72361.60837 | CS50: 1330115.035 | CT50: 253593.8878 | CU50: 6880153.812 | CV50: 1219457.137 | CW50: 404854.7731 | CX50: 248231.0753 | CY50: 249908.4148 | CZ50: 469948.7841 | DA50: 10290.3676 | DB50: 160459.2563 | DC50: 1217852.426 | DD50: 118428.0063 | DE50: 1199928.054 | DF50: 1214.755644 | DG50: 4837210.461 | DH50: 15367.54852 | DI50: 1054776.51 | DJ50: 216997.9854 | DK50: 14569676.43 | DL50: 378733.5438 | DM50: 2216555.875 | DN50: 2455753.622 | DO50: 16489.73118 | DP50: 875157.6545 | DQ50: 320143.8562 | DR50: 306073.6626 | DS50: 120841.6757 | DT50: 328047.9544 | DU50: 909375.4244 | DV50: 4190587.519 | DW50: 1577976.747 | DX50: 850503.1169 | DY50: 378229.9551 | DZ50: 4422230.409 | EA50: 264098.3061 | EB50: 505409.9684 | EC50: 1008808.776 | ED50: 662478.5507 | EE50: 20696069.48 | EF50: 16765.89357 | EG50: 29340.89407 | EH50: 317116.4204 | EI50: 367088.8785 | EJ50: 2162945.88 | EK50: 573932.6697 | EL50: 277459.7944 | EM50: 126818.3312 | EN50: 282555.5075 | EO50: 361649.9003 | EP50: 357706.4312 | EQ50: 311409.2539 | ER50: 798941.5927 | ES50: 307110.5502 | ET50: 865077.3098 | EU50: 252591.786 | EV50: 230090.9424 | EW50: 242899.0263 | EX50: 1225161.177 | EY50: 366735.5971 | EZ50: 272370.5819 | FA50: 290515.955 | FB50: 285467.6382 | FC50: 262207.5007 | FD50: 335747.2848 | FE50: 2200899.004 | FF50: 238025.4306 | FG50: 246621.2545 | FH50: 238747.4176 | FI50: 267841.0163 | FJ50: 300508.7852 | FK50: 378372.9859 | FL50: 217074.9564 | FM50: 79910.33568 | FN50: 65599.72336 | FO50: 1580369.572 | FP50: 214490.1892 | FQ50: 860743.0475 | FR50: 305095.1405 | FS50: 262274.5152 | FT50: 612082.0437 | FU50: 0.1073855981 | FV50: 192539.1884 | FW50: 190946.7985 | FX50: 301085.4455 | FY50: 210532.689 | FZ50: 550371.3515 | GA50: 217359.6617 | GB50: 77931.50088 | GC50: 210496.8421 | GD50: 1483634.158 | GE50: 1474459.326 | GF50: 311134.8041 | GG50: 1300652.784 | GH50: 217905.5089 | GI50: 78244.48651 | GJ50: 632345.0687 | GK50: 345627.7916 | GL50: 253378.6832 | GM50: 1346644.777 | GN50: 351877.7916 | GO50: 220153.3215 | GP50: 396059.8176 | GQ50: 1605781.666 | GR50: 1585647.29 | GS50: 728173.1435 | GT50: 61006261.25 | GU50: 7486863.666 | GV50: 7653093.423 | GW50: 22850014.5 | GX50: 13399088.94 | GY50: 2558458.065 | GZ50: 2090947.855 | HA50: 2126685.082 | HB50: 14380.99855 | HC50: 1228400.864 | HD50: 980069.1732 | HE50: 2920841.389 | HF50: 132930.099 | HG50: 48400.84244 | HH50: 5866622.507 | HI50: 2056140.441 | HJ50: 251674.9581 | HK50: 269358.6282 | HL50: 139549.2622 | HM50: 176621.696 | HN50: 219708.5419 | HO50: 198300.0251 | HP50: 9098.887036 | HQ50: 139414.6788 | HR50: 136547.7036 | HS50: 243733.5673 | HT50: 160709.6338 | HU50: 62881.83489 | HV50: 222007.1063 | HW50: 188003.4174 | HX50: 124128.1286 | HY50: 266377.4852 | HZ50: 202872.4511 | IA50: 261702.2513 | IB50: 69017.53021 | IC50: 4271880.406 | ID50: 9713433.756 | IE50: 278412.6629 | IF50: 1517864.104 | IG50: 649588.7701 | IH50: 660218.0692 | II50: 383702.349 | IJ50: 480670.8339 | IK50: 410535.776 | IL50: 514832.4192 | IM50: 759940.6258 | IN50: 4881405.675 | IO50: 214506.5322 | IP50: 917170.1497 | IQ50: 249460.9211 | IR50: 195939.8541 | IS50: 229866.3374 | IT50: 188881.3042 | IU50: 7148938.249 | IV50: 11779866.16 | IW50: 28073.59121 | IX50: 2149576.539 | IY50: 648672286.5
A51: =+MATCH(B51,RUT[EMPRESA],0) -> 111 | B51: ENERGIA PACIFICO | C51: 212110278.9 | D51: 212110278.9 | F51: =IFERROR(INDEX($B$9:$B$511,MATCH(0,INDEX(COUNTIF($F$8:F50,$B$9:$B$511),0,0),0)),"") -> ENERGIA PACIFICO | H51: 212110278.9 | J51: NEOMAS | K51: 2536617.053 | L51: 259147.8947 | M51: 444145.1631 | N51: 9668865.278 | O51: 4013352.438 | P51: 978684.0346 | Q51: 16468.03705 | R51: 24102.46552 | S51: 117428.2418 | T51: 183187.9728 | U51: 139819.4684 | V51: 58034.07964 | W51: 94372.21277 | X51: 83036.90619 | Y51: 54916.51875 | Z51: 239301.7386 | AA51: 602357.3029 | AB51: 5082697.531 | AC51: 63577.67489 | AD51: 6186.720292 | AE51: 34224.02589 | AF51: 324598.8594 | AG51: 21181.35503 | AH51: 433591.3954 | AI51: 24545.26501 | AJ51: 240185.505 | AK51: 1037203.26 | AL51: 684993.9931 | AM51: 6236.521237 | AN51: 80805.80139 | AO51: 1563940.235 | AP51: 537400.6407 | AQ51: 55823.06169 | AR51: 2867944.408 | AS51: 70222.91767 | AT51: 139833.5939 | AU51: 106027.0906 | AV51: 1563747.352 | AW51: 1344369.326 | AX51: 5757.220644 | AY51: 337.6620985 | AZ51: 62622.73954 | BA51: 300765.5824 | BB51: 623.5985153 | BC51: 830192.2175 | BD51: 262222.0564 | BE51: 5013.470608 | BF51: 21835.34155 | BG51: 451055.3143 | BH51: 177321.7729 | BI51: 13694.97357 | BJ51: 25120.39633 | BK51: 2500451.04 | BL51: 51660.11601 | BM51: 1415345.15 | BN51: 646722.3009 | BO51: 185793.3444 | BP51: 946.9413484 | BQ51: 1501537.886 | BR51: 121038.2503 | BS51: 17520.26379 | BT51: 145585.0041 | BU51: 831499.3162 | BV51: 41501.76445 | BW51: 38856.35967 | BX51: 44599.73843 | BY51: 692485.2528 | BZ51: 2952735.143 | CA51: 240858.4571 | CB51: 19232.62601 | CC51: 92870.54618 | CD51: 45325.25453 | CE51: 1005486.951 | CF51: 468594.8371 | CG51: 14832.93446 | CH51: 166663.3707 | CI51: 254877.7071 | CJ51: 118057.9586 | CK51: 17536.43352 | CL51: 208401.2055 | CM51: 896318.6145 | CN51: 2476.858 | CO51: 184309.0545 | CP51: 59022.91677 | CQ51: 86537.4178 | CR51: 10809.25187 | CS51: 198690.2828 | CT51: 37881.41622 | CU51: 1027745.473 | CV51: 182160.3973 | CW51: 60476.50558 | CX51: 37080.32857 | CY51: 37330.88664 | CZ51: 70200.13631 | DA51: 1537.157309 | DB51: 23969.1261 | DC51: 181920.6884 | DD51: 17690.57069 | DE51: 179243.1768 | DF51: 181.4580965 | DG51: 722574.1298 | DH51: 2295.577811 | DI51: 157560.6903 | DJ51: 32414.78363 | DK51: 2176393.058 | DL51: 56574.56154 | DM51: 331105.2817 | DN51: 366836.2274 | DO51: 2463.207515 | DP51: 130729.5363 | DQ51: 47822.53537 | DR51: 45720.75419 | DS51: 18051.12045 | DT51: 49003.23587 | DU51: 135840.9276 | DV51: 625982.7136 | DW51: 235715.4364 | DX51: 127046.6842 | DY51: 56499.33633 | DZ51: 660585.1276 | EA51: 39450.54805 | EB51: 75497.26667 | EC51: 150694.1097 | ED51: 98959.89975 | EE51: 3091543.053 | EF51: 2504.460175 | EG51: 4382.891994 | EH51: 47370.30224 | EI51: 54835.10157 | EJ51: 323097.1134 | EK51: 85733.06924 | EL51: 41446.46406 | EM51: 18943.90291 | EN51: 42207.65287 | EO51: 54022.63642 | EP51: 53433.56783 | EQ51: 46517.77559 | ER51: 119344.5129 | ES51: 45875.64266 | ET51: 129223.7519 | EU51: 37731.72399 | EV51: 34370.5869 | EW51: 36283.83632 | EX51: 183012.4569 | EY51: 54782.32902 | EZ51: 40686.24631 | FA51: 43396.77074 | FB51: 42642.66191 | FC51: 39168.10281 | FD51: 50153.34853 | FE51: 328766.4855 | FF51: 35555.82702 | FG51: 36839.85632 | FH51: 35663.67619 | FI51: 40009.62763 | FJ51: 44889.48243 | FK51: 56520.70201 | FL51: 32426.28142 | FM51: 11936.86769 | FN51: 9799.173183 | FO51: 236072.8725 | FP51: 32040.17338 | FQ51: 128576.3073 | FR51: 45574.58424 | FS51: 39178.11332 | FT51: 91431.75673 | FU51: 0.01604107486 | FV51: 28761.17085 | FW51: 28523.30241 | FX51: 44975.62294 | FY51: 31449.00884 | FZ51: 82213.5203 | GA51: 32468.81022 | GB51: 11641.27277 | GC51: 31443.65409 | GD51: 221622.7038 | GE51: 220252.1832 | GF51: 46476.77874 | GG51: 194289.2627 | GH51: 32550.34792 | GI51: 11688.02602 | GJ51: 94458.61236 | GK51: 51629.28155 | GL51: 37849.26933 | GM51: 201159.4669 | GN51: 52562.89572 | GO51: 32886.12229 | GP51: 59162.73034 | GQ51: 239868.8871 | GR51: 236861.2488 | GS51: 108773.2444 | GT51: 9113009.76 | GU51: 1118374.741 | GV51: 1143205.855 | GW51: 3413295.633 | GX51: 2001532.725 | GY51: 382178.0393 | GZ51: 312342.1731 | HA51: 317680.5382 | HB51: 2148.208683 | HC51: 183496.3958 | HD51: 146401.0375 | HE51: 436310.2333 | HF51: 19856.8682 | HG51: 7230.034107 | HH51: 876345.9203 | HI51: 307142.7018 | HJ51: 37594.76983 | HK51: 40236.32586 | HL51: 20845.62736 | HM51: 26383.44337 | HN51: 32819.68187 | HO51: 29621.71468 | HP51: 1359.176004 | HQ51: 20825.52352 | HR51: 20397.25973 | HS51: 36408.49861 | HT51: 24006.52706 | HU51: 9393.179705 | HV51: 33163.03744 | HW51: 28083.62523 | HX51: 18542.04509 | HY51: 39791.00789 | HZ51: 30304.73575 | IA51: 39092.62953 | IB51: 10309.71926 | IC51: 638126.1043 | ID51: 1450975.929 | IE51: 41588.8019 | IF51: 226735.9138 | IG51: 97034.44663 | IH51: 98622.23295 | II51: 57316.79305 | IJ51: 71801.77756 | IK51: 61325.12396 | IL51: 76904.77608 | IM51: 113518.6159 | IN51: 729175.9344 | IO51: 32042.61467 | IP51: 137005.2902 | IQ51: 37264.0408 | IR51: 29269.15641 | IS51: 34337.03579 | IT51: 28214.76244 | IU51: 1067896.027 | IV51: 1759656.027 | IW51: 4193.584486 | IX51: 321100.0244 | IY51: 96897543.9
A52: =+MATCH(B52,RUT[EMPRESA],0) -> 78 | B52: DONGUIL | C52: 1931155.998 | D52: 1931155.998 | F52: =IFERROR(INDEX($B$9:$B$511,MATCH(0,INDEX(COUNTIF($F$8:F51,$B$9:$B$511),0,0),0)),"") -> DONGUIL | H52: 1931155.998 | J52: ENGIE | K52: 150798298.3 | L52: 15405976.04 | M52: 26403802.15 | N52: 574800374 | O52: 238588129.6 | P52: 58181382.5 | Q52: 979001.5251 | R52: 1432857.507 | S52: 6980942.993 | T52: 10890266.05 | U52: 8312069.766 | V52: 3450044.004 | W52: 5610294.655 | X52: 4936426.701 | Y52: 3264709.416 | Z52: 14226150.11 | AA52: 35809290.23 | AB52: 302159183.9 | AC52: 3779602.906 | AD52: 367791.7765 | AE52: 2034569.964 | AF52: 19296943.38 | AG52: 1259201.617 | AH52: 25776395.58 | AI52: 1459181.31 | AJ52: 14278688.77 | AK52: 61660267.71 | AL52: 40721924.66 | AM52: 370752.3723 | AN52: 4803790.675 | AO52: 92974036.38 | AP52: 31947708.48 | AQ52: 3318602.112 | AR52: 170495241.3 | AS52: 4174653.196 | AT52: 8312909.503 | AU52: 6303160.667 | AV52: 92962569.72 | AW52: 79920856.18 | AX52: 342258.6295 | AY52: 20073.53447 | AZ52: 3722833.349 | BA52: 17880088.74 | BB52: 37072.05028 | BC52: 49353753.86 | BD52: 15588730.61 | BE52: 298043.7412 | BF52: 1298080.191 | BG52: 26814600.88 | BH52: 10541528.76 | BI52: 814146.8212 | BJ52: 1493372.054 | BK52: 148648279.9 | BL52: 3071120.876 | BM52: 84140268.61 | BN52: 38446726.65 | BO52: 11045151.71 | BP52: 56294.32467 | BQ52: 89264304.9 | BR52: 7195552.894 | BS52: 1041554.918 | BT52: 8654822.709 | BU52: 49431459.03 | BV52: 2467221.234 | BW52: 2309955.659 | BX52: 2651391.408 | BY52: 41167269.46 | BZ52: 175535930.6 | CA52: 14318694.82 | CB52: 1143352.431 | CC52: 5521022.699 | CD52: 2694522.315 | CE52: 59774777.97 | CF52: 27857300.71 | CG52: 881796.9878 | CH52: 9907901.813 | CI52: 15152119.42 | CJ52: 7018378.763 | CK52: 1042516.185 | CL52: 12389157.09 | CM52: 53284874.7 | CN52: 147245.7071 | CO52: 10956912.77 | CP52: 3508828.974 | CQ52: 5144527.168 | CR52: 642594.7447 | CS52: 11811856.46 | CT52: 2251996.649 | CU52: 61098015.68 | CV52: 10829178.14 | CW52: 3595242.774 | CX52: 2204373.121 | CY52: 2219268.444 | CZ52: 4173298.877 | DA52: 91381.82929 | DB52: 1424930.667 | DC52: 10814927.78 | DD52: 1051679.422 | DE52: 10655753.5 | DF52: 10787.42735 | DG52: 42956010.67 | DH52: 136468.8561 | DI52: 9366760.325 | DJ52: 1927013.069 | DK52: 129383491 | DL52: 3363277.716 | DM52: 19683740.99 | DN52: 21807895.2 | DO52: 146434.205 | DP52: 7771686.15 | DQ52: 2842982.131 | DR52: 2718034.211 | DS52: 1073113.595 | DT52: 2913173.107 | DU52: 8075551.136 | DV52: 37213787.5 | DW52: 14012949.51 | DX52: 7552745.794 | DY52: 3358805.684 | DZ52: 39270852.11 | EA52: 2345279.319 | EB52: 4488205.789 | EC52: 8958551.816 | ED52: 5883026.162 | EE52: 183787864.7 | EF52: 148886.6174 | EG52: 260556.7339 | EH52: 2816097.51 | EI52: 3259869.28 | EJ52: 19207666.7 | EK52: 5096709.784 | EL52: 2463933.704 | EM52: 1126188.251 | EN52: 2509185.303 | EO52: 3211569.375 | EP52: 3176550.08 | EQ52: 2765416.006 | ER52: 7094862.599 | ES52: 2727242.112 | ET52: 7682169.393 | EU52: 2243097.658 | EV52: 2043282.809 | EW52: 2157022.782 | EX52: 10879831.88 | EY52: 3256732.026 | EZ52: 2418739.833 | FA52: 2579876.68 | FB52: 2535045.976 | FC52: 2328488.348 | FD52: 2981545.679 | FE52: 19544702.86 | FF52: 2113743.659 | FG52: 2190077.385 | FH52: 2120155.14 | FI52: 2378515.81 | FJ52: 2668616.28 | FK52: 3360075.843 | FL52: 1927696.596 | FM52: 709629.9116 | FN52: 582546.9947 | FO52: 14034198.58 | FP52: 1904743.019 | FQ52: 7643679.727 | FR52: 2709344.614 | FS52: 2329083.459 | FT52: 5435488.7 | FU52: 0.9536192264 | FV52: 1709810.954 | FW52: 1695670.011 | FX52: 2673737.211 | FY52: 1869599.123 | FZ52: 4887477.574 | GA52: 1930224.873 | GB52: 692057.2116 | GC52: 1869280.791 | GD52: 13175156.48 | GE52: 13093680.97 | GF52: 2762978.802 | GG52: 11550222.04 | GH52: 1935072.174 | GI52: 694836.6263 | GJ52: 5615430.988 | GK52: 3069287.811 | GL52: 2250085.562 | GM52: 11958645.97 | GN52: 3124789.854 | GO52: 1955033.486 | GP52: 3517140.693 | GQ52: 14259866.29 | GR52: 14081066.44 | GS52: 6466415.629 | GT52: 541755549.1 | GU52: 66485797.57 | GV52: 67961972.17 | GW52: 202915600.7 | GX52: 118988291.3 | GY52: 22719944.23 | GZ52: 18568300.7 | HA52: 18885658.96 | HB52: 127707.9697 | HC52: 10908601.36 | HD52: 8703334.742 | HE52: 25938026.65 | HF52: 1180462.747 | HG52: 429815.3081 | HH52: 52097526.26 | HI52: 18259199.48 | HJ52: 2234955.927 | HK52: 2391992.699 | HL52: 1239243.082 | HM52: 1568458.416 | HN52: 1951083.697 | HO52: 1760969.068 | HP52: 80801.09224 | HQ52: 1238047.936 | HR52: 1212588.26 | HS52: 2164433.779 | HT52: 1427154.101 | HU52: 558411.2563 | HV52: 1971495.7 | HW52: 1669531.824 | HX52: 1102298.372 | HY52: 2365519.175 | HZ52: 1801573.705 | IA52: 2324001.568 | IB52: 612898.2372 | IC52: 37935694.91 | ID52: 86258468.06 | IE52: 2472395.488 | IF52: 13479129.59 | IG52: 5768560.695 | IH52: 5862952.347 | II52: 3407402.33 | IJ52: 4268514.185 | IK52: 3645691.937 | IL52: 4571880.234 | IM52: 6748521.259 | IN52: 43348478.62 | IO52: 1904888.15 | IP52: 8144770.846 | IQ52: 2215294.553 | IR52: 1740009.977 | IS52: 2041288.243 | IT52: 1677327.746 | IU52: 63484909.37 | IV52: 104609063.5 | IW52: 249302.6701 | IX52: 19088942.58 | IY52: 5760422021
A53: =+MATCH(B53,RUT[EMPRESA],0) -> 245 | B53: PEHUI | C53: 25021739.23 | D53: 25021739.23 | F53: =IFERROR(INDEX($B$9:$B$511,MATCH(0,INDEX(COUNTIF($F$8:F52,$B$9:$B$511),0,0),0)),"") -> PEHUI | H53: 25021739.23 | J53: GEOTERMICA_DEL_NORTE | K53: 9238850.53 | L53: 943866.8175 | M53: 1617662.694 | N53: 35215879.75 | O53: 14617406.78 | P53: 3564556.779 | Q53: 59979.78002 | R53: 87785.84696 | S53: 427696.3971 | T53: 667206.072 | U53: 509249.5806 | V53: 211371.3565 | W53: 343721.8744 | X53: 302436.4927 | Y53: 200016.596 | Z53: 871583.2735 | AA53: 2193901.946 | AB53: 18512168.69 | AC53: 231562.204 | AD53: 22533.23338 | AE53: 124650.5299 | AF53: 1182251.906 | AG53: 77146.59688 | AH53: 1579223.828 | AI53: 89398.60843 | AJ53: 874802.1219 | AK53: 3777695.129 | AL53: 2494880.774 | AM53: 22714.61807 | AN53: 294310.377 | AO53: 5696173.2 | AP53: 1957317.203 | AQ53: 203318.401 | AR53: 10445608.92 | AS53: 255765.4651 | AT53: 509301.0282 | AU53: 386171.1964 | AV53: 5695470.68 | AW53: 4896453.427 | AX53: 20968.91249 | AY53: 1229.830752 | AZ53: 228084.1445 | BA53: 1095446.495 | BB53: 2271.266554 | BC53: 3023720.826 | BD53: 955063.5096 | BE53: 18260.03083 | BF53: 79528.54241 | BG53: 1642830.803 | BH53: 645840.2359 | BI53: 49879.74583 | BJ53: 91493.34808 | BK53: 9107126.907 | BL53: 188156.1467 | BM53: 5154961.124 | BN53: 2355487.86 | BO53: 676695.3398 | BP53: 3448.943769 | BQ53: 5468891.758 | BR53: 440844.747 | BS53: 63812.19358 | BT53: 530248.7778 | BU53: 3028481.532 | BV53: 151157.4631 | BW53: 141522.3866 | BX53: 162440.8842 | BY53: 2522165.393 | BZ53: 10754433.2 | CA53: 877253.1438 | CB53: 70048.94839 | CC53: 338252.5139 | CD53: 165083.3544 | CE53: 3662178.19 | CF53: 1706713.142 | CG53: 54024.41977 | CH53: 607020.2711 | CI53: 928313.9673 | CJ53: 429989.9474 | CK53: 63871.08685 | CL53: 759037.5479 | CM53: 3264565.969 | CN53: 9021.196489 | CO53: 671289.2684 | CP53: 214972.8929 | CQ53: 315186.0339 | CR53: 39369.38854 | CS53: 723668.4868 | CT53: 137971.4537 | CU53: 3743248.04 | CV53: 663463.4429 | CW53: 220267.1448 | CX53: 135053.7374 | CY53: 135966.3184 | CZ53: 255682.4909 | DA53: 5598.624596 | DB53: 87300.19897 | DC53: 662590.3767 | DD53: 64432.48428 | DE53: 652838.3608 | DF53: 660.9055274 | DG53: 2631754.91 | DH53: 8360.938935 | DI53: 573866.5461 | DJ53: 118060.9192 | DK53: 7926844.983 | DL53: 206055.509 | DM53: 1205949.556 | DN53: 1336088.579 | DO53: 8971.478778 | DP53: 476142.2875 | DQ53: 174178.9348 | DR53: 166523.8407 | DS53: 65745.67632 | DT53: 178479.2747 | DU53: 494758.9644 | DV53: 2279950.266 | DW53: 858521.2664 | DX53: 462728.6267 | DY53: 205781.5242 | DZ53: 2405978.959 | EA53: 143686.5357 | EB53: 274975.6655 | EC53: 548857.1298 | ED53: 360431.1188 | EE53: 11259998.49 | EF53: 9121.728955 | EG53: 15963.3414 | EH53: 172531.8142 | EI53: 199720.0589 | EJ53: 1176782.256 | EK53: 312256.4407 | EL53: 150956.0484 | EM53: 68997.36296 | EN53: 153728.4454 | EO53: 196760.9035 | EP53: 194615.4016 | EQ53: 169426.747 | ER53: 434675.8274 | ES53: 167087.9746 | ET53: 470657.929 | EU53: 137426.2457 | EV53: 125184.3335 | EW53: 132152.7584 | EX53: 666566.8091 | EY53: 199527.8511 | EZ53: 148187.1881 | FA53: 158059.443 | FB53: 155312.8326 | FC53: 142657.8155 | FD53: 182668.2077 | FE53: 1197431.207 | FF53: 129501.2075 | FG53: 134177.8909 | FH53: 129894.0151 | FI53: 145722.8118 | FJ53: 163496.188 | FK53: 205859.3422 | FL53: 118102.7964 | FM53: 43476.38375 | FN53: 35690.48637 | FO53: 859823.1179 | FP53: 116696.5161 | FQ53: 468299.8104 | FR53: 165991.4615 | FS53: 142694.2757 | FT53: 333012.1641 | FU53: 0.05842470104 | FV53: 104753.7539 | FW53: 103887.391 | FX53: 163809.9284 | FY53: 114543.3804 | FZ53: 299437.5619 | GA53: 118257.6945 | GB53: 42399.76981 | GC53: 114523.8774 | GD53: 807192.8051 | GE53: 802201.1037 | GF53: 169277.4286 | GG53: 707639.1195 | GH53: 118554.6706 | GI53: 42570.05421 | GJ53: 344036.5584 | GK53: 188043.8416 | GL53: 137854.3685 | GM53: 732661.7338 | GN53: 191444.2452 | GO53: 119777.6259 | GP53: 215482.121 | GQ53: 873648.9383 | GR53: 862694.5371 | GS53: 396173.2203 | GT53: 33191346.31 | GU53: 4073337.385 | GV53: 4163777.109 | GW53: 12431883.69 | GX53: 7289969.787 | GY53: 1391966.429 | GZ53: 1137610.68 | HA53: 1157054.04 | HB53: 7824.192031 | HC53: 668329.4082 | HD53: 533220.9296 | HE53: 1589126.363 | HF53: 72322.55934 | HG53: 26333.18434 | HH53: 3191821.549 | HI53: 1118673.199 | HJ53: 136927.4321 | HK53: 146548.4907 | HL53: 75923.81167 | HM53: 96093.61 | HN53: 119535.637 | HO53: 107888.0212 | HP53: 4950.382214 | HQ53: 75850.58958 | HR53: 74290.76993 | HS53: 132606.8025 | HT53: 87436.4205 | HU53: 34211.77951 | HV53: 120786.2045 | HW53: 102286.0016 | HX53: 67533.71896 | HY53: 144926.5564 | HZ53: 110375.7162 | IA53: 142382.9272 | IB53: 37549.99405 | IC53: 2324178.847 | ID53: 5284735.321 | IE53: 151474.4703 | IF53: 825816.1063 | IG53: 353418.2457 | IH53: 359201.2709 | II53: 208758.8599 | IJ53: 261515.9785 | IK53: 223357.9773 | IL53: 280102.0873 | IM53: 413456.7824 | IN53: 2655799.96 | IO53: 116705.4078 | IP53: 498999.7984 | IQ53: 135722.8529 | IR53: 106603.9357 | IS53: 125062.1338 | IT53: 102763.6287 | IU53: 3889484.133 | IV53: 6409008.012 | IW53: 15273.8468 | IX53: 1169508.471 | IY53: 352919619.4
A54: =+MATCH(B54,RUT[EMPRESA],0) -> 61 | B54: COMASA | C54: 484278406.5 | D54: 484278406.5 | F54: =IFERROR(INDEX($B$9:$B$511,MATCH(0,INDEX(COUNTIF($F$8:F53,$B$9:$B$511),0,0),0)),"") -> COMASA | H54: 484278406.5 | J54: ATACAMA_GX_CHILE | K54: 9411122.868 | L54: 961466.6415 | M54: 1647826.461 | N54: 35872533.08 | O54: 14889970.43 | P54: 3631023.33 | Q54: 61098.19371 | R54: 89422.74681 | S54: 435671.4431 | T54: 679647.1381 | U54: 518745.309 | V54: 215312.6951 | W54: 350131.0885 | X54: 308075.8784 | Y54: 203746.2079 | Z54: 887835.2616 | AA54: 2234810.565 | AB54: 18857356.07 | AC54: 235880.0314 | AD54: 22953.39959 | AE54: 126974.8275 | AF54: 1204296.78 | AG54: 78585.11182 | AH54: 1608670.845 | AI54: 91065.58066 | AJ54: 891114.1302 | AK54: 3848135.967 | AL54: 2541401.599 | AM54: 23138.16647 | AN54: 299798.239 | AO54: 5802386.962 | AP54: 1993814.342 | AQ54: 207109.58 | AR54: 10640383.1 | AS54: 260534.5989 | AT54: 518797.716 | AU54: 393371.9423 | AV54: 5801671.343 | AW54: 4987755.205 | AX54: 21359.90957 | AY54: 1252.762806 | AZ54: 232337.1183 | BA54: 1115872.752 | BB54: 2313.617754 | BC54: 3080102.673 | BD54: 972872.1129 | BE54: 18600.51672 | BF54: 81011.47234 | BG54: 1673463.868 | BH54: 657882.9037 | BI54: 50809.82911 | BJ54: 93199.3799 | BK54: 9276943.059 | BL54: 191664.6025 | BM54: 5251083.168 | BN54: 2399409.493 | BO54: 689313.3476 | BP54: 3513.254541 | BQ54: 5570867.514 | BR54: 449064.9639 | BS54: 65002.06842 | BT54: 540136.0681 | BU54: 3084952.15 | BV54: 153976.0226 | BW54: 144161.2855 | BX54: 165469.8401 | BY54: 2569194.98 | BZ54: 10954965.87 | CA54: 893610.8551 | CB54: 71355.11696 | CC54: 344559.7435 | CD54: 168161.5831 | CE54: 3730465.04 | CF54: 1738537.389 | CG54: 55031.78676 | CH54: 618339.0819 | CI54: 945623.7849 | CJ54: 438007.7602 | CK54: 65062.05985 | CL54: 773190.9507 | CM54: 3325438.738 | CN54: 9189.410338 | CO54: 683806.4719 | CP54: 218981.3875 | CQ54: 321063.1541 | CR54: 40103.49032 | CS54: 737162.38 | CT54: 140544.1401 | CU54: 3813046.56 | CV54: 675834.722 | CW54: 224374.3588 | CX54: 137572.0185 | CY54: 138501.616 | CZ54: 260450.0776 | DA54: 5703.019418 | DB54: 88928.04319 | DC54: 674945.3761 | DD54: 65633.92538 | DE54: 665011.5192 | DF54: 673.2291103 | DG54: 2680827.959 | DH54: 8516.841284 | DI54: 584567.1555 | DJ54: 120262.3436 | DK54: 8074652.993 | DL54: 209897.7255 | DM54: 1228436.309 | DN54: 1361001.971 | DO54: 9138.765565 | DP54: 485020.6804 | DQ54: 177426.7644 | DR54: 169628.9295 | DS54: 66971.60387 | DT54: 181807.2906 | DU54: 503984.4934 | DV54: 2322463.387 | DW54: 874529.6936 | DX54: 471356.9017 | DY54: 209618.6319 | DZ54: 2450842.075 | EA54: 146365.7885 | EB54: 280103.0026 | EC54: 559091.4009 | ED54: 367151.902 | EE54: 11469958.19 | EF54: 9291.817384 | EG54: 16261.00204 | EH54: 175748.9307 | EI54: 203444.1414 | EJ54: 1198725.141 | EK54: 318078.9342 | EL54: 153770.8521 | EM54: 70283.92312 | EN54: 156594.9447 | EO54: 200429.8081 | EP54: 198244.3 | EQ54: 172585.9649 | ER54: 442781.0154 | ES54: 170203.5825 | ET54: 479434.0577 | EU54: 139988.7658 | EV54: 127518.5847 | EW54: 134616.9464 | EX54: 678995.9552 | EY54: 203248.3495 | EZ54: 150950.3623 | FA54: 161006.7003 | FB54: 158208.8752 | FC54: 145317.8861 | FD54: 186074.3327 | FE54: 1219759.122 | FF54: 131915.9533 | FG54: 136679.8405 | FH54: 132316.0854 | FI54: 148440.034 | FJ54: 166544.8217 | FK54: 209697.9009 | FL54: 120305.0016 | FM54: 44287.06666 | FN54: 36355.98946 | FO54: 875855.82 | FP54: 118872.4991 | FQ54: 477031.9684 | FR54: 169086.6233 | FS54: 145355.0262 | FT54: 339221.6794 | FU54: 0.05951411793 | FV54: 106707.0461 | FW54: 105824.5285 | FX54: 166864.4122 | FY54: 116679.2149 | FZ54: 305021.028 | GA54: 120462.788 | GB54: 43190.37763 | GC54: 116659.3482 | GD54: 822244.1355 | GE54: 817159.3562 | GF54: 172433.8622 | GG54: 720834.1209 | GH54: 120765.3017 | GI54: 43363.83724 | GJ54: 350451.6403 | GK54: 191550.2033 | GL54: 140424.8717 | GM54: 746323.3197 | GN54: 195014.0126 | GO54: 122011.0608 | GP54: 219500.1109 | GQ54: 889939.4438 | GR54: 878780.7812 | GS54: 403560.4691 | GT54: 33810249.15 | GU54: 4149290.92 | GV54: 4241417.03 | GW54: 12663694.96 | GX54: 7425902.296 | GY54: 1417921.748 | GZ54: 1158823.152 | HA54: 1178629.062 | HB54: 7970.085922 | HC54: 680791.4205 | HD54: 543163.6401 | HE54: 1618758.027 | HF54: 73671.12282 | HG54: 26824.20638 | HH54: 3251337.888 | HI54: 1139532.553 | HJ54: 139480.6511 | HK54: 149281.1089 | HL54: 77339.52594 | HM54: 97885.42066 | HN54: 121764.5597 | HO54: 109899.7565 | HP54: 5042.689576 | HQ54: 77264.93851 | HR54: 75676.03366 | HS54: 135079.4569 | HT54: 89066.80477 | HU54: 34849.70987 | HV54: 123038.4459 | HW54: 104193.2787 | HX54: 68792.98727 | HY54: 147628.9312 | HZ54: 112433.8384 | IA54: 145037.8721 | IB54: 38250.17046 | IC54: 2367516.676 | ID54: 5383277.202 | IE54: 154298.9409 | IF54: 841214.6963 | IG54: 360008.2633 | IH54: 365899.1217 | II54: 212651.4845 | IJ54: 266392.3394 | IK54: 227522.8245 | IL54: 285325.0143 | IM54: 421166.3093 | IN54: 2705321.366 | IO54: 118881.5566 | IP54: 508304.4041 | IQ54: 138253.6107 | IR54: 108591.7273 | IS54: 127394.1064 | IT54: 104679.8119 | IU54: 3962009.446 | IV54: 6528513.657 | IW54: 15558.65077 | IX54: 1191315.725 | IY54: 359500339.4
A55: =+MATCH(B55,RUT[EMPRESA],0) -> 44 | B55: CHACAYES | C55: -1227362332 | D55: -1227362332 | F55: =IFERROR(INDEX($B$9:$B$511,MATCH(0,INDEX(COUNTIF($F$8:F54,$B$9:$B$511),0,0),0)),"") -> CHACAYES | G55: -1227362332 | J55: ANDINA | K55: 76267685.41 | L55: 7791720.114 | M55: 13353976.13 | N55: 290710801 | O55: 120668234.4 | P55: 29425792.11 | Q55: 495139.4092 | R55: 724681.4241 | S55: 3530678.861 | T55: 5507856.485 | U55: 4203908.991 | V55: 1744892.838 | W55: 2837460.32 | X55: 2496645.141 | Y55: 1651158.093 | Z55: 7195011.836 | AA55: 18110891.92 | AB55: 152819904.7 | AC55: 1911570.413 | AD55: 186014.2178 | AE55: 1029003.269 | AF55: 9759614.156 | AG55: 636853.2927 | AH55: 13036659.24 | AI55: 737994.9401 | AJ55: 7221583.769 | AK55: 31185271.67 | AL55: 20595503.89 | AM55: 187511.5675 | AN55: 2429563.199 | AO55: 47022510.45 | AP55: 16157859.92 | AQ55: 1678414.841 | AR55: 86229603.2 | AS55: 2111370.886 | AT55: 4204333.696 | AU55: 3187883.95 | AV55: 47016711.08 | AW55: 40420739.39 | AX55: 173100.5839 | AY55: 10152.38255 | AZ55: 1882858.666 | BA55: 9043026.339 | BB55: 18749.54492 | BC55: 24961134.28 | BD55: 7884149.988 | BE55: 150738.4801 | BF55: 656516.5043 | BG55: 13561741.53 | BH55: 5331479.254 | BI55: 411762.5619 | BJ55: 755287.2368 | BK55: 75180293.01 | BL55: 1553248.833 | BM55: 42554747.69 | BN55: 19444800.68 | BO55: 5586191.391 | BP55: 28471.39452 | BQ55: 45146278.18 | BR55: 3639219.876 | BS55: 526776.3874 | BT55: 4377259.578 | BU55: 25000434.42 | BV55: 1247820.798 | BW55: 1168282.225 | BX55: 1340966.63 | BY55: 20820741.29 | BZ55: 88778980.15 | CA55: 7241817.213 | CB55: 578261.456 | CC55: 2792310.172 | CD55: 1362780.499 | CE55: 30231667.15 | CF55: 14089096.97 | CG55: 445977.2823 | CH55: 5011016.352 | CI55: 7663329.696 | CJ55: 3549612.361 | CK55: 527262.5575 | CL55: 6265935.002 | CM55: 26949336.34 | CN55: 74470.92835 | CO55: 5541563.702 | CP55: 1774623.901 | CQ55: 2601893.948 | CR55: 324998.4541 | CS55: 5973959.673 | CT55: 1138968.9 | CU55: 30900907.31 | CV55: 5476960.687 | CW55: 1818328.509 | CX55: 1114882.844 | CY55: 1122416.297 | CZ55: 2110685.926 | DA55: 46217.23645 | DB55: 720672.3488 | DC55: 5469753.433 | DD55: 531896.9525 | DE55: 5389249.514 | DF55: 5455.844824 | DG55: 21725414.31 | DH55: 69020.43261 | DI55: 4737328.855 | DJ55: 974605.3382 | DK55: 65436941.26 | DL55: 1701009.956 | DM55: 9955240.756 | DN55: 11029552.12 | DO55: 74060.5034 | DP55: 3930604.795 | DQ55: 1437865.475 | DR55: 1374671.866 | DS55: 542737.4912 | DT55: 1473365.234 | DU55: 4084287.426 | DV55: 18821229.88 | DW55: 7087183.59 | DX55: 3819873.611 | DY55: 1698748.183 | DZ55: 19861610.03 | EA55: 1186147.505 | EB55: 2269953.116 | EC55: 4530873.487 | ED55: 2975396.895 | EE55: 92952474.94 | EF55: 75300.83446 | EG55: 131779.0667 | EH55: 1424268.32 | EI55: 1648710.148 | EJ55: 9714461.621 | EK55: 2577709.847 | EL55: 1246158.098 | EM55: 569580.5074 | EN55: 1269044.528 | EO55: 1624282.008 | EP55: 1606570.663 | EQ55: 1398635.664 | ER55: 3588294.794 | ES55: 1379328.85 | ET55: 3885330.837 | EU55: 1134468.15 | EV55: 1033409.874 | EW55: 1090934.956 | EX55: 5502579.302 | EY55: 1647123.452 | EZ55: 1223300.865 | FA55: 1304797.37 | FB55: 1282123.811 | FC55: 1177655.311 | FD55: 1507945.318 | FE55: 9884920.889 | FF55: 1069046.125 | FG55: 1107652.639 | FH55: 1072288.793 | FI55: 1202957.179 | FJ55: 1349678.274 | FK55: 1699390.578 | FL55: 974951.0389 | FM55: 358902.1326 | FN55: 294628.7288 | FO55: 7097930.511 | FP55: 963342.0468 | FQ55: 3865864.319 | FR55: 1370277.019 | FS55: 1177956.294 | FT55: 2749050.532 | FU55: 0.4823020683 | FV55: 864753.2856 | FW55: 857601.3683 | FX55: 1352268.234 | FY55: 945567.6844 | FZ55: 2471888.65 | GA55: 976229.7391 | GB55: 350014.5711 | GC55: 945406.6849 | GD55: 6663461.729 | GE55: 6622254.707 | GF55: 1397403.024 | GG55: 5841635.555 | GH55: 978681.308 | GI55: 351420.2867 | GJ55: 2840058.07 | GK55: 1552321.742 | GL55: 1138002.35 | GM55: 6048199.875 | GN55: 1580392.433 | GO55: 988776.9328 | GP55: 1778827.632 | GQ55: 7212064.117 | GR55: 7121634.38 | GS55: 3270451.712 | GT55: 273998064 | GU55: 33625829.67 | GV55: 34372419.13 | GW55: 102626510.9 | GX55: 60179469.35 | GY55: 11490829.66 | GZ55: 9391096.134 | HA55: 9551603.117 | HB55: 64589.53031 | HC55: 5517129.743 | HD55: 4401795.004 | HE55: 13118405.71 | HF55: 597030.3542 | HG55: 217383.2137 | HH55: 26348823.48 | HI55: 9234765.23 | HJ55: 1130350.391 | HK55: 1209773.245 | HL55: 626759.0719 | HM55: 793262.8841 | HN55: 986779.2891 | HO55: 890626.9924 | HP55: 40865.92722 | HQ55: 626154.6158 | HR55: 613278.1401 | HS55: 1094683.139 | HT55: 721796.8718 | HU55: 282421.8476 | HV55: 997102.8556 | HW55: 844381.7295 | HX55: 557497.9718 | HY55: 1196384.006 | HZ55: 911163.1771 | IA55: 1175386.079 | IB55: 309979.1607 | IC55: 19186341.48 | ID55: 43626047.38 | IE55: 1250437.726 | IF55: 6817199.044 | IG55: 2917504.888 | IH55: 2965244.371 | II55: 1723326.403 | IJ55: 2158841.981 | IK55: 1843843.657 | IL55: 2312272.269 | IM55: 3413129.34 | IN55: 21923908.74 | IO55: 963415.4485 | IP55: 4119295.958 | IQ55: 1120406.463 | IR55: 880026.7312 | IS55: 1032401.103 | IT55: 848324.5918 | IU55: 32108101.69 | IV55: 52907037 | IW55: 126087.216 | IX55: 9654415.758 | IY55: 2913388675
A56: =+MATCH(B56,RUT[EMPRESA],0) -> 109 | B56: ENERBOSCH | C56: 166407590.3 | D56: 166407590.3 | F56: =IFERROR(INDEX($B$9:$B$511,MATCH(0,INDEX(COUNTIF($F$8:F55,$B$9:$B$511),0,0),0)),"") -> ENERBOSCH | H56: 166407590.3 | J56: TAMAKAYA_ENERGIA | K56: 43457229.43 | L56: 4439712.138 | M56: 7609078.49 | N56: 165646642 | O56: 68756605.38 | P56: 16766778.65 | Q56: 282129.801 | R56: 412922.547 | S56: 2011776.291 | T56: 3138369.568 | U56: 2395381.957 | V56: 994237.7037 | W56: 1616781.255 | X56: 1422585.203 | Y56: 940827.766 | Z56: 4099708.526 | AA56: 10319563.01 | AB56: 87076585.92 | AC56: 1089210.372 | AD56: 105990.663 | AE56: 586324.7445 | AF56: 5561015.642 | AG56: 362878.1902 | AH56: 7428271.733 | AI56: 420508.5713 | AJ56: 4114849.179 | AK56: 17769327.84 | AL56: 11735291.73 | AM56: 106843.8509 | AN56: 1384361.998 | AO56: 26793366.21 | AP56: 9206727.879 | AQ56: 956358.6261 | AR56: 49133517.42 | AS56: 1203056.426 | AT56: 2395623.953 | AU56: 1816452.19 | AV56: 26790061.73 | AW56: 23031685.52 | AX56: 98632.49093 | AY56: 5784.81457 | AZ56: 1072850.455 | BA56: 5152704.822 | BB56: 10683.46668 | BC56: 14222822.33 | BD56: 4492378.562 | BE56: 85890.59285 | BF56: 374082.263 | BG56: 7727462.945 | BH56: 3037870.048 | BI56: 234621.7802 | BJ56: 430361.6999 | BK56: 42837634.63 | BL56: 885039.1948 | BM56: 24247640.71 | BN56: 11079622.52 | BO56: 3183004.697 | BP56: 16222.96412 | BQ56: 25724291.47 | BR56: 2073622.823 | BS56: 300156.5106 | BT56: 2494156.899 | BU56: 14245215.5 | BV56: 711006.692 | BW56: 665685.7152 | BX56: 764081.0674 | BY56: 11863631.71 | BZ56: 50586149.15 | CA56: 4126378.17 | CB56: 329492.6367 | CC56: 1591054.759 | CD56: 776510.5824 | CE56: 17225965.21 | CF56: 8027949.4 | CG56: 254117.2841 | CH56: 2855270.697 | CI56: 4366555.442 | CJ56: 2022564.575 | CK56: 300433.5297 | CL56: 3570321.736 | CM56: 15355697.32 | CN56: 42433.43956 | CO56: 3157575.897 | CP56: 1011178.425 | CQ56: 1482555.838 | CR56: 185183.7028 | CS56: 3403954.568 | CT56: 648983.0201 | CU56: 17607297.4 | CV56: 3120765.182 | CW56: 1036081.254 | CX56: 635258.8161 | CY56: 639551.3679 | CZ56: 1202666.136 | DA56: 26334.52211 | DB56: 410638.181 | DC56: 3116658.498 | DD56: 303074.202 | DE56: 3070787.468 | DF56: 3108.733391 | DG56: 12379113.24 | DH56: 39327.75407 | DI56: 2699323.912 | DJ56: 555328.873 | DK56: 37285885.29 | DL56: 969233.2936 | DM56: 5672483.428 | DN56: 6284624.667 | DO56: 42199.57995 | DP56: 2239653.576 | DQ56: 819293.9053 | DR56: 783286.268 | DS56: 309251.1271 | DT56: 839521.6227 | DU56: 2327221.742 | DV56: 10724312.67 | DW56: 4038268.129 | DX56: 2176559.089 | DY56: 967944.5381 | DZ56: 11317119.95 | EA56: 675865.3286 | EB56: 1293416.377 | EC56: 2581685.908 | ED56: 1695377.339 | EE56: 52964201.13 | EF56: 42906.319 | EG56: 75087.54336 | EH56: 811546.2641 | EI56: 939432.9299 | EJ56: 5535287.785 | EK56: 1468775.768 | EL56: 710059.2878 | EM56: 324546.2433 | EN56: 723099.9463 | EO56: 925513.8071 | EP56: 915421.9057 | EQ56: 796940.8091 | ER56: 2044605.776 | ES56: 785939.8116 | ET56: 2213856.533 | EU56: 646418.4985 | EV56: 588835.6223 | EW56: 621613.3404 | EX56: 3135362.636 | EY56: 938528.8324 | EZ56: 697035.2654 | FA56: 743471.8696 | FB56: 730552.505 | FC56: 671026.4871 | FD56: 859225.3102 | FE56: 5632415.258 | FF56: 609141.1121 | FG56: 631139.0545 | FH56: 610988.7802 | FI56: 685443.4593 | FJ56: 769044.951 | FK56: 968310.5743 | FL56: 555525.8528 | FM56: 204501.9753 | FN56: 167879.0722 | FO56: 4044391.711 | FP56: 548911.064 | FQ56: 2202764.536 | FR56: 780782.0899 | FS56: 671197.9869 | FT56: 1566405.471 | FU56: 0.2748151006 | FV56: 492735.3142 | FW56: 488660.1609 | FX56: 770520.707 | FY56: 538783.2551 | FZ56: 1408478.986 | GA56: 556254.4546 | GB56: 199437.8541 | GC56: 538691.5178 | GD56: 3796831.956 | GE56: 3773352.247 | GF56: 796238.4526 | GG56: 3328556.455 | GH56: 557651.3554 | GI56: 200238.8291 | GJ56: 1618261.45 | GK56: 884510.94 | GL56: 648432.2808 | GM56: 3446256.54 | GN56: 900505.5835 | GO56: 563403.8295 | GP56: 1013573.706 | GQ56: 4109424.893 | GR56: 4057898.145 | GS56: 1863499.195 | GT56: 156123745.8 | GU56: 19159954.66 | GV56: 19585360.38 | GW56: 58476454.41 | GX56: 34290184.53 | GY56: 6547460.02 | GZ56: 5351034.545 | HA56: 5442491.218 | HB56: 36803.03162 | HC56: 3143653.459 | HD56: 2508137.154 | HE56: 7474850.763 | HF56: 340187.1309 | HG56: 123864.6766 | HH56: 15013525.86 | HI56: 5261957.396 | HJ56: 644072.2048 | HK56: 689327.245 | HL56: 357126.5162 | HM56: 452000.175 | HN56: 562265.5746 | HO56: 507478.1192 | HP56: 23285.35297 | HQ56: 356782.0978 | HR56: 349445.0985 | HS56: 623749.0501 | HT56: 411278.9328 | HU56: 160923.6069 | HV56: 568147.9296 | HW56: 481127.6276 | HX56: 317661.63 | HY56: 681698.0739 | HZ56: 519179.6109 | IA56: 669733.4817 | IB56: 176625.7286 | IC56: 10932352.79 | ID56: 24858065.9 | IE56: 712497.8144 | IF56: 3884431.281 | IG56: 1662390.547 | IH56: 1689592.443 | II56: 981949.1765 | IJ56: 1230105.395 | IK56: 1050619.753 | IL56: 1317529.776 | IM56: 1944796.725 | IN56: 12492215.11 | IO56: 548952.8882 | IP56: 2347169.559 | IQ56: 638406.1673 | IR56: 501438.1039 | IS56: 588260.8258 | IT56: 483374.2655 | IU56: 18295155.2 | IV56: 30146361.9 | IW56: 71844.33415 | IX56: 5501073.729 | IY56: 1660045135
A57: =+MATCH(B57,RUT[EMPRESA],0) -> 168 | B57: HIDROMUCHI | C57: 17285764.99 | D57: 17285764.99 | F57: =IFERROR(INDEX($B$9:$B$511,MATCH(0,INDEX(COUNTIF($F$8:F56,$B$9:$B$511),0,0),0)),"") -> HIDROMUCHI | H57: 17285764.99 | J57: VALLE_DE_LOS_VIENTOS | K57: 843354.5992 | L57: 86159.46528 | M57: 147665.9102 | N57: 3214628.709 | O57: 1334328.031 | P57: 325385.2137 | Q57: 5475.164164 | R57: 8013.399235 | S57: 39041.62345 | T57: 60904.90452 | U57: 46486.08336 | V57: 19294.71692 | W57: 31376.13523 | X57: 27607.46115 | Y57: 18258.21466 | Z57: 79561.1705 | AA57: 200267.0451 | AB57: 1689855.524 | AC57: 21137.80812 | AD57: 2056.912377 | AE57: 11378.53647 | AF57: 107920.0901 | AG57: 7042.211265 | AH57: 144157.0761 | AI57: 8160.617744 | AJ57: 79854.99824 | AK57: 344841.2279 | AL57: 227741.4456 | AM57: 2073.469806 | AN57: 26865.68088 | AO57: 519966.6181 | AP57: 178670.7621 | AQ57: 18559.61497 | AR57: 953511.7271 | AS57: 23347.16646 | AT57: 46490.77968 | AU57: 35251.05785 | AV57: 519902.4897 | AW57: 446965.3994 | AX57: 1914.115693 | AY57: 112.2632537 | AZ57: 20820.31868 | BA57: 99996.18859 | BB57: 207.3291573 | BC57: 276015.8157 | BD57: 87181.53851 | BE57: 1666.839498 | BF57: 7259.643588 | BG57: 149963.3433 | BH57: 58954.55625 | BI57: 4553.197707 | BJ57: 8351.832908 | BK57: 831330.406 | BL57: 17175.55134 | BM57: 470562.8863 | BN57: 215017.1727 | BO57: 61771.11808 | BP57: 314.8316536 | BQ57: 499219.5729 | BR57: 40241.85083 | BS57: 5825.000282 | BT57: 48402.96355 | BU57: 276450.3896 | BV57: 13798.18207 | BW57: 12918.65857 | BX57: 14828.17222 | BY57: 230232.081 | BZ57: 981702.2874 | CA57: 80078.7361 | CB57: 6394.31308 | CC57: 30876.87287 | CD57: 15069.38614 | CE57: 334296.4376 | CF57: 155794.7466 | CG57: 4931.538045 | CH57: 55410.93405 | CI57: 84739.74671 | CJ57: 39250.98675 | CK57: 5830.376265 | CL57: 69287.60292 | CM57: 298001.003 | CN57: 823.4863768 | CO57: 61277.63297 | CP57: 19623.47776 | CQ57: 28771.28387 | CR57: 3593.775523 | CS57: 66058.99128 | CT57: 12594.517 | CU57: 341696.7771 | CV57: 60563.26424 | CW57: 20106.7556 | CX57: 12328.17764 | CY57: 12411.48123 | CZ57: 23339.5923 | DA57: 511.0620403 | DB57: 7969.067588 | DC57: 60483.5677 | DD57: 5881.622586 | DE57: 59593.36958 | DF57: 60.32976876 | DG57: 240235.7955 | DH57: 763.2157573 | DI57: 52384.54604 | DJ57: 10777.01375 | DK57: 723590.1426 | DL57: 18809.46776 | DM57: 110083.2945 | DN57: 121962.8399 | DO57: 818.9479702 | DP57: 43463.93382 | DQ57: 15899.66255 | DR57: 15200.87878 | DS57: 6001.49535 | DT57: 16292.21262 | DU57: 45163.32922 | DV57: 208121.8369 | DW57: 78368.82479 | DX57: 42239.48794 | DY57: 18784.45747 | DZ57: 219626.1769 | EA57: 13116.20968 | EB57: 25100.74077 | EC57: 50101.59903 | ED57: 32901.41352 | EE57: 1027852.056 | EF57: 832.663332 | EG57: 1457.189652 | EH57: 15749.30761 | EI57: 18231.14571 | EJ57: 107420.8014 | EK57: 28503.86036 | EL57: 13779.79622 | EM57: 6298.320683 | EN57: 14032.87033 | EO57: 17961.02365 | EP57: 17765.17473 | EQ57: 15465.86622 | ER57: 39678.73027 | ES57: 15252.37489 | ET57: 42963.30239 | EU57: 12544.7485 | EV57: 11427.26393 | EW57: 12063.36613 | EX57: 60846.55037 | EY57: 18213.60031 | EZ57: 13527.04497 | FA57: 14428.21894 | FB57: 14177.49873 | FC57: 13022.30449 | FD57: 16674.59308 | FE57: 109305.7099 | FF57: 11821.32329 | FG57: 12248.22731 | FH57: 11857.18014 | FI57: 13302.08809 | FJ57: 14924.50404 | FK57: 18791.56096 | FL57: 10780.83645 | FM57: 3968.676413 | FN57: 3257.952462 | FO57: 78487.66235 | FP57: 10652.46626 | FQ57: 42748.04507 | FR57: 15152.28134 | FS57: 13025.63271 | FT57: 30398.5154 | FU57: 0.005333211114 | FV57: 9562.289148 | FW57: 9483.204509 | FX57: 14953.14337 | FY57: 10455.9205 | FZ57: 27333.70825 | GA57: 10794.97609 | GB57: 3870.399327 | GC57: 10454.1402 | GD57: 73683.38327 | GE57: 73227.7233 | GF57: 15452.23591 | GG57: 64595.77455 | GH57: 10822.0851 | GI57: 3885.943482 | GJ57: 31404.86069 | GK57: 17165.29974 | GL57: 12583.82905 | GM57: 66879.92633 | GN57: 17475.70048 | GO57: 10933.72074 | GP57: 19669.96188 | GQ57: 79749.73161 | GR57: 78749.77555 | GS57: 36164.07759 | GT57: 3029822.213 | GU57: 371828.4874 | GV57: 380084.1418 | GW57: 1134825.837 | GX57: 665453.9466 | GY57: 127063.5656 | GZ57: 103845.0829 | HA57: 105619.9408 | HB57: 714.219622 | HC57: 61007.44657 | HD57: 48674.27196 | HE57: 145061.0141 | HF57: 6601.856242 | HG57: 2403.785195 | HH57: 291360.6378 | HI57: 102116.4034 | HJ57: 12499.21505 | HK57: 13377.45894 | HL57: 6930.591154 | HM57: 8771.760911 | HN57: 10911.63115 | HO57: 9848.39603 | HP57: 451.8882078 | HQ57: 6923.907185 | HR57: 6781.52139 | HS57: 12104.81287 | HT57: 7981.502365 | HU57: 3122.970926 | HV57: 11025.78732 | HW57: 9337.024077 | HX57: 6164.714138 | HY57: 13229.4031 | HZ57: 10075.48153 | IA57: 12997.21173 | IB57: 3427.694828 | IC57: 212159.1764 | ID57: 482409.1291 | IE57: 13827.1196 | IF57: 75383.38335 | IG57: 32261.25392 | IH57: 32789.1487 | II57: 19056.23909 | IJ57: 23872.09345 | IK57: 20388.8976 | IL57: 25568.69849 | IM57: 37741.78161 | IN57: 242430.7119 | IO57: 10653.27793 | IP57: 45550.44738 | IQ57: 12389.25685 | IR57: 9731.180213 | IS57: 11416.10911 | IT57: 9380.623553 | IU57: 355045.7193 | IV57: 585036.6737 | IW57: 1394.250172 | IX57: 106756.8248 | IY57: 32215737.57
A58: =+MATCH(B58,RUT[EMPRESA],0) -> 184 | B58: LA ARENA SPA | C58: -110417680.2 | D58: -110417680.2 | F58: =IFERROR(INDEX($B$9:$B$511,MATCH(0,INDEX(COUNTIF($F$8:F57,$B$9:$B$511),0,0),0)),"") -> LA ARENA SPA | G58: -110417680.2 | J58: POZO_ALMONTE_SOLAR_2 | K58: 57750.08494 | L58: 5899.910244 | M58: 10111.66462 | N58: 220126.9563 | O58: 91370.29335 | P58: 22281.28446 | Q58: 374.9208172 | R58: 548.7306134 | S58: 2673.438993 | T58: 4170.562908 | U58: 3183.210556 | V58: 1321.237285 | W58: 2148.532155 | X58: 1890.466037 | Y58: 1250.261098 | Z58: 5448.081221 | AA58: 13713.61332 | AB58: 115715.6197 | AC58: 1447.445968 | AD58: 140.8504378 | AE58: 779.1638869 | AF58: 7390.004607 | AG58: 482.2269294 | AH58: 9871.391461 | AI58: 558.8116415 | AJ58: 5468.201556 | AK58: 23613.56685 | AL58: 15594.96781 | AM58: 141.9842348 | AN58: 1839.67142 | AO58: 35605.56425 | AP58: 12234.77253 | AQ58: 1270.899977 | AR58: 65293.27437 | AS58: 1598.735393 | AT58: 3183.532144 | AU58: 2413.873817 | AV58: 35601.17295 | AW58: 30606.68645 | AX58: 131.0722014 | AY58: 7.687409832 | AZ58: 1425.70536 | BA58: 6847.402493 | BB58: 14.197203 | BC58: 18900.63422 | BD58: 5969.898379 | BE58: 114.1395597 | BF58: 497.1159632 | BG58: 10268.9851 | BH58: 4037.009621 | BI58: 311.7876568 | BJ58: 571.9054125 | BK58: 56926.70866 | BL58: 1176.123958 | BM58: 32222.56295 | BN58: 14723.65242 | BO58: 4229.878297 | BP58: 21.55861219 | BQ58: 34184.87641 | BR58: 2755.626526 | BS58: 398.8764173 | BT58: 3314.472061 | BU58: 18930.39239 | BV58: 944.853075 | BW58: 884.6262659 | BX58: 1015.383335 | BY58: 15765.51814 | BZ58: 67223.66907 | CA58: 5483.522372 | CB58: 437.861042 | CC58: 2114.344349 | CD58: 1031.900852 | CE58: 22891.49509 | CF58: 10668.29998 | CG58: 337.69513 | CH58: 3794.354298 | CI58: 5802.692693 | CJ58: 2687.775488 | CK58: 399.2445466 | CL58: 4744.581885 | CM58: 20406.10587 | CN58: 56.38957593 | CO58: 4196.086098 | CP58: 1343.749721 | CQ58: 1970.1607 | CR58: 246.0896542 | CS58: 4523.497425 | CT58: 862.4301417 | CU58: 23398.24544 | CV58: 4147.168531 | CW58: 1376.842961 | CX58: 844.1921188 | CY58: 849.8964684 | CZ58: 1598.216739 | DA58: 34.99580873 | DB58: 545.6949314 | DC58: 4141.71118 | DD58: 402.7537222 | DE58: 4080.753408 | DF58: 4.131179547 | DG58: 16450.53885 | DH58: 52.26244673 | DI58: 3587.117431 | DJ58: 737.9736354 | DK58: 49549.01798 | DL58: 1288.009056 | DM58: 7538.133565 | DN58: 8351.604856 | DO58: 56.07880112 | DP58: 2976.263926 | DQ58: 1088.755387 | DR58: 1040.905026 | DS58: 410.9622057 | DT58: 1115.635894 | DU58: 3092.632804 | DV58: 14251.48303 | DW58: 5366.4334 | DX58: 2892.417992 | DY58: 1286.296435 | DZ58: 15039.26152 | EA58: 898.1539009 | EB58: 1718.81426 | EC58: 3430.788902 | ED58: 2252.97808 | EE58: 70383.84992 | EF58: 57.01798295 | EG58: 99.78344372 | EH58: 1078.459587 | EI58: 1248.407508 | EJ58: 7355.814992 | EK58: 1951.848438 | EL58: 943.5940745 | EM58: 431.2878056 | EN58: 960.9237374 | EO58: 1229.910458 | EP58: 1216.499383 | EQ58: 1059.050474 | ER58: 2717.065924 | ES58: 1044.431306 | ET58: 2941.98237 | EU58: 859.0221624 | EV58: 782.5005793 | EW58: 826.0587175 | EX58: 4166.567012 | EY58: 1247.206058 | EZ58: 926.2865192 | FA58: 987.9958797 | FB58: 970.8274037 | FC58: 891.7235898 | FD58: 1141.820022 | FE58: 7484.887183 | FF58: 809.4844385 | FG58: 838.7173891 | FH58: 811.9397949 | FI58: 910.8822287 | FJ58: 1021.979814 | FK58: 1286.782859 | FL58: 738.2354008 | FM58: 271.7616056 | FN58: 223.0936211 | FO58: 5374.570995 | FP58: 729.4450426 | FQ58: 2927.242273 | FR58: 1037.577236 | FS58: 891.951495 | FT58: 2081.58804 | FU58: 0.00036520035 | FV58: 654.7933824 | FW58: 649.3779325 | FX58: 1023.940938 | FY58: 715.9862502 | FZ58: 1871.720359 | GA58: 739.2036359 | GB58: 265.0319215 | GC58: 715.864341 | GD58: 5045.590131 | GE58: 5014.38807 | GF58: 1058.117116 | GG58: 4423.301267 | GH58: 741.0599701 | GI58: 266.0963329 | GJ58: 2150.499178 | GK58: 1175.421963 | GL58: 861.6982672 | GM58: 4579.712295 | GN58: 1196.677161 | GO58: 748.7044028 | GP58: 1346.932797 | GQ58: 5460.993252 | GR58: 5392.519625 | GS58: 2476.394336 | GT58: 207472.0294 | GU58: 25461.56356 | GV58: 26026.88299 | GW58: 77709.05448 | GX58: 45568.04692 | GY58: 8700.885383 | GZ58: 7110.961825 | HA58: 7232.49812 | HB58: 48.90735627 | HC58: 4177.584643 | HD58: 3333.050348 | HE58: 9933.290092 | HF58: 452.0728993 | HG58: 164.6031211 | HH58: 19951.39601 | HI58: 6992.587668 | HJ58: 855.9041849 | HK58: 916.0433712 | HL58: 474.5835598 | HM58: 600.660669 | HN58: 747.1917819 | HO58: 674.3850189 | HP58: 30.9437838 | HQ58: 474.1258641 | HR58: 464.375764 | HS58: 828.896851 | HT58: 546.5464231 | HU58: 213.8505397 | HV58: 755.0088127 | HW58: 639.3679884 | HX58: 422.138879 | HY58: 905.9050057 | HZ58: 689.93507 | IA58: 890.0053216 | IB58: 234.7170071 | IC58: 14527.94646 | ID58: 33033.75379 | IE58: 946.8346197 | IF58: 5162.000416 | IG58: 2209.142105 | IH58: 2245.290563 | II58: 1304.907126 | IJ58: 1634.680627 | IK58: 1396.163096 | IL58: 1750.85843 | IM58: 2584.430198 | IN58: 16600.83934 | IO58: 729.5006225 | IP58: 3119.141353 | IQ58: 848.3746174 | IR58: 666.3584742 | IS58: 781.7367353 | IT58: 642.3535338 | IU58: 24312.33608 | IV58: 40061.34268 | IW58: 95.47355995 | IX58: 7310.348113 | IY58: 2206025.299
A59: =+MATCH(B59,RUT[EMPRESA],0) -> 34 | B59: CARDONES SA | C59: -2723901.002 | D59: -2723901.002 | F59: =IFERROR(INDEX($B$9:$B$511,MATCH(0,INDEX(COUNTIF($F$8:F58,$B$9:$B$511),0,0),0)),"") -> CARDONES SA | G59: -2723901.002 | J59: HORNITOS | K59: =$IY59*K$67/$IY$67 -> 70030867.3 | L59: 7154549.327 | M59: 12261949.81 | N59: 266937818 | O59: 110800545.1 | P59: 27019487.11 | Q59: 454649.2014 | R59: 665420.3333 | S59: 3241956.294 | T59: 5057449.489 | U59: =$IY59*U$67/$IY$67 -> 3860132.782 | V59: 1602203.583 | W59: 2605425.956 | X59: 2292481.063 | Y59: 1516134.031 | Z59: 6606637.089 | AA59: 16629867.05 | AB59: 140323000.6 | AC59: 1755251.038 | AD59: 170802.8365 | AE59: =$IY59*AE$67/$IY$67 -> 944856.1474 | AF59: 8961518.108 | AG59: 584774.3797 | AH59: 11970581.62 | AI59: 677645.1316 | AJ59: 6631036.092 | AK59: 28635084.57 | AL59: 18911298.96 | AM59: 172177.7399 | AN59: 2230884.772 | AO59: =$IY59*AO$67/$IY$67 -> 43177227.31 | AP59: 14836544.96 | AQ59: 1541161.848 | AR59: 79178145.58 | AS59: 1938712.753 | AT59: 3860522.757 | AU59: 2927193.564 | AV59: 43171902.18 | AW59: 37115318.52 | AX59: 158945.2198 | AY59: =$IY59*AY$67/$IY$67 -> 9322.167722 | AZ59: 1728887.204 | BA59: 8303529.524 | BB59: 17216.29397 | BC59: 22919928.32 | BD59: 7239420.714 | BE59: 138411.7853 | BF59: 602829.625 | BG59: 12452725.11 | BH59: 4895495.572 | BI59: =$IY59*BI$67/$IY$67 -> 378090.5265 | BJ59: 693523.3444 | BK59: 69032396.81 | BL59: 1426231.336 | BM59: 39074817.5 | BN59: 17854694.93 | BO59: 5129378.529 | BP59: 26143.13573 | BQ59: 41454424.63 | BR59: 3341621.328 | BS59: =$IY59*BS$67/$IY$67 -> 483699.0539 | BT59: 4019307.561 | BU59: 22956014.67 | BV59: 1145779.792 | BW59: 1072745.515 | BX59: 1231308.589 | BY59: 19118117.49 | BZ59: 81519046.3 | CA59: 6649614.939 | CB59: 530973.9121 | CC59: =$IY59*CC$67/$IY$67 -> 2563967.978 | CD59: 1251338.621 | CE59: 27759461.42 | CF59: 12936955.86 | CG59: 409507.3255 | CH59: 4601238.641 | CI59: 7036658.083 | CJ59: 3259341.5 | CK59: 484145.4674 | CL59: 5753535.856 | CM59: =$IY59*CM$67/$IY$67 -> 24745544.42 | CN59: 68381.04071 | CO59: 5088400.286 | CP59: 1629503.376 | CQ59: 2389123.11 | CR59: 298421.5856 | CS59: 5485436.917 | CT59: 1045829.298 | CU59: 28373974.22 | CV59: 5029080.206 | CW59: =$IY59*CW$67/$IY$67 -> 1669634.024 | CX59: 1023712.888 | CY59: 1030630.29 | CZ59: 1938083.805 | DA59: 42437.80489 | DB59: 661739.1016 | DC59: 5022462.328 | DD59: 488400.8829 | DE59: 4948541.647 | DF59: 5009.691101 | DG59: =$IY59*DG$67/$IY$67 -> 19948810.54 | DH59: 63376.26127 | DI59: 4349932.04 | DJ59: 894906.6271 | DK59: 60085811.25 | DL59: 1561909.239 | DM59: 9141147.271 | DN59: 10127606.43 | DO59: 68004.17841 | DP59: 3609178.138 | DQ59: =$IY59*DQ$67/$IY$67 -> 1320283.495 | DR59: 1262257.567 | DS59: 498354.9327 | DT59: 1352880.249 | DU59: 3750293.315 | DV59: 17282116.86 | DW59: 6507626.537 | DX59: 3507502.037 | DY59: 1559832.424 | DZ59: 18237419.54 | EA59: =$IY59*EA$67/$IY$67 -> 1089149.855 | EB59: 2084326.863 | EC59: 4160359.636 | ED59: 2732082.716 | EE59: 85351252.01 | EF59: 69143.08094 | EG59: 121002.7849 | EH59: 1307798.253 | EI59: 1513886.267 | EJ59: 8920057.938 | EK59: =$IY59*EK$67/$IY$67 -> 2366916.673 | EL59: 1144253.06 | EM59: 523002.8512 | EN59: 1165267.944 | EO59: 1491455.748 | EP59: 1475192.755 | EQ59: 1284261.716 | ER59: 3294860.663 | ES59: 1266533.725 | ET59: 3567606.474 | EU59: =$IY59*EU$67/$IY$67 -> 1041696.599 | EV59: 948902.4005 | EW59: 1001723.348 | EX59: 5052603.85 | EY59: 1512429.324 | EZ59: 1123264.985 | FA59: 1198097.084 | FB59: 1177277.664 | FC59: 1081352.113 | FD59: 1384632.533 | FE59: =$IY59*FE$67/$IY$67 -> 9076577.836 | FF59: 981624.4833 | FG59: 1017073.936 | FH59: 984601.981 | FI59: 1104584.912 | FJ59: 1239307.835 | FK59: 1560422.287 | FL59: 895224.058 | FM59: 329552.7783 | FN59: 270535.3558 | FO59: =$IY59*FO$67/$IY$67 -> 6517494.624 | FP59: 884564.3956 | FQ59: 3549731.838 | FR59: 1258222.11 | FS59: 1081628.483 | FT59: 2524245.911 | FU59: 0.4428616387 | FV59: 794037.7666 | FW59: 787470.7 | FX59: 1241686 | FY59: =$IY59*FY$67/$IY$67 -> 868243.5382 | FZ59: 2269749.044 | GA59: 896398.1921 | GB59: 321392.0004 | GC59: 868095.7045 | GD59: 6118554.688 | GE59: 6080717.385 | GF59: 1283129.876 | GG59: 5363933.653 | GH59: 898649.283 | GI59: =$IY59*GI$67/$IY$67 -> 322682.7631 | GJ59: 2607811.274 | GK59: 1425380.059 | GL59: 1044941.788 | GM59: 5553606.099 | GN59: 1451155.259 | GO59: 907919.3343 | GP59: 1633363.346 | GQ59: 6622294.913 | GR59: 6539260.101 | GS59: =$IY59*GS$67/$IY$67 -> 3003009.317 | GT59: 251591771.2 | GU59: 30876065.04 | GV59: 31561601.87 | GW59: 94234190.09 | GX59: 55258271.05 | GY59: 10551162.83 | GZ59: 8623135.783 | HA59: 8770517.248 | HB59: 59307.69764 | HC59: =$IY59*HC$67/$IY$67 -> 5065964.423 | HD59: 4041836.594 | HE59: 12045643.24 | HF59: 548207.9767 | HG59: 199606.6212 | HH59: 24194138.72 | HI59: 8479588.896 | HJ59: 1037915.571 | HK59: 1110843.592 | HL59: 575505.6176 | HM59: =$IY59*HM$67/$IY$67 -> 728393.5191 | HN59: 906085.0487 | HO59: 817795.6416 | HP59: 37524.10095 | HQ59: 574950.5911 | HR59: 563127.0939 | HS59: 1005165.022 | HT59: 662771.6664 | HU59: 259326.6968 | HV59: 915564.4017 | HW59: =$IY59*HW$67/$IY$67 -> 775332.102 | HX59: 511908.3695 | HY59: 1098549.263 | HZ59: 836652.4722 | IA59: 1079268.448 | IB59: 284630.5005 | IC59: 17617371.33 | ID59: 40058511.26 | IE59: 1148182.72 | IF59: 6259720.077 | IG59: =$IY59*IG$67/$IY$67 -> 2678924.849 | IH59: 2722760.419 | II59: 1582400.751 | IJ59: 1982301.882 | IK59: 1693062.661 | IL59: 2123185.351 | IM59: 3134019.429 | IN59: 20131073.02 | IO59: 884631.7948 | IP59: 3782439.011 | IQ59: =$IY59*IQ$67/$IY$67 -> 1028784.811 | IR59: 808062.2206 | IS59: 947976.1221 | IT59: 778952.5353 | IU59: 29482449.83 | IV59: 48580544.53 | IW59: 115776.3874 | IX59: 8864922.348 | IY59: 2675145242
A60: =+MATCH(B60,RUT[EMPRESA],0) -> 32 | B60: CAPULLO | C60: -5847677.807 | D60: -5847677.807 | F60: =IFERROR(INDEX($B$9:$B$511,MATCH(0,INDEX(COUNTIF($F$8:F59,$B$9:$B$511),0,0),0)),"") -> CAPULLO | G60: -5847677.807 | J60: ON GROUP | K60: 1252982.576 | L60: 128008.2054 | M60: 219389.1072 | N60: 4776014.459 | O60: 1982428.002 | P60: 483428.9201 | Q60: 8134.520524 | R60: 11905.60842 | S60: 58004.63288 | T60: 90487.18559 | U60: 69064.96095 | V60: 28666.40453 | W60: 46615.92025 | X60: 41016.75359 | Y60: 27126.46004 | Z60: 118205.0355 | AA60: 297539.2774 | AB60: 2510639.687 | AC60: 31404.70839 | AD60: 3055.980688 | AE60: 16905.23529 | AF60: 160338.2405 | AG60: 10462.70219 | AH60: 214175.988 | AI60: 12124.33281 | AJ60: 118641.5791 | AK60: 512334.9661 | AL60: 338358.341 | AM60: 3080.580269 | AN60: 39914.68127 | AO60: 772520.9693 | AP60: 265453.407 | AQ60: 27574.25428 | AR60: 1416644.411 | AS60: 34687.17998 | AT60: 69071.93833 | AU60: 52372.94171 | AV60: 772425.6928 | AW60: 664062.1369 | AX60: 2843.825852 | AY60: 166.7909334 | AZ60: 30933.01033 | BA60: 148565.5999 | BB60: 308.0315466 | BC60: 410080.1821 | BD60: 129526.7125 | BE60: 2476.444487 | BF60: 10785.74413 | BG60: 222802.4324 | BH60: 87589.52854 | BI60: 6764.743319 | BJ60: 12408.4236 | BK60: 1235118.08 | BL60: 25517.93348 | BM60: 699121.2213 | BN60: 319453.7281 | BO60: 91774.13001 | BP60: 467.7493627 | BQ60: 741696.8223 | BR60: 59787.82585 | BS60: 8654.276461 | BT60: 71912.89405 | BU60: 410725.8341 | BV60: 20500.1333 | BW60: 19193.41414 | BX60: 22030.40268 | BY60: 342058.7095 | BZ60: 1458527.483 | CA60: 118973.9892 | CB60: 9500.111674 | CC60: 45874.15985 | CD60: 22388.77725 | CE60: 496668.4379 | CF60: 231466.222 | CG60: 7326.848335 | CH60: 82324.7243 | CI60: 125898.9116 | CJ60: 58315.68658 | CK60: 8662.263628 | CL60: 102941.4664 | CM60: 442743.8525 | CN60: 1223.464107 | CO60: 91040.95296 | CP60: 29154.84866 | CQ60: 42745.8597 | CR60: 5339.317667 | CS60: 98144.67737 | CT60: 18711.83291 | CU60: 507663.2158 | CV60: 89979.60632 | CW60: 29872.86065 | CX60: 18316.12917 | CY60: 18439.89437 | CZ60: 34675.92695 | DA60: 759.2913257 | DB60: 11839.74433 | DC60: 89861.20016 | DD60: 8738.400935 | DE60: 88538.62157 | DF60: 89.63269914 | DG60: 356921.3545 | DH60: 1133.919287 | DI60: 77828.38142 | DJ60: 16011.54539 | DK60: 1075047.011 | DL60: 27945.46372 | DM60: 163552.1406 | DN60: 181201.7311 | DO60: 1216.721339 | DP60: 64574.91523 | DQ60: 23622.32938 | DR60: 22584.13752 | DS60: 8916.497413 | DT60: 24205.54598 | DU60: 67099.72842 | DV60: 309209.2407 | DW60: 116433.5524 | DX60: 62755.74052 | DY60: 27908.30562 | DZ60: 326301.3839 | EA60: 19486.91832 | EB60: 37292.48747 | EC60: 74436.57823 | ED60: 48882.04546 | EE60: 1527092.776 | EF60: 1237.098425 | EG60: 2164.965064 | EH60: 23398.94516 | EI60: 27086.24336 | EJ60: 159596.4408 | EK60: 42348.5452 | EL60: 20472.81723 | EM60: 9357.494557 | EN60: 20848.81261 | EO60: 26684.91961 | EP60: 26393.9444 | EQ60: 22977.8327 | ER60: 58951.19052 | ES60: 22660.64594 | ET60: 63831.12078 | EU60: 18637.89123 | EV60: 16977.63029 | EW60: 17922.69536 | EX60: 90400.48809 | EY60: 27060.17593 | EZ60: 20097.3015 | FA60: 21436.18703 | FB60: 21063.68886 | FC60: 19347.4022 | FD60: 24773.65346 | FE60: 162396.8732 | FF60: 17563.08926 | FG60: 18197.34595 | FH60: 17616.36224 | FI60: 19763.08021 | FJ60: 22173.52409 | FK60: 27918.85938 | FL60: 16017.22482 | FM60: 5896.312654 | FN60: 4840.381105 | FO60: 116610.1109 | FP60: 15826.50362 | FQ60: 63511.31027 | FR60: 22511.93568 | FS60: 19352.34697 | FT60: 45163.45813 | FU60: 0.007923619085 | FV60: 14206.81371 | FW60: 14089.31667 | FX60: 22216.07389 | FY60: 15534.4931 | FZ60: 40610.03544 | GA60: 16038.23227 | GB60: 5750.301145 | GC60: 15531.84808 | GD60: 109472.3328 | GE60: 108795.353 | GF60: 22957.58198 | GG60: 95970.7578 | GH60: 16078.50847 | GI60: 5773.395293 | GJ60: 46658.59802 | GK60: 25502.70255 | GL60: 18695.9537 | GM60: 99364.35093 | GN60: 25963.86885 | GO60: 16244.36695 | GP60: 29223.91071 | GQ60: 118485.1831 | GR60: 116999.5358 | GS60: 53729.42666 | GT60: 4501445.115 | GU60: 552430.2782 | GV60: 564695.8082 | GW60: 1686025.074 | GX60: 988673.3301 | GY60: 188779.9436 | GZ60: 154283.9508 | HA60: 156920.8795 | HB60: 1061.12511 | HC60: 90639.53362 | HD60: 72315.98038 | HE60: 215518.98 | HF60: 9808.46117 | HG60: 3571.334012 | HH60: 432878.1781 | HI60: 151715.6298 | HJ60: 18570.24161 | HK60: 19875.05964 | HL60: 10296.86678 | HM60: 13032.31593 | HN60: 16211.54816 | HO60: 14631.88632 | HP60: 671.3760155 | HQ60: 10286.93632 | HR60: 10075.39195 | HS60: 17984.27331 | HT60: 11858.21883 | HU60: 4639.837333 | HV60: 16381.15143 | HW60: 13872.13456 | HX60: 9158.993627 | HY60: 19655.09122 | HZ60: 14969.27012 | IA60: 19310.12156 | IB60: 5092.569482 | IC60: 315207.567 | ID60: 716721.3337 | IE60: 20543.12616 | IF60: 111998.0444 | IG60: 47930.95227 | IH60: 48715.2522 | II60: 28312.09501 | IJ60: 35467.07064 | IK60: 30292.04258 | IL60: 37987.73816 | IM60: 56073.44144 | IN60: 360182.3694 | IO60: 15827.70952 | IP60: 67674.87476 | IQ60: 18406.87532 | IR60: 14457.7373 | IS60: 16961.05744 | IT60: 13936.91085 | IU60: 527495.9078 | IV60: 869196.3724 | IW60: 2071.455084 | IX60: 158609.9625 | IY60: 47863328.05
A61: =+MATCH(B61,RUT[EMPRESA],0) -> 24 | B61: BE FORESTALES | C61: 888066894.6 | D61: 888066894.6 | F61: =IFERROR(INDEX($B$9:$B$511,MATCH(0,INDEX(COUNTIF($F$8:F60,$B$9:$B$511),0,0),0)),"") -> BE FORESTALES | H61: 888066894.6 | J61: EL_ARREBOL | K61: 0.07859205169 | L61: 0.008029183876 | M61: 0.01376095756 | N61: 0.2995706265 | O61: 0.1243457707 | P61: 0.03032258502 | Q61: 0.0005102294876 | R61: 0.0007467671221 | S61: 0.003638281325 | T61: 0.005675716251 | U61: 0.004332029101 | V61: 0.001798070932 | W61: 0.002923935963 | X61: 0.002572733956 | Y61: 0.001701479486 | Z61: 0.007414290064 | AA61: 0.01866284713 | AB61: 0.1574773089 | AC61: 0.001969828243 | AD61: 0.0001916832659 | AE61: 0.001060363609 | AF61: 0.01005705229 | AG61: 0.0006562623034 | AH61: 0.01343396999 | AI61: 0.0007604863865 | AJ61: 0.007441671814 | AK61: 0.03213568722 | AL61: 0.02122318119 | AM61: 0.0001932262495 | AN61: 0.002503607596 | AO61: 0.0484555884 | AP61: 0.0166502937 | AQ61: 0.001729566923 | AR61: 0.0888575731 | AS61: 0.002175717919 | AT61: 0.00433246675 | AU61: 0.003285039251 | AV61: 0.04844961228 | AW61: 0.04165261897 | AX61: 0.0001783760706 | AY61: 1.046179086e-05 | AZ61: 0.001940241464 | BA61: 0.00931862544 | BB61: 1.9320964e-05 | BC61: 0.02572186038 | BD61: 0.008124430682 | BE61: 0.0001553324499 | BF61: 0.0006765247793 | BG61: 0.0139750549 | BH61: 0.005493963674 | BI61: 0.0004243116121 | BJ61: 0.0007783056905 | BK61: 0.07747151946 | BL61: 0.001600586302 | BM61: 0.04385166421 | BN61: 0.02003740866 | BO61: 0.005756438525 | BP61: 2.93391008e-05 | BQ61: 0.04652217528 | BR61: 0.003750130282 | BS61: 0.0005428306476 | BT61: 0.004510662795 | BU61: 0.02576235824 | BV61: 0.001285849913 | BW61: 0.001203887289 | BX61: 0.001381834496 | BY61: 0.02145528302 | BZ61: 0.09148464595 | CA61: 0.007462521901 | CB61: 0.000595884797 | CC61: 0.0028774098 | CD61: 0.001404313175 | CE61: 0.03115302025 | CF61: 0.01451848225 | CG61: 0.0004595690749 | CH61: 0.005163734208 | CI61: 0.007896880577 | CJ61: 0.00365779185 | CK61: 0.0005433316345 | CL61: 0.006456898291 | CM61: 0.02777065573 | CN61: 7.67405359e-05 | CO61: 0.005710450744 | CP61: 0.00182870809 | CQ61: 0.00268119037 | CR61: 0.0003349032447 | CS61: 0.006156024598 | CT61: 0.001173680599 | CU61: 0.03184265645 | CV61: 0.00564387886 | CW61: 0.001873744658 | CX61: 0.001148860486 | CY61: 0.001156623531 | CZ61: 0.002175012084 | DA61: 4.762577252e-05 | DB61: 0.0007426358645 | DC61: 0.005636451955 | DD61: 0.0005481072692 | DE61: 0.005553494564 | DF61: 5.622119462e-06 | DG61: 0.02238752724 | DH61: 7.112392855e-05 | DI61: 0.004881705695 | DJ61: 0.001004307823 | DK61: 0.06743122519 | DL61: 0.001752850656 | DM61: 0.01025864089 | DN61: 0.01136569342 | DO61: 7.631760267e-05 | DP61: 0.004050395572 | DQ61: 0.001481686472 | DR61: 0.001416566948 | DS61: 0.0005592781889 | DT61: 0.001518268137 | DU61: 0.004208761899 | DV61: 0.01939483365 | DW61: 0.007303175598 | DX61: 0.003936289697 | DY61: 0.001750519952 | DZ61: 0.02046692087 | EA61: 0.001222297039 | EB61: 0.002339133169 | EC61: 0.004668958306 | ED61: 0.003066076351 | EE61: 0.09578533394 | EF61: 7.759573458e-05 | EG61: 0.0001357952213 | EH61: 0.001467674925 | EI61: 0.001698956937 | EJ61: 0.01001052367 | EK61: 0.002656269224 | EL61: 0.00128413654 | EM61: 0.0005869392841 | EN61: 0.001307720467 | EO61: 0.001673784314 | EP61: 0.001655533191 | EQ61: 0.001441261076 | ER61: 0.003697653186 | ES61: 0.00142136586 | ET61: 0.004003741825 | EU61: 0.001169042682 | EV61: 0.001064904511 | EW61: 0.001124182752 | EX61: 0.00567027824 | EY61: 0.001697321884 | EZ61: 0.0012605827 | FA61: 0.001344562927 | FB61: 0.00132119836 | FC61: 0.001213546033 | FD61: 0.001553902098 | FE61: 0.01018617792 | FF61: 0.001101626827 | FG61: 0.00114140993 | FH61: 0.00110496832 | FI61: 0.001239619011 | FJ61: 0.00139081164 | FK61: 0.001751181925 | FL61: 0.00100466406 | FM61: 0.000369840186 | FN61: 0.0003036079587 | FO61: 0.007314250047 | FP61: 0.0009927012671 | FQ61: 0.003983682037 | FR61: 0.001412038162 | FS61: 0.001213856189 | FT61: 0.002832831761 | FU61: 4.970009103e-10 | FV61: 0.0008911078729 | FW61: 0.0008837379908 | FX61: 0.001393480533 | FY61: 0.0009743852056 | FZ61: 0.002547222976 | GA61: 0.00100598173 | GB61: 0.0003606817634 | GC61: 0.0009742192994 | GD61: 0.00686654021 | GE61: 0.006824077346 | GF61: 0.00143999087 | GG61: 0.006019667715 | GH61: 0.001008508014 | GI61: 0.0003621303202 | GJ61: 0.002926612883 | GK61: 0.001599630957 | GL61: 0.001172684591 | GM61: 0.006232527376 | GN61: 0.001628557142 | GO61: 0.001018911317 | GP61: 0.001833039936 | GQ61: 0.007431862037 | GR61: 0.007338676325 | GS61: 0.003370123384 | GT61: 0.282348545 | GU61: 0.0346506247 | GV61: 0.03541996753 | GW61: 0.1057541999 | GX61: 0.06201352435 | GY61: 0.01184102906 | GZ61: 0.009677303157 | HA61: 0.009842701819 | HB61: 6.655798819e-05 | HC61: 0.005685272126 | HD61: 0.004535945973 | HE61: 0.01351820779 | HF61: 0.0006152257041 | HG61: 0.0002240082766 | HH61: 0.02715184139 | HI61: 0.009516207846 | HJ61: 0.001164799429 | HK61: 0.001246642807 | HL61: 0.0006458604468 | HM61: 0.0008174386997 | HN61: 0.001016852793 | HO61: 0.0009177701178 | HP61: 4.211137453e-05 | HQ61: 0.0006452375691 | HR61: 0.0006319686644 | HS61: 0.001128045166 | HT61: 0.000743794659 | HU61: 0.0002910290555 | HV61: 0.001027490985 | HW61: 0.0008701154647 | HX61: 0.0005744885161 | HY61: 0.001232845512 | HZ61: 0.000938932172 | IA61: 0.001211207643 | IB61: 0.0003194262169 | IC61: 0.01977107255 | ID61: 0.04495561327 | IE61: 0.001288546596 | IF61: 0.007024962889 | IG61: 0.003006420002 | IH61: 0.003055614414 | II61: 0.001775847228 | IJ61: 0.002224635764 | IK61: 0.001900037417 | IL61: 0.002382742058 | IM61: 0.003517149315 | IN61: 0.02259207107 | IO61: 0.0009927769058 | IP61: 0.004244837366 | IQ61: 0.001154552445 | IR61: 0.0009068467986 | IS61: 0.001063864996 | IT61: 0.0008741784913 | IU61: 0.03308664179 | IV61: 0.05451945427 | IW61: 0.0001299299034 | IX61: 0.009948647821 | IY61: 3.002178343
A62: =+MATCH(B62,RUT[EMPRESA],0) -> 10 | B62: ALLIPEN | C62: 21744720.1 | D62: 21744720.1 | F62: =IFERROR(INDEX($B$9:$B$511,MATCH(0,INDEX(COUNTIF($F$8:F61,$B$9:$B$511),0,0),0)),"") -> ALLIPEN | H62: 21744720.1 | J62: LA HIGUERA | K62: 2453591.863 | L62: 250665.8091 | M62: 429607.9919 | N62: 9352396.787 | O62: 3881992.702 | P62: 946651.0451 | Q62: 15929.02707 | R62: 23313.57555 | S62: 113584.7362 | T62: 177192.1068 | U62: 135243.0828 | V62: 56134.58502 | W62: 91283.34651 | X62: 80319.05217 | Y62: 53119.064 | Z62: 231469.2311 | AA62: 582641.7415 | AB62: 4916337.408 | AC62: 61496.73465 | AD62: 5984.224758 | AE62: 33103.85041 | AF62: 313974.5195 | AG62: 20488.07498 | AH62: 419399.6562 | AI62: 23741.88191 | AJ62: 232324.0712 | AK62: 1003254.896 | AL62: 662573.6771 | AM62: 6032.395685 | AN62: 78160.97294 | AO62: 1512751.415 | AP62: 519811.1547 | AQ62: 53995.93518 | AR62: 2774074.651 | AS62: 67924.47415 | AT62: 135256.7459 | AU62: 102556.7523 | AV62: 1512564.845 | AW62: 1300367.21 | AX62: 5568.782924 | AY62: 326.61019 | AZ62: 60573.05498 | BA62: 290921.3217 | BB62: 603.1877147 | BC62: 803019.4655 | BD62: 253639.3514 | BE62: 4849.376329 | BF62: 21120.65607 | BG62: 436291.9693 | BH62: 171517.9115 | BI62: 13246.72784 | BJ62: 24298.18879 | BK62: 2418609.588 | BL62: 49969.24552 | BM62: 1369019.948 | BN62: 625554.6432 | BO62: 179712.2027 | BP62: 915.9473185 | BQ62: 1452391.537 | BR62: 117076.5866 | BS62: 16946.81372 | BT62: 140819.9086 | BU62: 804283.782 | BV62: 40143.38367 | BW62: 37584.56477 | BX62: 43139.95886 | BY62: 669819.7428 | BZ62: 2856090.127 | CA62: 232974.9971 | CB62: 18603.12917 | CC62: 89830.83048 | CD62: 43841.72833 | CE62: 972576.6836 | CF62: 453257.4116 | CG62: 14347.4425 | CH62: 161208.366 | CI62: 246535.3876 | CJ62: 114193.8419 | CK62: 16962.4542 | CL62: 201580.0933 | CM62: 866981.5009 | CN62: 2395.788765 | CO62: 178276.4946 | CP62: 57091.05684 | CQ62: 83704.98967 | CR62: 10455.45775 | CS62: 192187.0156 | CT62: 36641.53188 | CU62: 994106.6698 | CV62: 176198.1645 | CW62: 58497.06871 | CX62: 35866.66437 | CY62: 36109.02151 | CZ62: 67902.43844 | DA62: 1486.845112 | DB62: 23184.60042 | DC62: 175966.3014 | DD62: 17111.54636 | DE62: 173376.4265 | DF62: 175.5188504 | DG62: 698923.7905 | DH62: 2220.441999 | DI62: 152403.6224 | DJ62: 31353.82587 | DK62: 2105158.243 | DL62: 54722.83793 | DM62: 320267.9822 | DN62: 354829.43 | DO62: 2382.585069 | DP62: 126450.6703 | DQ62: 46257.27149 | DR62: 44224.28303 | DS62: 17460.29508 | DT62: 47399.32687 | DU62: 131394.7623 | DV62: 605493.8766 | DW62: 228000.311 | DX62: 122888.3604 | DY62: 54650.07489 | DZ62: 638963.7302 | EA62: 38159.30497 | EB62: 73026.19015 | EC62: 145761.7897 | ED62: 95720.8754 | EE62: 2990354.761 | EF62: 2422.487502 | EG62: 4239.436979 | EH62: 45819.84025 | EI62: 53040.31166 | EJ62: 312521.9267 | EK62: 82926.96798 | EL62: 40089.8933 | EM62: 18323.85618 | EN62: 40826.16789 | EO62: 52254.43905 | EP62: 51684.65106 | EQ62: 44995.21738 | ER62: 115438.2864 | ES62: 44374.1019 | ET62: 124994.1712 | EU62: 36496.73918 | EV62: 33245.61438 | EW62: 35096.24185 | EX62: 177022.3356 | EY62: 52989.26639 | EZ62: 39354.55799 | FA62: 41976.36512 | FB62: 41246.93878 | FC62: 37886.10435 | FD62: 48511.79556 | FE62: 318005.7364 | FF62: 34392.06079 | FG62: 35634.06294 | FH62: 34496.37999 | FI62: 38700.0855 | FJ62: 43420.21935 | FK62: 54670.74126 | FL62: 31364.94733 | FM62: 11546.16595 | FN62: 9478.439626 | FO62: 228346.0479 | FP62: 30991.47686 | FQ62: 124367.9179 | FR62: 44082.89732 | FS62: 37895.78721 | FT62: 88439.13359 | FU62: 0.01551603964 | FV62: 27819.7983 | FW62: 27589.71546 | FX62: 43503.54043 | FY62: 30419.66154 | FZ62: 79522.61626 | GA62: 31406.08413 | GB62: 11260.24605 | GC62: 30414.48206 | GD62: 214368.843 | GE62: 213043.1805 | GF62: 44955.56238 | GG62: 187930.0439 | GH62: 31484.95305 | GI62: 11305.46904 | GJ62: 91366.91818 | GK62: 49939.42029 | GL62: 36610.43718 | GM62: 194575.3817 | GN62: 50842.47665 | GO62: 31809.73729 | GP62: 57226.29422 | GQ62: 232017.8164 | GR62: 229108.6202 | GS62: 105213.0226 | GT62: 8814734.796 | GU62: 1081769.581 | GV62: 1105787.955 | GW62: 3301576.162 | GX62: 1936021.207 | GY62: 369669.094 | GZ62: 302119.0028 | HA62: 307282.6396 | HB62: 2077.896362 | HC62: 177490.4348 | HD62: 141609.2327 | HE62: 422029.5047 | HF62: 19206.9395 | HG62: 6993.390207 | HH62: 847662.5265 | HI62: 297089.7138 | HJ62: 36364.26762 | HK62: 38919.36374 | HL62: 20163.3359 | HM62: 25519.89545 | HN62: 31745.47151 | HO62: 28652.17595 | HP62: 1314.689255 | HQ62: 20143.89007 | HR62: 19729.64364 | HS62: 35216.82386 | HT62: 23220.77722 | HU62: 9085.734589 | HV62: 32077.58883 | HW62: 27164.42921 | HX62: 17935.15143 | HY62: 38488.62133 | HZ62: 29312.84128 | IA62: 37813.10136 | IB62: 9972.275183 | IC62: 617239.8059 | ID62: 1403484.507 | IE62: 40227.57233 | IF62: 219314.6942 | IG62: 93858.44366 | IH62: 95394.26065 | II62: 55440.77571 | IJ62: 69451.65689 | IK62: 59317.91124 | IL62: 74387.63082 | IM62: 109803.075 | IN62: 705309.5136 | IO62: 30993.83825 | IP62: 132521.0145 | IQ62: 36044.36358 | IR62: 28311.15715 | IS62: 33213.16142 | IT62: 27291.27421 | IU62: 1032943.069 | IV62: 1702061.296 | IW62: 4056.325633 | IX62: 310590.2037 | IY62: 93726021.84
A63: =+MATCH(B63,RUT[EMPRESA],0) -> 90 | B63: EL CANELO | C63: 43299857.95 | D63: 43299857.95 | F63: =IFERROR(INDEX($B$9:$B$511,MATCH(0,INDEX(COUNTIF($F$8:F62,$B$9:$B$511),0,0),0)),"") -> EL CANELO | H63: 43299857.95 | J63: LA CONFLUENCIA | K63: 4146168.906 | L63: 423584.215 | M63: 725967.2337 | N63: 15804020.76 | O63: 6559932.674 | P63: 1599685.419 | Q63: 26917.45018 | R63: 39396.12918 | S63: 191939.6246 | T63: 299425.6764 | U63: 228538.6877 | V63: 94858.26653 | W63: 154253.924 | X63: 135726.0601 | Y63: 89762.52927 | Z63: 391145.1382 | AA63: 984569.2382 | AB63: 8307806.035 | AC63: 103919.4223 | AD63: 10112.36098 | AE63: 55940.09227 | AF63: 530565.58 | AG63: 34621.4954 | AH63: 708716.8161 | AI63: 40119.89687 | AJ63: 392589.6782 | AK63: 1695336.669 | AL63: 1119641.134 | AM63: 10193.76196 | AN63: 132079.2592 | AO63: 2556302.445 | AP63: 878395.824 | AQ63: 91244.29812 | AR63: 4687732.394 | AS63: 114781.2506 | AT63: 228561.7761 | AU63: 173304.1358 | AV63: 2555987.172 | AW63: 2197407.879 | AX63: 9410.332235 | AY63: 551.9177961 | AZ63: 102358.5548 | BA63: 491609.4466 | BB63: 1019.288572 | BC63: 1356971.544 | BD63: 428609.0151 | BE63: 8194.652765 | BF63: 35690.45398 | BG63: 737262.0621 | BH63: 289837.2146 | BI63: 22384.80323 | BJ63: 41059.96451 | BK63: 4087054.583 | BL63: 84439.85127 | BM63: 2313419.775 | BN63: 1057085.023 | BO63: 303684.2264 | BP63: 1547.801143 | BQ63: 2454304.124 | BR63: 197840.2807 | BS63: 28637.34314 | BT63: 237962.611 | BU63: 1359108.032 | BV63: 67835.752 | BW63: 63511.76661 | BX63: 72899.47391 | BY63: 1131885.8 | BZ63: 4826325.133 | CA63: 393689.6365 | CB63: 31436.24531 | CC63: 151799.4095 | CD63: 74085.34952 | CE63: 1643495.507 | CF63: 765930.8845 | CG63: 24244.83096 | CH63: 272415.7691 | CI63: 416604.4784 | CJ63: 192968.9136 | CK63: 28663.77299 | CL63: 340637.3844 | CM63: 1465056.921 | CN63: 4048.491125 | CO63: 301258.1145 | CP63: 96474.54745 | CQ63: 141447.7406 | CR63: 17668.01336 | CS63: 324764.6196 | CT63: 61918.19528 | CU63: 1679877.662 | CV63: 297746.0765 | CW63: 98850.47752 | CX63: 60608.79593 | CY63: 61018.33986 | CZ63: 114744.0139 | DA63: 2512.525031 | DB63: 39178.18231 | DC63: 297354.2659 | DD63: 28915.71435 | DE63: 292977.801 | DF63: 296.5981469 | DG63: 1181066.88 | DH63: 3752.183772 | DI63: 257537.1927 | DJ63: 52982.83705 | DK63: 3557373.082 | DL63: 92472.64487 | DM63: 541200.5025 | DN63: 599603.6958 | DO63: 4026.179038 | DP63: 213680.9488 | DQ63: 78167.22233 | DR63: 74731.80438 | DS63: 29505.04264 | DT63: 80097.10911 | DU63: 222035.6555 | DV63: 1023185.608 | DW63: 385283.2306 | DX63: 207661.2277 | DY63: 92349.68724 | DZ63: 1079744.186 | EA63: 64482.98353 | EB63: 123402.3162 | EC63: 246313.5817 | ED63: 161752.622 | EE63: 5053210.402 | EF63: 4093.607623 | EG63: 7163.955033 | EH63: 77428.03509 | EI63: 89629.4507 | EJ63: 528110.9357 | EK63: 140133.0112 | EL63: 67745.36202 | EM63: 30964.31963 | EN63: 68989.54563 | EO63: 88301.45453 | EP63: 87338.60604 | EQ63: 76034.55732 | ER63: 195071.8213 | ES63: 74984.97376 | ET63: 211219.7036 | EU63: 61673.51931 | EV63: 56179.65019 | EW63: 59306.90789 | EX63: 299138.791 | EY63: 89543.19253 | EZ63: 66502.76562 | FA63: 70933.19082 | FB63: 69700.57962 | FC63: 64021.31917 | FD63: 81976.99923 | FE63: 537377.6771 | FF63: 58116.95709 | FG63: 60215.73757 | FH63: 58293.23947 | FI63: 65396.81417 | FJ63: 73373.06829 | FK63: 92384.61003 | FL63: 53001.6305 | FM63: 19511.1318 | FN63: 16017.01254 | FO63: 385867.4695 | FP63: 52370.5265 | FQ63: 210161.4379 | FR63: 74492.88566 | FS63: 64037.68163 | FT63: 149447.6694 | FU63: 0.02621956898 | FV63: 47010.90854 | FW63: 46622.10617 | FX63: 73513.86728 | FY63: 51404.25214 | FZ63: 134380.2136 | GA63: 53071.14497 | GB63: 19027.97395 | GC63: 51395.49966 | GD63: 362248.2795 | GE63: 360008.1267 | GF63: 75967.54687 | GG63: 317571.0337 | GH63: 53204.42053 | GI63: 19104.3934 | GJ63: 154395.1465 | GK63: 84389.45151 | GL63: 61865.65033 | GM63: 328800.5677 | GN63: 85915.46903 | GO63: 53753.25278 | GP63: 96703.0765 | GQ63: 392072.1577 | GR63: 387156.0919 | GS63: 177792.7981 | GT63: 14895459.94 | GU63: 1828013.642 | GV63: 1868600.766 | GW63: 5579123.661 | GX63: 3271559.157 | GY63: 624680.3006 | GZ63: 510531.6959 | HA63: 519257.3975 | HB63: 3511.304962 | HC63: 299929.802 | HD63: 239296.4396 | HE63: 713160.8299 | HF63: 32456.58599 | HG63: 11817.68551 | HH63: 1432411.014 | HI63: 502033.0201 | HJ63: 61449.66403 | HK63: 65767.35853 | HL63: 34072.73947 | HM63: 43124.44892 | HN63: 53644.65413 | HO63: 48417.49061 | HP63: 2221.609792 | HQ63: 34039.8792 | HR63: 33339.8705 | HS63: 59510.67176 | HT63: 39239.31518 | HU63: 15353.40527 | HV63: 54205.87806 | HW63: 45903.44197 | HX63: 30307.4722 | HY63: 65039.47431 | HZ63: 49533.90696 | IA63: 63897.95606 | IB63: 16851.51386 | IC63: 1043034.308 | ID63: 2371659.244 | IE63: 67978.01705 | IF63: 370605.9591 | IG63: 158605.417 | IH63: 161200.6965 | II63: 93685.84228 | IJ63: 117361.9397 | IK63: 100237.5671 | IL63: 125702.9282 | IM63: 185549.2358 | IN63: 1191857.708 | IO63: 52374.51686 | IP63: 223938.8375 | IQ63: 60909.07853 | IR63: 47841.22462 | IS63: 56124.80999 | IT63: 46117.78927 | IU63: 1745504.824 | IV63: 2876205.178 | IW63: 6854.526811 | IX63: 524846.6398 | IY63: 158381645.8
A64: =+MATCH(B64,RUT[EMPRESA],0) -> 33 | B64: CARBOMET | C64: 32831580.97 | D64: 32831580.97 | F64: =IFERROR(INDEX($B$9:$B$511,MATCH(0,INDEX(COUNTIF($F$8:F63,$B$9:$B$511),0,0),0)),"") -> CARBOMET | H64: 32831580.97 | J64: TRANSELEC | K64: 588657.9283 | L64: 60138.94083 | M64: 103070.1782 | N64: 2243797.186 | O64: 931355.2984 | P64: 227117.4972 | Q64: 3821.641332 | R64: 5593.318632 | S64: 27250.88735 | T64: 42511.36468 | U64: 32447.08875 | V64: 13467.63046 | W64: 21900.40913 | X64: 19269.89063 | Y64: 12744.15629 | Z64: 55533.3591 | AA64: 139785.5469 | AB64: 1179511.979 | AC64: 14754.10029 | AD64: 1435.716103 | AE64: 7942.170127 | AF64: 75327.76456 | AG64: 4915.433554 | AH64: 100621.0268 | AI64: 5696.076526 | AJ64: 55738.44961 | AK64: 240697.7125 | AL64: 158962.5618 | AM64: 1447.273118 | AN64: 18752.13115 | AO64: 362934.491 | AP64: 124711.4331 | AQ64: 12954.53242 | AR64: 665547.1358 | AS64: 16296.22303 | AT64: 32450.36676 | AU64: 24605.08866 | AV64: 362889.7297 | AW64: 311979.9504 | AX64: 1336.044624 | AY64: 78.35927428 | AZ64: 14532.49401 | BA64: 69796.91493 | BB64: 144.7148712 | BC64: 192657.867 | BD64: 60852.3436 | BE64: 1163.44689 | BF64: 5067.200391 | BG64: 104673.7767 | BH64: 41150.02987 | BI64: 3178.112661 | BJ64: 5829.543898 | BK64: 580265.0926 | BL64: 11988.46189 | BM64: 328450.8961 | BN64: 150081.0733 | BO64: 43115.97807 | BP64: 219.7511571 | BQ64: 348453.1416 | BR64: 28088.64097 | BS64: 4065.825457 | BT64: 33785.06298 | BU64: 192961.1978 | BV64: 9631.072478 | BW64: 9017.168815 | BX64: 10350.00123 | BY64: 160701.0147 | BZ64: 685224.0271 | CA64: 55894.61769 | CB64: 4463.203372 | CC64: 21551.92612 | CD64: 10518.36753 | CE64: 233337.4936 | CF64: 108744.0715 | CG64: 3442.19261 | CH64: 38676.59663 | CI64: 59147.9833 | CJ64: 27397.02205 | CK64: 4069.577871 | CL64: 48362.45256 | CM64: 208003.4344 | CN64: 574.7899935 | CO64: 42771.52756 | CP64: 13697.10413 | CQ64: 20082.23395 | CR64: 2508.440051 | CS64: 46108.89535 | CT64: 8790.919373 | CU64: 238502.8992 | CV64: 42272.90122 | CW64: 14034.43001 | CX64: 8605.015634 | CY64: 8663.161186 | CZ64: 16290.93629 | DA64: 356.7191336 | DB64: 5562.37533 | DC64: 42217.27337 | DD64: 4105.347585 | DE64: 41595.91886 | DF64: 42.10992236 | DG64: 167683.565 | DH64: 532.7213571 | DI64: 36564.19065 | DJ64: 7522.309825 | DK64: 505062.8463 | DL64: 13128.92861 | DM64: 76837.67205 | DN64: 85129.54427 | DO64: 571.622205 | DP64: 30337.64121 | DQ64: 11097.89693 | DR64: 10610.14883 | DS64: 4189.018265 | DT64: 11371.89521 | DU64: 31523.81198 | DV64: 145268.1582 | DW64: 54701.10686 | DX64: 29482.98318 | DY64: 13111.47153 | DZ64: 153298.1387 | EA64: 9155.058649 | EB64: 17520.21045 | EC64: 34970.70333 | ED64: 22965.0469 | EE64: 717436.3695 | EF64: 581.1954693 | EG64: 1017.112188 | EH64: 10992.94982 | EI64: 12725.26228 | EJ64: 74979.26313 | EK64: 19895.57347 | EL64: 9618.239239 | EM64: 4396.201087 | EN64: 9794.883888 | EO64: 12536.71823 | EP64: 12400.01651 | EQ64: 10795.10893 | ER64: 27695.5852 | ES64: 10646.09289 | ET64: 29988.20259 | EU64: 8756.181172 | EV64: 7976.181687 | EW64: 8420.178322 | EX64: 42470.63373 | EY64: 12713.01566 | EZ64: 9441.819938 | FA64: 10070.83554 | FB64: 9895.833899 | FC64: 9089.513228 | FD64: 11638.79515 | FE64: 76294.92125 | FF64: 8251.233449 | FG64: 8549.210642 | FH64: 8276.261378 | FI64: 9284.800987 | FJ64: 10417.24044 | FK64: 13116.42974 | FL64: 7524.978051 | FM64: 2770.119281 | FN64: 2274.036981 | FO64: 54784.05497 | FP64: 7435.376208 | FQ64: 29837.9539 | FR64: 10576.22802 | FS64: 9091.83631 | FT64: 21218.03464 | FU64: 0.003722558706 | FV64: 6674.437212 | FW64: 6619.23647 | FX64: 10437.23056 | FY64: 7298.188101 | FZ64: 19078.81227 | GA64: 7534.847461 | GB64: 2701.522292 | GC64: 7296.945457 | GD64: 51430.68857 | GE64: 51112.63985 | GF64: 10785.59503 | GG64: 45087.57629 | GH64: 7553.769439 | GI64: 2712.372046 | GJ64: 21920.45938 | GK64: 11981.30632 | GL64: 8783.459233 | GM64: 46681.90453 | GN64: 12197.96471 | GO64: 7631.690639 | GP64: 13729.54985 | GQ64: 55664.97395 | GR64: 54967.00887 | GS64: 25242.37256 | GT64: 2114803.037 | GU64: 259534.705 | GV64: 265297.1167 | GW64: 792103.6145 | GX64: 464484.0284 | GY64: 88689.8291 | GZ64: 72483.42683 | HA64: 73722.27009 | HB64: 498.5222628 | HC64: 42582.9386 | HD64: 33974.4351 | HE64: 101251.9717 | HF64: 4608.067618 | HG64: 1677.831857 | HH64: 203368.4877 | HI64: 71276.81586 | HJ64: 8724.399018 | HK64: 9337.409524 | HL64: 4837.52319 | HM64: 6122.651861 | HN64: 7616.272198 | HO64: 6874.138601 | HP64: 315.4160498 | HQ64: 4832.857808 | HR64: 4733.473128 | HS64: 8449.107972 | HT64: 5571.054752 | HU64: 2179.820442 | HV64: 7695.952724 | HW64: 6517.20315 | HX64: 4302.944286 | HY64: 9234.067178 | HZ64: 7032.643318 | IA64: 9071.998584 | IB64: 2392.516432 | IC64: 148086.2041 | ID64: 336719.5232 | IE64: 9651.270751 | IF64: 52617.28141 | IG64: 22518.21822 | IH64: 22886.68653 | II64: 13301.17395 | IJ64: 16662.61984 | IK64: 14231.36393 | IL64: 17846.84295 | IM64: 26343.60327 | IN64: 169215.6072 | IO64: 7435.942746 | IP64: 31794.01881 | IQ64: 8647.648661 | IR64: 6792.322458 | IS64: 7968.395675 | IT64: 6547.635398 | IU64: 247820.4041 | IV64: 408353.1135 | IW64: 973.1806987 | IX64: 74515.81032 | IY64: 22486448
